Workbook

Sheet Sheet2 (hidden)
A1: 1. Meteorological data | E1: Sutton Bonnington 1984
A3: Day | B3: Month | C3: Year | E3: Incoming radiation (LINGRA) | F3: Incoming radiation (LINGRA-N) | G3: Net outgoing longwave radiation LINGRA | H3: Cumulative | I3: Net outgoing longwave radiation LINGRA-N | K3: FAO24 | N3: FAO56 using FAO Rs | O3: Reference crop evapotranspiration (FAO56) | Q3: Potential evaporation of a closed canopy; ET0
E4: (MJ m-2 d-1) | F4: (MJ m-2 d-1) | G4: (MJ m-2 d-1) | I4: (MJ m-2 d-1) | O4: mm d-1 | Q4: mm d-1
A5: 1 | B5: 1 | C5: 1984 | D5: =DATE(C5,B5,A5) -> 1984-01-01 | E5: 1 | F5: 1 | G5: 0.6506649446 | H5: =G5 -> 0.6506649446 | I5: 0.9215556143 | J5: =I5 -> 0.9215556143 | K5: -0.3667127343 | L5: =K5 -> -0.3667127343 | M5: 0.2571011401 | N5: =M5 -> 0.2571011401 | O5: 0.2194318293 | P5: =O5 -> 0.2194318293 | Q5: 0.163044411 | R5: =Q5 -> 0.163044411
A6: 2 | B6: 1 | C6: 1984 | D6: =DATE(C6,B6,A6) -> 1984-01-02 | E6: 0.7 | F6: 0.7 | G6: 5.312060832 | H6: =H5+G6 -> 5.962725777 | I6: 1.062851127 | J6: =J5+I6 -> 1.984406741 | K6: -1.0137897 | L6: =L5+K6 -> -1.380502434 | M6: -0.5345878688 | N6: =N5+M6 -> -0.2774867287 | O6: 1.833547716 | P6: =P5+O6 -> 2.052979545 | Q6: 1.894521162 | R6: =R5+Q6 -> 2.057565573
A7: 3 | B7: 1 | C7: 1984 | D7: 1984-01-03 | E7: 1.9 | F7: 1.9 | G7: 4.619995405 | H7: =H6+G7 -> 10.58272118 | I7: 2.78070776 | J7: =J6+I7 -> 4.765114501 | K7: 1.275125386 | L7: =L6+K7 -> -0.1053770478 | M7: 2.536382499 | N7: =N6+M7 -> 2.258895771 | O7: 0.868719179 | P7: =P6+O7 -> 2.921698724 | Q7: 0.9082478391 | R7: =R6+Q7 -> 2.965813412
A8: 4 | B8: 1 | C8: 1984 | D8: 1984-01-04 | E8: 3.5 | F8: 3.5 | G8: 3.511095474 | H8: 14.09381666 | I8: 6.85385539 | J8: 11.61896989 | K8: 4.184956552 | L8: 4.079579504 | M8: 6.384906714 | N8: 8.643802485 | O8: 0.1156295291 | P8: 3.037328253 | Q8: -0.1398845864 | R8: 2.825928826
A9: 5 | B9: 1 | C9: 1984 | D9: 1984-01-05 | E9: 1.9 | F9: 1.9 | G9: 0.5697355022 | H9: 14.66355216 | I9: 2.41066191 | J9: 14.0296318 | K9: 1.097600554 | L9: 5.177180058 | M9: 2.178461297 | N9: 10.82226378 | O9: 0.06265041233 | P9: 3.099978666 | Q9: -0.07585733047 | R9: 2.750071495
A10: 6 | B10: 1 | C10: 1984 | D10: 1984-01-06 | E10: 1.7 | F10: 1.7 | G10: 2.941388723 | H10: 17.60494088 | I10: 1.967029414 | J10: 15.99666122 | K10: 0.7471389687 | L10: 5.924319026 | M10: 1.716569707 | N10: 12.53883349 | O10: 0.4825857429 | P10: 3.582564408 | Q10: 0.4757793227 | R10: 3.225850818
A11: 7 | B11: 1 | C11: 1984 | D11: 1984-01-07 | E11: 2.5 | F11: 2.5 | G11: 3.562997488 | H11: 21.16793837 | I11: 3.966810095 | J11: 19.96347131 | K11: 2.150238402 | L11: 8.074557428 | M11: 3.548027015 | N11: 16.0868605 | O11: 0.5084355977 | P11: 4.091000006 | Q11: 0.4194027094 | R11: 3.645253527
A12: 8 | B12: 1 | C12: 1984 | D12: 1984-01-08 | E12: 2.7 | F12: 2.7 | G12: 3.473416166 | H12: 24.64135453 | I12: 4.42041107 | J12: 24.38388238 | K12: 2.45725674 | L12: 10.53181417 | M12: 3.914414902 | N12: 20.0012754 | O12: 0.2493681868 | P12: 4.340368193 | Q12: 0.1308472669 | R12: 3.776100794
A13: 9 | B13: 1 | C13: 1984 | D13: 1984-01-09 | E13: 2.3 | F13: 2.3 | G13: 5.950939887 | H13: 30.59229442 | I13: 3.526972346 | J13: 27.91085473 | K13: 1.780186735 | L13: 12.3120009 | M13: 3.030373859 | N13: 23.03164926 | O13: 0.9206024684 | P13: 5.260970661 | Q13: 0.7560355623 | R13: 4.532136356
A14: 10 | B14: 1 | C14: 1984 | D14: 1984-01-10 | E14: 1.5 | F14: 1.5 | G14: 0 | H14: 30.59229442 | I14: 1.207175933 | J14: 29.11803066 | K14: 0.2422854446 | L14: 12.55428635 | M14: 0.9316446366 | N14: 23.9632939 | O14: 0.2195327263 | P14: 5.480503388 | Q14: -0.01580055001 | R14: 4.516335806
A15: 11 | B15: 1 | C15: 1984 | D15: 1984-01-11 | E15: 1.9 | F15: 1.9 | G15: 1.172620103 | H15: 31.76491452 | I15: 1.961373523 | J15: 31.07940418 | K15: 0.8172279182 | L15: 13.37151427 | M15: 1.631652459 | N15: 25.59494636 | O15: 0.2959937559 | P15: 5.776497144 | Q15: 0.2956337743 | R15: 4.811969581
A16: 12 | B16: 1 | C16: 1984 | D16: 1984-01-12 | E16: 3.3 | F16: 3.3 | G16: 6.877268882 | H16: 38.64218341 | I16: 5.781627671 | J16: 36.86103185 | K16: 3.390729571 | L16: 16.76224384 | M16: 4.972898423 | N16: 30.56784478 | O16: 2.14190655 | P16: 7.918403694 | Q16: 1.903661491 | R16: 6.715631072
A17: 13 | B17: 1 | C17: 1984 | D17: 1984-01-13 | E17: 2.6 | F17: 2.6 | G17: 2.054999893 | H17: 40.6971833 | I17: 3.520533045 | J17: 40.3815649 | K17: 1.878795569 | L17: 18.64103941 | M17: 2.952810668 | N17: 33.52065545 | O17: 0.580854443 | P17: 8.499258137 | Q17: 0.3107650837 | R17: 7.026396155
A18: 14 | B18: 1 | C18: 1984 | D18: 1984-01-14 | E18: 2.8 | F18: 2.8 | G18: 3.208678456 | H18: 43.90586176 | I18: 4.027189281 | J18: 44.40875418 | K18: 2.193484224 | L18: 20.83452363 | M18: 3.329599918 | N18: 36.85025537 | O18: 0.677568621 | P18: 9.176826758 | Q18: 0.6526082981 | R18: 7.679004453
A19: 15 | B19: 1 | C19: 1984 | D19: 1984-01-15 | E19: 3.8 | F19: 3.8 | G19: 3.992493684 | H19: 47.89835544 | I19: 6.309510102 | J19: 50.71826428 | K19: 3.77672164 | L19: 24.61124527 | M19: 5.272520625 | N19: 42.12277599 | O19: 0.6516139783 | P19: 9.828440736 | Q19: 0.4411641884 | R19: 8.120168642
A20: 16 | B20: 1 | C20: 1984 | D20: 1984-01-16 | E20: 0.6 | F20: 0.6 | G20: 4.564642291 | H20: 52.46299773 | I20: 1.052970529 | J20: 51.77123481 | K20: -1.396732983 | L20: 23.21451229 | M20: -1.172465993 | N20: 40.95031 | O20: 1.749715377 | P20: 11.57815611 | Q20: 1.608492757 | R20: 9.728661399
A21: 17 | B21: 1 | C21: 1984 | D21: 1984-01-17 | E21: 4.2 | F21: 4.2 | G21: 4.49841844 | H21: 56.96141617 | I21: 6.94216383 | J21: 58.71339864 | K21: 4.226730283 | L21: 27.44124257 | M21: 5.724600074 | N21: 46.67491007 | O21: 0.7388883981 | P21: 12.31704451 | Q21: 0.4782627208 | R21: 10.20692412
A22: 18 | B22: 1 | C22: 1984 | D22: 1984-01-18 | E22: 4.2 | F22: 4.2 | G22: 3.936578237 | H22: 60.89799441 | I22: 6.717909773 | J22: 65.43130841 | K22: 4.075991105 | L22: 31.51723368 | M22: 5.481242783 | N22: 52.15615286 | O22: 0.1580393587 | P22: 12.47508387 | Q22: -0.07968416102 | R22: 10.12723996
A23: 19 | B23: 1 | C23: 1984 | D23: 1984-01-19 | E23: 2.7 | F23: 2.7 | G23: 2.03933555 | H23: 62.93732996 | I23: 3.29787185 | J23: 68.72918026 | K23: 1.667121407 | L23: 33.18435508 | M23: 2.498843087 | N23: 54.65499594 | O23: 0.150368898 | P23: 12.62545277 | Q23: 0.03929148754 | R23: 10.16653145
A24: 20 | B24: 1 | C24: 1984 | D24: 1984-01-20 | E24: 4.8 | F24: 4.8 | G24: 0.3580794672 | H24: 63.29540942 | I24: 7.272405494 | J24: 76.00158576 | K24: 4.498860651 | L24: 37.68321573 | M24: 5.86162692 | N24: 60.51662286 | O24: -0.2797864684 | P24: 12.3456663 | Q24: -0.5280559899 | R24: 9.638475456
A25: 21 | B25: 1 | C25: 1984 | D25: 1984-01-21 | E25: 4.8 | F25: 4.8 | G25: 1.79919073 | H25: 65.09460015 | I25: 7.277104786 | J25: 83.27869054 | K25: 4.479473944 | L25: 42.16268968 | M25: 5.795274468 | N25: 66.31189733 | O25: 0.2092027425 | P25: 12.55486904 | Q25: -0.19618539 | R25: 9.442290066
A26: 22 | B26: 1 | C26: 1984 | D26: 1984-01-22 | E26: 2.6 | F26: 2.6 | G26: 0 | H26: 65.09460015 | I26: 2.704810214 | J26: 85.98350076 | K26: 1.278348118 | L26: 43.44103779 | M26: 1.929686888 | N26: 68.24158422 | O26: -0.01086878062 | P26: 12.54400026 | Q26: -0.1215886813 | R26: 9.320701385
A27: 23 | B27: 1 | C27: 1984 | D27: 1984-01-23 | E27: 1.2 | F27: 1.2 | G27: 0 | H27: 65.09460015 | I27: 0.99339509 | J27: 86.97689585 | K27: -0.6252660467 | L27: 42.81577175 | M27: -0.3418616294 | N27: 67.89972259 | O27: 0.1202683214 | P27: 12.66426858 | Q27: -0.0149565965 | R27: 9.305744789
A28: 24 | B28: 1 | C28: 1984 | D28: 1984-01-24 | E28: 3.2 | F28: 3.2 | G28: 2.127244041 | H28: 67.2218442 | I28: 3.746924865 | J28: 90.72382071 | K28: 1.990566893 | L28: 44.80633864 | M28: 2.724871616 | N28: 70.6245942 | O28: 0.1320803375 | P28: 12.79634892 | Q28: 0.02244838452 | R28: 9.328193173
A29: 25 | B29: 1 | C29: 1984 | D29: 1984-01-25 | E29: 5 | F29: 5 | G29: 1.665808957 | H29: 68.88765315 | I29: 6.94050165 | J29: 97.66432236 | K29: 4.248074635 | L29: 49.05441328 | M29: 5.322211126 | N29: 75.94680533 | O29: 0.1547057587 | P29: 12.95105468 | Q29: -0.1829661799 | R29: 9.145226993
A30: 26 | B30: 1 | C30: 1984 | D30: 1984-01-26 | E30: 4.2 | F30: 4.2 | G30: 0 | H30: 68.88765315 | I30: 5.134259119 | J30: 102.7985815 | K30: 3.013024926 | L30: 52.0674382 | M30: 3.835691386 | N30: 79.78249672 | O30: -0.06718504042 | P30: 12.88386964 | Q30: -0.3302466653 | R30: 8.814980328
A31: 27 | B31: 1 | C31: 1984 | D31: 1984-01-27 | E31: 1.4 | F31: 1.4 | G31: 0.5851766491 | H31: 69.4728298 | I31: 0.9890843829 | J31: 103.7876659 | K31: -0.494464404 | L31: 51.5729738 | M31: -0.2363237588 | N31: 79.54617296 | O31: 0.2208166999 | P31: 13.10468634 | Q31: 0.07338086458 | R31: 8.888361192
A32: 28 | B32: 1 | C32: 1984 | D32: 1984-01-28 | E32: 2.7 | F32: 2.7 | G32: 1.657090027 | H32: 71.12991983 | I32: 2.379020354 | J32: 106.1666862 | K32: 1.045928689 | L32: 52.61890249 | M32: 1.519517131 | N32: 81.06569009 | O32: 0.2818113401 | P32: 13.38649768 | Q32: 0.195441968 | R32: 9.08380316
A33: 29 | B33: 1 | C33: 1984 | D33: 1984-01-29 | E33: 5.1 | F33: 5.1 | G33: 1.38822714 | H33: 72.51814697 | I33: 6.191205802 | J33: 112.357892 | K33: 3.7968423 | L33: 56.41574479 | M33: 4.62427383 | N33: 85.68996392 | O33: 0.1747923765 | P33: 13.56129006 | Q33: -0.1746914001 | R33: 8.90911176
A34: 30 | B34: 1 | C34: 1984 | D34: 1984-01-30 | E34: 2.2 | F34: 2.2 | G34: 2.851425158 | H34: 75.36957213 | I34: 1.422597652 | J34: 113.7804897 | K34: 0.3462617357 | L34: 56.76200652 | M34: 0.6923596932 | N34: 86.38232361 | O34: 0.5896015716 | P34: 14.15089163 | Q34: 0.5816331599 | R34: 9.49074492
A35: 31 | B35: 1 | C35: 1984 | D35: 1984-01-31 | E35: 5 | F35: 5 | G35: 3.083563876 | H35: 78.453136 | I35: 6.034639467 | J35: 119.8151291 | K35: 3.612405488 | L35: 60.37441201 | M35: 4.354193702 | N35: 90.73651731 | O35: 0.2346151247 | P35: 14.38550675 | Q35: -0.01748432138 | R35: 9.473260599
A36: 1 | B36: 2 | C36: 1984 | D36: 1984-02-01 | E36: 1.1 | F36: 1.1 | G36: 3.719275318 | H36: 82.17241132 | I36: 1.038565038 | J36: 120.8536942 | K36: -1.031311457 | L36: 59.34310055 | M36: -0.8782005087 | N36: 89.85831681 | O36: 1.085435445 | P36: 15.4709422 | Q36: 0.9139750727 | R36: 10.38723567
A37: 2 | B37: 2 | C37: 1984 | D37: 1984-02-02 | E37: 2.8 | F37: 2.8 | G37: 1.702322776 | H37: 83.8747341 | I37: 2.074165298 | J37: 122.9278595 | K37: 0.8474563486 | L37: 60.1905569 | M37: 1.194566619 | N37: 91.05288342 | O37: 0.5475953568 | P37: 16.01853755 | Q37: 0.4596659751 | R37: 10.84690165
A38: 3 | B38: 2 | C38: 1984 | D38: 1984-02-03 | E38: 4 | F38: 4 | G38: 1.283506804 | H38: 85.1582409 | I38: 3.66105325 | J38: 126.5889127 | K38: 2.022907877 | L38: 62.21346478 | M38: 2.474107301 | N38: 93.52699072 | O38: 0.3981671823 | P38: 16.41670474 | Q38: 0.1966156145 | R38: 11.04351726
A39: 4 | B39: 2 | C39: 1984 | D39: 1984-02-04 | E39: 3.4 | F39: 3.4 | G39: 1.855332347 | H39: 87.01357325 | I39: 2.758555475 | J39: 129.3474682 | K39: 1.353528094 | L39: 63.56699287 | M39: 1.717420524 | N39: 95.24441125 | O39: 0.7543279581 | P39: 17.17103269 | Q39: 0.5246593438 | R39: 11.56817661
A40: 5 | B40: 2 | C40: 1984 | D40: 1984-02-05 | E40: 4.2 | F40: 4.2 | G40: 5.911759395 | H40: 92.92533264 | I40: 4.29491877 | J40: 133.642387 | K40: 2.33193986 | L40: 65.89893273 | M40: 2.795608818 | N40: 98.04002007 | O40: 1.61163278 | P40: 18.78266547 | Q40: 1.582867818 | R40: 13.15104442
A41: 6 | B41: 2 | C41: 1984 | D41: 1984-02-06 | E41: 2.2 | F41: 2.2 | G41: 1.035097511 | H41: 93.96043015 | I41: 0.9739222055 | J41: 134.6163092 | K41: 0.01650697576 | L41: 65.91543971 | M41: 0.2199767928 | N41: 98.25999686 | O41: 0.4408539239 | P41: 19.2235194 | Q41: 0.4755690449 | R41: 13.62661347
A42: 7 | B42: 2 | C42: 1984 | D42: 1984-02-07 | E42: 4.1 | F42: 4.1 | G42: 4.732033905 | H42: 98.69246406 | I42: 3.799214195 | J42: 138.4155234 | K42: 1.998662114 | L42: 67.91410182 | M42: 2.380986795 | N42: 100.6409837 | O42: 1.180607272 | P42: 20.40412667 | Q42: 1.200638741 | R42: 14.82725221
A43: 8 | B43: 2 | C43: 1984 | D43: 1984-02-08 | E43: 5.4 | F43: 5.4 | G43: 2.834066011 | H43: 101.5265301 | I43: 5.335487217 | J43: 143.7510106 | K43: 3.142523901 | L43: 71.05662572 | M43: 3.590812013 | N43: 104.2317957 | O43: 0.6282172569 | P43: 21.03234393 | Q43: 0.4058773088 | R43: 15.23312952
A44: 9 | B44: 2 | C44: 1984 | D44: 1984-02-09 | E44: 7.1 | F44: 7.1 | G44: 4.229560789 | H44: 105.7560909 | I44: 7.808797492 | J44: 151.5598081 | K44: 4.863139796 | L44: 75.91976552 | M44: 5.426845607 | N44: 109.6586413 | O44: 0.4372223561 | P44: 21.46956628 | Q44: 0.07561623059 | R44: 15.30874575
A45: 10 | B45: 2 | C45: 1984 | D45: 1984-02-10 | E45: 4.5 | F45: 4.5 | G45: 1.581994833 | H45: 107.3380857 | I45: 3.690090935 | J45: 155.249899 | K45: 2.009508053 | L45: 77.92927357 | M45: 2.320600707 | N45: 111.979242 | O45: 0.3846140125 | P45: 21.8541803 | Q45: 0.1491942569 | R45: 15.45794001
A46: 11 | B46: 2 | C46: 1984 | D46: 1984-02-11 | E46: 1.8 | F46: 1.8 | G46: 0.7898402243 | H46: 108.1279259 | I46: 0.9572761799 | J46: 156.2071752 | K46: -0.5392061719 | L46: 77.3900674 | M46: -0.4266891761 | N46: 111.5525528 | O46: 0.3631015751 | P46: 22.21728187 | Q46: 0.1569501119 | R46: 15.61489012
A47: 12 | B47: 2 | C47: 1984 | D47: 1984-02-12 | E47: 3.7 | F47: 3.7 | G47: 1.456403846 | H47: 109.5843298 | I47: 2.477326705 | J47: 158.6845019 | K47: 1.132555876 | L47: 78.52262328 | M47: 1.351173049 | N47: 112.9037259 | O47: 0.3764824501 | P47: 22.59376432 | Q47: 0.2790583233 | R47: 15.89394844
A48: 13 | B48: 2 | C48: 1984 | D48: 1984-02-13 | E48: 4.2 | F48: 4.2 | G48: 2.250635377 | H48: 111.8349651 | I48: 3.170988938 | J48: 161.8554908 | K48: 1.568873569 | L48: 80.09149685 | M48: 1.806140872 | N48: 114.7098667 | O48: 0.2668650031 | P48: 22.86062932 | Q48: 0.1717737021 | R48: 16.06572214
A49: 14 | B49: 2 | C49: 1984 | D49: 1984-02-14 | E49: 3.6 | F49: 3.6 | G49: 2.022193297 | H49: 113.8571584 | I49: 2.293577524 | J49: 164.1490684 | K49: 0.9538837549 | L49: 81.0453806 | M49: 1.140569862 | N49: 115.8504366 | O49: 0.322962244 | P49: 23.18359157 | Q49: 0.247060577 | R49: 16.31278272
A50: 15 | B50: 2 | C50: 1984 | D50: 1984-02-15 | E50: 1.7 | F50: 1.7 | G50: 0.9926580317 | H50: 114.8498165 | I50: 1.018833724 | J50: 165.1679021 | K50: -0.7678839823 | L50: 80.27749662 | M50: -0.6880496249 | N50: 115.162387 | O50: 0.2859378104 | P50: 23.46952938 | Q50: 0.1319902728 | R50: 16.44477299
A51: 16 | B51: 2 | C51: 1984 | D51: 1984-02-16 | E51: 1.7 | F51: 1.7 | G51: 2.506075908 | H51: 117.3558924 | I51: 1.041704066 | J51: 166.2096061 | K51: -0.8134389132 | L51: 79.46405771 | M51: -0.7383829367 | N51: 114.424004 | O51: 0.4712893541 | P51: 23.94081873 | Q51: 0.3192116171 | R51: 16.76398461
A52: 17 | B52: 2 | C52: 1984 | D52: 1984-02-17 | E52: 4.8 | F52: 4.8 | G52: 1.992069985 | H52: 119.3479624 | I52: 3.464812944 | J52: 169.6744191 | K52: 1.796294972 | L52: 81.26035268 | M52: 1.988626911 | N52: 116.4126309 | O52: 0.4515596511 | P52: 24.39237838 | Q52: 0.262779449 | R52: 17.02676406
A53: 18 | B53: 2 | C53: 1984 | D53: 1984-02-18 | E53: 7.3 | F53: 7.3 | G53: 2.440816458 | H53: 121.7887788 | I53: 6.293891627 | J53: 175.9683107 | K53: 3.812502783 | L53: 85.07285546 | M53: 4.080746016 | N53: 120.493377 | O53: 0.5613064377 | P53: 24.95368482 | Q53: 0.2563002072 | R53: 17.28306427
A54: 19 | B54: 2 | C54: 1984 | D54: 1984-02-19 | E54: 6 | F54: 6 | G54: 2.689080603 | H54: 124.4778594 | I54: 4.729862597 | J54: 180.6981733 | K54: 2.667096727 | L54: 87.73995219 | M54: 2.870622526 | N54: 123.3639995 | O54: 0.5282688918 | P54: 25.48195371 | Q54: 0.3650089075 | R54: 17.64807317
A55: 20 | B55: 2 | C55: 1984 | D55: 1984-02-20 | E55: 5.6 | F55: 5.6 | G55: 2.963786945 | H55: 127.4416464 | I55: 4.15555017 | J55: 184.8537235 | K55: 2.263864231 | L55: 90.00381642 | M55: 2.437758182 | N55: 125.8017577 | O55: 0.7790616064 | P55: 26.26101532 | Q55: 0.6609469932 | R55: 18.30902017
A56: 21 | B56: 2 | C56: 1984 | D56: 1984-02-21 | E56: 4.3 | F56: 4.3 | G56: 1.483296196 | H56: 128.9249426 | I56: 2.45093176 | J56: 187.3046552 | K56: 1.100224281 | L56: 91.1040407 | M56: 1.21741377 | N56: 127.0191714 | O56: 0.5970815915 | P56: 26.85809691 | Q56: 0.4834024194 | R56: 18.79242259
A57: 22 | B57: 2 | C57: 1984 | D57: 1984-02-22 | E57: 2.7 | F57: 2.7 | G57: 1.488539071 | H57: 130.4134816 | I57: 0.9882646543 | J57: 188.2929199 | K57: -0.1747077687 | L57: 90.92933293 | M57: -0.1085904005 | N57: 126.910581 | O57: 0.5330377935 | P57: 27.3911347 | Q57: 0.5860130361 | R57: 19.37843562
A58: 23 | B58: 2 | C58: 1984 | D58: 1984-02-23 | E58: 2.5 | F58: 2.5 | G58: 2.663379191 | H58: 133.0768608 | I58: 1.027143933 | J58: 189.3200638 | K58: -0.3696059166 | L58: 90.55972701 | M58: -0.3125057818 | N58: 126.5980752 | O58: 0.6075613421 | P58: 27.99869605 | Q58: 0.5481238315 | R58: 19.92655945
A59: 24 | B59: 2 | C59: 1984 | D59: 1984-02-24 | E59: 3.4 | F59: 3.4 | G59: 2.450279392 | H59: 135.5271402 | I59: 1.322466068 | J59: 190.6425299 | K59: 0.2739004439 | L59: 90.83362746 | M59: 0.3438703234 | N59: 126.9419456 | O59: 0.5464007519 | P59: 28.5450968 | Q59: 0.5309709051 | R59: 20.45753036
A60: 25 | B60: 2 | C60: 1984 | D60: 1984-02-25 | E60: 3.2 | F60: 3.2 | G60: 2.49092378 | H60: 138.018064 | I60: 1.060651706 | J60: 191.7031816 | K60: 0.08293517531 | L60: 90.91656263 | M60: 0.1423374577 | N60: 127.084283 | O60: 0.6714883505 | P60: 29.21658515 | Q60: 0.769542992 | R60: 21.22707335
A61: 26 | B61: 2 | C61: 1984 | D61: 1984-02-26 | E61: 1.7 | F61: 1.7 | G61: 1.567711743 | H61: 139.5857757 | I61: 1.013792921 | J61: 192.7169745 | K61: -1.032104584 | L61: 89.88445805 | M61: -1.004379914 | N61: 126.0799031 | O61: 0.4764948428 | P61: 29.69307999 | Q61: 0.340157734 | R61: 21.56723108
A62: 27 | B62: 2 | C62: 1984 | D62: 1984-02-27 | E62: 0.8 | F62: 0.8 | G62: 0 | H62: 139.5857757 | I62: 0.979395882 | J62: 193.6963704 | K62: -1.637438709 | L62: 88.24701934 | M62: -1.62615393 | N62: 124.4537492 | O62: 0.2406602902 | P62: 29.93374028 | Q62: -0.06649562548 | R62: 21.50073546
A63: 28 | B63: 2 | C63: 1984 | D63: 1984-02-28 | E63: 1.3 | F63: 1.3 | G63: 0.7436424612 | H63: 140.3294182 | I63: 0.9856917563 | J63: 194.6820622 | K63: -1.32007197 | L63: 86.92694737 | M63: -1.303701103 | N63: 123.1500481 | O63: 0.3851362102 | P63: 30.31887649 | Q63: 0.09116262213 | R63: 21.59189808
A64: 1 | B64: 3 | C64: 1984 | D64: 1984-03-01 | E64: 3.6 | F64: 3.6 | G64: 0.293548637 | H64: 140.6229668 | I64: 1.07981058 | J64: 195.7618727 | K64: 0.1540802969 | L64: 87.08102767 | M64: 0.1881402043 | N64: 123.3381883 | O64: 0.3705725232 | P64: 30.68944902 | Q64: 0.3936634405 | R64: 21.98556152
A65: 2 | B65: 3 | C65: 1984 | D65: 1984-03-02 | E65: 5.5 | F65: 5.5 | G65: 2.748941842 | H65: 143.3719087 | I65: 2.911924477 | J65: 198.6737972 | K65: 1.399612099 | L65: 88.48063977 | M65: 1.447885742 | N65: 124.786074 | O65: 0.8944048555 | P65: 31.58385387 | Q65: 1.113574986 | R65: 23.09913651
A66: 3 | B66: 3 | C66: 1984 | D66: 1984-03-03 | E66: 11.1 | F66: 11.1 | G66: 2.817258998 | H66: 146.1891677 | I66: 8.113775733 | J66: 206.787573 | K66: 5.079509744 | L66: 93.56014951 | M66: 5.164015734 | N66: 129.9500898 | O66: 0.8797518457 | P66: 32.46360572 | Q66: 0.4711318368 | R66: 23.57026834
A67: 4 | B67: 3 | C67: 1984 | D67: 1984-03-04 | E67: 3.2 | F67: 3.2 | G67: 11.71368056 | H67: 157.9028482 | I67: 1.280803788 | J67: 208.0683767 | K67: -0.2582802466 | L67: 93.30186927 | M67: -0.233213714 | N67: 129.7168761 | O67: 1.956923152 | P67: 34.42052887 | Q67: 2.006256467 | R67: 25.57652481
A68: 5 | B68: 3 | C68: 1984 | D68: 1984-03-05 | E68: 3 | F68: 3 | G68: 1.273049622 | H68: 159.1758979 | I68: 0.9493541308 | J68: 209.0177309 | K68: -0.3493215464 | L68: 92.95254772 | M68: -0.3341706274 | N68: 129.3827054 | O68: 0.5838342883 | P68: 35.00436316 | Q68: 0.4220339824 | R68: 25.99855879
A69: 6 | B69: 3 | C69: 1984 | D69: 1984-03-06 | E69: 6.3 | F69: 6.3 | G69: 2.193006977 | H69: 161.3689048 | I69: 3.089165771 | J69: 212.1068966 | K69: 1.597411199 | L69: 94.54995892 | M69: 1.624047493 | N69: 131.0067529 | O69: 0.8053836024 | P69: 35.80974676 | Q69: 0.6636839625 | R69: 26.66224276
A70: 7 | B70: 3 | C70: 1984 | D70: =DATE(C70,B70,A70) -> 1984-03-07 | E70: 3.1 | F70: 3.1 | G70: 2.866884097 | H70: 164.2357889 | I70: 0.9968658906 | J70: 213.1037625 | K70: -0.3610971014 | L70: 94.18886182 | M70: -0.3503011848 | N70: 130.6564517 | O70: 0.7903765648 | P70: 36.60012332 | Q70: 0.7237014943 | R70: 27.38594425
A71: 8 | B71: 3 | C71: 1984 | D71: 1984-03-08 | E71: 5.8 | F71: 5.8 | G71: 3.493385309 | H71: =H70+G71 -> 167.7291742 | I71: 2.725887754 | J71: =J70+I71 -> 215.8296503 | K71: 1.262381784 | L71: =L70+K71 -> 95.4512436 | M71: 1.278634113 | N71: =N70+M71 -> 131.9350858 | O71: 0.8521177262 | P71: =P70+O71 -> 37.45224105 | Q71: 0.7837121841 | R71: =R70+Q71 -> 28.16965643
A72: 9 | B72: 3 | C72: 1984 | D72: 1984-03-09 | E72: 8.2 | F72: 8.2 | G72: 3.209141784 | H72: 170.938316 | I72: 4.681746043 | J72: 220.5113963 | K72: 2.655445413 | L72: 98.10668901 | M72: 2.672382978 | N72: 134.6074688 | O72: 0.8428036193 | P72: 38.29504467 | Q72: 0.670854879 | R72: 28.84051131
A73: 10 | B73: 3 | C73: 1984 | D73: 1984-03-10 | E73: 3.6 | F73: 3.6 | G73: 2.812836575 | H73: 173.7511526 | I73: 1.013064898 | J73: 221.5244612 | K73: -0.1577229566 | L73: 97.94896606 | M73: -0.1527437759 | N73: 134.454725 | O73: 0.7967621139 | P73: 39.09180678 | Q73: 0.7520183227 | R73: 29.59252964
A74: 11 | B74: 3 | C74: 1984 | D74: 1984-03-11 | E74: 7.2 | F74: 7.2 | G74: 2.353794499 | H74: 176.1049471 | I74: 3.473155185 | J74: 224.9976164 | K74: 1.850001461 | L74: 99.79896752 | M74: 1.855658821 | N74: 136.3103839 | O74: 0.9005969892 | P74: 39.99240377 | Q74: 0.8196019941 | R74: 30.41213163
A75: 12 | B75: 3 | C75: 1984 | D75: 1984-03-12 | E75: 3.2 | F75: 3.2 | G75: 0.8651807764 | H75: 176.9701279 | I75: 0.9754579016 | J75: 225.9730743 | K75: -0.4313158066 | L75: 99.36765171 | M75: -0.430455207 | N75: 135.8799287 | O75: 0.4720859228 | P75: 40.4644897 | Q75: 0.493951918 | R75: 30.90608355
A76: 13 | B76: 3 | C76: 1984 | D76: 1984-03-13 | E76: 2.6 | F76: 2.6 | G76: 3.765610173 | H76: 180.7357381 | I76: 1.052666651 | J76: 227.025741 | K76: -0.8328460572 | L76: 98.53480565 | M76: -0.8333508808 | N76: 135.0465778 | O76: 1.052514541 | P76: 41.51700424 | Q76: 1.105616928 | R76: 32.01170048
A77: 14 | B77: 3 | C77: 1984 | D77: 1984-03-14 | E77: 5.1 | F77: 5.1 | G77: 1.410175167 | H77: 182.1459132 | I77: 1.65806887 | J77: 228.6838098 | K77: 0.5387015049 | L77: 99.07350716 | M77: 0.5356845252 | N77: 135.5822623 | O77: 0.6528342228 | P77: 42.16983846 | Q77: 0.7258011237 | R77: 32.7375016
A78: 15 | B78: 3 | C78: 1984 | D78: 1984-03-15 | E78: 2.9 | F78: 2.9 | G78: 2.295723131 | H78: 184.4416364 | I78: 1.018475449 | J78: 229.7022853 | K78: -0.6872497929 | L78: 98.38625737 | M78: -0.6900615277 | N78: 134.8922008 | O78: 0.7329517569 | P78: 42.90279022 | Q78: 0.7460645224 | R78: 33.48356612
A79: 16 | B79: 3 | C79: 1984 | D79: 1984-03-16 | E79: 3.6 | F79: 3.6 | G79: 4.166423991 | H79: 188.6080603 | I79: 1.062623991 | J79: 230.7649093 | K79: -0.3464917354 | L79: 98.03976563 | M79: -0.3513086146 | N79: 134.5408922 | O79: 1.077425701 | P79: 43.98021592 | Q79: 1.159418912 | R79: 34.64298504
A80: 17 | B80: 3 | C80: 1984 | D80: 1984-03-17 | E80: 2.2 | F80: 2.2 | G80: 2.34554119 | H80: 190.9536015 | I80: 1.0250575 | J80: 231.7899668 | K80: -1.105916103 | L80: 96.93384953 | M80: -1.109375987 | N80: 133.4315162 | O80: 0.6797589809 | P80: 44.6599749 | Q80: 0.5726575845 | R80: 35.21564262
A81: 18 | B81: 3 | C81: 1984 | D81: 1984-03-18 | E81: 2.6 | F81: 2.6 | G81: 2.263202689 | H81: 193.2168042 | I81: 1.02416791 | J81: 232.8141347 | K81: -0.9114653148 | L81: 96.02238421 | M81: -0.9161659695 | N81: 132.5153502 | O81: 0.5971178021 | P81: 45.2570927 | Q81: 0.4377332421 | R81: 35.65337586
A82: 19 | B82: 3 | C82: 1984 | D82: 1984-03-19 | E82: 6.2 | F82: 6.2 | G82: 3.598171348 | H82: 196.8149756 | I82: 2.298196067 | J82: 235.1123308 | K82: 0.9507704142 | L82: 96.97315463 | M82: 0.9380323677 | N82: 133.4533826 | O82: 0.9760164076 | P82: 46.23310911 | Q82: 1.014604649 | R82: 36.66798051
A83: 20 | B83: 3 | C83: 1984 | D83: 1984-03-20 | E83: 10 | F83: 10 | G83: 2.36311887 | H83: 199.1780944 | I83: 4.929109241 | J83: 240.04144 | K83: 2.832955085 | L83: 99.80610971 | M83: 2.811168049 | N83: 136.2645506 | O83: 0.9153961749 | P83: 47.14850528 | Q83: 0.8224860464 | R83: 37.49046656
A84: 21 | B84: 3 | C84: 1984 | D84: 1984-03-21 | E84: 6.1 | F84: 6.1 | G84: 3.620789391 | H84: 202.7988838 | I84: 2.10710572 | J84: 242.1485457 | K84: 0.8141820773 | L84: 100.6202918 | M84: 0.7997935749 | N84: 137.0643442 | O84: 0.83690331 | P84: 47.98540859 | Q84: 0.8115720065 | R84: 38.30203856
A85: 22 | B85: 3 | C85: 1984 | D85: 1984-03-22 | E85: 8.1 | F85: 8.1 | G85: 2.217714039 | H85: 205.0165979 | I85: 3.337829957 | J85: 245.4863757 | K85: 1.728941768 | L85: 102.3492336 | M85: 1.709707934 | N85: 138.7740521 | O85: 0.8947862551 | P85: 48.88019485 | Q85: 0.7808430126 | R85: 39.08288158
A86: 23 | B86: 3 | C86: 1984 | D86: 1984-03-23 | E86: 6.2 | F86: 6.2 | G86: 1.27535553 | H86: 206.2919534 | I86: 1.935217061 | J86: 247.4215927 | K86: 0.7434733033 | L86: 103.0927069 | M86: 0.7285811483 | N86: 139.5026333 | O86: 0.9015970146 | P86: 49.78179186 | Q86: 0.8638416865 | R86: 39.94672326
A87: 24 | B87: 3 | C87: 1984 | D87: 1984-03-24 | E87: 3.3 | F87: 3.3 | G87: 1.124179237 | H87: 207.4161326 | I87: 0.972414233 | J87: 248.394007 | K87: -0.6508572913 | L87: 102.4418496 | M87: -0.658810202 | N87: 138.8438231 | O87: 0.5891004855 | P87: 50.37089235 | Q87: 0.5209160559 | R87: 40.46763932
A88: 25 | B88: 3 | C88: 1984 | D88: 1984-03-25 | E88: 5.5 | F88: 5.5 | G88: 0.6897619749 | H88: 208.1058946 | I88: 1.363839051 | J88: 249.757846 | K88: 0.3398803935 | L88: 102.78173 | M88: 0.3265076268 | N88: 139.1703307 | O88: 0.63629363 | P88: 51.00718598 | Q88: 0.6626558202 | R88: 41.13029514
A89: 26 | B89: 3 | C89: 1984 | D89: 1984-03-26 | E89: 5 | F89: 5 | G89: 0.8449959904 | H89: 208.9508906 | I89: 0.9788100125 | J89: 250.736656 | K89: 0.07985199204 | L89: 102.861582 | M89: 0.06794808231 | N89: 139.2382788 | O89: 0.6809327951 | P89: 51.68811877 | Q89: 0.701332438 | R89: 41.83162758
A90: 27 | B90: 3 | C90: 1984 | D90: 1984-03-27 | E90: 9.3 | F90: 9.3 | G90: 1.266868175 | H90: 210.2177588 | I90: 3.641158983 | J90: 254.377815 | K90: 1.981828526 | L90: 104.8434105 | M90: 1.959574139 | N90: 141.1978529 | O90: 0.9695797081 | P90: 52.65769848 | Q90: 0.8381901756 | R90: 42.66981775
A91: 28 | B91: 3 | C91: 1984 | D91: 1984-03-28 | E91: 7.3 | F91: 7.3 | G91: 0.2106496215 | H91: 210.4284084 | I91: 2.3310607 | J91: 256.7088757 | K91: 1.038392721 | L91: 105.8818032 | M91: 1.021398 | N91: 142.2192509 | O91: 0.7658726319 | P91: 53.42357111 | Q91: 0.6065913894 | R91: 43.27640914
A92: 29 | B92: 3 | C92: 1984 | D92: 1984-03-29 | E92: 8 | F92: 8 | G92: 2.314935955 | H92: 212.7433444 | I92: 2.788386383 | J92: 259.4972621 | K92: 1.344265323 | L92: 107.2260685 | M92: 1.325632608 | N92: 143.5448835 | O92: 0.9884017716 | P92: 54.41197289 | Q92: 0.9111676584 | R92: 44.1875768
A93: 30 | B93: 3 | C93: 1984 | D93: 1984-03-30 | E93: 12.3 | F93: 12.3 | G93: 2.041525661 | H93: 214.78487 | I93: 5.384807208 | J93: 264.8820693 | K93: 3.203454204 | L93: 110.4295227 | M93: 3.175915791 | N93: 146.7207993 | O93: 1.207009055 | P93: 55.61898194 | Q93: 1.1052043 | R93: 45.2927811
A94: 31 | B94: 3 | C94: 1984 | D94: 1984-03-31 | E94: 12.9 | F94: 12.9 | G94: 2.542633295 | H94: 217.3275033 | I94: 5.788130227 | J94: 270.6701995 | K94: 3.460029241 | L94: 113.889552 | M94: 3.432030814 | N94: 150.1528301 | O94: 1.269753295 | P94: 56.88873523 | Q94: 1.347481811 | R94: 46.64026291
A95: 1 | B95: 4 | C95: 1984 | D95: 1984-04-01 | E95: 11.7 | F95: 11.7 | G95: 2.754661805 | H95: 220.0821651 | I95: 5.00102617 | J95: 275.6712257 | K95: 2.885160979 | L95: 116.7747129 | M95: 2.86103928 | N95: 153.0138694 | O95: 1.198444166 | P95: 58.0871794 | Q95: 1.292983245 | R95: 47.93324616
A96: 2 | B96: 4 | C96: 1984 | D96: 1984-04-02 | E96: 12 | F96: 12 | G96: 2.703175025 | H96: 222.7853401 | I96: 5.062143465 | J96: 280.7333692 | K96: 2.944909457 | L96: 119.7196224 | M96: 2.921919444 | N96: 155.9357889 | O96: 1.244849726 | P96: 59.33202913 | Q96: 1.084979184 | R96: 49.01822534
A97: 3 | B97: 4 | C97: 1984 | D97: 1984-04-03 | E97: 11.7 | F97: 11.7 | G97: 2.213320365 | H97: 224.9986605 | I97: 4.811557926 | J97: 285.5449271 | K97: 2.756011116 | L97: 122.4756335 | M97: 2.735365301 | N97: 158.6711542 | O97: 1.149153915 | P97: 60.48118304 | Q97: 0.994048011 | R97: 50.01227335
A98: 4 | B98: 4 | C98: 1984 | D98: 1984-04-04 | E98: 15.4 | F98: 15.4 | G98: 4.002152188 | H98: 229.0008127 | I98: 7.131427639 | J98: 292.6763547 | K98: 4.38789876 | L98: 126.8635323 | M98: 4.362586107 | N98: 163.0337403 | O98: 1.573755599 | P98: 62.05493864 | Q98: 1.377672274 | R98: 51.38994562
A99: 5 | B99: 4 | C99: 1984 | D99: 1984-04-05 | E99: 12.2 | F99: 12.2 | G99: 5.218443032 | H99: 234.2192557 | I99: 5.247277252 | J99: 297.923632 | K99: 3.014471205 | L99: 129.8780035 | M99: 2.996097361 | N99: 166.0298376 | O99: 1.663757342 | P99: 63.71869598 | Q99: 1.568655506 | R99: 52.95860113
A100: 6 | B100: 4 | C100: 1984 | D100: 1984-04-06 | E100: 1.4 | F100: 1.4 | G100: 1.669114774 | H100: 235.8883705 | I100: 0.9891353533 | J100: 298.9127673 | K100: -1.648653869 | L100: 128.2293496 | M100: -1.650342551 | N100: 164.3794951 | O100: 0.6049950563 | P100: 64.32369104 | Q100: 0.2932004708 | R100: 53.2518016
A101: 7 | B101: 4 | C101: 1984 | D101: 1984-04-07 | E101: 8.9 | F101: 8.9 | G101: 4.127507445 | H101: 240.0158779 | I101: 2.931191031 | J101: 301.8439584 | K101: 1.413576693 | L101: 129.6429263 | M101: 1.404079605 | N101: 165.7835747 | O101: 1.284330268 | P101: 65.60802131 | Q101: 1.281433791 | R101: 54.53323539
A102: 8 | B102: 4 | C102: 1984 | D102: 1984-04-08 | E102: 6.2 | F102: 6.2 | G102: 3.560775988 | H102: 243.5766539 | I102: 1.275075367 | J102: 303.1190337 | K102: 0.2481765719 | L102: 129.8911029 | M102: 0.2429413912 | N102: 166.0265161 | O102: 1.093682411 | P102: 66.70170372 | Q102: 1.135122519 | R102: 55.66835791
A103: 9 | B103: 4 | C103: 1984 | D103: 1984-04-09 | E103: 7.2 | F103: 7.2 | G103: 2.806382885 | H103: 246.3830368 | I103: 1.7568986 | J103: 304.8759323 | K103: 0.6129658767 | L103: 130.5040688 | M103: 0.6085087497 | N103: 166.6350248 | O103: 1.158602577 | P103: 67.8603063 | Q103: 1.17617302 | R103: 56.84453093
A104: 10 | B104: 4 | C104: 1984 | D104: 1984-04-10 | E104: 11.7 | F104: 11.7 | G104: 3.010212656 | H104: 249.3932495 | I104: 4.243919431 | J104: 309.1198518 | K104: 2.379431064 | L104: 132.8834998 | M104: 2.374632071 | N104: 169.0096569 | O104: 1.438365899 | P104: 69.29867219 | Q104: 1.452165836 | R104: 58.29669677
A105: 11 | B105: 4 | C105: 1984 | D105: 1984-04-11 | E105: 8.4 | F105: 8.4 | G105: 3.013023472 | H105: 252.4062729 | I105: 2.301175392 | J105: 311.4210272 | K105: 1.014281321 | L105: 133.8977811 | M105: 1.012753562 | N105: 170.0224105 | O105: 1.321791258 | P105: 70.62046345 | Q105: 1.379311284 | R105: 59.67600805
A106: 12 | B106: 4 | C106: 1984 | D106: 1984-04-12 | E106: 18.2 | F106: 18.2 | G106: 3.097363755 | H106: 255.5036367 | I106: 7.724023819 | J106: 319.145051 | K106: 4.861361826 | L106: 138.759143 | M106: 4.862181605 | N106: 174.8845921 | O106: 1.846158346 | P106: 72.4666218 | Q106: 1.655496613 | R106: 61.33150466
A107: 13 | B107: 4 | C107: 1984 | D107: 1984-04-13 | E107: 6 | F107: 6 | G107: 3.573224714 | H107: 259.0768614 | I107: 1.012970716 | J107: 320.1580217 | K107: 0.04699894457 | L107: 138.8061419 | M107: 0.04868740852 | N107: 174.9332795 | O107: 1.331137832 | P107: 73.79775963 | Q107: 1.350975855 | R107: 62.68248052
A108: 14 | B108: 4 | C108: 1984 | D108: 1984-04-14 | E108: 20.6 | F108: 20.6 | G108: 4.800670606 | H108: 263.877532 | I108: 8.983293627 | J108: 329.1413153 | K108: 5.774045102 | L108: 144.580187 | M108: 5.785109619 | N108: 180.7183891 | O108: 2.667994123 | P108: 76.46575375 | Q108: 2.488566819 | R108: 65.17104734
A109: 15 | B109: 4 | C109: 1984 | D109: 1984-04-15 | E109: 9.2 | F109: 9.2 | G109: 2.772741546 | H109: 266.6502736 | I109: 2.542361842 | J109: 331.6836772 | K109: 1.187339239 | L109: 145.7675263 | M109: 1.194228102 | N109: 181.9126172 | O109: 1.330652469 | P109: 77.79640622 | Q109: 1.409848292 | R109: 66.58089563
A110: 16 | B110: 4 | C110: 1984 | D110: 1984-04-16 | E110: 16.2 | F110: 16.2 | G110: 2.055226015 | H110: 268.7054996 | I110: 6.162394576 | J110: 337.8460717 | K110: 3.76439613 | L110: 149.5319224 | M110: 3.780644178 | N110: 185.6932614 | O110: 1.595148931 | P110: 79.39155515 | Q110: 1.498754958 | R110: 68.07965059
A111: 17 | B111: 4 | C111: 1984 | D111: 1984-04-17 | E111: 16 | F111: 16 | G111: 3.840098359 | H111: 272.5455979 | I111: 6.201394376 | J111: 344.0474661 | K111: 3.757613919 | L111: 153.2895363 | M111: 3.778307668 | N111: 189.471569 | O111: 1.871329149 | P111: 81.2628843 | Q111: 1.753267315 | R111: 69.8329179
A112: 18 | B112: 4 | C112: 1984 | D112: 1984-04-18 | E112: 13.4 | F112: 13.4 | G112: 9.309047946 | H112: 281.8546459 | I112: 5.372621166 | J112: 349.4200873 | K112: 3.051631794 | L112: 156.3411681 | M112: 3.074933963 | N112: 192.546503 | O112: 3.142237654 | P112: 84.40512196 | Q112: 3.153703826 | R112: 72.98662173
A113: 19 | B113: 4 | C113: 1984 | D113: 1984-04-19 | E113: 13 | F113: 13 | G113: 8.114033109 | H113: 289.968679 | I113: 4.755298186 | J113: 354.1753855 | K113: 2.693602757 | L113: 159.0347709 | M113: 2.718702023 | N113: 195.265205 | O113: 2.902393121 | P113: 87.30751508 | Q113: 2.826277705 | R113: 75.81289943
A114: 20 | B114: 4 | C114: 1984 | D114: 1984-04-20 | E114: 16.8 | F114: 16.8 | G114: 4.266934203 | H114: 294.2356132 | I114: 6.025462175 | J114: 360.2008476 | K114: 3.739343678 | L114: 162.7741145 | M114: 3.772866269 | N114: 199.0380713 | O114: 2.523958863 | P114: 89.83147394 | Q114: 2.396127971 | R114: 78.20902741
A115: 21 | B115: 4 | C115: 1984 | D115: 1984-04-21 | E115: 18.6 | F115: 18.6 | G115: 6.201400144 | H115: 300.4370133 | I115: 7.120673437 | J115: 367.3215211 | K115: 4.502647939 | L115: 167.2767625 | M115: 4.546239081 | N115: 203.5843104 | O115: 3.224685747 | P115: 93.05615969 | Q115: 3.007040852 | R115: 81.21606826
A116: 22 | B116: 4 | C116: 1984 | D116: 1984-04-22 | E116: 9.5 | F116: 9.5 | G116: 5.455135612 | H116: 305.892149 | I116: 2.49069295 | J116: 369.812214 | K116: 1.129424373 | L116: 168.4061868 | M116: 1.154028811 | N116: 204.7383392 | O116: 2.247991105 | P116: 95.30415079 | Q116: 2.44696615 | R116: 83.66303441
A117: 23 | B117: 4 | C117: 1984 | D117: 1984-04-23 | E117: 22.9 | F117: 22.9 | G117: 5.5401546 | H117: 311.4323036 | I117: 9.399755385 | J117: 379.2119694 | K117: 6.061016149 | L117: 174.467203 | M117: 6.128202703 | N117: 210.8665419 | O117: 2.970679123 | P117: 98.27482991 | Q117: 2.892364326 | R117: 86.55539873
A118: 24 | B118: 4 | C118: 1984 | D118: 1984-04-24 | E118: 21.1 | F118: 21.1 | G118: 5.917442793 | H118: 317.3497463 | I118: 8.413339933 | J118: 387.6253093 | K118: 5.364659873 | L118: 179.8318629 | M118: 5.432656826 | N118: 216.2991987 | O118: 3.166046508 | P118: 101.4408764 | Q118: 2.983302835 | R118: 89.53870157
A119: 25 | B119: 4 | C119: 1984 | D119: 1984-04-25 | E119: 21.9 | F119: 21.9 | G119: 3.752643926 | H119: 321.1023903 | I119: 8.10002708 | J119: 395.7253364 | K119: 5.256084965 | L119: 185.0879478 | M119: 5.328005488 | N119: 221.6272042 | O119: 3.107953994 | P119: 104.5488304 | Q119: 2.779236482 | R119: 92.31793805
A120: 26 | B120: 4 | C120: 1984 | D120: 1984-04-26 | E120: 23.3 | F120: 23.3 | G120: 6.99415182 | H120: 328.0965421 | I120: 9.676111686 | J120: 405.4014481 | K120: 6.231512361 | L120: 191.3194602 | M120: 6.322114361 | N120: 227.9493186 | O120: 3.826906987 | P120: 108.3757374 | Q120: 3.584134777 | R120: 95.90207283
A121: 27 | B121: 4 | C121: 1984 | D121: 1984-04-27 | E121: 21.1 | F121: 21.1 | G121: 5.126030542 | H121: 333.2225726 | I121: 7.852021314 | J121: 413.2534694 | K121: 5.011944424 | L121: 196.3314046 | M121: 5.09431291 | N121: 233.0436315 | O121: 2.885708578 | P121: 111.261446 | Q121: 2.75177386 | R121: 98.65384669
A122: 28 | B122: 4 | C122: 1984 | D122: 1984-04-28 | E122: 24.1 | F122: 24.1 | G122: 5.638883106 | H122: 338.8614557 | I122: 9.684376153 | J122: 422.9378456 | K122: 6.244324252 | L122: 202.5757289 | M122: 6.348986198 | N122: 239.3926177 | O122: 3.130671479 | P122: 114.3921175 | Q122: 2.950397151 | R122: 101.6042438
A123: 29 | B123: 4 | C123: 1984 | D123: 1984-04-29 | E123: 23.2 | F123: 23.2 | G123: 3.181500832 | H123: 342.0429566 | I123: 8.565613962 | J123: 431.5034595 | K123: 5.520295393 | L123: 208.0960243 | M123: 5.621107111 | N123: 245.0137248 | O123: 2.536291943 | P123: 116.9284094 | Q123: 2.496464663 | R123: 104.1007085
A124: 30 | B124: 4 | C124: 1984 | D124: 1984-04-30 | E124: 19.8 | F124: 19.8 | G124: 4.212583176 | H124: 346.2555397 | I124: 7.09280568 | J124: 438.5962652 | K124: 4.437351498 | L124: 212.5333758 | M124: 4.530580772 | N124: 249.5443056 | O124: 2.709045367 | P124: 119.6374548 | Q124: 2.647413941 | R124: 106.7481224
A125: 1 | B125: 5 | C125: 1984 | D125: 1984-05-01 | E125: 17.9 | F125: 17.9 | G125: 3.082049723 | H125: 349.3375895 | I125: 5.778605953 | J125: 444.3748712 | K125: 3.565560358 | L125: 216.0989361 | M125: 3.65013185 | N125: 253.1944374 | O125: 2.457361839 | P125: 122.0948166 | Q125: 2.584937846 | R125: 109.3330603
A126: 2 | B126: 5 | C126: 1984 | D126: 1984-05-02 | E126: 19.7 | F126: 19.7 | G126: 5.75780351 | H126: 355.095393 | I126: 6.960292633 | J126: 451.3351638 | K126: 4.35113318 | L126: 220.4500693 | M126: 4.45495218 | N126: 257.6493896 | O126: 3.128572444 | P126: 125.2233891 | Q126: 3.114428308 | R126: 112.4474886
A127: 3 | B127: 5 | C127: 1984 | D127: 1984-05-03 | E127: 8.8 | F127: 8.8 | G127: 3.508433591 | H127: 358.6038266 | I127: 1.759061936 | J127: 453.0942257 | K127: 0.6136770955 | L127: 221.0637464 | M127: 0.6605742458 | N127: 258.3099638 | O127: 1.430608192 | P127: 126.6539972 | Q127: 1.508535884 | R127: 113.9560245
A128: 4 | B128: 5 | C128: 1984 | D128: 1984-05-04 | E128: 15.7 | F128: 15.7 | G128: 0.6947038784 | H128: 359.2985305 | I128: 4.499543609 | J128: 457.5937694 | K128: 2.660504106 | L128: 223.7242505 | M128: 2.7430065 | N128: 261.0529703 | O128: 1.726568933 | P128: 128.3805662 | Q128: 1.681085477 | R128: 115.63711
A129: 5 | B129: 5 | C129: 1984 | D129: 1984-05-05 | E129: 15.8 | F129: 15.8 | G129: 3.356784775 | H129: 362.6553152 | I129: 4.78424569 | J129: 462.378015 | K129: 2.808212561 | L129: 226.5324631 | M129: 2.899642741 | N129: 263.9526131 | O129: 2.181018481 | P129: 130.5615847 | Q129: 2.286063512 | R129: 117.9231735
A130: 6 | B130: 5 | C130: 1984 | D130: 1984-05-06 | E130: 9.9 | F130: 9.9 | G130: 5.017788033 | H130: 367.6731033 | I130: 2.245426989 | J130: 464.623442 | K130: 0.9390172411 | L130: 227.4714803 | M130: 1.000838091 | N130: 264.9534512 | O130: 2.281502147 | P130: 132.8430868 | Q130: 2.734700302 | R130: 120.6578738
A131: 7 | B131: 5 | C131: 1984 | D131: 1984-05-07 | E131: 9.2 | F131: 9.2 | G131: 4.210913593 | H131: 371.8840169 | I131: 1.897606441 | J131: 466.5210485 | K131: 0.6873213566 | L131: 228.1588017 | M131: 0.7467212908 | N131: 265.7001725 | O131: 1.725972823 | P131: 134.5690596 | Q131: 1.995859708 | R131: 122.6537335
A132: 8 | B132: 5 | C132: 1984 | D132: 1984-05-08 | E132: 11.3 | F132: 11.3 | G132: 4.971930917 | H132: 376.8559478 | I132: 2.912303734 | J132: 469.4333522 | K132: 1.384972565 | L132: 229.5437742 | M132: 1.462653605 | N132: 267.1628261 | O132: 1.784040111 | P132: 136.3530997 | Q132: 1.863607477 | R132: 124.517341
A133: 9 | B133: 5 | C133: 1984 | D133: 1984-05-09 | E133: 15.2 | F133: 15.2 | G133: 3.200033458 | H133: 380.0559812 | I133: 4.501257594 | J133: 473.9346098 | K133: 2.562767101 | L133: 232.1065413 | M133: 2.667315202 | N133: 269.8301413 | O133: 1.912873013 | P133: 138.2659728 | Q133: 1.807789834 | R133: 126.3251308
A134: 10 | B134: 5 | C134: 1984 | D134: =DATE(C134,B134,A134) -> 1984-05-10 | E134: 10.8 | F134: 10.8 | G134: 4.094312149 | H134: 384.1502934 | I134: 2.4685634 | J134: 476.4031732 | K134: 1.123849104 | L134: 233.2303904 | M134: 1.199577704 | N134: 271.029719 | O134: 1.887795678 | P134: 140.1537684 | Q134: 2.039933495 | R134: 128.3650643
A135: 11 | B135: 5 | C135: 1984 | D135: 1984-05-11 | E135: 18.8 | F135: 18.8 | G135: 1.671418217 | H135: =H134+G135 -> 385.8217116 | I135: 5.684149116 | J135: =J134+I135 -> 482.0873223 | K135: 3.473592531 | L135: =L134+K135 -> 236.703983 | M135: 3.604922787 | N135: =N134+M135 -> 274.6346418 | O135: 1.860095594 | P135: =P134+O135 -> 142.013864 | Q135: 2.183653661 | R135: =R134+Q135 -> 130.5487179
A136: 12 | B136: 5 | C136: 1984 | D136: 1984-05-12 | E136: 22.8 | F136: 22.8 | G136: 2.479184585 | H136: 388.3008962 | I136: 7.414231888 | J136: 489.5015542 | K136: 4.709100656 | L136: 241.4130836 | M136: 4.875601509 | N136: 279.5102433 | O136: 2.333645304 | P136: 144.3475093 | Q136: 2.673945102 | R136: 133.222663
A137: 13 | B137: 5 | C137: 1984 | D137: 1984-05-13 | E137: 26.6 | F137: 26.6 | G137: 3.326499692 | H137: 391.6273959 | I137: 9.107193228 | J137: 498.6087474 | K137: 5.916414922 | L137: 247.3294985 | M137: 6.119503817 | N137: 285.6297471 | O137: 2.887334226 | P137: 147.2348436 | Q137: 2.988622201 | R137: 136.2112852
A138: 14 | B138: 5 | C138: 1984 | D138: 1984-05-14 | E138: 25.4 | F138: 25.4 | G138: 3.33386319 | H138: 394.9612591 | I138: 8.62925066 | J138: 507.2379981 | K138: 5.563724186 | L138: 252.8932227 | M138: 5.764929797 | N138: 291.3946769 | O138: 2.900983231 | P138: 150.1358268 | Q138: 2.735584817 | R138: 138.9468701
A139: 15 | B139: 5 | C139: 1984 | D139: 1984-05-15 | E139: 17.7 | F139: 17.7 | G139: 5.310010728 | H139: 400.2712698 | I139: 5.37646339 | J139: 512.6144615 | K139: 3.210997449 | L139: 256.1042202 | M139: 3.357103697 | N139: 294.7517806 | O139: 2.800692561 | P139: 152.9365193 | Q139: 2.855869732 | R139: 141.8027398
A140: 16 | B140: 5 | C140: 1984 | D140: 1984-05-16 | E140: 11.4 | F140: 11.4 | G140: 4.39696594 | H140: 404.6682357 | I140: 2.540689648 | J140: 515.1551511 | K140: 1.191652727 | L140: 257.2958729 | M140: 1.285100091 | N140: 296.0368807 | O140: 2.04787306 | P140: 154.9843924 | Q140: 2.168797252 | R140: 143.9715371
A141: 17 | B141: 5 | C141: 1984 | D141: 1984-05-17 | E141: 6.6 | F141: 6.6 | G141: 2.756973056 | H141: 407.4252088 | I141: 0.9724048124 | J141: 516.1275559 | K141: -0.2564504171 | L141: 257.0394225 | M141: -0.2020268306 | N141: 295.8348538 | O141: 1.249809433 | P141: 156.2342018 | Q141: 1.294009657 | R141: 145.2655467
A142: 18 | B142: 5 | C142: 1984 | D142: 1984-05-18 | E142: 3.8 | F142: 3.8 | G142: 1.665714676 | H142: 409.0909235 | I142: 0.9603209702 | J142: 517.0878769 | K142: -1.071847235 | L142: 255.9675752 | M142: -1.040199809 | N142: 294.794654 | O142: 0.881936113 | P142: 157.116138 | Q142: 0.6120477139 | R142: 145.8775944
A143: 19 | B143: 5 | C143: 1984 | D143: 1984-05-19 | E143: 13.5 | F143: 13.5 | G143: 1.868627639 | H143: 410.9595511 | I143: 3.172643297 | J143: 520.2605202 | K143: 1.691317647 | L143: 257.6588929 | M143: 1.804445122 | N143: 296.5990991 | O143: 1.879039029 | P143: 158.995177 | Q143: 1.804938401 | R143: 147.6825328
A144: 20 | B144: 5 | C144: 1984 | D144: 1984-05-20 | E144: 13.9 | F144: 13.9 | G144: 1.982269551 | H144: 412.9418207 | I144: 3.305521939 | J144: 523.5660422 | K144: 1.786892649 | L144: 259.4457855 | M144: 1.905666193 | N144: 298.5047653 | O144: 1.867942348 | P144: 160.8631193 | Q144: 1.936022711 | R144: 149.6185555
A145: 21 | B145: 5 | C145: 1984 | D145: 1984-05-21 | E145: 9.1 | F145: 9.1 | G145: 5.256861688 | H145: 418.1986823 | I145: 1.561629037 | J145: 525.1276712 | K145: 0.4546184622 | L145: 259.900404 | M145: 0.5401404067 | N145: 299.0449057 | O145: 2.200839799 | P145: 163.0639591 | Q145: 2.402451048 | R145: 152.0210066
A146: 22 | B146: 5 | C146: 1984 | D146: 1984-05-22 | E146: 3.2 | F146: 3.2 | G146: 1.043707334 | H146: 419.2423897 | I146: 0.9033084197 | J146: 526.0309796 | K146: -1.202021759 | L146: 258.6983822 | M146: -1.174518093 | N146: 297.8703877 | O146: 0.8573230959 | P146: 163.9212822 | Q146: 0.6604749111 | R146: 152.6814815
A147: 23 | B147: 5 | C147: 1984 | D147: 1984-05-23 | E147: 22.7 | F147: 22.7 | G147: 4.508427519 | H147: 423.7508172 | I147: 6.86433375 | J147: 532.8953134 | K147: 4.360332607 | L147: 263.0587149 | M147: 4.573348963 | N147: 302.4437366 | O147: 3.191615657 | P147: 167.1128979 | Q147: 3.149822357 | R147: 155.8313039
A148: 24 | B148: 5 | C148: 1984 | D148: 1984-05-24 | E148: 24.9 | F148: 24.9 | G148: 5.090157354 | H148: 428.8409745 | I148: 7.628310868 | J148: 540.5236242 | K148: 4.950937013 | L148: 268.0096519 | M148: 5.187538018 | N148: 307.6312746 | O148: 3.841698491 | P148: 170.9545964 | Q148: 3.864160205 | R148: 159.6954641
A149: 25 | B149: 5 | C149: 1984 | D149: 1984-05-25 | E149: 7.7 | F149: 7.7 | G149: 3.041113823 | H149: 431.8820884 | I149: 0.9720418127 | J149: 541.495666 | K149: -0.004394233587 | L149: 268.0052576 | M149: 0.06960540478 | N149: 307.70088 | O149: 1.55677044 | P149: 172.5113668 | Q149: 1.71981683 | R149: 161.4152809
A150: 26 | B150: 5 | C150: 1984 | D150: 1984-05-26 | E150: 5.3 | F150: 5.3 | G150: 1.287630695 | H150: 433.1697191 | I150: 0.9457718505 | J150: 542.4414379 | K150: -0.6753765502 | L150: 267.3298811 | M150: -0.6250730844 | N150: 307.075807 | O150: 0.8760019278 | P150: 173.3873687 | Q150: 0.9258267468 | R150: 162.3411076
A151: 27 | B151: 5 | C151: 1984 | D151: 1984-05-27 | E151: 6 | F151: 6 | G151: 1.444478371 | H151: 434.6141974 | I151: 0.9668922981 | J151: 543.4083302 | K151: -0.4954819754 | L151: 266.8343991 | M151: -0.4367160414 | N151: 306.6390909 | O151: 0.9396192278 | P151: 174.326988 | Q151: 1.033178439 | R151: 163.3742861
A152: 28 | B152: 5 | C152: 1984 | D152: 1984-05-28 | E152: 5.1 | F152: 5.1 | G152: 0.883885389 | H152: 435.4980828 | I152: 0.92664323 | J152: 544.3349734 | K152: -0.7276618059 | L152: 266.1067373 | M152: -0.6786821781 | N152: 305.9604087 | O152: 0.8295115912 | P152: 175.1564996 | Q152: 0.809011836 | R152: 164.1832979
A153: 29 | B153: 5 | C153: 1984 | D153: 1984-05-29 | E153: 21.5 | F153: 21.5 | G153: 6.23362146 | H153: 441.7317043 | I153: 6.59481643 | J153: 550.9297898 | K153: 4.087240739 | L153: 270.193978 | M153: 4.318946266 | N153: 310.279355 | O153: 3.220600669 | P153: 178.3771002 | Q153: 3.255855647 | R153: 167.4391536
A154: 30 | B154: 5 | C154: 1984 | D154: 1984-05-30 | E154: 19.7 | F154: 19.7 | G154: 3.73879648 | H154: 445.4705008 | I154: 5.331095556 | J154: 556.2608854 | K154: 3.277440992 | L154: 273.471419 | M154: 3.476835632 | N154: 313.7561906 | O154: 2.888501459 | P154: 181.2656017 | Q154: 2.869701731 | R154: 170.3088553
A155: 31 | B155: 5 | C155: 1984 | D155: 1984-05-31 | E155: 18.2 | F155: 18.2 | G155: 1.245353036 | H155: 446.7158538 | I155: 4.367790937 | J155: 560.6286763 | K155: 2.652825262 | L155: 276.1242443 | M155: 2.826341517 | N155: 316.5825322 | O155: 2.443373941 | P155: 183.7089756 | Q155: 2.455240697 | R155: 172.764096
A156: 1 | B156: 6 | C156: 1984 | D156: 1984-06-01 | E156: 7.9 | F156: 7.9 | G156: 0.5227682699 | H156: 447.2386221 | I156: 0.89882782 | J156: 561.5275042 | K156: 0.005903408609 | L156: 276.1301477 | M156: 0.08367654807 | N156: 316.6662087 | O156: 1.135316352 | P156: 184.844292 | Q156: 1.21422111 | R156: 173.9783171
A157: 2 | B157: 6 | C157: 1984 | D157: 1984-06-02 | E157: 19.2 | F157: 19.2 | G157: 4.366354718 | H157: 451.6049768 | I157: 5.371429239 | J157: 566.8989334 | K157: 3.230562084 | L157: 279.3607098 | M157: 3.440021055 | N157: 320.1062298 | O157: 2.750054552 | P157: 187.5943465 | Q157: 2.928910616 | R157: 176.9072277
A158: 3 | B158: 6 | C158: 1984 | D158: 1984-06-03 | E158: 13.7 | F158: 13.7 | G158: 2.976008505 | H158: 454.5809853 | I158: 2.980940199 | J158: 569.8798736 | K158: 1.559947966 | L158: 280.9206578 | M158: 1.70268145 | N158: 321.8089112 | O158: 2.103222477 | P158: 189.697569 | Q158: 2.238625114 | R158: 179.1458528
A159: 4 | B159: 6 | C159: 1984 | D159: 1984-06-04 | E159: 16.6 | F159: 16.6 | G159: 1.774156263 | H159: 456.3551416 | I159: 4.00690202 | J159: 573.8867756 | K159: 2.316468488 | L159: 283.2371262 | M159: 2.489857381 | N159: 324.2987686 | O159: 2.250799163 | P159: 191.9483682 | Q159: 2.282960962 | R159: 181.4288138
A160: 5 | B160: 6 | C160: 1984 | D160: 1984-06-05 | E160: 4.8 | F160: 4.8 | G160: 1.315294299 | H160: 457.6704359 | I160: 0.908914439 | J160: 574.7956901 | K160: -0.8235728314 | L160: 282.4135534 | M160: -0.7739497665 | N160: 323.5248188 | O160: 0.959680532 | P160: 192.9080487 | Q160: 0.848635467 | R160: 182.2774493
A161: 6 | B161: 6 | C161: 1984 | D161: 1984-06-06 | E161: 10.9 | F161: 10.9 | G161: 2.861021237 | H161: 460.5314571 | I161: 1.874899887 | J161: 576.6705899 | K161: 0.7712469652 | L161: 283.1848004 | M161: 0.8854789166 | N161: 324.4102977 | O161: 1.91851529 | P161: 194.826564 | Q161: 2.104175273 | R161: 184.3816245
A162: 7 | B162: 6 | C162: 1984 | D162: 1984-06-07 | E162: 25.7 | F162: 25.7 | G162: 4.66107197 | H162: 465.1925291 | I162: 7.161780296 | J162: 583.8323702 | K162: 4.689022775 | L162: 287.8738232 | M162: 4.963006061 | N162: 329.3733038 | O162: 3.913809002 | P162: 198.740373 | Q162: 4.125191772 | R162: 188.5068163
A163: 8 | B163: 6 | C163: 1984 | D163: 1984-06-08 | E163: 28.6 | F163: 28.6 | G163: 4.317952402 | H163: 469.5104815 | I163: 8.610955973 | J163: 592.4433262 | K163: 5.654488936 | L163: 293.5283121 | M163: 5.973477516 | N163: 335.3467813 | O163: 3.76093696 | P163: 202.50131 | Q163: 3.89680445 | R163: 192.4036207
A164: 9 | B164: 6 | C164: 1984 | D164: 1984-06-09 | E164: 27 | F164: 27 | G164: 4.396377825 | H164: 473.9068593 | I164: 7.858876766 | J164: 600.302203 | K164: 5.156125742 | L164: 298.6844378 | M164: 5.456488166 | N164: 340.8032695 | O164: 3.890387059 | P164: 206.391697 | Q164: 3.735811623 | R164: 196.1394324
A165: 10 | B165: 6 | C165: 1984 | D165: 1984-06-10 | E165: 24.5 | F165: 24.5 | G165: 3.453198948 | H165: 477.3600582 | I165: 6.368796171 | J165: 606.6709991 | K165: 4.166839211 | L165: 302.851277 | M165: 4.422580164 | N165: 345.2258496 | O165: 3.664837032 | P165: 210.056534 | Q165: 3.793980428 | R165: 199.9334128
A166: 11 | B166: 6 | C166: 1984 | D166: 1984-06-11 | E166: 13.1 | F166: 13.1 | G166: 6.158331939 | H166: 483.5183902 | I166: 2.831931531 | J166: 609.5029307 | K166: 1.421393864 | L166: 304.2726709 | M166: 1.573910647 | N166: 346.7997603 | O166: 2.856163496 | P166: 212.9126975 | Q166: 2.954048255 | R166: 202.8874611
A167: 12 | B167: 6 | C167: 1984 | D167: 1984-06-12 | E167: 17.5 | F167: 17.5 | G167: 4.067590158 | H167: 487.5859803 | I167: 4.337007449 | J167: 613.8399381 | K167: 2.549274803 | L167: 306.8219457 | M167: 2.746500221 | N167: 349.5462605 | O167: 2.927707786 | P167: 215.8404053 | Q167: 3.373060654 | R167: 206.2605217
A168: 13 | B168: 6 | C168: 1984 | D168: 1984-06-13 | E168: 16.2 | F168: 16.2 | G168: 3.972258446 | H168: 491.5582388 | I168: 3.534399765 | J168: 617.3743379 | K168: 2.052599413 | L168: 308.8745451 | M168: 2.224154986 | N168: 351.7704155 | O168: 2.994734538 | P168: 218.8351399 | Q168: 3.453996496 | R168: 209.7145182
A169: 14 | B169: 6 | C169: 1984 | D169: 1984-06-14 | E169: 23.9 | F169: 23.9 | G169: 5.400627232 | H169: 496.958866 | I169: 6.581848035 | J169: 623.9561859 | K169: 4.231768557 | L169: 313.1063137 | M169: 4.50179929 | N169: 356.2722148 | O169: 3.751728975 | P169: 222.5868688 | Q169: 3.947653252 | R169: 213.6621715
A170: 15 | B170: 6 | C170: 1984 | D170: 1984-06-15 | E170: 24 | F170: 24 | G170: 3.595642944 | H170: 500.554509 | I170: 6.478815392 | J170: 630.4350013 | K170: 4.177573215 | L170: 317.2838869 | M170: 4.444931937 | N170: 360.7171467 | O170: 3.466471941 | P170: 226.0533408 | Q170: 3.334531227 | R170: 216.9967027
A171: 16 | B171: 6 | C171: 1984 | D171: 1984-06-16 | E171: 21.3 | F171: 21.3 | G171: 2.844209289 | H171: 503.3987182 | I171: 4.957753708 | J171: 635.392755 | K171: 3.183711886 | L171: 320.4675988 | M171: 3.402371286 | N171: 364.119518 | O171: 3.396964309 | P171: 229.4503051 | Q171: 3.482306128 | R171: 220.4790088
A172: 17 | B172: 6 | C172: 1984 | D172: 1984-06-17 | E172: 25.8 | F172: 25.8 | G172: 3.448303143 | H172: 506.8470214 | I172: 6.128308363 | J172: 641.5210634 | K172: 4.132338716 | L172: 324.5999375 | M172: 4.389909389 | N172: 368.5094274 | O172: 4.071933071 | P172: 233.5222382 | Q172: 4.291026499 | R172: 224.7700353
A173: 18 | B173: 6 | C173: 1984 | D173: 1984-06-18 | E173: 23 | F173: 23 | G173: 3.760861651 | H173: 510.607883 | I173: 5.641593936 | J173: 647.1626573 | K173: 3.674631673 | L173: 328.2745692 | M173: 3.917858569 | N173: 372.427286 | O173: 3.694043641 | P173: 237.2162818 | Q173: 3.654661719 | R173: 228.424697
A174: 19 | B174: 6 | C174: 1984 | D174: 1984-06-19 | E174: 24.1 | F174: 24.1 | G174: 4.048457735 | H174: 514.6563408 | I174: 5.808487143 | J174: 652.9711445 | K174: 3.853811665 | L174: 332.1283808 | M174: 4.103414416 | N174: 376.5307004 | O174: 4.013854813 | P174: 241.2301366 | Q174: 3.970018653 | R174: 232.3947157
A175: 20 | B175: 6 | C175: 1984 | D175: 1984-06-20 | E175: 11.7 | F175: 11.7 | G175: 4.626489634 | H175: 519.2828304 | I175: 1.873967933 | J175: 654.8451124 | K175: 0.8669446302 | L175: 332.9953255 | M175: 0.9873563884 | N175: 377.5180568 | O175: 2.552422253 | P175: 243.7825589 | Q175: 2.721332218 | R175: 235.1160479
A176: 21 | B176: 6 | C176: 1984 | D176: 1984-06-21 | E176: 19.5 | F176: 19.5 | G176: 5.563688892 | H176: 524.8465193 | I176: 5.244041265 | J176: 660.0891537 | K176: 3.172736697 | L176: 336.1680622 | M176: 3.406658108 | N176: 380.9247149 | O176: 3.308703848 | P176: 247.0912627 | Q176: 3.726977968 | R176: 238.8430259
A177: 22 | B177: 6 | C177: 1984 | D177: 1984-06-22 | E177: 8.1 | F177: 8.1 | G177: 1.115783095 | H177: 525.9623024 | I177: 0.8553849355 | J177: 660.9445386 | K177: 0.01002727309 | L177: 336.1780894 | M177: 0.096412235 | N177: 381.0211271 | O177: 1.301752294 | P177: 248.393015 | Q177: 1.515272391 | R177: 240.3582983
A178: 23 | B178: 6 | C178: 1984 | D178: 1984-06-23 | E178: 15.7 | F178: 15.7 | G178: 3.955389068 | H178: 529.9176915 | I178: 3.788338846 | J178: 664.7328774 | K178: 2.104591553 | L178: 338.282681 | M178: 2.291793977 | N178: 383.3129211 | O178: 2.368896138 | P178: 250.7619112 | Q178: 2.496955599 | R178: 242.8552539
A179: 24 | B179: 6 | C179: 1984 | D179: 1984-06-24 | E179: 16.6 | F179: 16.6 | G179: 2.463468708 | H179: 532.3811602 | I179: 3.966180429 | J179: 668.6990579 | K179: 2.27257801 | L179: 340.555259 | M179: 2.46367838 | N179: 385.7765995 | O179: 2.245589224 | P179: 253.0075004 | Q179: 2.544858355 | R179: 245.4001122
A180: 25 | B180: 6 | C180: 1984 | D180: 1984-06-25 | E180: 12 | F180: 12 | G180: 3.32060578 | H180: 535.701766 | I180: 2.144039077 | J180: 670.843097 | K180: 1.000323979 | L180: 341.555583 | M180: 1.131731841 | N180: 386.9083313 | O180: 2.264906681 | P180: 255.2724071 | Q180: 2.623518523 | R180: 248.0236307
A181: 26 | B181: 6 | C181: 1984 | D181: 1984-06-26 | E181: 24.5 | F181: 24.5 | G181: 1.848684004 | H181: 537.55045 | I181: 6.02819864 | J181: 676.8712956 | K181: 3.964709601 | L181: 345.5202926 | M181: 4.219770103 | N181: 391.1281014 | O181: 3.151232204 | P181: 258.4236393 | Q181: 3.622733311 | R181: 251.646364
A182: 27 | B182: 6 | C182: 1984 | D182: 1984-06-27 | E182: 19.5 | F182: 19.5 | G182: 2.200859979 | H182: 539.7513099 | I182: 4.535776525 | J182: 681.4070721 | K182: 2.817677925 | L182: 348.3379705 | M182: 3.02441988 | N182: 394.1525213 | O182: 2.768222574 | P182: 261.1918618 | Q182: 3.076850866 | R182: 254.7232149
A183: 28 | B183: 6 | C183: 1984 | D183: 1984-06-28 | E183: 6.9 | F183: 6.9 | G183: 4.125552438 | H183: 543.8768624 | I183: 0.9780766674 | J183: 682.3851488 | K183: -0.3113922464 | L183: 348.0265783 | M183: -0.2292546891 | N183: 393.9232666 | O183: 1.545027094 | P183: 262.7368889 | Q183: 1.583879005 | R183: 256.3070939
A184: 29 | B184: 6 | C184: 1984 | D184: 1984-06-29 | E184: 16 | F184: 16 | G184: 5.159893424 | H184: 549.0367558 | I184: 4.051640105 | J184: 686.4367889 | K184: 2.270477371 | L184: 350.2970556 | M184: 2.465806986 | N184: 396.3890736 | O184: 2.635938266 | P184: 265.3728272 | Q184: 2.742196429 | R184: 259.0492903
A185: 30 | B185: 6 | C185: 1984 | D185: 1984-06-30 | E185: 20 | F185: 20 | G185: 4.827459581 | H185: 553.8642154 | I185: 5.504462572 | J185: 691.9412515 | K185: 3.352273782 | L185: 353.6493294 | M185: 3.591431959 | N185: 399.9805056 | O185: 2.931987243 | P185: 268.3048144 | Q185: 2.98838288 | R185: 262.0376732
A186: 1 | B186: 7 | C186: 1984 | D186: 1984-07-01 | E186: 23.6 | F186: 23.6 | G186: 2.321865869 | H186: 556.1860812 | I186: 6.454611669 | J186: 698.3958631 | K186: 4.118092186 | L186: 357.7674216 | M186: 4.383509521 | N186: 404.3640151 | O186: 2.877659906 | P186: 271.1824743 | Q186: 3.085706973 | R186: 265.1233802
A187: 2 | B187: 7 | C187: 1984 | D187: 1984-07-02 | E187: 13.4 | F187: 13.4 | G187: 4.836498659 | H187: 561.0225799 | I187: 2.967563441 | J187: 701.3634266 | K187: 1.511283781 | L187: 359.2787054 | M187: 1.669898383 | N187: 406.0339135 | O187: 2.396230747 | P187: 273.5787051 | Q187: 2.57174948 | R187: 267.6951297
A188: 3 | B188: 7 | C188: 1984 | D188: 1984-07-03 | E188: 20.8 | F188: 20.8 | G188: 5.037350399 | H188: 566.0599303 | I188: 5.764775859 | J188: 707.1282024 | K188: 3.568340135 | L188: 362.8470455 | M188: 3.812565978 | N188: 409.8464794 | O188: 3.209915813 | P188: 276.7886209 | Q188: 3.260394654 | R188: 270.9555243
A189: 4 | B189: 7 | C189: 1984 | D189: 1984-07-04 | E189: 20.6 | F189: 20.6 | G189: 1.08869232 | H189: 567.1486226 | I189: 5.083584952 | J189: 712.2117874 | K189: 3.196394619 | L189: 366.0434401 | M189: 3.415030873 | N189: 413.2615103 | O189: 2.864857002 | P189: 279.6534779 | Q189: 2.638049754 | R189: 273.5935741
A190: 5 | B190: 7 | C190: 1984 | D190: 1984-07-05 | E190: 27.1 | F190: 27.1 | G190: 4.107196507 | H190: 571.2558191 | I190: 7.662205482 | J190: 719.8739929 | K190: 5.082780191 | L190: 371.1262203 | M190: 5.382793137 | N190: 418.6443034 | O190: 4.061855822 | P190: 283.7153337 | Q190: 3.865917073 | R190: 277.4594912
A191: 6 | B191: 7 | C191: 1984 | D191: 1984-07-06 | E191: 26.1 | F191: 26.1 | G191: 2.318000087 | H191: 573.5738192 | I191: 6.590409841 | J191: 726.4644027 | K191: 4.434099647 | L191: 375.56032 | M191: 4.698047852 | N191: 423.3423513 | O191: 3.995115136 | P191: 287.7104489 | Q191: 3.765069111 | R191: 281.2245603
A192: 7 | B192: 7 | C192: 1984 | D192: 1984-07-07 | E192: 23.4 | F192: 23.4 | G192: 3.644133135 | H192: 577.2179524 | I192: 5.827822923 | J192: 732.2922256 | K192: 3.846387437 | L192: 379.4067074 | M192: 4.085475371 | N192: 427.4278267 | O192: 4.004813811 | P192: 291.7152627 | Q192: 3.866276419 | R192: 285.0908367
A193: 8 | B193: 7 | C193: 1984 | D193: 1984-07-08 | E193: 24.8 | F193: 24.8 | G193: 0 | H193: 577.2179524 | I193: 4.884495429 | J193: 737.1767211 | K193: 3.432247546 | L193: 382.8389549 | M193: 3.637786964 | N193: 431.0656136 | O193: 3.735563451 | P193: 295.4508261 | Q193: 3.807907579 | R193: 288.8987443
A194: 9 | B194: 7 | C194: 1984 | D194: 1984-07-09 | E194: 12.3 | F194: 12.3 | G194: 3.14464454 | H194: 580.3625969 | I194: 2.178834439 | J194: 739.3555555 | K194: 1.085880433 | L194: 383.9248354 | M194: 1.207920877 | N194: 432.2735345 | O194: 2.407022539 | P194: 297.8578487 | Q194: 2.621858627 | R194: 291.5206029
A195: 10 | B195: 7 | C195: 1984 | D195: 1984-07-10 | E195: 19.3 | F195: 19.3 | G195: 1.090834149 | H195: 581.453431 | I195: 3.962480177 | J195: 743.3180357 | K195: 2.556181375 | L195: 386.4810168 | M195: 2.729080057 | N195: 435.0026146 | O195: 2.753093378 | P195: 300.610942 | Q195: 3.127746735 | R195: 294.6483496
A196: 11 | B196: 7 | C196: 1984 | D196: 1984-07-11 | E196: 19.3 | F196: 19.3 | G196: 2.431897137 | H196: 583.8853282 | I196: 4.49427191 | J196: 747.8123076 | K196: 2.831531583 | L196: 389.3125483 | M196: 3.020877012 | N196: 438.0234916 | O196: 3.046307868 | P196: 303.6572499 | Q196: 3.21860372 | R196: 297.8669533
A197: 12 | B197: 7 | C197: 1984 | D197: 1984-07-12 | E197: 14.9 | F197: 14.9 | G197: 3.109654404 | H197: 586.9949826 | I197: 3.095779694 | J197: 750.9080873 | K197: 1.767985666 | L197: 391.080534 | M197: 1.914064612 | N197: 439.9375562 | O197: 2.656948168 | P197: 306.3141981 | Q197: 2.981054461 | R197: 300.8480078
A198: 13 | B198: 7 | C198: 1984 | D198: =DATE(C198,B198,A198) -> 1984-07-13 | E198: 15 | F198: 15 | G198: 1.708062033 | H198: 588.7030446 | I198: 3.167886053 | J198: 754.0759733 | K198: 1.807333764 | L198: 392.8878678 | M198: 1.953509815 | N198: 441.891066 | O198: 2.24848089 | P198: 308.562679 | Q198: 2.361991501 | R198: 303.2099993
A199: 14 | B199: 7 | C199: 1984 | D199: 1984-07-14 | E199: 12 | F199: 12 | G199: 1.48699198 | H199: =H198+G199 -> 590.1900366 | I199: 2.157529933 | J199: =J198+I199 -> 756.2335033 | K199: 1.056823725 | L199: =L198+K199 -> 393.9446915 | M199: 1.171817119 | N199: =N198+M199 -> 443.0628831 | O199: 1.859075194 | P199: =P198+O199 -> 310.4217542 | Q199: 2.038838555 | R199: =R198+Q199 -> 305.2488379
A200: 15 | B200: 7 | C200: 1984 | D200: 1984-07-15 | E200: 14.8 | F200: 14.8 | G200: 4.639537682 | H200: 594.8295743 | I200: 3.596479192 | J200: 759.8299825 | K200: 1.996699621 | L200: 395.9413911 | M200: 2.15564793 | N200: 445.2185311 | O200: 2.520660444 | P200: 312.9424146 | Q200: 2.651881574 | R200: 307.9007194
A201: 16 | B201: 7 | C201: 1984 | D201: 1984-07-16 | E201: 17.5 | F201: 17.5 | G201: 4.192643168 | H201: 599.0222174 | I201: 4.458159924 | J201: 764.2881424 | K201: 2.681265217 | L201: 398.6226563 | M201: 2.861112953 | N201: 448.079644 | O201: 2.863964788 | P201: 315.8063794 | Q201: 2.941261867 | R201: 310.8419813
... 168 more rows

Sheet Control
A1: An Excel version of the LINGRA-N-Plus grass growth model, incorporating changes in partitioning with development stage and nitrogen mineralisation
A2: developed by Michail Giannitsopoulos and Paul Burgess, Cranfield University (December 2020), based on LINGRA-N (Wolf 2012)
A3: Contact: P.Burgess@cranfield.ac.uk; M.Giannitsopoulos@cranfield.ac.uk
A5: SITE and GRASS factors | D5: MANAGEMENT choices | H5: Links to graphs
A6: Meteorological | D6: Harvest | H6: Weather data
A7: Selected weather data (1-21) | B7: 42 | C7: =Weather_data!B3 -> UK-Rothamsted 2011 | D7: Grass cut at specific weight (1); Grass cut at specific dates (2) | E7: 2 | H7: Weather graph
A8: Latitude | B8: =_xlfn.IFNA(VLOOKUP(Weather_data!$K$369,Weather_data!$B$375:F496,3,FALSE),52) -> 51.81846 | C8: °N | D8: Total dry weight of harvestable grass (only applicable if E7=1) | E8: 1800 | F8: kg/ha | H8: CO2 data
A9: Temperature change from default | B9: 0 | C9: °C | D9: Selected harvest routine (1 = fixed interval as in E12; 2-14 = default) | E9: 1 | F9: =IF($E$7=1,COUNTIF(Calculations!$EO$6:$EO$370,"<>0"),IF(OR($E$9=1,$E$7=1)," ",$B$152)) ->  | G9: =IF($F$9<> " ","harvests", IF($E$9<>1, "harvests", "")) ->  | H9: Harvest dates
A10: Mean temperature | B10: =AVERAGE(Calculations!$G6:$G370) -> 10.8373274 | C10: °C | H10: Development
A11: Annual rainfall | B11: =SUM(Calculations!$I6:$I370) -> 571.469 | C11: mm | D11: Start of season | E11: =IF(E9=1,DATE(2000,3,26)-DATE(2000,1,0),"") -> 1900-03-26 | H11: Leaf elongation rate
A12: Assumed annual irrigation | B12: =SUM(Calculations!$NN6:$NN370) -> 0 | C12: mm | D12: End of season | E12: =IF(E9=1,DATE(2000,10,22)-DATE(2000,1,0),"") -> 1900-10-22 | F12: =IF(AND($E$9=1, $E$7=2),SUM(Calculations!AX6:AX370), " ") -> 10 | G12: =IF(AND(E9=1,$E$7=2),"harvests", " ") -> harvests | H12: LAI
A13: Annual solar radiation | B13: =SUM(Calculations!$K6:$K370)/1000 -> 3643.156 | C13: MJ/m2 | D13: Selected interval if based on interval (only applicable if E9=1) | E13: 21 | H13: Grass yield
H14: Tillers
A15: Carbon dioxide | D15: Leaf area index after cutting | E15: 0.5 | H15: Growth rate
A16: Increase in carbon dioxide from default | B16: 0 | C16: ppm | D16: Derived residual herbage weight after cutting | E16: =E15/0.0025*(1.285/0.285)+E15/0.0025+1000*E15 -> 1601.754386 | F16: kg/ha | H16: Cum. dry mass
A17: Assumed carbon dioxide concentration | B17: =VLOOKUP(Weather_data!$B$5,CO2_data!A2:B63,2)+$B$16 -> 391.6483333 | C17: ppm | D17: Nitrogen
D18: Nitrogen stress? (0 = no nitrogen effects; 1 = nitrogen effects included) | E18: 1 | F18: =IF($E$18=1, CONCATENATE("N effects included"), "no N effects - optimal") -> N effects included | H18: Nitrogen app.
A19: Partitioning of dry matter | D19: Selected N routine (1 = fixed; 2-14 = specified) applicable if E18=1) | E19: 1 | F19: =IF($E$18=0,SUM(Calculations!$JN$6:$JN$370),IF(AND($E$18=1,$E$19<>1),SUM($C$180:$C$189),IF(E19=1,CONCATENATE(SUM($C$180:$C$189),"")))) -> 300 | G19: =IF($E$18=0, "kg N/ha uptake by crop","kg N/ha applied") -> kg N/ha applied | H19: N balance
A20: Is partitioning fixed or varied (0 = fixed; 1 = automatic) | B20: 1 | C20: Calculated varieda | D20: N application in N routine (only applicable if E19=1) | E20: 300 | F20: kg/ha | H20: N uptake
A21: Fraction of total DM to roots | B21: 0.165 | C21: =AVERAGE(Calculations!$FX$6:$FX$370) -> 0.15 | D21: N mineralisation based on | E21: 4 | F21: =IF($E$21=1,"Default LINGRA-N (based on transp. factor)",IF($E$21=2,"Moisture",IF($E$21=3,"Temperature","Moisture & temp"))) -> Moisture & temp | H21: Cumulative N
A22: Fraction of above-gr. DM to leaves | B22: 1 | C22: =AVERAGE(Calculations!$GA$6:$GA$370) -> 0.7619178082 | D22: Total mineral soil N available at start of growth period | E22: 75 | F22: kg/ha
A23: Fraction of above-gr. DM to stems | B23: 0 | C23: =AVERAGE(Calculations!$GC$6:$GC$370) -> 0.2380821918
A24: Fraction of above-gr. DM to storage organs (seeds) | B24: 0 | C24: =AVERAGE(Calculations!$GE$6:$GE$370) -> 0
A25: a: assuming no stress | D25: Irrigation | H25: Irrigation
A26: Root depth and soil type | D26: Is drought stress included? (0 = no drought; 1 = drought effects included) | E26: 1 | F26: =IF(E26=0, "No drought", "Drought included") -> Drought included | H26: Soil water bal.
A27: Root depth | B27: 1000 | C27: mm | D27: Selected irrigation routine (1-4) (only applicable if E23=1) | E27: 1 | F27: =IF($E$26=0,$B$12,SUM($C200:$C210)) -> 0 | G27: =IF(E26=0,"mm - assumed annual irrigation","mm irrigation") -> mm irrigation | H27: Wateruptake
A28: Soil type ID | B28: 9 | C28: =VLOOKUP($B$28,$E$110:$J$119,2,FALSE) -> Medium-fine (default) | H28: Reduction factors
A29: OUTPUTS
A30: Yields | D30: Nitrogen use and transpiration
A31: Total weight of harvested green leaves | B31: =MAX(Calculations!$ET$6:$ET$370) -> 10303.19712 | C31: kg/ha | D31: Amount of nitrogen taken up by crop | E31: =SUM(Calculations!$JN6:$JN370) -> 321.5062481 | F31: kg N/ha
A32: Total weight of harvested stems | B32: =MAX(Calculations!$EU$6:$EU$370) -> 4266.506882 | C32: kg/ha | D32: Ratio of nitrogen taken up and yield biomass | E32: =SUM(Calculations!$JN$6:$JN$370)/$B$35 -> 0.02098506271 | F32: kg N/(kg dry matter)
A33: Total weight of harvested storage organ (seeds) | B33: =MAX(Calculations!$EV$6:$EV$370) -> 0 | C33: kg/ha | D33: Total transpiration | E33: =MAX(Calculations!$OY6:$OY370) -> 368.5045693 | F33: mm
A34: Total weight of harvested "dead leaf" | B34: =MAX(Calculations!$EW$6:$EW$370) -> 751.01495 | C34: kg/ha | D34: Potential Soil Moisture Deficit (PSMD) | E34: =MAX(Calculations!MH6:MH370) -> 299.4440016 | F34: mm
A35: Total weight of harvested green leaves, stems, seeds & dead leaves | B35: =SUM($B31:$B34) -> 15320.71896 | C35: kg/ha | D35: Nitrogen use efficiency (Nitrogen uptake/application) | E35: =IF($E$18=1, $E$31/$F$19, "na") -> 1.071687494
A36: Total produced biomass - above and below ground | B36: =MAX(Calculations!$HN$6:$HN$370) -> 21326.66402 | C36: kg/ha | D36: Transpiration efficiency (Dry matter production/m3 transpiration) | E36: =$B$36/($E$33/1000*100*100) -> 5.787354025 | F36: kg/m3
A37: Mean leaf area index | B37: =AVERAGE(Calculations!$DL$6:$DL$370) -> 1.494863609 | D37: Harvested leaves as a proportion of total harvest | E37: =B31/B35 -> 0.6725008894
A38: Leaf/Stem ratio | B38: =B31/B32 -> 2.414902263 | D38: Available water content at start of the year | E38: =Calculations!$MZ$6 -> 200 | F38: mm
A40: Location and meteorological parameters and irrigation | B40: Abbreviation | C40: Value | D40: Unit
A41: Irrigation (automatic irrigation=1, actual irrigation from table=2) | B41: IRRI | C41: =IF($E$26=0,1,IF($E$26=1,2)) -> 2
A42: Date of emergence (always 1 for permanent grass) | B42: IDEM | C42: 1
A43: Date of planting/sowing (0: permanent grassland) | B43: IDPL | C43: 0
A44: Indicates planting at start of simulation (logical); F: Permanent grassland | B44: PL | C44: =IF($C$43<=0, "F", "T") -> F
A45: Indicates that flowering has occurred (logical) | B45: FLOW | C45: =IF($C$43<=0, "F", "T") -> F
A46: Temperature sums (degree days) after planting for leaf & tuber development | B46: PUSHPL | C46: =IF($C$44="T", IF($C$48="F", IF(Calculations!$AH$6-$C$43<0,0,1), IF(365+Calculations!$AH$6-$C$43<0,0,1)),0) -> 0
A47: Time step of integration | B47: DELT | C47: 1
A48: Year change (logical) | B48: YCH | C48: F
A49: Elevation | B49: ALTI | C49: =Weather_data!$E$2 -> 128 | D49: m
A51: Initial conditions and run control
A52: Soil moisture content in initial root zone at planting or emergence | B52: SMI | C52: =C111 -> 0.35 | D52: mm3 mm-3
A53: Initial soil moisture content in lower zone at planting or emergence | B53: SMLOWI | C53: =C52 -> 0.35 | D53: mm3 mm-3
A54: Correction factor of time course of soil evaporation (value btw 1 and 4) | B54: CFEV | C54: 2
A55: Percolation (flux) to deeper soil layers | B55: KSUB | C55: 100 | D55: mm d-1
A56: Surface runoff factor | B56: RUNFR | C56: 0 | D56: -
A57: Initial root depth | B57: RDI | C57: =$B$27 -> 1000 | D57: mm
A58: Initial leaf area index | B58: LAII | C58: 0.1 | D58: m2 m-2
A59: Initial tiller density | B59: TILLI | C59: 7000 | D59: no. m-2
A60: Initial weight of storage carbohydrates | B60: WREI | C60: 200 | D60: kg DM ha-1
A61: Initial soil temperature | B61: SOITMI | C61: 5 | D61: oC
A63: Crop parameters
A64: Is the crop already sown? (0 = already sown; 1 = sown on specified date) | C64: 0
A65: Julian date of sowing (if sown) | C65: 5
A66: Initial BBCH (9, 20, 30) | C66: 21
A67: Development stage of crop after cutting | C67: 21
A68: Partitioning | B68: BBCH | C68: Thermal time (°Cd) | D68: Above ground to leaf | E68: Above ground to stem | F68: Above ground to seed | G68: Total DM to roots
A69: Thermal time: Sowing to emergence (BBCH: 0 to 9) | B69: 0 | C69: 60 | D69: 1 | E69: 0 | F69: 0 | G69: 0.5
A70: Thermal time: Emergence to tillering (BBCH: 9 to 21) | B70: 9 | C70: 155 | D70: 0.9 | E70: 0.1 | F70: 0 | G70: 0.4
A71: Thermal time: Tillering to stem elongation (BBCH: 21 to 30) | B71: 21 | C71: 150 | D71: 0.9 | E71: 0.1 | F71: 0 | G71: 0.15
A72: Thermal time: Stem elongation to flowering (BBCH: 30 to 60) | B72: 30 | C72: 400 | D72: 0.6 | E72: 0.4 | F72: 0 | G72: 0.15
A73: Thermal time: Flowering to grain filling (BBCH:60 to 65) | B73: 60 | C73: 100 | D73: 0.15 | E73: 0.8 | F73: 0.05 | G73: 0.02
A74: Thermal time: Grain filling to maturity (BBCH: 65 to 90) | B74: 65 | C74: 800 | D74: 0.05 | E74: 0.8 | F74: 0.15 | G74: 0
A75: Base temperature for grass development | C75: 3 | D75: °C
A76: Minimum Optimum temperature for grass development | C76: 20 | D76: °C
A77: Maximum Optimum temperature for grass development | C77: 25 | D77: °C
A78: Critical temperature for grass development | C78: 40 | D78: °C
A79: Extinction coefficinet for diffuse light (KDIF) | B79: KDIF | C79: 0.6 | D79: -
A80: Critical leaf area index above which shading reduces growth | B80: LAICR | C80: 4 | D80: m2 m-2
A81: Initial total crop dry weight | B81: TDWI | C81: 300 | D81: kg ha-1
A82: Lower threshold temp. for emergence | B82: TBASEM | C82: 0 | D82: °C
A83: Max eff. Temp. for emergence | B83: TEFFMX | C83: 30 | D83: °C
A84: BBCH development stage at which death of leaves start (about 600°Cd) | C84: 50
A85: Temp. Sum (for death rate of tillers) taken from TILSUB | B85: TSUM1 | C85: 600 | D85: °C d
A86: Temperature sum for sowing/planting to emergence | B86: TSUMEM | C86: 60 | D86: °C d
A87: Indicates whether pre-anthesis development depends on temp (=0) or both temp and daylength (=1) | B87: IDSL | C87: 1
A88: Radiation use efficiency for biomass (vegetative stage) | B88: RUETB | C88: 2.5 | D88: g (MJ PAR)-1
A89: Radiation use efficiency for biomass (maturity) | C89: 1.5 | D89: g (MJ PAR)-1
A90: Base temperature for leaf elongation | B90: TMBAS1 | C90: 4 | D90: °C
A91: Number of swards harvested (cuttings); If '1' then cuts sets by B18; if '0' then no cuts | B91: INCUT | C91: 1 | D91: -
A92: Specific stem area | B92: SSATB | C92: 0.00125 | D92: ha leaf kg-1 leaf DM
A93: Crop group number, from 1 (drought sensitive) to 5 (drought resistent) | B93: CGNR / DEPNR | C93: 3.5
A94: Specific leaf area | B94: SLAI | C94: 0.0025 | D94: ha leaf kg-1 leaf DM
A95: Relative death rate of leaves due to shading (above LAICR) | B95: RDRSHM | C95: 0.03
A96: Max relative death rate of leaves due to water stress | B96: RDRL | C96: 0.05
A97: Emergence [0: no emergence, 1: emergence) | B97: EMERG | C97: 1
A99: Soil and water characteristics
A100: Drainage rate | B100: DRATE | C100: 50 | D100: mm d-1
A101: Soil-related maximum rooting depth | B101: RDMSO | C101: 1500 | D101: mm
A102: Soil / crop related maximal rooting depth | B102: RDM | C102: =$B$27 -> 1000 | D102: mm
A103: Maximum daily increase in rooting depth | B103: RRI | C103: 12 | D103: mm d-1
A104: Initial recovery fraction of applied fertiliser N | B104: NRFTAB | C104: 0.7 | D104: kg N uptake (kg N applied)-1
A105: Slowly decomposable compounds | B105: Nrpm | C105: 150 | D105: kg N ha-1
A106: Fast and easily decomposable organic compounds | B106: Ndpm | C106: 50 | D106: kg N ha-1
A107: Total mineral soil N available at start of growth period | B107: Nmins | C107: =$E$22 -> 75 | D107: kg N ha-1
A108: Fraction of soil mineral N coming available per day | B108: RTMINS | C108: 0.025 | D108: d-1
A109: Air dry water content (fraction) (currently not used) | B109: WCAD | C109: 0.1 | D109: mm3 mm-3
A110: Soil moisture content at wilting point (pF=4.2; Medium fine=0.20 or 0.15) | B110: SMW | C110: =VLOOKUP($B$28,$E$111:$J$119,5,FALSE) -> 0.15 | D110: mm3 mm-3 | E110: ID | F110: Soil texture | G110: SM0 | H110: SMFC | I110: SMW | J110: SMDRY
A111: Soil moisture content at field capacity (pF=2.3; Medium fine=0.35) | B111: SMFC | C111: =VLOOKUP($B$28,$E$111:$J$119,4,FALSE) -> 0.35 | D111: mm3 mm-3 | E111: 1 | F111: Very fine sandy loam over silt loam | G111: 0.45 | H111: 0.25 | I111: 0.11 | J111: 0.1
A112: Soil moisture content at air dry | B112: SMDRY | C112: =VLOOKUP($B$28,$E$111:$J$119,6,FALSE) -> 0.1 | D112: mm3 mm-3 | E112: 2 | F112: Sandy loam | G112: 0.45 | H112: 0.19 | I112: 0.09 | J112: 0.03
A113: Minimum water content at water logging (fraction) (currently not used) | B113: WCWET | C113: 0.37 | D113: mm3 mm-3 | E113: 3 | F113: Sandy loam over gravelly sandy clay loam | G113: 0.45 | H113: 0.165 | I113: 0.125 | J113: 0.1
A114: Critical soil air content for aeration | B114: CRAIRC | C114: 0.07 | D114: mm3 mm-3 | E114: 4 | F114: Loam | G114: 0.45 | H114: 0.28 | I114: 0.1 | J114: 0.1
A115: Correction factor transpiration rate | B115: CFET | C115: 1 | E115: 5 | F115: Silt | G115: 0.45 | H115: 0.32 | I115: 0.192 | J115: 0.03
A116: Air ducts in roots present (=1) or not (=0) | B116: IAIRDU | C116: 0 | E116: 6 | F116: Silt to silty-clay | G116: 0.45 | H116: 0.36 | I116: 0.18 | J116: 0.15
A117: Soil moisture content at saturation | B117: SM0 | C117: =VLOOKUP($B$28,$E$111:$J$119,3,FALSE) -> 0.45 | D117: (mm3/mm3) | E117: 7 | F117: Clay loam | G117: 0.45 | H117: 0.36 | I117: 0.2 | J117: 0.15
E118: 8 | F118: Clay loam over clay | G118: 0.45 | H118: 0.38 | I118: 0.192 | J118: 0.15
E119: 9 | F119: Medium-fine (default) | G119: 0.45 | H119: 0.35 | I119: 0.15 | J119: 0.1
A120: Physical constants
A121: PI | B121: PI | C121: 3.1416
A122: RAD | B122: RAD | C122: =$C$121/180 -> 0.01745333333
A123: Stefan-Boltzmann constant | B123: STBC | C123: =0.0049/1000000 -> 4.9e-09 | D123: MJ m-2 d-1 K-4
A124: Volumetric latent heat of vaporization | B124: LHVAP | C124: 2.45 | D124: MJ mm-1 m-2
A125: Reflection by water surface | B125: REFCFW | C125: 0.05
A126: Reflection by soil surface | B126: REFCFS | C126: 0.15
A127: Reflection by crop canopy | B127: REFCFC | C127: 0.25
A128: Psychrometric instrument constant | B128: PSYCON | C128: 0.000662 | D128: K-1
A130: Nitrogen use
A131: Max relative death rate of leaves due to N stress | B131: RDRNS | C131: 0.05
A132: BBCH development stage above which no crop N uptake does occur | B132: DVSNLT | C132: 100
A133: BBCH development stage above which N translocation to storage organs does occur | B133: DVSNT | C133: 100
A134: Nitrogen translocation from roots as a fraction of total N amount translocated from leaves and stems | B134: FNTRT | C134: 0.15
A135: Max N concentration in living leaves | C135: 0.035 | D135: kg N (kg dry biomass)-1
A136: Optimal N concentration as fraction of maximum N concentration | B136: FRNX | C136: 1
A137: Max N concentration in roots as a fraction of max N concentration in leaves | B137: LRNR | C137: 0.5
A138: Max N concentration in stems as a fraction of max N concentration in leaves | B138: LSNR | C138: 0.5
A139: Coefficient for the reduction of RUE due to N stress of the LAI increase (during juvenile phase; NOT USED] | B139: NLUE | C139: 1.1
A140: Max N concentration (=1.6*min N conc.) in storage organs | B140: NMAXSO | C140: 0 | D140: kg N (kg dry biomass)-1
A141: Coefficient for the effect of N stress on SLA reduction | B141: NSLA | C141: 0.5
A142: Residual N fraction in leaves | B142: RNFLV | C142: 0.01 | D142: kg N (kg dry biomass)-1
A143: Residual N fraction in stems | B143: RNFST | C143: 0.005 | D143: kg N (kg dry biomass)-1
A144: Residual N fraction in roots | B144: RNFRT | C144: 0.005 | D144: kg N (kg dry biomass)-1 | L144: Wye
A145: Time coefficient for N translocation to storage organs | B145: TCNT | C145: 10 | D145: d | L145: Winchester
A146: Fraction of crop N uptake by biological fixation (not used) | B146: NFIXF | C146: 0 | L146: Ashford
L147: Hurley
L148: Oxford | M148: Stratford | P148: Morley
L149: Aylesbury | M149: Cambridge | P149: Bangor
A150: Harvest routine (Altered by changing Cell E7) | B150: =E9 -> 1 | C150: Back to top | K150: Newton Abbot | L150: Rocester | M150: Rosemaund | N150: H. Mowthrope | O150: Morpeth | P150: Leeds
B151: =HLOOKUP($B$150,$C$151:$W$168,1) -> 1 | C151: 1 | D151: 2 | E151: 3 | F151: 4 | G151: 5 | H151: 6 | I151: 7 | J151: 8 | K151: =J151+1 -> 9 | L151: =K151+1 -> 10 | M151: 11 | N151: 12 | O151: 13 | P151: 14 | Q151: 15
A152: Number of harvests | B152: =HLOOKUP($B$150,$C$151:$W$168,2) -> Fixed interval | C152: Fixed interval | D152: =COUNT(D158:D168) -> 10 | E152: =COUNT(E158:E168) -> 8 | F152: =COUNT(F158:F168) -> 6 | G152: =COUNT(G158:G168) -> 5 | H152: =COUNT(H158:H168) -> 4 | I152: =COUNT(I158:I168) -> 3 | J152: =COUNT(J158:J168) -> 2 | K152: 6 | L152: 6 | M152: 6 | N152: 6 | O152: 6 | P152: =COUNT(P158:P168) -> 6 | Q152: 6
A153: Specified dates? | B153: =HLOOKUP($B$150,$C$151:$W$168,3) -> 0 | C153: 0 | D153: 1 | E153: 1 | F153: 1 | G153: 1 | H153: 1 | I153: 1 | J153: 1 | K153: 1 | L153: 1 | M153: 1 | N153: 1 | O153: 1 | P153: 1 | Q153: 1
A154: Specified interval | B154: =HLOOKUP($B$150,$C$151:$W$168,4) -> 1 | C154: 1 | D154: 0 | E154: 0 | F154: 0 | G154: 0 | H154: 0 | I154: 0 | J154: 0 | K154: 0 | L154: 0 | M154: 0 | N154: 0 | O154: 0 | P154: 0 | Q154: 0
A155: Start date | B155: =HLOOKUP($B$150,$C$151:$W$168,5) -> 1900-03-26 | C155: =E11 -> 1900-03-26
A156: End date | B156: =HLOOKUP($B$150,$C$151:$W$168,6) -> 1900-10-22 | C156: =E12 -> 1900-10-22
A157: Interval (d) | B157: =HLOOKUP($B$150,$C$151:$W$168,7) -> 21 | C157: =$E$13 -> 21
A158: Clearing cut | B158: =IF(HLOOKUP(Control!$B$150,$C$151:$W$168,8)>1,HLOOKUP(Control!$B$150,$C$151:$W$168,8)," ") ->  | K158: =DATE(2000,5,6)-DATE(2000,1,0) -> 1900-05-06 | L158: =DATE(2000,5,8)-DATE(2000,1,0) -> 1900-05-08 | M158: =DATE(2000,5,10)-DATE(2000,1,0) -> 1900-05-10 | N158: =DATE(2000,5,14)-DATE(2000,1,0) -> 1900-05-14 | O158: =DATE(2000,5,16)-DATE(2000,1,0) -> 1900-05-16 | P158: =DATE(2000,5,12)-DATE(2000,1,0) -> 1900-05-12 | Q158: =DATE(2000,5,12)-DATE(2000,1,0) -> 1900-05-12
A159: 1st Harvest | B159: =IF(HLOOKUP(Control!$B$150,$C$151:$W$168,9)>1,HLOOKUP(Control!$B$150,$C$151:$W$168,9)," ") ->  | D159: =DATE(2000,4,16)-DATE(2000,1,0) -> 1900-04-16 | E159: =DATE(2000,4,23)-DATE(2000,1,0) -> 1900-04-23 | F159: =DATE(2000,4,30)-DATE(2000,1,0) -> 1900-04-30 | G159: =DATE(2000,5,7)-DATE(2000,1,0) -> 1900-05-07 | H159: =DATE(2000,5,21)-DATE(2000,1,0) -> 1900-05-21 | I159: =DATE(2000,6,4)-DATE(2000,1,0) -> 1900-06-04 | J159: =DATE(2000,7,4)-DATE(2000,1,0) -> 1900-07-04 | K159: =DATE(2000,6,3)-DATE(2000,1,0) -> 1900-06-03 | L159: =DATE(2000,6,5)-DATE(2000,1,0) -> 1900-06-05 | M159: =DATE(2000,6,7)-DATE(2000,1,0) -> 1900-06-07 | N159: =DATE(2000,6,11)-DATE(2000,1,0) -> 1900-06-11 | O159: =DATE(2000,6,13)-DATE(2000,1,0) -> 1900-06-13 | P159: =DATE(2000,6,9)-DATE(2000,1,0) -> 1900-06-09 | Q159: =DATE(2000,6,9)-DATE(2000,1,0) -> 1900-06-09
A160: 2nd Harvest | B160: =IF(HLOOKUP(Control!$B$150,$C$151:$W$168,10)=0," ",HLOOKUP(Control!$B$150,$C$151:$W$168,10)) ->  | D160: =DATE(2000,5,7)-DATE(2000,1,0) -> 1900-05-07 | E160: =DATE(2000,5,21)-DATE(2000,1,0) -> 1900-05-21 | F160: =DATE(2000,6,4)-DATE(2000,1,0) -> 1900-06-04 | G160: =DATE(2000,6,18)-DATE(2000,1,0) -> 1900-06-18 | H160: =DATE(2000,7,16)-DATE(2000,1,0) -> 1900-07-16 | I160: =DATE(2000,8,13)-DATE(2000,1,0) -> 1900-08-13 | J160: =DATE(2000,10,22)-DATE(2000,1,0) -> 1900-10-22 | K160: =DATE(2000,7,1)-DATE(2000,1,0) -> 1900-07-01 | L160: =DATE(2000,7,3)-DATE(2000,1,0) -> 1900-07-03 | M160: =DATE(2000,7,5)-DATE(2000,1,0) -> 1900-07-05 | N160: =DATE(2000,7,9)-DATE(2000,1,0) -> 1900-07-09 | O160: =DATE(2000,7,11)-DATE(2000,1,0) -> 1900-07-11 | P160: =DATE(2000,7,7)-DATE(2000,1,0) -> 1900-07-07 | Q160: =DATE(2000,7,7)-DATE(2000,1,0) -> 1900-07-07
A161: 3rd Harvest | B161: =IF(HLOOKUP(Control!$B$150,$C$151:$W$168,11)=0," ",HLOOKUP(Control!$B$150,$C$151:$W$168,11)) ->  | D161: =DATE(2000,5,28)-DATE(2000,1,0) -> 1900-05-28 | E161: =DATE(2000,6,18)-DATE(2000,1,0) -> 1900-06-18 | F161: =DATE(2000,7,9)-DATE(2000,1,0) -> 1900-07-09 | G161: =DATE(2000,7,30)-DATE(2000,1,0) -> 1900-07-30 | H161: =DATE(2000,9,10)-DATE(2000,1,0) -> 1900-09-10 | I161: =DATE(2000,10,22)-DATE(2000,1,0) -> 1900-10-22 | K161: =DATE(2000,7,29)-DATE(2000,1,0) -> 1900-07-29 | L161: =DATE(2000,7,31)-DATE(2000,1,0) -> 1900-07-31 | M161: =DATE(2000,8,2)-DATE(2000,1,0) -> 1900-08-02 | N161: =DATE(2000,8,6)-DATE(2000,1,0) -> 1900-08-06 | O161: =DATE(2000,8,8)-DATE(2000,1,0) -> 1900-08-08 | P161: =DATE(2000,8,4)-DATE(2000,1,0) -> 1900-08-04 | Q161: =DATE(2000,8,4)-DATE(2000,1,0) -> 1900-08-04
A162: 4th Harvest | B162: =IF(HLOOKUP(Control!$B$150,$C$151:$W$168,12)=0," ",HLOOKUP(Control!$B$150,$C$151:$W$168,12)) ->  | D162: =DATE(2000,6,18)-DATE(2000,1,0) -> 1900-06-18 | E162: =DATE(2000,7,16)-DATE(2000,1,0) -> 1900-07-16 | F162: =DATE(2000,8,13)-DATE(2000,1,0) -> 1900-08-13 | G162: =DATE(2000,9,10)-DATE(2000,1,0) -> 1900-09-10 | H162: =DATE(2000,10,22)-DATE(2000,1,0) -> 1900-10-22 | K162: =DATE(2000,8,26)-DATE(2000,1,0) -> 1900-08-26 | L162: =DATE(2000,8,28)-DATE(2000,1,0) -> 1900-08-28 | M162: =DATE(2000,8,30)-DATE(2000,1,0) -> 1900-08-30 | N162: =DATE(2000,9,3)-DATE(2000,1,0) -> 1900-09-03 | O162: =DATE(2000,9,5)-DATE(2000,1,0) -> 1900-09-05 | P162: =DATE(2000,9,1)-DATE(2000,1,0) -> 1900-09-01 | Q162: =DATE(2000,9,1)-DATE(2000,1,0) -> 1900-09-01
A163: 5th Harvest | B163: =IF(HLOOKUP(Control!$B$150,$C$151:$W$168,13)=0," ",HLOOKUP(Control!$B$150,$C$151:$W$168,13)) ->  | D163: =DATE(2000,7,9)-DATE(2000,1,0) -> 1900-07-09 | E163: =DATE(2000,8,13)-DATE(2000,1,0) -> 1900-08-13 | F163: =DATE(2000,9,17)-DATE(2000,1,0) -> 1900-09-17 | G163: =DATE(2000,10,22)-DATE(2000,1,0) -> 1900-10-22 | K163: =DATE(2000,9,23)-DATE(2000,1,0) -> 1900-09-23 | L163: =DATE(2000,9,25)-DATE(2000,1,0) -> 1900-09-25 | M163: =DATE(2000,9,27)-DATE(2000,1,0) -> 1900-09-27 | N163: =DATE(2000,10,1)-DATE(2000,1,0) -> 1900-10-01 | O163: =DATE(2000,10,3)-DATE(2000,1,0) -> 1900-10-03 | P163: =DATE(2000,9,29)-DATE(2000,1,0) -> 1900-09-29 | Q163: =DATE(2000,9,29)-DATE(2000,1,0) -> 1900-09-29
A164: 6th Harvest | B164: =IF(HLOOKUP(Control!$B$150,$C$151:$W$168,14)=0," ",HLOOKUP(Control!$B$150,$C$151:$W$168,14)) ->  | D164: =DATE(2000,7,30)-DATE(2000,1,0) -> 1900-07-30 | E164: =DATE(2000,9,10)-DATE(2000,1,0) -> 1900-09-10 | F164: =DATE(2000,10,22)-DATE(2000,1,0) -> 1900-10-22
A165: 7th Harvest | B165: =IF(HLOOKUP(Control!$B$150,$C$151:$W$168,15)=0," ",HLOOKUP(Control!$B$150,$C$151:$W$168,15)) ->  | D165: =DATE(2000,8,20)-DATE(2000,1,0) -> 1900-08-20 | E165: =DATE(2000,10,8)-DATE(2000,1,0) -> 1900-10-08
A166: 8th Harvest | B166: =IF(HLOOKUP(Control!$B$150,$C$151:$W$168,16)=0," ",HLOOKUP(Control!$B$150,$C$151:$W$168,16)) ->  | D166: =DATE(2000,9,10)-DATE(2000,1,0) -> 1900-09-10 | E166: =DATE(2000,10,22)-DATE(2000,1,0) -> 1900-10-22
A167: 9th Harvest | B167: =IF(HLOOKUP(Control!$B$150,$C$151:$W$168,17)=0," ",HLOOKUP(Control!$B$150,$C$151:$W$168,17)) ->  | D167: =DATE(2000,10,1)-DATE(2000,1,0) -> 1900-10-01
A168: 10th Harvest | B168: =IF(HLOOKUP(Control!$B$150,$C$151:$W$168,18)=0," ",HLOOKUP(Control!$B$150,$C$151:$W$168,18)) ->  | D168: =DATE(2000,10,22)-DATE(2000,1,0) -> 1900-10-22
AH169: Morisson et al. 1980
A170: Nitrogen application (Altered by changing Cell E15) | B170: =$E$19 -> 1 | C170: Back to top | D170: 0 kg N/ha | F170: 0 kg N/ha | H170: 3 weeks (26.2) | J170: 4 weeks (32.8) | L170: 5 weeks (43.7) | N170: 6 weeks (105) | P170: 8 weeks (65.5) | R170: 10 weeks (87.5) | T170: 3 weeks (52.5) | V170: 4 weeks (65.6) | X170: 5 weeks (87.5) | Z170: 6 weeks (105) | AB170: 8 weeks (131.2) | AD170: 10 weeks (175) | AH170: 0 kg N/ha | AJ170: Pt1: 150 kg N/ha | AL170: Pt2: 150 kg N/ha | AN170: Pt1: 300 kg N/ha | AP170: Pt2: 300 kg N/ha | AR170: Pt3: 300 kg N/ha | AT170: Pt1: 450 kg N/ha | AV170: Pt2: 450 kg N/ha | AX170: Pt1: 600 kg N/ha | AZ170: Pt2: 600 kg N/ha | BB170: Pt3: 600 kg N/ha | BD170: Pt1: 750 kg N/ha | BF170: Pt2:750 kg N/ha
B171: =B170 -> 1 | D171: 1 | F171: =D171+1 -> 2 | H171: =F171+1 -> 3 | J171: =H171+1 -> 4 | L171: =J171+1 -> 5 | N171: =L171+1 -> 6 | P171: =N171+1 -> 7 | R171: =P171+1 -> 8 | T171: =R171+1 -> 9 | V171: =T171+1 -> 10 | X171: =V171+1 -> 11 | Z171: =X171+1 -> 12 | AB171: =Z171+1 -> 13 | AD171: =AB171+1 -> 14 | AF171: =AD171+1 -> 15 | AH171: =AF171+1 -> 16 | AJ171: =AH171+1 -> 17 | AL171: =AJ171+1 -> 18 | AN171: =AL171+1 -> 19 | AP171: =AN171+1 -> 20 | AR171: =AP171+1 -> 21 | AT171: =AR171+1 -> 22 | AV171: =AT171+1 -> 23 | AX171: =AV171+1 -> 24 | AZ171: =AX171+1 -> 25 | BB171: =AZ171+1 -> 26 | BD171: =BB171+1 -> 27 | BF171: =BD171+1 -> 28
B172: =(B170*2)-1 -> 1 | C172: =B172+1 -> 2 | D172: 1 | E172: =D172+1 -> 2 | F172: =E172+1 -> 3 | G172: 4 | H172: 5 | I172: 6 | J172: 7 | K172: 8 | L172: 9 | M172: 10 | N172: 11 | O172: 12 | P172: 13 | Q172: 14 | R172: 15 | S172: 16 | T172: 17 | U172: 18 | V172: 19 | W172: 20 | X172: 21 | Y172: 22 | Z172: 23 | AA172: 24 | AB172: 25 | AC172: 26 | AD172: 27 | AE172: 28 | AF172: 29 | AG172: 30 | AH172: 31 | AI172: 32 | AJ172: 33 | AK172: =AJ172+1 -> 34 | AL172: 35 | AM172: 36 | AN172: 37 | AO172: 38 | AP172: 39 | AQ172: 40 | AR172: 41 | AS172: 42 | AT172: 43 | AU172: 44 | AV172: 45 | AW172: 46 | AX172: 47 | AY172: 48 | AZ172: 49 | BA172: 50 | BB172: 51 | BC172: 52 | BD172: 53 | BE172: 54 | BF172: 55 | BG172: 56
A173: Number of applications | C173: =COUNTIF($C$180:$C$189, "<>0") -> 10 | E173: =COUNT(E180:E189) -> 10 | F173: 2 | G173: =COUNT(G180:G189) -> 1 | H173: 2 | I173: =COUNT(I180:I189) -> 10 | T173: 2 | U173: =COUNT(U180:U189) -> 10 | V173: 2 | W173: =COUNT(W180:W189) -> 8 | X173: 2 | Y173: =COUNT(Y180:Y189) -> 6 | Z173: 2 | AA173: =COUNT(AA180:AA189) -> 5 | AB173: 2 | AC173: =COUNT(AC180:AC189) -> 4 | AD173: 2 | AE173: =COUNT(AE180:AE189) -> 3 | AG173: =COUNT(AG180:AG189) -> 1 | AH173: 2 | AI173: =COUNT(AI180:AI189) -> 1 | AJ173: 2 | AK173: =COUNT(AK180:AK189) -> 6 | AV173: 2 | AW173: =COUNT(AW180:AW189) -> 6 | AX173: 2 | AY173: =COUNT(AY180:AY189) -> 6 | AZ173: 2 | BA173: =COUNT(BA180:BA189) -> 6 | BB173: 2 | BC173: =COUNT(BC180:BC189) -> 6 | BD173: 2 | BE173: =COUNT(BE180:BE189) -> 6 | BF173: 2 | BG173: =COUNT(BG180:BG189) -> 6
A174: Specified dates? | D174: 0 | E174: 1 | F174: 0 | G174: 1 | H174: 0 | I174: 1 | T174: 0 | U174: 1 | V174: 0 | W174: 1 | X174: 0 | Y174: 1 | Z174: 0 | AA174: 1 | AB174: 0 | AC174: 1 | AD174: 0 | AE174: 1 | AF174: 0 | AG174: 1 | AH174: 0 | AI174: 1 | AJ174: 0 | AK174: 1 | AV174: 0 | AW174: 1 | AX174: 0 | AY174: 1 | AZ174: 0 | BA174: 1 | BB174: 0 | BC174: 1 | BD174: 0 | BE174: 1 | BF174: 0 | BG174: 1
A175: Specified interval
A176: Start date
A177: End date
A178: Interval (d)
B179: Dates | C179: kg N ha-1 | D179: Dates | E179: kg N ha-1 | F179: Dates | G179: kg N ha-1 | H179: Dates | I179: kg N ha-1 | J179: Dates | K179: kg N ha-1 | L179: Dates | M179: kg N ha-1 | N179: Dates | O179: kg N ha-1 | P179: Dates | Q179: kg N ha-1 | R179: Dates | S179: kg N ha-1 | T179: Dates | U179: kg N ha-1 | V179: Dates | W179: kg N ha-1 | X179: Dates | Y179: kg N ha-1 | Z179: Dates | AA179: kg N ha-1 | AB179: Dates | AC179: kg N ha-1 | AD179: Dates | AE179: kg N ha-1 | AF179: Dates | AG179: kg N ha-1 | AH179: Dates | AI179: kg N ha-1 | AJ179: Dates | AK179: kg N ha-1 | AL179: Dates | AM179: kg N ha-1 | AN179: Dates | AO179: kg N ha-1 | AP179: Dates | AQ179: kg N ha-1 | AR179: Dates | AS179: kg N ha-1 | AT179: Dates | AU179: kg N ha-1 | AV179: Dates | AW179: kg N ha-1 | AX179: Dates | AY179: kg N ha-1 | AZ179: Dates | BA179: kg N ha-1 | BB179: Dates | BC179: kg N ha-1 | BD179: Dates | BE179: kg N ha-1 | BF179: Dates | BG179: kg N ha-1
A180: First application | B180: =HLOOKUP(Control!$B$172,$D$172:$CQ$189,9) -> 1900-03-26 | C180: =IF(HLOOKUP($C$172,$D$172:$CQ$189,9)>0,HLOOKUP($C$172,$D$172:$CQ$189,9),0) -> 30 | D180: 1900-03-26 | E180: =$E$20/10 -> 30 | F180: =DATE(2000,3,20)-DATE(2000,1,0) -> 1900-03-20 | G180: 0 | H180: 1900-03-26 | I180: 26.2 | J180: 1900-03-26 | K180: 32.8 | L180: 1900-03-26 | M180: 43.7 | N180: 1900-03-26 | O180: 52.4 | P180: 1900-03-26 | Q180: 65.5 | R180: 1900-03-26 | S180: 87.5 | T180: 1900-03-26 | U180: 52.5 | V180: 1900-03-26 | W180: 65.6 | X180: 1900-03-26 | Y180: 87.5 | Z180: 1900-03-26 | AA180: 105 | AB180: 1900-03-26 | AC180: 131.2 | AD180: 1900-03-26 | AE180: 175 | AF180: 1900-03-22 | AG180: 0 | AH180: =DATE(2000,3,19)-DATE(2000,1,0) -> 1900-03-19 | AI180: 0 | AJ180: =DATE(2000,3,19)-DATE(2000,1,0) -> 1900-03-19 | AK180: 25 | AL180: =DATE(2000,3,19)-DATE(2000,1,0) -> 1900-03-19 | AM180: 37.5 | AN180: =DATE(2000,3,19)-DATE(2000,1,0) -> 1900-03-19 | AO180: 50 | AP180: =DATE(2000,3,19)-DATE(2000,1,0) -> 1900-03-19 | AQ180: 75 | AR180: =DATE(2000,3,19)-DATE(2000,1,0) -> 1900-03-19 | AS180: 37.5 | AT180: =DATE(2000,3,19)-DATE(2000,1,0) -> 1900-03-19 | AU180: 75 | AV180: =DATE(2000,3,19)-DATE(2000,1,0) -> 1900-03-19 | AW180: 112.5 | AX180: =DATE(2000,3,1)-DATE(2000,1,0) -> 1900-03-01 | AY180: 100 | AZ180: =DATE(2000,3,13)-DATE(2000,1,0) -> 1900-03-13 | BA180: 150 | BB180: =DATE(2000,3,1)-DATE(2000,1,0) -> 1900-03-01 | BC180: 75 | BD180: =DATE(2000,3,1)-DATE(2000,1,0) -> 1900-03-01 | BE180: 125 | BF180: =DATE(2000,3,1)-DATE(2000,1,0) -> 1900-03-01 | BG180: 187.5
A181: Second application | B181: =IF(HLOOKUP(Control!$B$172,$D$172:$CQ$189,10)>1,HLOOKUP(Control!$B$172,$D$172:$CQ$189,10),"") -> 1900-04-17 | C181: =IF(HLOOKUP(Control!$C$172,$D$172:$CQ$189,10)>0,HLOOKUP(Control!$C$172,$D$172:$CQ$189,10),0) -> 30 | D181: 1900-04-17 | E181: =$E$20/10 -> 30 | F181: =DATE(2000,5,11)-DATE(2000,1,0) -> 1900-05-11 | H181: 1900-04-17 | I181: 26.2 | J181: 1900-04-24 | K181: 32.8 | L181: 1900-05-01 | M181: 43.7 | N181: 1900-05-08 | O181: 52.4 | P181: 1900-05-22 | Q181: 65.5 | R181: 1900-06-05 | S181: 87.5 | T181: 1900-04-17 | U181: 52.5 | V181: 1900-04-24 | W181: 65.6 | X181: 1900-05-01 | Y181: 87.5 | Z181: 1900-05-08 | AA181: 105 | AB181: 1900-05-22 | AC181: 131.2 | AD181: 1900-06-05 | AE181: 175 | AF181: =DATE(2000,3,20)-DATE(2000,1,0) -> 1900-03-20 | AH181: =DATE(2000,5,9)-DATE(2000,1,0) -> 1900-05-09 | AJ181: =DATE(2000,5,9)-DATE(2000,1,0) -> 1900-05-09 | AK181: 25 | AL181: =DATE(2000,5,9)-DATE(2000,1,0) -> 1900-05-09 | AM181: 37.5 | AN181: =DATE(2000,5,9)-DATE(2000,1,0) -> 1900-05-09 | AO181: 50 | AP181: =DATE(2000,5,9)-DATE(2000,1,0) -> 1900-05-09 | AQ181: 75 | AR181: =DATE(2000,5,9)-DATE(2000,1,0) -> 1900-05-09 | AS181: 37.5 | AT181: =DATE(2000,5,9)-DATE(2000,1,0) -> 1900-05-09 | AU181: 75 | AV181: =DATE(2000,5,9)-DATE(2000,1,0) -> 1900-05-09 | AW181: 112.5 | AX181: =DATE(2000,5,7)-DATE(2000,1,0) -> 1900-05-07 | AY181: 100 | AZ181: =DATE(2000,5,11)-DATE(2000,1,0) -> 1900-05-11 | BA181: 150 | BB181: =DATE(2000,5,7)-DATE(2000,1,0) -> 1900-05-07 | BC181: 75 | BD181: =DATE(2000,5,7)-DATE(2000,1,0) -> 1900-05-07 | BE181: 125 | BF181: =DATE(2000,5,7)-DATE(2000,1,0) -> 1900-05-07 | BG181: 187.5
A182: Third application | B182: =IF(HLOOKUP(Control!$B$172,$D$172:$CQ$189,11)>1,HLOOKUP(Control!$B$172,$D$172:$CQ$189,11),"") -> 1900-05-08 | C182: =IF(HLOOKUP(Control!$C$172,$D$172:$CQ$189,11)>0,HLOOKUP(Control!$C$172,$D$172:$CQ$189,11),0) -> 30 | D182: 1900-05-08 | E182: 30 | F182: =DATE(2000,6,8)-DATE(2000,1,0) -> 1900-06-08 | H182: 1900-05-08 | I182: 26.2 | T182: 1900-05-08 | U182: 52.5 | AF182: =DATE(2000,5,11)-DATE(2000,1,0) -> 1900-05-11 | AH182: =DATE(2000,6,6)-DATE(2000,1,0) -> 1900-06-06 | AJ182: =DATE(2000,6,6)-DATE(2000,1,0) -> 1900-06-06 | AK182: 25 | AL182: =DATE(2000,6,6)-DATE(2000,1,0) -> 1900-06-06 | AM182: 18.8 | AN182: =DATE(2000,6,6)-DATE(2000,1,0) -> 1900-06-06 | AO182: 50 | AP182: =DATE(2000,6,6)-DATE(2000,1,0) -> 1900-06-06 | AQ182: 37.5 | AR182: =DATE(2000,6,6)-DATE(2000,1,0) -> 1900-06-06 | AS182: 75 | AT182: =DATE(2000,6,6)-DATE(2000,1,0) -> 1900-06-06 | AU182: 75 | AV182: =DATE(2000,6,6)-DATE(2000,1,0) -> 1900-06-06 | AW182: 56.3 | AX182: =DATE(2000,6,4)-DATE(2000,1,0) -> 1900-06-04 | AY182: 100 | AZ182: =DATE(2000,6,8)-DATE(2000,1,0) -> 1900-06-08 | BA182: 75 | BB182: =DATE(2000,6,4)-DATE(2000,1,0) -> 1900-06-04 | BC182: 150 | BD182: =DATE(2000,6,4)-DATE(2000,1,0) -> 1900-06-04 | BE182: 125 | BF182: =DATE(2000,6,4)-DATE(2000,1,0) -> 1900-06-04 | BG182: 93.8
A183: Fourth application | B183: =IF(HLOOKUP(Control!$B$172,$D$172:$CQ$189,12)>1,HLOOKUP(Control!$B$172,$D$172:$CQ$189,12),"") -> 1900-05-29 | C183: =IF(HLOOKUP(Control!$C$172,$D$172:$CQ$189,12)>0,HLOOKUP(Control!$C$172,$D$172:$CQ$189,12),0) -> 30 | D183: 1900-05-29 | E183: 30 | F183: =DATE(2000,7,6)-DATE(2000,1,0) -> 1900-07-06 | H183: 1900-05-29 | I183: 26.2 | J183: 1900-05-22 | K183: 32.8 | T183: 1900-05-29 | U183: 52.5 | V183: 1900-05-22 | W183: 65.6 | AF183: =DATE(2000,6,8)-DATE(2000,1,0) -> 1900-06-08 | AH183: =DATE(2000,7,4)-DATE(2000,1,0) -> 1900-07-04 | AJ183: =DATE(2000,7,4)-DATE(2000,1,0) -> 1900-07-04 | AK183: 25 | AL183: =DATE(2000,7,4)-DATE(2000,1,0) -> 1900-07-04 | AM183: 18.8 | AN183: =DATE(2000,7,4)-DATE(2000,1,0) -> 1900-07-04 | AO183: 50 | AP183: =DATE(2000,7,4)-DATE(2000,1,0) -> 1900-07-04 | AQ183: 37.5 | AR183: =DATE(2000,7,4)-DATE(2000,1,0) -> 1900-07-04 | AS183: 75 | AT183: =DATE(2000,7,4)-DATE(2000,1,0) -> 1900-07-04 | AU183: 75 | AV183: =DATE(2000,7,4)-DATE(2000,1,0) -> 1900-07-04 | AW183: 56.3 | AX183: =DATE(2000,7,2)-DATE(2000,1,0) -> 1900-07-02 | AY183: 100 | AZ183: =DATE(2000,7,6)-DATE(2000,1,0) -> 1900-07-06 | BA183: 75 | BB183: =DATE(2000,7,2)-DATE(2000,1,0) -> 1900-07-02 | BC183: 150 | BD183: =DATE(2000,7,2)-DATE(2000,1,0) -> 1900-07-02 | BE183: 125 | BF183: =DATE(2000,7,2)-DATE(2000,1,0) -> 1900-07-02 | BG183: 93.8
A184: Fifth application | B184: =IF(HLOOKUP(Control!$B$172,$D$172:$CQ$189,13)>1,HLOOKUP(Control!$B$172,$D$172:$CQ$189,13),"") -> 1900-06-19 | C184: =IF(HLOOKUP(Control!$C$172,$D$172:$CQ$189,13)>0,HLOOKUP(Control!$C$172,$D$172:$CQ$189,13),0) -> 30 | D184: 1900-06-19 | E184: 30 | F184: =DATE(2000,8,3)-DATE(2000,1,0) -> 1900-08-03 | H184: 1900-06-19 | I184: 26.2 | J184: 1900-06-19 | K184: 32.8 | L184: 1900-06-05 | M184: 43.7 | N184: 1900-06-19 | O184: 52.4 | T184: 1900-06-19 | U184: 52.5 | V184: 1900-06-19 | W184: 65.6 | X184: 1900-06-05 | Y184: 87.5 | Z184: 1900-06-19 | AA184: 105 | AF184: =DATE(2000,7,6)-DATE(2000,1,0) -> 1900-07-06 | AH184: =DATE(2000,8,1)-DATE(2000,1,0) -> 1900-08-01 | AJ184: =DATE(2000,8,1)-DATE(2000,1,0) -> 1900-08-01 | AK184: 25 | AL184: =DATE(2000,8,1)-DATE(2000,1,0) -> 1900-08-01 | AM184: 18.8 | AN184: =DATE(2000,8,1)-DATE(2000,1,0) -> 1900-08-01 | AO184: 50 | AP184: =DATE(2000,8,1)-DATE(2000,1,0) -> 1900-08-01 | AQ184: 37.5 | AR184: =DATE(2000,8,1)-DATE(2000,1,0) -> 1900-08-01 | AS184: 37.5 | AT184: =DATE(2000,8,1)-DATE(2000,1,0) -> 1900-08-01 | AU184: 75 | AV184: =DATE(2000,8,1)-DATE(2000,1,0) -> 1900-08-01 | AW184: 56.3 | AX184: =DATE(2000,7,30)-DATE(2000,1,0) -> 1900-07-30 | AY184: 100 | AZ184: =DATE(2000,8,3)-DATE(2000,1,0) -> 1900-08-03 | BA184: 75 | BB184: =DATE(2000,7,30)-DATE(2000,1,0) -> 1900-07-30 | BC184: 75 | BD184: =DATE(2000,7,30)-DATE(2000,1,0) -> 1900-07-30 | BE184: 125 | BF184: =DATE(2000,7,30)-DATE(2000,1,0) -> 1900-07-30 | BG184: 93.8
A185: Sixth application | B185: =IF(HLOOKUP(Control!$B$172,$D$172:$CQ$189,14)>1,HLOOKUP(Control!$B$172,$D$172:$CQ$189,14),"") -> 1900-07-10 | C185: =IF(HLOOKUP(Control!$C$172,$D$172:$CQ$189,14)>0,HLOOKUP(Control!$C$172,$D$172:$CQ$189,14),0) -> 30 | D185: 1900-07-10 | E185: 30 | F185: =DATE(2000,8,31)-DATE(2000,1,0) -> 1900-08-31 | H185: 1900-07-10 | I185: 26.2 | J185: 1900-07-17 | K185: 32.8 | L185: 1900-07-10 | M185: 43.7 | N185: 1900-07-31 | O185: 52.4 | P185: 1900-07-17 | Q185: 65.5 | T185: 1900-07-10 | U185: 52.5 | X185: 1900-07-10 | Y185: 87.5 | Z185: 1900-07-31 | AA185: 105 | AB185: 1900-07-17 | AC185: 131.2 | AF185: =DATE(2000,8,3)-DATE(2000,1,0) -> 1900-08-03 | AH185: =DATE(2000,8,29)-DATE(2000,1,0) -> 1900-08-29 | AJ185: =DATE(2000,8,29)-DATE(2000,1,0) -> 1900-08-29 | AK185: 25 | AL185: =DATE(2000,8,29)-DATE(2000,1,0) -> 1900-08-29 | AM185: 18.8 | AN185: =DATE(2000,8,29)-DATE(2000,1,0) -> 1900-08-29 | AO185: 50 | AP185: =DATE(2000,8,29)-DATE(2000,1,0) -> 1900-08-29 | AQ185: 37.5 | AR185: =DATE(2000,8,29)-DATE(2000,1,0) -> 1900-08-29 | AS185: 37.5 | AT185: =DATE(2000,8,29)-DATE(2000,1,0) -> 1900-08-29 | AU185: 75 | AV185: =DATE(2000,8,29)-DATE(2000,1,0) -> 1900-08-29 | AW185: 56.3 | AX185: =DATE(2000,8,27)-DATE(2000,1,0) -> 1900-08-27 | AY185: 100 | AZ185: =DATE(2000,8,31)-DATE(2000,1,0) -> 1900-08-31 | BA185: 75 | BB185: =DATE(2000,8,27)-DATE(2000,1,0) -> 1900-08-27 | BC185: 75 | BD185: =DATE(2000,8,27)-DATE(2000,1,0) -> 1900-08-27 | BE185: 125 | BF185: =DATE(2000,8,27)-DATE(2000,1,0) -> 1900-08-27 | BG185: 93.8
A186: Seveth application | B186: =IF(HLOOKUP(Control!$B$172,$D$172:$CQ$189,15)>1,HLOOKUP(Control!$B$172,$D$172:$CQ$189,15),"") -> 1900-07-31 | C186: =IF(HLOOKUP(Control!$C$172,$D$172:$CQ$189,15)>0,HLOOKUP(Control!$C$172,$D$172:$CQ$189,15),0) -> 30 | D186: 1900-07-31 | E186: 30 | F186: =DATE(2000,9,28)-DATE(2000,1,0) -> 1900-09-28 | H186: 1900-07-31 | I186: 26.2 | T186: 1900-07-31 | U186: 52.5 | V186: 1900-07-17 | W186: 65.6 | AF186: =DATE(2000,8,31)-DATE(2000,1,0) -> 1900-08-31 | AH186: =DATE(2000,9,25)-DATE(2000,1,0) -> 1900-09-25 | AJ186: =DATE(2000,9,25)-DATE(2000,1,0) -> 1900-09-25 | AL186: =DATE(2000,9,25)-DATE(2000,1,0) -> 1900-09-25 | AN186: =DATE(2000,9,25)-DATE(2000,1,0) -> 1900-09-25 | AP186: =DATE(2000,9,25)-DATE(2000,1,0) -> 1900-09-25 | AR186: =DATE(2000,9,25)-DATE(2000,1,0) -> 1900-09-25 | AT186: =DATE(2000,9,25)-DATE(2000,1,0) -> 1900-09-25 | AV186: =DATE(2000,9,25)-DATE(2000,1,0) -> 1900-09-25 | AX186: =DATE(2000,9,24)-DATE(2000,1,0) -> 1900-09-24 | AZ186: =DATE(2000,9,28)-DATE(2000,1,0) -> 1900-09-28 | BB186: =DATE(2000,9,24)-DATE(2000,1,0) -> 1900-09-24 | BD186: =DATE(2000,9,24)-DATE(2000,1,0) -> 1900-09-24 | BF186: =DATE(2000,9,24)-DATE(2000,1,0) -> 1900-09-24
A187: Eightth application | B187: =IF(HLOOKUP(Control!$B$172,$D$172:$CQ$189,16)>1,HLOOKUP(Control!$B$172,$D$172:$CQ$189,16),"") -> 1900-08-21 | C187: =IF(HLOOKUP(Control!$C$172,$D$172:$CQ$189,16)>0,HLOOKUP(Control!$C$172,$D$172:$CQ$189,16),0) -> 30 | D187: 1900-08-21 | E187: 30 | H187: 1900-08-21 | I187: 26.2 | J187: 1900-08-14 | K187: 32.8 | L187: 1900-08-14 | M187: 43.7 | R187: 1900-08-14 | S187: 87.5 | T187: 1900-08-21 | U187: 52.5 | V187: 1900-08-14 | W187: 65.6 | X187: 1900-08-14 | Y187: 87.5 | AD187: 1900-08-14 | AE187: 175 | AF187: =DATE(2000,9,28)-DATE(2000,1,0) -> 1900-09-28
A188: Nineth application | B188: =IF(HLOOKUP(Control!$B$172,$D$172:$CQ$189,17)>1,HLOOKUP(Control!$B$172,$D$172:$CQ$189,17),"") -> 1900-09-11 | C188: =IF(HLOOKUP(Control!$C$172,$D$172:$CQ$189,17)>0,HLOOKUP(Control!$C$172,$D$172:$CQ$189,17),0) -> 30 | D188: 1900-09-11 | E188: 30 | H188: 1900-09-11 | I188: 26.2 | J188: 1900-09-11 | K188: 32.8 | L188: 1900-09-18 | M188: 43.7 | N188: 1900-09-11 | O188: 52.4 | P188: 1900-09-11 | Q188: 65.5 | T188: 1900-09-11 | U188: 52.5 | V188: 1900-09-11 | W188: 65.6 | X188: 1900-09-18 | Y188: 87.5 | Z188: 1900-09-11 | AA188: 105 | AB188: 1900-09-11 | AC188: 131.2
A189: Tenth application | B189: =IF(HLOOKUP(Control!$B$172,$D$172:$CQ$189,18)>1,HLOOKUP(Control!$B$172,$D$172:$CQ$189,18),"") -> 1900-10-02 | C189: =IF(HLOOKUP(Control!$C$172,$D$172:$CQ$189,18)>0,HLOOKUP(Control!$C$172,$D$172:$CQ$189,18),0) -> 30 | D189: 1900-10-02 | E189: 30 | H189: 1900-10-02 | I189: 26.2 | J189: 1900-10-09 | K189: 32.8 | T189: 1900-10-02 | U189: 52.5 | V189: 1900-10-09 | W189: 65.6
G190: =SUM(G180:G189) -> 0 | I190: =SUM(I180:I189) -> 262 | K190: =SUM(K180:K189) -> 262.4 | M190: =SUM(M180:M189) -> 262.2 | O190: =SUM(O180:O189) -> 262 | Q190: =SUM(Q180:Q189) -> 262 | S190: =SUM(S180:S189) -> 262.5 | U190: =SUM(U180:U189) -> 525 | W190: =SUM(W180:W189) -> 524.8 | Y190: =SUM(Y180:Y189) -> 525 | AA190: =SUM(AA180:AA189) -> 525 | AC190: =SUM(AC180:AC189) -> 524.8
A191: Irrigation applied (Altered by changing Cell E24) | B191: =$E$27 -> 1 | D191: 1 | F191: 2 | H191: 3 | J191: 4
B192: =(B191*2)-1 -> 1 | C192: =B192+1 -> 2 | D192: 1 | E192: 2 | F192: 3 | G192: 4 | H192: 5 | I192: 6 | J192: 7 | K192: 8
A193: Number of applications | C193: =COUNTIF($C$200:$C$210,"<>0") -> 0 | D193: 5 | E193: 1 | AO193: Morley
A194: Specified dates? | D194: 0 | E194: 1 | AD194: Ashford | AE194: Hurley | AF194: Cambridge | AG194: Newton Abbot | AH194: Aylesbury | AI194: Oxford | AJ194: Winchester | AK194: Wye | AL194: Stratford | AM194: H. Mowthrope | AN194: Morpeth | AO194: Bangor | AP194: Rocester | AQ194: Rosemaund | AR194: Leeds
A195: Specified interval | D195: 0 | E195: 0 | AD195: =DATE(2000,3,21)-DATE(2000,1,0) -> 1900-03-21 | AE195: =DATE(2000,3,19)-DATE(2000,1,0) -> 1900-03-19 | AF195: =DATE(2000,3,13)-DATE(2000,1,0) -> 1900-03-13 | AG195: =DATE(2000,3,1)-DATE(2000,1,0) -> 1900-03-01 | AH195: =DATE(2000,3,9)-DATE(2000,1,0) -> 1900-03-09 | AI195: =DATE(2000,3,27)-DATE(2000,1,0) -> 1900-03-27 | AJ195: =DATE(2000,3,19)-DATE(2000,1,0) -> 1900-03-19 | AK195: =DATE(2000,3,21)-DATE(2000,1,0) -> 1900-03-21 | AL195: =DATE(2000,4,5)-DATE(2000,1,0) -> 1900-04-05 | AM195: =DATE(2000,3,26)-DATE(2000,1,0) -> 1900-03-26 | AN195: =DATE(2000,3,29)-DATE(2000,1,0) -> 1900-03-29 | AO195: =DATE(2000,3,9)-DATE(2000,1,0) -> 1900-03-09 | AP195: =DATE(2000,3,30)-DATE(2000,1,0) -> 1900-03-30 | AQ195: =DATE(2000,3,20)-DATE(2000,1,0) -> 1900-03-20 | AR195: =DATE(2000,3,23)-DATE(2000,1,0) -> 1900-03-23
A196: Start date | AD196: =DATE(2000,5,9)-DATE(2000,1,0) -> 1900-05-09 | AE196: =DATE(2000,5,9)-DATE(2000,1,0) -> 1900-05-09 | AF196: =DATE(2000,5,11)-DATE(2000,1,0) -> 1900-05-11 | AG196: =DATE(2000,5,7)-DATE(2000,1,0) -> 1900-05-07 | AH196: =DATE(2000,5,9)-DATE(2000,1,0) -> 1900-05-09 | AI196: =DATE(2000,5,9)-DATE(2000,1,0) -> 1900-05-09 | AJ196: =DATE(2000,5,9)-DATE(2000,1,0) -> 1900-05-09 | AK196: =DATE(2000,5,9)-DATE(2000,1,0) -> 1900-05-09 | AL196: =DATE(2000,5,11)-DATE(2000,1,0) -> 1900-05-11 | AM196: =DATE(2000,5,15)-DATE(2000,1,0) -> 1900-05-15 | AN196: =DATE(2000,5,17)-DATE(2000,1,0) -> 1900-05-17 | AO196: =DATE(2000,5,13)-DATE(2000,1,0) -> 1900-05-13 | AP196: =DATE(2000,5,9)-DATE(2000,1,0) -> 1900-05-09 | AQ196: =DATE(2000,5,11)-DATE(2000,1,0) -> 1900-05-11 | AR196: =DATE(2000,5,13)-DATE(2000,1,0) -> 1900-05-13
A197: End date | AD197: =DATE(2000,6,6)-DATE(2000,1,0) -> 1900-06-06 | AE197: =DATE(2000,6,6)-DATE(2000,1,0) -> 1900-06-06 | AF197: =DATE(2000,6,8)-DATE(2000,1,0) -> 1900-06-08 | AG197: =DATE(2000,6,4)-DATE(2000,1,0) -> 1900-06-04 | AH197: =DATE(2000,6,6)-DATE(2000,1,0) -> 1900-06-06 | AI197: =DATE(2000,6,6)-DATE(2000,1,0) -> 1900-06-06 | AJ197: =DATE(2000,6,6)-DATE(2000,1,0) -> 1900-06-06 | AK197: =DATE(2000,6,6)-DATE(2000,1,0) -> 1900-06-06 | AL197: =DATE(2000,6,8)-DATE(2000,1,0) -> 1900-06-08 | AM197: =DATE(2000,6,12)-DATE(2000,1,0) -> 1900-06-12 | AN197: =DATE(2000,6,14)-DATE(2000,1,0) -> 1900-06-14 | AO197: =DATE(2000,6,10)-DATE(2000,1,0) -> 1900-06-10 | AP197: =DATE(2000,6,6)-DATE(2000,1,0) -> 1900-06-06 | AQ197: =DATE(2000,6,8)-DATE(2000,1,0) -> 1900-06-08 | AR197: =DATE(2000,6,10)-DATE(2000,1,0) -> 1900-06-10
A198: Interval (d) | AD198: =DATE(2000,7,4)-DATE(2000,1,0) -> 1900-07-04 | AE198: =DATE(2000,7,4)-DATE(2000,1,0) -> 1900-07-04 | AF198: =DATE(2000,7,6)-DATE(2000,1,0) -> 1900-07-06 | AG198: =DATE(2000,7,2)-DATE(2000,1,0) -> 1900-07-02 | AH198: =DATE(2000,7,4)-DATE(2000,1,0) -> 1900-07-04 | AI198: =DATE(2000,7,4)-DATE(2000,1,0) -> 1900-07-04 | AJ198: =DATE(2000,7,4)-DATE(2000,1,0) -> 1900-07-04 | AK198: =DATE(2000,7,4)-DATE(2000,1,0) -> 1900-07-04 | AL198: =DATE(2000,7,6)-DATE(2000,1,0) -> 1900-07-06 | AM198: =DATE(2000,7,10)-DATE(2000,1,0) -> 1900-07-10 | AN198: =DATE(2000,7,12)-DATE(2000,1,0) -> 1900-07-12 | AO198: =DATE(2000,7,8)-DATE(2000,1,0) -> 1900-07-08 | AP198: =DATE(2000,7,4)-DATE(2000,1,0) -> 1900-07-04 | AQ198: =DATE(2000,7,6)-DATE(2000,1,0) -> 1900-07-06 | AR198: =DATE(2000,7,8)-DATE(2000,1,0) -> 1900-07-08
B199: Dates | C199: mm | D199: Dates | E199: mm | F199: Dates | G199: mm | H199: Dates | I199: mm | J199: Dates | K199: mm | AD199: =DATE(2000,8,1)-DATE(2000,1,0) -> 1900-08-01 | AE199: =DATE(2000,8,1)-DATE(2000,1,0) -> 1900-08-01 | AF199: =DATE(2000,8,3)-DATE(2000,1,0) -> 1900-08-03 | AG199: =DATE(2000,7,30)-DATE(2000,1,0) -> 1900-07-30 | AH199: =DATE(2000,8,1)-DATE(2000,1,0) -> 1900-08-01 | AI199: =DATE(2000,8,1)-DATE(2000,1,0) -> 1900-08-01 | AJ199: =DATE(2000,8,1)-DATE(2000,1,0) -> 1900-08-01 | AK199: =DATE(2000,8,1)-DATE(2000,1,0) -> 1900-08-01 | AL199: =DATE(2000,8,3)-DATE(2000,1,0) -> 1900-08-03 | AM199: =DATE(2000,8,7)-DATE(2000,1,0) -> 1900-08-07 | AN199: =DATE(2000,8,9)-DATE(2000,1,0) -> 1900-08-09 | AO199: =DATE(2000,8,5)-DATE(2000,1,0) -> 1900-08-05 | AP199: =DATE(2000,8,1)-DATE(2000,1,0) -> 1900-08-01 | AQ199: =DATE(2000,8,3)-DATE(2000,1,0) -> 1900-08-03 | AR199: =DATE(2000,8,5)-DATE(2000,1,0) -> 1900-08-05
A200: First application | B200: =IF(HLOOKUP(Control!$B$192,$D$192:$K$210,9)>1,HLOOKUP(Control!$B$192,$D$192:$K$210,9),"") -> 1900-01-15 | C200: =IF(HLOOKUP(Control!$C$192,$D$192:$K$210,9)>1,HLOOKUP(Control!$C$192,$D$192:$K$210,9),0) -> 0 | D200: =DATE(2000,1,15)-DATE(2000,1,0) -> 1900-01-15 | E200: 0 | F200: =DATE(2000,1,15)-DATE(2000,1,0) -> 1900-01-15 | G200: 0 | H200: 1900-01-15 | I200: 0 | J200: =DATE(2000,1,15)-DATE(2000,1,0) -> 1900-01-15 | K200: 0 | AD200: =DATE(2000,8,29)-DATE(2000,1,0) -> 1900-08-29 | AE200: =DATE(2000,8,29)-DATE(2000,1,0) -> 1900-08-29 | AF200: =DATE(2000,8,31)-DATE(2000,1,0) -> 1900-08-31 | AG200: =DATE(2000,8,27)-DATE(2000,1,0) -> 1900-08-27 | AH200: =DATE(2000,8,29)-DATE(2000,1,0) -> 1900-08-29 | AI200: =DATE(2000,8,29)-DATE(2000,1,0) -> 1900-08-29 | AJ200: =DATE(2000,8,29)-DATE(2000,1,0) -> 1900-08-29 | AK200: =DATE(2000,8,29)-DATE(2000,1,0) -> 1900-08-29 | AL200: =DATE(2000,8,31)-DATE(2000,1,0) -> 1900-08-31 | AM200: =DATE(2000,9,4)-DATE(2000,1,0) -> 1900-09-04 | AN200: =DATE(2000,9,6)-DATE(2000,1,0) -> 1900-09-06 | AO200: =DATE(2000,9,2)-DATE(2000,1,0) -> 1900-09-02 | AP200: =DATE(2000,8,29)-DATE(2000,1,0) -> 1900-08-29 | AQ200: =DATE(2000,8,31)-DATE(2000,1,0) -> 1900-08-31 | AR200: =DATE(2000,9,2)-DATE(2000,1,0) -> 1900-09-02
A201: Second application | B201: =IF(HLOOKUP(Control!$B$192,$D$192:$K$210,10)>1,HLOOKUP(Control!$B$192,$D$192:$K$210,10),"") -> 1900-03-13 | C201: =IF(HLOOKUP(Control!$C$192,$D$192:$K$210,10)>1,HLOOKUP(Control!$C$192,$D$192:$K$210,10),0) -> 0 | D201: =DATE(2000,3,13)-DATE(2000,1,0) -> 1900-03-13 | E201: 0 | F201: =DATE(2000,3,13)-DATE(2000,1,0) -> 1900-03-13 | G201: 10 | H201: 1900-03-13 | I201: 20 | J201: =DATE(2000,3,13)-DATE(2000,1,0) -> 1900-03-13 | K201: 40 | AD201: =DATE(2000,9,25)-DATE(2000,1,0) -> 1900-09-25 | AE201: =DATE(2000,9,25)-DATE(2000,1,0) -> 1900-09-25 | AF201: =DATE(2000,9,28)-DATE(2000,1,0) -> 1900-09-28 | AG201: =DATE(2000,9,24)-DATE(2000,1,0) -> 1900-09-24 | AH201: =DATE(2000,9,25)-DATE(2000,1,0) -> 1900-09-25 | AI201: =DATE(2000,9,25)-DATE(2000,1,0) -> 1900-09-25 | AJ201: =DATE(2000,9,25)-DATE(2000,1,0) -> 1900-09-25 | AK201: =DATE(2000,9,25)-DATE(2000,1,0) -> 1900-09-25 | AL201: =DATE(2000,9,28)-DATE(2000,1,0) -> 1900-09-28 | AM201: =DATE(2000,10,2)-DATE(2000,1,0) -> 1900-10-02 | AN201: =DATE(2000,10,4)-DATE(2000,1,0) -> 1900-10-04 | AO201: =DATE(2000,9,30)-DATE(2000,1,0) -> 1900-09-30 | AP201: =DATE(2000,9,25)-DATE(2000,1,0) -> 1900-09-25 | AQ201: =DATE(2000,9,28)-DATE(2000,1,0) -> 1900-09-28 | AR201: =DATE(2000,9,30)-DATE(2000,1,0) -> 1900-09-30
A202: Third application | B202: =IF(HLOOKUP(Control!$B$192,$D$192:$K$209,11)>1,HLOOKUP(Control!$B$192,$D$192:$K$210,11),"") -> 1900-04-13 | C202: =IF(HLOOKUP(Control!$C$192,$D$192:$K$210,11)>1,HLOOKUP(Control!$C$192,$D$192:$K$210,11),0) -> 0 | D202: =DATE(2000,4,13)-DATE(2000,1,0) -> 1900-04-13 | E202: 0 | F202: =DATE(2000,4,13)-DATE(2000,1,0) -> 1900-04-13 | G202: 10 | H202: 1900-04-13 | I202: 20 | J202: =DATE(2000,4,13)-DATE(2000,1,0) -> 1900-04-13 | K202: 40
A203: Fourth application | B203: =IF(HLOOKUP(Control!$B$192,$D$192:$K$209,12)>1,HLOOKUP(Control!$B$192,$D$192:$K$210,12),"") -> 1900-05-13 | C203: =IF(HLOOKUP(Control!$C$192,$D$192:$K$210,12)>1,HLOOKUP(Control!$C$192,$D$192:$K$210,12),0) -> 0 | D203: =DATE(2000,5,13)-DATE(2000,1,0) -> 1900-05-13 | E203: 0 | F203: =DATE(2000,5,13)-DATE(2000,1,0) -> 1900-05-13 | G203: 10 | H203: 1900-05-13 | I203: 20 | J203: =DATE(2000,5,13)-DATE(2000,1,0) -> 1900-05-13 | K203: 40
A204: Fifth application | B204: =IF(HLOOKUP(Control!$B$192,$D$192:$K$209,13)>1,HLOOKUP(Control!$B$192,$D$192:$K$210,13),"") -> 1900-05-30 | C204: =IF(HLOOKUP(Control!$C$192,$D$192:$K$210,13)>1,HLOOKUP(Control!$C$192,$D$192:$K$210,13),0) -> 0 | D204: =DATE(2000,5,30)-DATE(2000,1,0) -> 1900-05-30 | E204: 0 | F204: =DATE(2000,5,30)-DATE(2000,1,0) -> 1900-05-30 | G204: 10 | H204: 1900-05-30 | I204: 20 | J204: =DATE(2000,5,30)-DATE(2000,1,0) -> 1900-05-30 | K204: 40
A205: Sixth application | B205: =IF(HLOOKUP(Control!$B$192,$D$192:$K$209,14)>1,HLOOKUP(Control!$B$192,$D$192:$K$210,14),"") -> 1900-06-10 | C205: =IF(HLOOKUP(Control!$C$192,$D$192:$K$210,14)>1,HLOOKUP(Control!$C$192,$D$192:$K$210,14),0) -> 0 | D205: =DATE(2000,6,10)-DATE(2000,1,0) -> 1900-06-10 | E205: 0 | F205: =DATE(2000,6,10)-DATE(2000,1,0) -> 1900-06-10 | G205: 10 | H205: 1900-06-10 | I205: 20 | J205: =DATE(2000,6,10)-DATE(2000,1,0) -> 1900-06-10 | K205: 40
A206: Seveth application | B206: =IF(HLOOKUP(Control!$B$192,$D$192:$K$209,15)>1,HLOOKUP(Control!$B$192,$D$192:$K$210,15),"") -> 1900-06-25 | C206: =IF(HLOOKUP(Control!$C$192,$D$192:$K$210,15)>1,HLOOKUP(Control!$C$192,$D$192:$K$210,15),0) -> 0 | D206: =DATE(2000,6,25)-DATE(2000,1,0) -> 1900-06-25 | E206: 0 | F206: =DATE(2000,6,25)-DATE(2000,1,0) -> 1900-06-25 | G206: 10 | H206: 1900-06-25 | I206: 20 | J206: =DATE(2000,6,25)-DATE(2000,1,0) -> 1900-06-25 | K206: 40
... 4 more rows

Sheet Sheet18 (hidden)

Sheet Sheet17 (hidden)

Sheet Sheet16 (hidden)

Sheet Sheet15 (hidden)

Sheet Sheet14 (hidden)

Sheet Sheet9 (hidden)

Sheet Sheet7 (hidden)

Sheet Sheet6 (hidden)

Sheet Sheet5 (hidden)

Sheet Sheet4 (hidden)

Sheet Sheet3 (hidden)

Sheet Calculations
BC1: =IF($BB7>$BB6,Control!$C$66,IF($AX7>0,$AX7*Control!$C$67,IF($EP7<>0,Control!$C$67,0))) -> 0
A2: 1. Meteorological data | AS2: 2. Harvest dates | BB2: 3 Crop development | CX2: 4. Leaf area-elongation & tillers | DY2: Tiller death rate | EB2: 5. Biomass production | FG2: 6. Senescene | FW2: 7. Partitioning-growth rates | HQ2: 8. Nitrogen | KO2: Additional N mineralization parameters | LB2: 9. Evapotranspiration rates and soil water balance | PH2: Data for graphs
LC3: i) Radiation values | LY3: ii) Evaporation and transpiration rates | MU3: iii) Infiltration | NG3: iii) Irrigation | NQ3: iv) Actual evaporation and transpiration | OA3: v) Percolation and runoff | OP3: vi) Graphs for water balance
A4: Day | B4: Month | C4: Year | D4: Max air temp | E4: Min air temp | F4: Temperature difference; TDIF | G4: Mean air temp (TMPA) | H4: Vapour pressure (VP) | I4: Rainfall | J4: Wind | K4: Solar radiation (RDD) | L4: Total intercepted radiation; TPARINT | M4: Radiation use efficiency calculated at end of growth period; RUEC | N4: Soil temperature changes; RSOITM | O4: Soil temperature; SOITMP | P4: Critical soil temperature | Q4: Effective temperature (daily temperature above 0 degrees Celcius; TMEFF) | R4: Daily increase in temp. sum as a function of av. Temp; DTSMTB | S4: Increase in temp. sum from emergence; DTSU | T4: Actual increase in temperature sum from emergence without reduction °C; DTSUM | U4: Actual increase in temperature sum from emergence with reduction °C; DTSUML | V4: Increase of temperature sum from planting or sowing; DTSULP | W4: Reduction of radiation use efficiency for non-optimal day-time temperatures; DTEMP | X4: Saturated vapour pressure at Tmean; SVAP | Y4: Vapour pressure (VP) (cannot go above SVAP) | Z4: SVAP1 | AA4: Mean saturation vapour pressure for a day (FAO56) | AB4: Barometric pressure; PBAR | AC4: Derivative of SVAP with respect to temperature, i.e. slope of the SVAP-temperature curve; DELTA | AD4: Slope of saturation vapour pressure deficit ( D ) FAO56 | AE4: Relative humidity; RH | AF4: Effective temperature; DTEFF | AG4: Date | AH4: Julian day | AI4: Solar declination | AN4: equator | AQ4: Incoming radiation; AVRAD | AR4: Daily photosynthetically active radiation; (PAR) | AS4: Harvest date | AT4: Fixed interval: duration of possible cutting | AU4: Fixed interval: days (only when Control!B20=8) | AV4: Fixed interval harvest | AW4: Harvest date according to weight | AX4: Selected harvest date | AY4: Rate of days after harvest (RDAHA) | AZ4: Days after harvest (DAHA) | BA4: Cuttings (INCUT) | BB4: Crop sown | BC4: Initial growth stage (if used) | BD4: Sowing to emergence (0 to 9) started | BE4: ΔGDD; Sowing to emergence (0 to 9) | BF4: GDD; Sowing to emergence | BG4: GDDSum Sowing to emergence | BH4: Sowing to emergence-switch factor | BI4: BBCH (Sowing to emergence) | BJ4: Emergence to tillering on (1) or off (0) (9 to 21) | BK4: ΔGDD Emergence to tillering | BL4: GDD | BM4: GDDSum Emergence to Tillering | BN4: Emergence to tillering-switch factor | BO4: BBCH (Emergence to tillering) | BP4: Tillering to stem elongation (21 to 30) | BQ4: ΔGDD; Tillering to stem elongation | BR4: GDD; Tillering to stem elongation | BS4: GDDSum Tillering to stem elongation | BT4: Tillering to stem elongation-switch factor | BU4: BBCH (Tillering to stem elongation) | BV4: Stem elongation to flowering (30 to 60) | BW4: ΔGDD; Stem elongation to flowering | BX4: GDD; Stem elongation to flowering | BY4: GDDSum Stem elongation to flowering | BZ4: Stem elongation to flowering-switch factor | CA4: BBCH (Stem elongation to flowering) | CB4: Flower to begin grain filling (60 to 65) | CC4: ΔGDD; Flower to begin grain filling | CD4: GDD; Flower to begin grain filling | CE4: GDDSum Fowering to begin grain filling | CF4: Flowering to grain filling switch factor | CG4: BBCH (Flowering to start of grain filling) | CH4: Grain filling to maturity (65 to 90) | CI4: ΔGDD; Begin grain filling to maturity | CJ4: GDD; Begin grain filling to maturity | CK4: GDDSum Begin grain filling to maturity | CL4: Begin grain filling to maturity | CM4: BBCH (Start of grain filling to maturity) | CN4: Maturing switch factor | CO4: BBCH (Harvest) | CP4: GDDStage; GDDSum per development stage | CQ4: pStage; BBCH | CR4: Potential partitioning to roots | CS4: Potential partitioning to leaves | CT4: Potential partitioning to stem | CU4: Potential partitioning to seed | CV4: Sum of temperatures above base temperature, (TSUM) | CW4: Temperature sum form emergence incl. DAYL effect; TSUML | CX4: Date | CY4: Root growth rate; RR | CZ4: Rooting depth; RD | DA4: Reduction factor of RUE as a function of soil temp; TMPFTB=REDTMP | DB4: Temperature dependend leaf appearance; LEAFN | DC4: Maximum site filling new buds (FSMAX) | DD4: Relative rate of tiller formation; REFTIL | DE4: Rate of tiller formation; DTIL | DF4: Number of tillers (TILLER) | DG4: Specific LAI; SLA | DH4: Actual growth rate of leaf area; GLAI | DI4: Change in LAI; RLAI | DJ4: Leaf area index; LAI | DK4: Stem area index | DL4: Leaf and stem area index; LAI | DM4: Fraction light intercepted (FINT) | DN4: Total intercepted photosynthetically active radiation (PARINT) | DO4: Cumulative photosynthetically active radiation (TPAR) | DP4: Critical leaf area index; LAICR | DQ4: Running SLA in model; SLAINT | DR4: Specific leaf area as a function of BBCH; SLATB | DS4: Initial SLA; SLAI | DT4: Potential grass weight remaining after cutting (CWLVG) | DU4: LAI decrease due to N shortage; DLAINS | DV4: Length of leaves (LENGTH) | DW4: Leaf elongation rate affected by temperature; LERA | DX4: Leaf elongation rate affected by temperature; LERA2 | DY4: Relative death rate of tillers due to self shading (DTILD) | DZ4: LAI decrease due to senecence, shadowing and water stress; DLAIS | EA4: Decrease in LAI by senecence; DLAI | EB4: Date | EC4: Weight of living leaves; WLVG | ED4: Total above ground living and dead biomass; TAGB | EE4: Change in living leaf biomass; RWLVG | EF4: Change in living stem biomass; RWST | EG4: Weight of living stems; WST | EH4: Change in living root biomass; RWRT | EI4: Weight of living roots; WRT | EJ4: Weight of living roots for plotting | EK4: Change in storage organ biomass ; RWSO | EL4: Weight of storage organs; WSO | EM4: Total above ground living biomass; TAGBG | EN4: Harvestable leaf weight; HRVBL | EO4: Dry weight of harvested green leaves (HARV) | EP4: Dry weight of harvested stems (HARVST) | EQ4: Dry weight of harvested storage organs | ER4: Dry weight of harvestable "dead leaf" | ES4: Total harvested weight (THARV) | ET4: Total weight of cut green leaf mass (GRASS) | EU4: Total weight of cut stems (GRASS-ST) | EV4: Total weight of cut storage organs | EW4: Total weight of harvested dead leaf | EX4: Total harvested weight (CUMHARV) | EY4: Dry weight of harvested and unharvested leaves | EZ4: Harvestable leaf weight in the field plus cutted amounts of grass; (YIELD) | FA4: Total above ground living and dead dry weight plus harvests; TADRW | FB4: Rate of change of dry weight of green leaves due to growth and senescence of leaves or periodical harvest (GLV) | FC4: Change in green leaf weight (RLV) | FD4: Dry weight of storage carbonhydrates (WRE) | FE4: Total above ground living and dead dry weight plus harvest; TADRW | FF4: Total leaf weight of both green and dead leaves; WLV | FG4: Decrease in leaf mass by senecence; DLV | FH4: Relative death rate of stems as a function of BBCH; RDRSTB=RDRST | FI4: Senecence of stems; DRST | FJ4: Weight of dead stems; WSTD | FK4: Relative death rate of roots as a function of BBCH; RDRRTB=RDRRT | FL4: Senecence of roots; DRRT | FM4: Weight of dead roots; WRTD | FN4: Weight of dead roots for plotting | FO4: Dry weight of total above-ground biomass incl. dead crop organs and harvests; WLVD | FP4: Dry weight of dead leaves; WLVDD | FQ4: Relative death rate of leaves as a function of daily mean temperature; RDRLTB=RDRTMP | FR4: Development stage above which death of leaves starts in dependence of mean daily temperature (600 C.d per unit BBCH); BBCHDLT | FS4: Relative death rate of leaves due to TMPA; RDRDV | FT4: Relative death rate of leaf area due to shading (RDRSH) | FU4: Relative death rate due to water stress; RDRDRY | FV4: Actual relative death rate of leaves (RDR) | FW4: Date | FX4: Fraction of total dry matter to roots under non-stressed conditions; FRTWET | FY4: Correction factor of DM fraction to roots as a function of the transpiration coefficient (TRANRF); FRTRB | FZ4: Fraction of total biomass to roots under stressed conditions; FRT | GA4: Fraction of above gr. DM to leaves under non-stressed conditions; FLVT | GB4: Fraction of above gr. biomass to leaves under stressed conditions; FLV | GC4: Fraction of above gr. DM to stems as a function of BBCH; FST | GD4: Fraction of above gr. DM to stems as a function of BBCH; FSTT | GE4: Fraction of above gr. DM to stor. org. under non-stressed conditions; FSO | GF4: Fraction of above gr. DM to stor. org. under stressed conditions; FSOT | GG4: Correction factor of development rate in dependence of daylength; PHOTTB=DVRED | GH4: Reduction of development rate as based on day length; DVRED | GI4: Reduction of development rate as based on day length; RDAYL | GJ4: Correction of radiation use efficiency as a function of atmospheric CO2; COTB | GK4: Correction of radiation use efficiency for change in atmospheric CO2 concentration; RCO | GL4: Reduction factor of RUE as a function of min. temp.; TMNFTB | GM4: Reduction factor of RUE for sub-optimal soil temperatures and low minimal temperatures; RTMP | GN4: Reduction factor of RUE as a function of solar radiation per day; RDDTB | GO4: Reduction factor of RUE for high radiation levels; RRDD | GP4: Nitrogen reduction factor; NREF | GQ4: Factor that stops the N uptake when BBCH is higher than BBCHNLT or transpiration in nil; NLIMIT | GR4: Radiation use efficiency for biomass production as a function of BBCH; RUETB=RUE | GS4: Correction of RUE for both non-optimal temperatures, atmospheric CO2 and high radiation level; RTMCO | GT4: Corrected RUE | GU4: Growth rate calculated from PARINT and RUE (Source limited crop growth rate); GTWSO1 | GV4: Source limited crop growth rate plus available reserves (GTWSO2) | GW4: Rate of sink limited leaf growth; GLAISI | GX4: Conversion to green leaf sink limited carbon demand | GY4: Conversion to total sink limited carbon demand (GTWSI) | GZ4: Actual growth switches between sink- and source limitation; GRE (more or less dry matter formed than can be stored) | HA4: Total growth rate; GTW | HB4: Total growth rate of leaves; GTW | HC4: Total vegetative living above-ground biomass; TBGMR | HD4: Rate of sink limited leaf growth (DLAIS) | HE4: Decrease in reserves (DRE) | HF4: Change in reserves; RRE | HG4: DEC | HH4: Temperature sum from sowing/planting; TSULP | HI4: Date of emergence (1 for permanent grass) ;IDEMERG | HJ4: DAYEM | HK4: Day of emergence; IDEM1 | HL4: Day of planting; IDPL1 | HM4: Day number of flowering; IDFLOW | HN4: Total produced amount of biomass plus starting weight; GTSUM | HO4: Day of emergence; DAYEM | HP4: Total above-ground growth rate; AGTW | HQ4: Date | HR4: Max N conc in leaves as a function of BBCH; NMXLV=NMAXLV | HS4: Maximal N concemtration in leaves; NMAXLV | HT4: Mineralization of the available amount of soil organic N; RNMINS | HU4: Amount of organic N potentially available by mineralization from the soil; NMIN | HV4: Maximal N conc in roots; NMAXRT | HW4: Maximal N conc in stems; NMAXST | HX4: Change of N losses due to death of roots; RNLDRT | HY4: N loss via death of roots; NLOSSR | HZ4: Change of N losses due to death or harvest of stems; RNLDST | IA4: N loss via death or harvest of stems; NLOSSS | IB4: Leaf death rate due to ageing, shading and water stress; DLVS | IC4: Total N uptake by crop from soil at the end of growth period; NUPTT1 | ID4: Optimal N conc in leaves; NOPTLV | IE4: Optimal amount of N in leaves; NOPTL | IF4: Optimal N conc in stems; NOPTST | IG4: Optimal amount of N in stems; NOPTS | IH4: Residual N concentration in total living above-gr. Biomass; NRMR | II4: Optimal N concentration in total vegetative living above-ground biomass; NOPTMR | IJ4: Fertilizer N application; (0=NO, 1=YES) | IK4: Fertilizer N application; FERTN | IL4: Cumulative N application | IM4: Recovery fraction of applied fertilizer N; NRFTAB=NRF | IN4: Effective fertilizer N application; FERTNS | IO4: Amount of N in living stems; ANST | IP4: Leaf death rate due to N shortage; DLVNS | IQ4: Water-Nitrogen stress factor ;RNW | IR4: Amount of transloc. N from stems to storage organs; ATNST | IS4: N concentration in stems; NFST | IT4: Amount of N in living leaves; ANLV | IU4: Total N in vegetative living above-ground biomass; NUPGMR | IV4: Change of N losses due to death of leaves; RNLDLV | IW4: N loss via death of leaves; NLOSSL | IX4: N loss via cut grass; C_NLOSSL | IY4: Total N loss via cut grass; TNLOSSL | IZ4: Amount of N in living leaves after harvest; NLVAHR | JA4: Amount of N in dead crop organs incl. harvests; NLOSST | JB4: Amount of transloc. N from leaves to storage organs; ATNLV | JC4: N demand of leaves; NDEML | JD4: N concentration in the lving leaves; NFLV | JE4: N demand of stems; NDEMS | JF4: N demand of storage organs; NDEMSO | JG4: N concentration in storage organs; NFSO | JH4: Total N in living above-ground crop organs; NTAG | JI4: Amount of N in living roots; ANRT | JJ4: N demand of roots; NDEMR | JK4: N recirculation from dead leaves | JL4: Total N demand; NDEMTO | JM4: Total mineral N directly available from soil and fertiliser; NMINT | JN4: Daily N uptake rate by the crop; NUPTR | JO4: Change in total directly available mineral N in soil; RNMINT | JP4: N uptake partitioned to stems; RNUST | JQ4: N uptake partitioned to roots; RNURT | JR4: Amount of N in living crop organs; NLIVT | JS4: Amount of transloc. N from roots to storage organs; ATNRT | JT4: Total amount of transloc. N to storage organs; ATN | JU4: N supply to the storage organs; NSUPSO | JV4: Actual N transloc. to storage organs; RNSO | JW4: Amount of N in storage organs; ANSO | JX4: Rate of N transl. from roots to storage organs; RNTRT | JY4: Rate of change of N amount in the roots; RNRT | JZ4: N concetration in roots; NFRT | KA4: N conc in above-ground living biomass incl. possibly seeds; NTAC | KB4: Total N in living and dead roots; NROOT | KC4: N uptake partitioned to leaves; RNULV | KD4: Total N uptake by crop from soil; NUPTT | KE4: Cumulative N uptake, plus initial N content | KF4: Rate of N transl. from stems to storage organs; RNTST | KG4: Rate of change of N amount in the stems; RNST | KH4: Rate of N transl. from leaves to storage organs; RNTLV | KI4: Rate of change of N amount in the living leaves; RNLV | KJ4: N concentration in total vegetative living above ground biomass; NFGMR | KK4: Nitrogen Nutrition Index; NNI | KL4: Cumulative for NNI over growth period; CNNI | KM4: Mean N nutrition index for the whole growth period; NNI1 | KN4: Check on N balance; NBALAN | KO4: krpm | KP4: kdpm | KQ4: Nrpm | KR4: Ndpm | KS4: NPOT | KT4: ΔNrpm reduction | KU4: ΔNdpm reduction | KV4: Δnmin - sourced from NPOT | KW4: Moisture factor (from Addiscot et al.1987) | KX4: Default LINGRA-N; NLIMIT | KY4: Default LINGRA-N; RNMINS | KZ4: Default LINGRA-N; NMIN | LA4: WOFOST; NLIMIT | LB4: Date | LC4: Solar constant; SC | LD4: Inverse relative earth distance FAO56 | LE4: Solar delination FAO56 | LF4: Sunset hour angle | LG4: Daily extraterrestrial radiation FAO56 | LH4: Daily extraterrestial radiation; ANGOT | LI4: SINLD | LJ4: COSLD | LK4: DAYL | LL4: DAYLP | LM4: DSINB | LN4: AOB | LO4: Atmospheric transmission; ATMTR | LP4: Psychrometric constant; GAMMA | LQ4: Coefficient Bu in wind function, dependent on temperature difference; BU | LR4: Relative sunshine duration; RELSSD | LS4: Net longwave radiation according to FAO 56 | LT4: Net outgoing long-wave radiation according to Brunt (1932); RB | LU4: Net absorbed radiation by water surface; RNW | LV4: Net absorbed radiation by soil surface; RNS | LW4: Net absorbed radiation by canopy; RNC | LX4: (Net radiation of canopy FAO56) | LY4: Evaporative demand of atmosphere from water and soil surface; EA | LZ4: Evaporative demand of atmosphere from crop canopy; EAC | MA4: Potential evaporation from open water; E0 | MB4: Potential evaporation from soil surface; ES0 | MC4: Potential evaporation from open water; E0 | MD4: Potential evaporation from soil surface; ES0 | ME4: Maximal soil evaporation; EVMAX | MF4: Vapour pressure deficit FAO56 | MG4: Reference crop evapotranspiration (FAO56) | MH4: Potential soil water deficit; PSMD | MI4: Potential evaporation of a closed canopy; ET0 | MJ4: Correction factor for Penman evapo-transpiration rate as a function of atmospheric CO2 concetration for C3 crops; FPENMTB | MK4: Potential evaporation of a closed canopy; ET0 | ML4: Correction of potential evapo-transpiration for atmospheric CO2 concentration | MM4: Potential transpiration of crop (with CO2 correction for C3 crop); ETC | MN4: Maximal transpiration rate; TRMAX | MO4: Fraction of available water at which transpiration can occur at maximum rate; SWEAF | MP4: Correction for CGNR less than 3; SWEAF | MQ4: Corrected for CGNR less than 3; Easily available soil water fraction as calculated with SWEAF funct; SWDEP | MR4: Critical soil moisture content below which the transpiration is reduced by water stress; SMCR | MS4: Reduction factor of the transpiration rate due to drought; RDRY | MT4: Easily available soil water fraction as calculated with SWEAF funct; SWDEP | MU4: Cumulative infiltration | MV4: Amount of total water in rooted zone; WTOT | MW4: Actual soil moisture content in rooted zone; SMACT | MX4: Water capacity in rooted zone upto field capacity; CAP | MY4: Water capacity in rooted zone upto soil saturation; CAP0 | MZ4: Available water in rooted zone; WAVTI=WAVT | NA4: Amount of total water in lower zone (below rooted zone); WTOTL | NB4: Actual soil moisture content in lower zone; SMACTL | NC4: Change in total water in the rooted zone by root growth; WDR | ND4: Cumulative water added to the rooted zone by root growth; TWDR | NE4: Water capacity in lower zone upto field capacity; CAPL | NF4: Water capacity in lower zone upto soil saturation; CAPL0 | NG4: Counter of the days since last rain; DSLR | NH4: Irrigation (only used when reading from table in the Control sheet; (2= irrigation on the day defined in the Control sheet) | NI4: Irrigation read from table in Control Sheet | NJ4: Amount of available water in root zone at field capacity; WAVFC | NK4: DIRRN | NL4: Irrigation water available from previous day; DIRRO | NM4: Excess amount of irrigation; DIRR1 | NN4: Effective application of irrigation water; DIRR=RIRR | NO4: Irrigation water application on previous day; DIRROLD | NP4: Infiltration of water from rainfall and irrigation into the topsoil; PERC | NQ4: Maximal soil evaporation that decreases in dependence of the days since last rain; EVMAXT | NR4: Actual soil evaporation; EVA | NS4: Critical soil moisture content for aeration; SMAIR | NT4: Count days since start oxygen shortage (up to 4 days); DSOS | NU4: Maximum reduction reached after 4 days, RWETMX | NV4: Reduction factor of the transpiration rate due to oxygen shortage/wetness; RWET | NW4: Actual transpiration rate; TRA | NX4: Reduction factor for transpiration and crop growth due to drought/wetness (TRANRF) | NY4: Cumulative value for TRANRF over growth period; CTRAN | NZ4: Mean reduction factor for crop growth due to drought/wetness over the wholegrowth period; TRANRF1 | OA4: Effective percolation (= PERC – EVA – TRA); PERC1P | OB4: Actual percolation (lowest of PERC1P or KSUB + CAP0); PERC1 | OC4: Percolation from rooted zone to lower zone; PERC2 | OD4: Change in available water in the rooted zone by root growth; WDRA | OE4: Change in available water in rooted zone; DWAT | OF4: Percolation from lower zone to deeper soil layers; PERC3 | OG4: Change in available water in lower zone; DWATL | OH4: Total available water in lower zone (below rooted zone); WAVTL=WAVTLI | OI4: Runoff fraction times precipitation; RUNOFP | OJ4: Runoff (RUNOF) | OK4: Change in the amount of available water in the rooted zone between start and end of the growth period of grass; DWAVT | OL4: Change in the amount of available water in the lower zone between start and end of the growth period of grass; DWAVTL | OM4: Change in total water in rooted zone; DWOT | ON4: Change in total water in lower zone; DWOTL | OO4: Change in available water in both rooted and lower zone between start and end of the growth period of grass; DWAVT2 | OP4: Permanent wilting point | OQ4: Permanent wilting point | OR4: Field capacity | OS4: Field capacity | OT4: Cumulative rainfall; TRAIN | OU4: Cumulative irrigation; TIRR | OV4: Cumulative rainfall and irrigation (mm) | OW4: Cumulative surface runoff; TRUNOF | OX4: Cumulative drainage to the sub-soil; TDRAIN | OY4: Cumulative crop transpiration; TTRANS | OZ4: Cumulative soil evaporation; TESOIL | PA4: Cumulative change of soil water in rooting zone | PB4: New amount of total water in rooted zone; WTOTN | PC4: New amount of total water in lower zone (below rooted zone); WTOTLN | PD4: Checking soil water balance in rooted zone; WBAL | PE4: Checking soil water balance in lower zone; WBALL | PF4: PUSHPL | PG4: PUSHEM | PH4: Maximum soil depth | PI4: Soil water deficit in the rooting zone | PJ4: Cumulative canopy evaporation
D5: (°C) | E5: (°C) | F5: (°C) | G5: (°C) | H5: kPa | I5: (mm) | J5: (m s-1) | K5: kJ m-2 | L5: (MJ m-2) | M5: g DM MJ-1 PAR | N5: (°C) | O5: (°C) | P5: (°C) | Q5: (°C) | X5: kPa | Y5: kPa | Z5: kPa | AA5: kPa | AB5: kPa | AC5: kPa K-1 | AD5: kPa C-1 | AF5: °C | AN5: (radians) | AQ5: MJ m-2 d-1 | AR5: MJ m-2 | AZ5: d | BA5: 0:No, Number:Yes | BE5: °Cd | BF5: °Cd | BH5: 0 | BJ5: 0 | BK5: °Cd | BL5: °Cd | BQ5: °Cd | BS5: °Cd | BW5: °Cd | CC5: °Cd | CD5: °Cd | CI5: °Cd | CJ5: °Cd | CK5: °Cd | CW5: (C.d) | CY5: (mm d-1) | CZ5: mm | DC5: (%) | DF5: m-2 | DG5: (ha kg-1) | DN5: MJ m-2 | DO5: (MJ m-2) | DQ5: ha kg-1 | DS5: (ha kg-1) | DT5: kg ha-1 | DV5: (cm) | DW5: cm d-1 tiller-1 | EA5: ha ha-1 d-1 | ED5: (kg DM ha-1) | EG5: (kg DM ha-1) | EH5: (kg DM ha-1) | EI5: (kg DM ha-1) | EK5: (kg DM ha-1) | EL5: (kg DM ha-1) | EN5: kg ha-1 | EO5: (g m-2) | EP5: kg ha-1 | ER5: kg ha-1 | ES5: kg ha-1 | ET5: kg ha-1 | EU5: kg ha-1 | EV5: kg ha-1 | EW5: kg ha-1 | EX5: kg ha-1 | EY5: kg ha-1 | EZ5: kg DM ha-1 | FA5: kg ha-1 | FB5: kg ha-1 d-1 | FD5: kg ha-1 | FE5: kg DM ha-1 | FF5: (kg DM ha-1) | FG5: (kg DM ha-1 d-1) | FI5: kg DM ha-1 d-1 | FL5: kg DM ha-1 d-1 | FN5: kg ha-1 | FO5: kg ha-1 | FP5: kg ha-1 | FS5: (m2 d-1) | FT5: (m2 d-1) | FU5: (m2 d-1) | FV5: (m2 d-1) | GH5: - | GI5: - | GQ5: - | GR5: g /MJ PAR | GS5: - | GU5: (kg DM ha-1) | GV5: kg leaf ha-1 d-1 | GW5: ha leaf ha-1 ground | GX5: (kg ha ground-1 d-1) | GY5: (kg ha ground-1 d-1) | HC5: (kg DM ha-1) | HD5: ha leaf ha ground-1 | HH5: (C.d) | HN5: (kg DM ha-1) | HP5: (kg DM ha-1) | HR5: (kg N kg-1 DM) | HT5: (kg N ha-1) | HU5: (kg N ha-1) | HX5: kg N kg-1 DM | HZ5: kg N kg-1 DM | IB5: (kg DM ha-1) | IC5: (kg N ha-1) | IH5: kg N kg-1 DM | II5: kg N kg-1 DM | IK5: kg N ha-1 | IL5: kg N ha-1 | IO5: (kg N ha-1) | IR5: kg N ha-1 | IS5: kg N kg-1 DM | IT5: (kg N ha-1) | IU5: kg N ha-1 | IV5: kg N kg-1 DM | IW5: kg N kg-1 DM | IX5: kg N kg-1 DM | IY5: kg N kg-1 DM | IZ5: kg N kg-1 DM | JA5: (kg N ha-1) | JB5: kg N ha-1 | JC5: kg N ha-1 | JD5: kg N kg-1 DM | JE5: kg N ha-1 | JF5: kg N ha-1 | JG5: kg N kg-1 DM | JH5: (kg DM ha-1) | JI5: (kg N ha-1) | JJ5: kg N ha-1 | JL5: kg N ha-1 | JM5: (kg N ha-1) | JN5: (kg N ha-1) | JO5: (kg N ha-1 d-1) | JP5: kg N ha-1 d-1 | JQ5: kg N ha-1 d-1 | JR5: kg N ha-1 | JS5: kg N ha-1 | JT5: kg N ha-1 | JU5: kg N ha-1 | JV5: (kg N ha-1 d-1) | JW5: kg N ha-1 | JX5: kg N ha-1 d-1 | JY5: kg N ha-1 d-1 | JZ5: kg N kg-1 DM | KA5: kg N ha-1 | KC5: kg N ha-1 d-1 | KD5: (kg N ha-1) | KE5: kg N ha-1 | KF5: kg N ha-1 d-1 | KG5: (kg N ha-1) | KH5: kg N ha-1 d-1 | KI5: (kg N ha-1) | KJ5: kg N kg-1 DM | LC5: W m-2 | LH5: MJ m-2 d-1 | LP5: kPa K-1 | LS5: MJ m-2 d-1 | LT5: MJ m-2 d-1 | LU5: MJ m-2 d-1 | LV5: MJ m-2 d-1 | LW5: MJ m-2 d-1 | LY5: mm d-1 | LZ5: mm d-1 | MA5: mm d-1 | MB5: mm d-1 | MC5: mm d-1 | MD5: mm d-1 | ME5: mm d-1 | MF5: kPa | MG5: mm d-1 | MH5: mm | MI5: mm d-1 | MK5: mm d-1 | ML5: mm d-1 | MM5: mm d-1 | MN5: mm d-1 | MR5: mm3 mm-3 | MS5: - | MU5: mm d-1 | MV5: mm | MW5: mm mm-1 | MX5: mm | MY5: mm | MZ5: mm | NA5: mm | NB5: mm mm-1 | NC5: mm d-1 | NE5: mm | NF5: mm | NG5: - | NI5: mm d-1 | NJ5: mm | NK5: mm d-1 | NL5: mm d-1 | NM5: mm d-1 | NN5: mm d-1 | NP5: mm d-1 | NQ5: mm d-1 | NR5: mm d-1 | NS5: mm3 mm-3 | NV5: - | NW5: mm d-1 | OA5: mm d-1 | OB5: mm d-1 | OC5: mm d-1 | OD5: mm d-1 | OE5: mm d-1 | OF5: mm d-1 | OG5: mm d-1 | OH5: mm | OI5: mm d-1 | OK5: mm | OL5: mm | OM5: mm d-1 | ON5: mm d-1 | OO5: mm | OP5: mm mm-1 | OQ5: mm | OR5: mm mm-1 | OS5: mm | OT5: mm | OU5: mm | OV5: mm | OW5: mm | OX5: mm | OY5: mm | OZ5: mm | PA5: mm | PB5: mm | PC5: mm | PD5: mm | PE5: mm | PH5: mm | PI5: mm | PJ5: mm
A6: 1 | B6: 1 | C6: =Weather_data!$B5 -> 2011 | D6: =Weather_data!$F5 -> 5.703 | E6: =Weather_data!$E5 -> 3.919 | F6: =$D6-$E6 -> 1.784 | G6: =AVERAGE($D6:$E6)+Control!$B$9 -> 4.811 | H6: =Weather_data!$G5 -> 0.7717590525 | I6: =Weather_data!$I5+Control!$B$14 -> 0.8 | J6: =Weather_data!$H5 -> 1.71419 | K6: =Weather_data!$D5 -> 931 | L6: 0 | M6: =($FA6/10)/IF($L6<>0, $L6, 1) -> 25.5 | N6: =($G6-$O6)/10 -> -0.0189 | O6: =Control!$C$61 -> 5 | P6: 3 | Q6: =MAX($G6-Control!$C$90,0) -> 0.811 | R6: =IF($G6<=3,0,IF(33>=$G6>3,0+($G6-3)*((30-0)/(33-3)),IF($G6>33,30))) -> 1.811 | S6: =MAX(0, $R6) -> 1.811 | T6: =$S6*$PG6 -> 1.811 | U6: =$S6*$PG6*$GI6 -> 1.811 | V6: =MAX(0,MIN(Control!$C$83-Control!$C$82,$G6-Control!$C$82)*Control!$C$46) -> 0 | W6: =$D6-0.25*($D6-$E6) -> 5.257 | X6: =6.11*0.1*EXP(17.4*$G6/($G6+239)) -> 0.8612996069 | Y6: =MIN($H6,$X6) -> 0.7717590525 | Z6: =6.10588*0.1*EXP((17.32491*$G6)/($G6+238.102)) -> 0.8605312878 | AA6: =(0.6018*EXP((17.27*D6)/(D6+237.3))+0.6018*EXP((17.27*E6)/(E6+237.3)))/2 -> 0.8496392132 | AB6: =101.3*EXP(-0.034*Control!$C$49/($G6+273)) -> 99.72546742 | AC6: =(239*17*$X6/($G6+239)^2) -> 0.05887006019 | AD6: =4098*(0.6108*EXP((17.27*G6)/(G6+237.3)))/(G6+237.3)^2 -> 0.06018386863 | AE6: =$Y6/$Z6 -> 0.8968402002 | AF6: =MAX(0,$G6-Control!$C$75) -> 1.811 | AG6: =DATE($C6,$B6,$A6) -> 2011-01-01 | AH6: =$AG6+1-DATE($C6,1,1) -> 1 | AI6: =$HG6 -> -0.4015400607 | AJ6: =IF(Control!$C$43<=0,$HK6,$HL6) -> 1 | AK6: =(2*PI()*(AH6-80)/365) -> -1.359922299 | AL6: =0.03358*(SIN(2*PI()*AH6)-SIN(2*PI()*80))/365 -> 1.780875794e-18 | AM6: =AK6+AL6 -> -1.359922299 | AN6: =ASIN(0.3978*SIN(AM6)) -> -0.3995328978 | AO6: =-0.10453/COS(Control!$B$8*PI()/180)*COS(AN6) -> -0.1557820976 | AP6: =ACOS(AO6-TAN(Control!$B$8*PI()/180)*TAN(AN6)) -> 1.179757993 | AQ6: =$K6/1000 -> 0.931 | AR6: =$AQ6*0.5 -> 0.4655 | AS6: =IF(Control!$E$7=2,(IF(OR($AH6=Control!$B$158,$AH6=Control!$B$159,$AH6=Control!$B$160,$AH6=Control!$B$161,$AH6=Control!$B$162,$AH6=Control!$B$163,$AH6=Control!$B$164,$AH6=Control!$B$165,$AH6=Control!$B$166,$AH6=Control!$B$167,$AH6=Control!$B$168),1,0)),0) -> 0 | AT6: =IF(Control!$E$9=1,IF(AND($AH6>=Control!$B$155,$AH6<=Control!$B$156),1,0),0) -> 0 | AU6: =IF(Control!$E$9=1,IF($AV5=1,1*$AT6,IF($AT6=1,$AU5+1,$AU5)),0) -> 0 | AV6: =IF(Control!$E$9=1,IF($AU6>=Control!$B$157,1,0),0) -> 0 | AW6: =IF(Control!$E$7=1,IF($EM5>=Control!$E$8,1,0),0) -> 0 | AX6: =IF(Control!$E$7=1,AW6,IF(AND(Control!$E$7=2,Control!$B$154=1),$AV6,$AS6)) -> 0 | AY6: =IF(AND(Control!$E$7=1,$EX6>=Control!$E$8),-$AZ6,IF(AND(Control!$E$7=2,$AX6=1,$EX6>$DT6),-$AZ6, IF(Control!$C$91=0,0, IF(Control!$C$91<>0,1)))) -> 1 | AZ6: 0 | BA6: 0 | BB6: =IF(Control!$C$64=0,1,IF($AH6>=Control!$C$65,1,0)) -> 1 | BC6: =IF($BB6>$BB5,Control!$C$66,IF($AX6>0,$AX6*Control!$C$67,0)) -> 21 | BD6: =IF($BB6=0,0,IF(AND($BC6>=0,$BC6<9),1,$BH5)) -> 0 | BE6: =BD6*IF(OR($G6<Control!$C$75,$G6>Control!$C$78),0,IF(AND($G6>=Control!$C$75,$G6<=Control!$C$76),$G6-Control!$C$75,IF(AND($G6>Control!$C$76,$G6<=Control!$C$77),Control!$C$76-Control!$C$75,IF(AND($G6>Control!$C$77,$G6<=Control!$C$78),(Control!$C$76-Control!$C$75)*(Control!$C$77-$G6)/(Control!$C$78-Control!$C$77))))) -> 0 | BF6: =IF($BD6=0,0,$BG5+$BE6) -> 0 | BG6: =IF($BF6<=Control!$C$69,$BF6,Control!$C$69-$BF6) -> 0 | BH6: =IF(AND($AX6=1,Control!$C$67<9),1,IF($BF6>=Control!$C$69,0,$BD6)) -> 0 | BI6: =IF($BH6=0,0,IF($BF6<=Control!$C$69,$BD6*9*($BG6/Control!$C$69),0)) -> 0 | BJ6: =IF($BH6=1,0,IF($BF6>=Control!$C$69,1,IF(AND($BC6<21,$BC6>=9),1,$BN5))) -> 0 | BK6: =IF($BG6<0,-$BG6,$BJ6*IF(OR($G6<Control!$C$75,$G6>Control!$C$78),0,IF(AND($G6>=Control!$C$75,$G6<=Control!$C$76),$G6-Control!$C$75,IF(AND($G6>Control!$C$76,$G6<=Control!$C$77),Control!$C$76-Control!$C$75,IF(AND($G6>Control!$C$77,$G6<=Control!$C$78),(Control!$C$76-Control!$C$75)*(Control!$C$77-$G6)/(Control!$C$78-Control!$C$77)))))) -> 0 | BL6: =IF($BJ6=0,0,IF($BG6<0,$BM5+$BK6-$BG6,$BM5+$BK6)) -> 0 | BM6: =IF($BL6<=Control!$C$70,$BL6,Control!$C$70-$BL6) -> 0 | BN6: =IF(AND($BC6>=9,$BC6<21),1,IF($BL6>=Control!$C$70,0,$BJ6)) -> 0 | BO6: =IF($BN6=0,0,IF($BL6<=Control!$C$70,$BJ6*(9+(21-9)*($BM6/Control!$C$70)),0)) -> 0 | BP6: =IF($BN6=1,0,IF($BL6>=Control!$C$70,1,IF(AND($BC6<30,$BC6>=21),1,$BT5))) -> 1 | BQ6: =IF($BM6<0,-$BM6,$BP6*IF(OR($G6<Control!$C$75,$G6>Control!$C$78),0,IF(AND($G6>=Control!$C$75,$G6<=Control!$C$76),$G6-Control!$C$75,IF(AND($G6>Control!$C$76,$G6<=Control!$C$77),Control!$C$76-Control!$C$75,IF(AND($G6>Control!$C$77,$G6<=Control!$C$78),(Control!$C$76-Control!$C$75)*(Control!$C$77-$G6)/(Control!$C$78-Control!$C$77)))))) -> 1.811 | BR6: =IF(AND($BP6*$BC6>=21,$BP6*$BC6<30),$BQ6,IF($BP6=1,$BR5+$BQ6,0)) -> 1.811 | BS6: =IF($BR6<=Control!$C$71,$BR6,Control!$C$71-$BR6) -> 1.811 | BT6: =IF(AND($BC6>=21,$BC6<30),1,IF($BR6>=Control!$C$71,0,$BP6)) -> 1 | BU6: =IF($BT6=0,0,IF($BR6<=Control!$C$71,$BP6*(21+(30-21)*(BS6/Control!$C$71)),0)) -> 21.10866 | BV6: =IF(BH6+BN6+BT6=1,0,IF(OR(AND($BC6<60,$BC6>=30),$BR6>=Control!$C$71),1*$BB6,$BZ5)) -> 0 | BW6: =IF($BS6<0,-$BS6,$BV6*IF(OR($G6<Control!$C$75,$G6>Control!$C$78),0,IF(AND($G6>=Control!$C$75,$G6<=Control!$C$76),$G6-Control!$C$75,IF(AND($G6>Control!$C$76,$G6<=Control!$C$77),Control!$C$76-Control!$C$75,IF(AND($G6>Control!$C$77,$G6<=Control!$C$78),(Control!$C$76-Control!$C$75)*(Control!$C$77-$G6)/(Control!$C$78-Control!$C$77)))))) -> 0 | BX6: =IF(AND($BP6*$BC6>=30,$BP6*$BC6<60),$BW6,IF($BV6=1,$BX5+$BW6,0)) -> 0 | BY6: =IF($BX6<=Control!$C$72,$BX6,Control!$C$72-$BX6) -> 0 | BZ6: =IF(AND($AJ6>=30,$AJ6<60),1,IF($BX6>=Control!$C$72,0,$BV6)) -> 0 | CA6: =IF($BZ6=0,0,IF($BX6<=Control!$C$72,$BV6*(30+(60-30)*(BY6/Control!$C$72)),0)) -> 0 | CB6: =IF($BH6+$BN6+$BT6+$BZ6=1,0,IF(OR(AND($BC6<65,$BC6>=60),$BX6>=Control!$C$72),1*$BB6,$CF5)) -> 0 | CC6: =IF($BY6<0,-$BY6,$CB6*IF(OR($G6<Control!$C$75,$G6>Control!$C$78),0,IF(AND($G6>=Control!$C$75,$G6<=Control!$C$76),$G6-Control!$C$75,IF(AND($G6>Control!$C$76,$G6<=Control!$C$77),Control!$C$76-Control!$C$75,IF(AND($G6>Control!$C$77,$G6<=Control!$C$78),(Control!$C$76-Control!$C$75)*(Control!$C$77-$G6)/(Control!$C$78-Control!$C$77)))))) -> 0 | CD6: =IF($CB6=1,$CD5+$CC6,0) -> 0 | CE6: =IF($CD6<=Control!$C$73,$CD6,Control!$C$73-$CD6) -> 0 | CF6: =IF(AND($BC6>=60,$BC6<65),1,IF($CD6>=Control!$C$73,0,$CB6)) -> 0 | CG6: =IF($CF6=0,0,IF($CD6<=Control!$C$73,$CB6*(60+(65-60)*(CE6/Control!$C$73)),0)) -> 0 | CH6: =IF($BH6+$BN6+$BT6+$BZ6+$CF6=1,0,IF(OR(AND($BC6<90,$BC6>=65),$CD6>=Control!$C$73),$BB6,$CL5)) -> 0 | CI6: =IF($CE6<0,-$CE6,$CH6*IF(OR($G6<Control!$C$75,$G6>Control!$C$78),0,IF(AND($G6>=Control!$C$75,$G6<=Control!$C$76),$G6-Control!$C$75,IF(AND($G6>Control!$C$76,$G6<=Control!$C$77),Control!$C$76-Control!$C$75,IF(AND($G6>Control!$C$77,$G6<=Control!$C$78),(Control!$C$76-Control!$C$75)*(Control!$C$77-$G6)/(Control!$C$78-Control!$C$77)))))) -> 0 | CJ6: =IF($CH6=1,$CJ5+$CI6,0) -> 0 | CK6: =IF($CJ6<=Control!$C$74,$CJ6,Control!$C$74-$CJ6) -> 0 | CL6: =IF(AND($BC6>=65,$BC6<90),1,IF($CJ6>=Control!$C$74,0,$CH6)) -> 0 | CM6: =IF($CL6=0,0,IF($CJ6<=Control!$C$74,$CH6*(65+(90-65)*($CK6/Control!$C$74)),0)) -> 0 | CN6: =IF($BH6+$BN6+$BT6+$BZ6+$CF6+$CL6=1,0,IF(OR($BC6>=90,$CJ6>=Control!$C$74),$BB6,$CN5)) -> 0 | CO6: =CN6*90 -> 0 | CP6: =MAX(0.0001,$BG6+$BM6+$BS6+$BY6+$CE6+$CK6) -> 1.811 | CQ6: =BI6+BO6+BU6+CA6+CG6+CM6+CO6 -> 21.10866 | CR6: =VLOOKUP($CQ6,Control!$B$69:$G$74,6) -> 0.15 | CS6: =(1-$CR6)*VLOOKUP($CQ6,Control!$B$69:$D$74,3) -> 0.765 | CT6: =(1-$CR6)*VLOOKUP($CQ6,Control!$B$69:$E$74,4) -> 0.085 | CU6: =(1-$CR6)*VLOOKUP($CQ6,Control!$B$69:$F$74,5) -> 0 | CV6: 0 | CW6: 0 | CX6: =$AG6 -> 2011-01-01 | CY6: =IF(Control!$C$97=1,(MIN(Control!$C$103*(IF($NX6-0.01<0,0,1)),Control!$C$102-$CZ6))) -> 0 | CZ6: =Control!$C$57 -> 1000 | DA6: =IF($O6<=3,0,IF(AND($O6>3,$O6<=8),($O6-3)*((1-0)/(8-3)),IF(AND($O6>8,$O6<=30),1,IF(AND($O6>30,$O6<=35),(1+($O6-30)*((0-1)/(35-30))),IF(AND($O6>35,$O6<=40),0))))) -> 0.4 | DB6: =IF($DA6<=0, 0, $O6*0.01) -> 0.05 | DC6: =$KK6*0.693 -> 0.693 | DD6: =IF($AZ6<8,MAX(0,0.335-0.067*$DL6)*$DA6,MAX(0,MIN($DC6,0.867-0.183*$DL6))*$DA6) -> 0.13046575 | DE6: 0 | DF6: =Control!$C$59+$DE6 -> 7000 | DG6: =$DS6*EXP(-Control!$C$141*(1-$KK6)) -> 0.0025 | DH6: =IF(Control!$C$97=1, $DG6*$FB6, 0) -> 0.08928489284 | DI6: 0 | DJ6: =Control!$C$58 -> 0.1 | DK6: =$EG6*Control!$C$92 -> 0.031875 | DL6: =$DJ6+$DK6 -> 0.131875 | DM6: =$DN6/$AR6 -> 0.05823546642 | DN6: =IF(Control!$C$97=1, (1-EXP(-Control!$C$79*$DJ6))*$AR6, 0) -> 0.02710860962 | DO6: 0 | DP6: =Control!$C$80 -> 4 | DQ6: =$DJ6/MAX(0.1,$EC6) -> 0.0004357298475 | DR6: =IF(AND($CQ6>=0,$CQ6<=90),Control!$C$94,Control!$C$94) -> 0.0025 | DS6: =$DR6 -> 0.0025 | DT6: =Control!$E$15/DS6 -> 200 | DU6: =IF(AND(Control!$C$97=1,$KK6<1),$IP6*$DG6, 0) -> 0 | DV6: 0 | DW6: =IF($G6-Control!$C$90<=0, 0, 0.83*LN(MAX($G6, 3))-0.8924) -> 0.4114511191 | DX6: =IF(($EO6-0.1)<0,$DW6,(-$DV6)) -> 0.4114511191 | DY6: =MAX(0.01*(1+$CV6/Control!$C$85),0.05*($DL6-Control!$C$80)/Control!$C$80) -> 0.01 | DZ6: =IF(Control!$C$97=1, $DJ6*$FV6, 0) -> 0 | EA6: =IF($EO6<=0, MIN(($DJ6-0.08), $DZ6+$DU6), $EO6*$DQ6) -> 0 | EB6: =$AG6 -> 2011-01-01 | EC6: =$GA6*$ED6 -> 229.5 | ED6: =Control!$C$81-$EI6 -> 255 | EE6: =IF(Control!$C$97=1, $HP6*$GB6-$FG6, 0) -> 35.71395713 | EF6: =IF(Control!$C$97=1, $HP6*$GC6-$FI6, 0) -> 3.968217459 | EG6: =$GC6*$ED6 -> 25.5 | EH6: =IF(Control!$C$97=1, $HA6*$FZ6-$FL6, 0) -> 7.002736693 | EI6: =$FX6*Control!$C$81 -> 45 | EJ6: =-$EI6 -> -45 | EK6: =IF(Control!$C$97=1, $HP6*$GE6, 0) -> 0 | EL6: =$GE6*$ED6 -> 0 | EM6: =$EC6+$EG6+$EL6 -> 255 | EN6: =MAX(0,$EC6-$DT6) -> 29.5 | EO6: =IF(Control!$C$91=0,0,IF(AND($AX6=1,$EC6>$DT6),$EC6-$DT6,0)) -> 0 | EP6: =IF(Control!$C$91=0,0,IF($AX6=1,$EG6*EO6/EC6,0)) -> 0 | EQ6: =IF(Control!$C$91=0,0,IF($AX6=1,$EL6,0)) -> 0 | ER6: =IF(AZ6<21,0,IF(AZ6>70,0.1715*(EO6+EP6),0.0035*(AZ6-21)*(EO6+EP6))) -> 0 | ES6: =$EO6+$EP6+$EQ6 -> 0 | ET6: 0 | EU6: 0 | EV6: 0 | EW6: 0 | EX6: =ET6+EU6+EV6 -> 0 | EY6: =ET6+EC6 -> 229.5 | EZ6: =$ET6+MAX(0,$EN6) -> 29.5 | FA6: =$ET6+$ED6 -> 255 | FB6: =$HA6*$GB6*(1-$FZ6) -> 35.71395713 | FC6: =$FB6-$FG6 -> 35.71395713 | FD6: =Control!$C$60 -> 200 | FE6: =$ET6+$ED6 -> 255 | FF6: =$EC6+$FP6 -> 229.5 | FG6: =IF($EO6<=0, MIN(($DJ6-0.08)/$DG6, $IB6+$IP6), $EO6) -> 0 | FH6: =IF(AND($CQ6>=0, $CQ6<=90),0,0) -> 0 | FI6: =$EG6*$FH6 -> 0 | FJ6: 0 | FK6: =IF(AND($CQ6>=0, $CQ6<=90), 0,0) -> 0 | FL6: =$FK6*$EI6 -> 0 | FM6: 0 | FN6: =$EJ6-$FJ6 -> -45 | FO6: 0 | FP6: =$FO6-$ET6 -> 0 | FQ6: =IF(AND($G6<=50,$G6>=30),(0.05+($G6-30)*((0.09-0.05)/(50-30))),IF(AND($G6<30,$G6>=15),(0.02+($G6-15)*((0.05-0.02)/(30-15))),IF(AND($G6<15,$G6>=10),(0.01+($G6-10)*((0.02-0.01)/(15-10))),IF(AND($G6<10,$G6>=-10),($G6+10)*((0.02-0)/(10+10)),IF($G6=-10,0))))) -> 0.014811 | FR6: =Control!$C$84 -> 50 | FS6: =IF($CQ6<$FR6, 0, $FQ6) -> 0 | FT6: =MAX(0,(Control!$C$95*(($DL6-Control!$C$80)/Control!$C$80))) -> 0 | FU6: =(1-$NX6)*Control!$C$96 -> 0 | FV6: =MAX($FS6,$FT6,$FU6) -> 0 | FW6: =$AG6 -> 2011-01-01 | FX6: =IF(Control!$B$20=1,VLOOKUP($CQ6,Control!$B$69:$G$74,6),Control!$B$21) -> 0.15 | FY6: =IF(AND($NX6<=0,$NX6>=-1),1.6,IF(AND($NX6<1,$NX6>=1.2),1,(1.6+($NX6)*((1-1.6)/(1-0))))) -> 1 | FZ6: =IF(Control!$E$26=1,$FX6*$FY6, $FX6) -> 0.15 | GA6: =IF(Control!$B$20=1,VLOOKUP($CQ6,Control!$B$69:$G$74,3),Control!$B$22) -> 0.9 | GB6: =$GA6 -> 0.9 | GC6: =IF(Control!$B$20=1,VLOOKUP($CQ6,Control!$B$69:$G$74,4),Control!$B$23) -> 0.1 | GD6: =$GC6 -> 0.1 | GE6: =IF(Control!$B$20=1,VLOOKUP($CQ6,Control!$B$69:$G$74,5),Control!$B$24) -> 0 | GF6: =$GE6 -> 0 | GG6: =IF(AND(0<=$LL6, $LL6<=18), 1, 0.5) -> 1 | GH6: =$GG6 -> 1 | GI6: =IF(AND(Control!$C$87=1, Control!$C$45="F"),$GH6,1) -> 1 | GJ6: =IF(Control!$B$17=40,0,IF(AND(Control!$B$17>40,Control!$B$17<=360),(Control!$B$17-40)*((1-0)/(360-40)),IF(AND(Control!$B$17>360,Control!$B$17<=720),(1+(Control!$B$17-360)*((1.25-1)/(720-360))),IF(AND(Control!$B$17>720,Control!$B$17<=1000),(1.25+(Control!$B$17-720)*((1.35-1.25)/(1000-720))),IF(AND(Control!$B$17>1000,Control!$B$17<=2000),(1.35+(Control!$B$17-1000)*0)))))) -> 1.021978009 | GK6: =$GJ6 -> 1.021978009 | GL6: =IF($E6<=0,0,IF(AND($E6>=3,$E6<=30),1,(($E6-0)*((1-0)/(3-0))))) -> 1 | GM6: =$DA6*$GL6 -> 0.4 | GN6: =IF(AND($AR6>=0,$AR6<=10),1,IF(AND($AR6>=40,$AR6<=42),0.33,((1+($AR6-10)*((0.33-1)/(40-10)))))) -> 1 | GO6: =$GN6 -> 1 | GP6: =MAX(0,MIN(1,1-Control!$C$139*(1.0001-$KK6)^2)) -> 0.999999989 | GQ6: =IF(Control!$E$21=1,$KX6,$LA6) -> 1 | GR6: =IF($CQ6<=60,Control!$C$88,IF($CQ6>=90,Control!$C$89,Control!$C$88+($CQ6-60)*((Control!$C$89-Control!$C$88)/(90-60)))) -> 2.5 | GS6: =$GM6*$GK6*$GO6 -> 0.4087912037 | GT6: =GQ6*GR6*GS6 -> 1.021978009 | GU6: =IF(AND($NX6<=$GP6,$EO6=0),10*$GS6*$GR6*$DN6*$NX6,IF(AND($NX6>$GP6,$EO6=0),10*$GS6*$GR6*$DN6*$GP6,0)) -> 0.2770440258 | GV6: =$GU6+$FD6 -> 200.277044 | GW6: =($DF6*10000*($DW6*0.31))*0.00000001 -> 0.08928489284 | GX6: =IF($EO6<=0,$GW6*(1/$DG6),0) -> 35.71395713 | GY6: =IF($EO6<=0,$GW6*(1/$DG6)*(1/$GB6)*(1/(1-$FZ6)),0) -> 46.68491129 | GZ6: =IF($GV6-$GX6<=0,0,$GV6-$GY6) -> 153.5921327 | HA6: =IF($GV6-$GY6<=0, $GV6, $GY6) -> 46.68491129 | HB6: =IF($GV6-$GX6<=0, $GV6, $GX6) -> 35.71395713 | HC6: =$EG6+$EC6 -> 255 | HD6: =IF(Control!$C$97=1, $DJ6*$FV6, 0) -> 0 | HE6: =$FD6/Control!$C$47 -> 200 | HF6: =$GZ6-$HE6 -> -46.40786726 | HG6: =-ASIN(SIN(23.45*Control!$C$122)*COS(2*Control!$C$121*($AH6+10)/365)) -> -0.4015400607 | HH6: =$V6 -> 0 | HI6: =IF(AND(Control!$C$44="T",$HH6>=Control!$C$86,Control!$C$97=0),$AH6,Control!$C$42) -> 1 | HJ6: =IF(AND(Control!$C$44="T",$HH6>=Control!$C$86,Control!$C$97=0),$HI6,Control!$C$42) -> 1 | HK6: =IF(AND(OR(Control!$C$43<=0, $AH6= Control!$C$42, Control!$C$43 >0, $AH6 = Control!$C$43)), Control!$C$42, IF(Control!$C$43>0, 0)) -> 1 | HL6: =IF(AND(OR(Control!$C$43<=0, $AH6= Control!$C$42, Control!$C$43 >0, $AH6 = Control!$C$43)), Control!$C$43, IF(Control!$C$43<=0, 0)) -> 0 | HM6: =IF(AND(Control!$C$45="F",$CW6>=Control!$C$85),$AH6,0) -> 0 | HN6: =$ET6+$EC6+$FP6+$EU6+$EG6+$EL6+$EI6+$EW6 -> 300 | HO6: =IF(AND(Control!$C$44="T",$HH6>=Control!$C$86,Control!$C$97=0),$HI6,0) -> 0 | HP6: =$HA6*(1-$FZ6) -> 39.68217459 | HQ6: =$CX6 -> 2011-01-01 | HR6: =IF(AND($CQ6>=0, $CQ6<=90), Control!$C$135, Control!$C$135) -> 0.035 | HS6: =$HR6 -> 0.035 | HT6: =IF(OR(Control!$E$21=1,Control!$E$21=2),$KY6,$KV6) -> 0.1042170898 | HU6: =IF(OR(Control!$E$21=1,Control!$E$21=2),$KZ6,$KS6) -> 200 | HV6: =Control!$C$137*$HS6 -> 0.0175 | HW6: =Control!$C$138*$HS6 -> 0.0175 | HX6: =Control!$C$144*$FL6 -> 0 | HY6: 0 | HZ6: =Control!$C$143*$FI6+$IS6*$EP6 -> 0 | IA6: 0 | IB6: =IF(Control!$C$97=1, $EC6*$FV6, 0) -> 0 | IC6: =$KD6 -> 0 | ID6: =Control!$C$136*$HR6 -> 0.035 | IE6: =$ID6*$EC6 -> 8.0325 | IF6: =Control!$C$136*$HW6 -> 0.0175 | IG6: =$IF6*$EG6 -> 0.44625 | IH6: =($EC6*Control!$C$142+$EG6*Control!$C$143)/(IF($HC6<>0,$HC6,1)) -> 0.0095 | II6: =($IE6+$IG6)/IF($HC6<>0, $HC6,1) -> 0.03325 | IJ6: =IF(OR(Control!$B$180=$AH6,Control!$B$181=$AH6, Control!$B$182=$AH6, Control!$B$183=$AH6, Control!$B$184=$AH6, Control!$B$185=$AH6, Control!$B$186=$AH6, Control!$B$187=$AH6, Control!$B$188=$AH6, Control!$B$189=$AH6), 1, 0) -> 0 | IK6: =IF($IJ6=0,0, VLOOKUP($AH6,Control!$B$180:$C$189,2)) -> 0 | IL6: =$IK6 -> 0 | IM6: =Control!$C$104 -> 0.7 | IN6: =$IK6*$IM6 -> 0 | IO6: =$HW6*$EG6 -> 0.44625 | IP6: =IF(AND(Control!$C$97=1,$KK6<1),$EC6*Control!$C$131*(1-$KK6), 0) -> 0 | IQ6: =MIN($NX6, $KK6) -> 1 | IR6: =MAX(0,$IO6-$EG6*Control!$C$143) -> 0.31875 | IS6: =$IO6/IF($EG6<>0, $EG6, 1) -> 0.0175 | IT6: =$HS6*$EC6 -> 8.0325 | IU6: =$IT6+$IO6 -> 8.47875 | IV6: =Control!$C$142*MAX(0,$FG6-$EO6) -> 0 | IW6: 0 | IX6: =$KJ6*$EO6 -> 0 | IY6: 0 | IZ6: =IF(OR($AX6=1,AND($AX6=0, Control!$E$7=1,$EO6<>0)), $IT6-$IX6, $IT6) -> 8.0325 | JA6: =$IA6+$HY6+$IY6 -> 0 | JB6: =MAX(0,$IT6-$EC6*Control!$C$142) -> 5.7375 | JC6: =MAX($HR6*$EC6-$IT6,0) -> 0 | JD6: =$IT6/IF($EC6<>0, $EC6, 1) -> 0.035 | JE6: =MAX($HW6*$EG6-$IO6, 0) -> 0 | JF6: =MAX(Control!$C$140*$EL6-$JW6, 0)/Control!$C$145 -> 0 | JG6: =$JW6/IF($EL6<>0, $EL6, 1) -> 0 | JH6: =$IT6+$IO6+$JW6 -> 8.47875 | JI6: =$HV6*$EI6 -> 0.7875 | JJ6: =MAX($HV6*$EI6-$JI6, 0) -> 0 | JK6: =$IV6 -> 0 | JL6: =MAX(0, $JC6+$JE6+$JJ6-JK6) -> 0 | JM6: =IF(OR(Control!$E$21=1,2),Control!$C$107,Control!$C$107+$KV6) -> 75 | JN6: =IF(Control!$C$97=1,IF(Control!$E$18=0,MAX(0,$JL6)*$GQ6/Control!$C$47,(MAX(0,MIN($JL6,$JM6*$GQ6/Control!$C$47),0)))) -> 0 | JO6: =$IN6/Control!$C$47-$JN6+$HT6 -> 0.1042170898 | JP6: =IF(Control!$C$97=1,($JE6/(IF($JL6<>0,$JL6,1)))*$JN6,0) -> 0 | JQ6: =IF(Control!$C$97=1,($JJ6/(IF($JL6<>0,$JL6,1)))*$JN6, 0) -> 0 | JR6: =$IT6+$IO6+$JI6+$JW6 -> 9.26625 | JS6: =MIN(($JB6+$IR6)*Control!$C$134, $JI6-$EI6*Control!$C$144) -> 0.5625 | JT6: =$JS6+$IR6+$JB6 -> 6.61875 | JU6: =IF($CQ6-Control!$C$133<0, 0, $JT6/Control!$C$145) -> 0 | JV6: =MIN($JF6,$JU6) -> 0 | JW6: =Control!$C$140*$EL6 -> 0 | JX6: =$JV6*$JS6/(IF($JT6<>0,$JT6,1)) -> 0 | JY6: =$JQ6-$JX6-$HX6 -> 0 | JZ6: =$JI6/IF($EI6<>0, $EI6, 1) -> 0.0175 | KA6: =$JH6/(IF($EM6<>0,$EM6,1)) -> 0.03325 | KB6: =$JI6+$HY6 -> 0.7875 | KC6: =IF(Control!$C$97=1,($JC6/(IF($JL6<>0,$JL6,1)))*$JN6, 0) -> 0 | KD6: 0 | KE6: =$IY6+$IZ6+$IA6+$IO6+$JI6 -> 9.26625 | KF6: =$JV6*$IR6/(IF($JT6<>0,$JT6,1)) -> 0 | KG6: =$JP6-$KF6-$HZ6 -> 0 | KH6: =$JV6*$JB6/(IF($JT6<>0,$JT6,1)) -> 0 | KI6: =$KC6-$KH6-$IX6 -> 0 | KJ6: =$IU6/IF($HC6<>0, $HC6, 1) -> 0.03325 | KK6: =IF(Control!$E$18=0,1,MAX(0.001,MIN(1,IF(($II6-$IH6)<>0,($KJ6-$IH6)/($II6-$IH6),1)))) -> 1 | KL6: 0 | KM6: =IF($AH6>$HI6, $KL6/($AH6-$HI6), $KL6/($AH6+365-$HI6)) -> 0 | KN6: =$KD6+ ($IT6+$IO6+$JI6+$JW6)-($IT6+$IO6+$JI6+$JW6+$IY6+$HY6+$IA6) -> 0 | KO6: =IF(Control!$E$21=3,4000000000*EXP(-8400/($O6+273)),IF(Control!$E$21=4,4000000000*EXP(-8400/($O6+273))*($KW6),0)) -> 0.000172367294 | KP6: =IF(Control!$E$21=3,5600000000000*EXP(-9800/($O6+273)),IF(Control!$E$21=4,5600000000000*EXP(-9800/($O6+273))*$KW6,0)) -> 0.001568513952 | KQ6: =Control!$C$105 -> 150 | KR6: =Control!$C$106 -> 50 | KS6: =$KR6+$KQ6 -> 200 | KT6: =$KQ6-$KQ7 -> 0.02585286593 | KU6: =$KR6-$KR7 -> 0.07836422383 | KV6: =$KT6+$KU6 -> 0.1042170898 | KW6: =$MZ6/$OS6 -> 0.5714285714 | KX6: =IF($CQ6-Control!$C$132<0, IF($NX6-0.01<0,0,1),0) -> 1 | KY6: =IF(Control!$C$97=1,MAX(0,MIN(Control!$C$108*$KZ6*$GQ6,$KZ6))) -> 1.875 | KZ6: =Control!$C$107 -> 75 | LA6: =IF($CQ6-Control!$C$132<0, IF($MV6-$OQ6<0,0,1),0) -> 1 | LB6: =$AG6 -> 2011-01-01 | LC6: =1370*(1+0.033*COS(2*Control!$C$121*$AH6/365)) -> 1415.203302 | LD6: =1+0.033*COS((2*PI()/365)*$AH6) -> 1.032995111 | LE6: =0.409*SIN((2*PI()*$AH6/365)-1.39) -> -0.4010080926 | LF6: =ACOS(-TAN((2*Control!$B$8/360))*TAN(Calculations!$LE6)) -> 1.444920637 | LG6: =((24*60)/PI())*0.082*$LD6*(($LF6*SIN(Control!$B$8*2*PI()/360))*SIN($LE6)+COS(Control!$B$8*2*PI()/360)*COS($LE6)*SIN($LF6)) -> 4.708124036 | LH6: =(MAX(0.0001,$LC6*$LM6))/1000000 -> 6.345808009 | LI6: =SIN(Control!$C$122*Control!$B$8)*SIN($HG6) -> -0.307219822 | LJ6: =COS(Control!$C$122*Control!$B$8)*COS($HG6) -> 0.568985685 | LK6: =12*(1+2*ASIN(MAX(-1,MIN(1,$LI6/$LJ6))/Control!$C$121)) -> 7.854567157 | LL6: =12*(1+2*ASIN(MAX(-1,MIN(1,(-SIN(-4*Control!$C$122)+$LI6)/$LJ6))/Control!$C$121)) -> 8.802275586 | LM6: =3600*($LK6*$LI6+24*$LJ6*SQRT(1-$LN6*$LN6)/Control!$C$121) -> 4484.025724 | LN6: =MAX(-1,MIN(1,$LI6/$LJ6)) -> -0.5399429723 | LO6: =$AQ6/$LH6 -> 0.1467110254 | LP6: =Control!$C$128*$AB6 -> 0.06601825943 | LQ6: =0.54+0.35*MAX(0,MIN(1,$F6-12)/4) -> 0.54 | LR6: =MAX(0,MIN(1,($LO6-0.2)/0.56)) -> 0 | LS6: =Control!$C$123*((($D6+273.16)^4+($E6+273.16)^4)/2)*(0.34-0.14*SQRT($Y6))*(1.35*$AQ6/(0.75*$LG6)-0.35) -> 0.03769965587 | LT6: =Control!$C$123*($G6+273)^4*(0.56-0.079*SQRT($Y6*10))*(0.1+0.9*$LR6) -> 0.9939255475 | LU6: =$AQ6*(1-Control!$C$125)-$LT6 -> -0.1094755475 | LV6: =$AQ6*(1-Control!$C$126)-$LT6 -> -0.2025755475 | LW6: =$AQ6*(1-Control!$C$127)-$LT6 -> -0.2956755475 | LX6: =(1-Control!$C$127)*AQ6-LS6 -> 0.6605503441 | LY6: =10*0.26*($X6-$Y6)*(0.5+$LQ6*$J6) -> 0.3319020109 | LZ6: =10*0.26*($X6-$Y6)*(1+$LQ6*$J6) -> 0.4483047316 | MA6: =($AC6*($LU6/Control!$C$124)+$LP6*$LY6)/($AC6+$LP6) -> 0.1543863303 | MB6: =($AC6*($LV6/Control!$C$124)+$LP6*$LY6)/($AC6+$LP6) -> 0.1364738282 | MC6: =MAX(0,$MA6) -> 0.1543863303 | MD6: =MAX(0,$MB6) -> 0.1364738282 | ME6: =$MD6*(1-$DM6) -> 0.1285262111 | MF6: =$AA6-$Y6 -> 0.07788016075 | MG6: =(0.408*AD6*$LX6+$LP6*(900/($G6+273)*$J6*$MF6))/($AD6+$LP6*(1+0.34*$J6)) -> 0.2718755528 | MH6: 0 | MI6: =($AC6*($LW6/Control!$C$124)+$LP6*$LZ6)/($AC6+$LP6) -> 0.1800939421 | MJ6: =IF(Control!$B$17>=1000,0.92,IF(AND(720<=Control!$B$17,1000>Control!$B$17),(0.95+(Control!$B$17-720)*((0.92-0.95)/(1000-720))),IF(AND(360<=Control!$B$17,720>Control!$B$17),(1+(Control!$B$17-360)*((0.95-1)/(720-360))),IF(AND(40<=Control!$B$17,360>Control!$B$17),(1.05+(Control!$B$17-40)*((1.05-1)/(360-40))))))) -> 0.9956043981 | MK6: =MAX(0,$MI6) -> 0.1800939421 | ML6: =$MK6*$MJ6 -> 0.1793023208 | MM6: 0.1793023208 | MN6: =MAX(0.0001, Control!$C$115*$MM6*$DM6) -> 0.01044175428 | MO6: =1/(0.76+1.5*($MK6/10))-(5-Control!$C$93)*0.1 -> 1.12062528 | MP6: =IF(Control!$C$93<3,$MO6+($MK6-0.6)/(Control!$C$93*(Control!$C$93+3)), MAX(0.1, MIN(0.95,$MO6))) -> 0.95 | MQ6: =IF(Control!$C$93<3,$MO6+(($MM6/10)-0.6)/(Control!$C$93*(Control!$C$93+3)), MAX(0.1, MIN(0.95,$MO6))) -> 0.95 | MR6: =(1-$MQ6)*(Control!$C$111-Control!$C$110)+Control!$C$110 -> 0.16 | MS6: =MAX(0,MIN(1,($MW6-Control!$C$110)/($MR6-Control!$C$110))) -> 1 | MT6: =1/(0.76+1.5*$MM6)-(5-Control!$C$93)*0.1 -> 0.821861234 | MU6: 0 | MV6: =$MW6*$CZ6 -> 350 | MW6: =MAX(Control!$C$110,MIN(Control!$C$52,Control!$C$111)) -> 0.35 | MX6: =(Control!$C$111-$MW6)*Control!$C$57 -> 0 | MY6: =(Control!$C$117-$MW6)*Control!$C$57 -> 100 | MZ6: =Control!$C$57*($MW6-Control!$C$110) -> 200 | NA6: =$NB6*(Control!$C$102-$CZ6) -> 0 | NB6: =MAX(Control!$C$110, MIN(Control!$C$53,Control!$C$111)) -> 0.35 | NC6: =IF(Control!$C$97=1, $CY6*$NB6, 0) -> 0 | ND6: 0 | NE6: =(Control!$C$111-$NB6)*(Control!$C$102-Control!$C$57) -> 0 | NF6: =(Control!$C$117-$NB6)*(Control!$C$102-Control!$C$57) -> 0 | NG6: 1 | NH6: =IF(Control!$C$41=2, IF(OR(Control!$B$200=$AH6,Control!$B$201=$AH6, Control!$B$202=$AH6, Control!$B$203=$AH6, Control!$B$204=$AH6, Control!$B$205=$AH6, Control!$B$206=$AH6, Control!$B$207=$AH6, Control!$B$208=$AH6, Control!$B$209=$AH6, Control!$B$210=$AH6), 1, 0), 0) -> 0 | NI6: =IF($NH6=0,0, VLOOKUP($AH6,Control!$B$200:$C$210,2)) -> 0 | NJ6: =$CZ6*(Control!$C$111-Control!$C$110) -> 200 | NK6: 0 | NL6: 0 | NM6: =IF(Control!$C$41=2, $NI6+$NL6,0) -> 0 | NN6: =IF(AND(Control!$C$41=1, $MW6<= ($MR6+0.02), $I6<10), MAX(0, MIN(10, 0.7*($NJ6-$MZ6))), IF(Control!$C$41=2, MIN(10,$NM6),0)) -> 0 | NO6: =$NN6+$NL6 -> 0 | NP6: =(1-Control!$C$56)*$I6+$NN6 -> 0.8 | NQ6: =IF($NP6<5, $ME6* MAX(0, MIN(1, (SQRT($NG6)-SQRT($NG6-1))*Control!$C$54)),0) -> 0.1285262111 | NR6: =IF($NP6>=5, $ME6, MAX(0,MIN($ME6, $NQ6+$NP6,($MW6-Control!$C$112)))) -> 0.1285262111 | NS6: =IF(Control!$C$116<>1, Control!$C$117-Control!$C$114, 0) -> 0.38 | NT6: =IF($MW6>=$NS6,MIN($AH5+1,4),0) -> 0 | NU6: =MAX(0,MIN(1,(Control!$C$117-$MW6)/(Control!$C$117-$NS6))) -> 1 | NV6: =IF(Control!$C$116<>1, $NU6+((1-$NT6/4)*(1-$NU6)),1) -> 1 | NW6: =IF(Control!$E$26=0,$MN6,MAX(0,MIN($MZ6,$MS6*$NV6*$MN6))) -> 0.01044175428 | NX6: =$NW6/$MN6 -> 1 | NY6: =$NX6 -> 1 | NZ6: =IF($AH6>$HI6, $NY6/($AH6-$HI6), $NY6/($AH6+365-$HI6)) -> 0.002739726027 | OA6: =$NP6-$NR6-$NW6 -> 0.6610320346 | OB6: =MIN(Control!$C$55+$MY6, $OA6) -> 0.6610320346 | OC6: =IF($MX6<=$OB6,MIN(Control!$C$55+$NF6,$OB6-$MX6),0) -> 0.6610320346 | OD6: =IF(Control!$C$97=1, $CY6*($NB6-Control!$C$110), 0) -> 0 | OE6: =$OB6-$OC6+$OD6 -> 0 | OF6: =IF($NE6 <=$OC6, MIN(Control!$C$55, $OC6-$NE6), 0) -> 0.6610320346 | OG6: =$OC6-$OF6-$OD6 -> 0 | OH6: =(Control!$C$102-Control!$C$57)*($NB6-Control!$C$110) -> 0 | OI6: =Control!$C$56*$I6 -> 0 | OJ6: =$OI6+MAX(0,$OA6-$OB6) -> 0 | OK6: =$MZ$6-$MZ6 -> 0 | OL6: =$OH$6-$OH6 -> 0 | OM6: =$OB6-$OC6+$NC6 -> 0 | ON6: =$OC6-$OF6-$NC6 -> 0 | OO6: =$OK6+$OL6 -> 0 | OP6: =Control!$C$110 -> 0.15 | OQ6: =$OP6*$CZ6 -> 150 | OR6: =Control!$C$111 -> 0.35 | OS6: =$OR6*$CZ6 -> 350 | OT6: =$I6 -> 0.8 | OU6: 0 | OV6: =$OT6+$OU6 -> 0.8 | OW6: 0 | OX6: =$OF6 -> 0.6610320346 | OY6: 0 | OZ6: 0 | PA6: =$OM6 -> 0 | PB6: 0 | PC6: 0 | PD6: =ABS($MV6-$NW6-$NR6+$I6+$NC6+$NO6-$OJ6-$OC6-$PB6) -> 350 | PE6: =ABS($NA6+$OC6-$OF6-$NC6-$PC6) -> 0 | PF6: =IF(Control!$C$44="T", IF(Control!$C$48="F", IF($AH$6-Control!$C$43<0,0,1), IF(365+$AH$6-Control!$C$43<0,0,1)),0) -> 0 | PG6: =IF(Control!$C$48="F", IF($AH$6-$HI6<0,0,1), IF(365+$AH$6-$HI6<0,0,1)) -> 1 | PH6: =Control!$C$101 -> 1500 | PI6: =$CZ6*($OR6-$MW6) -> 0 | PJ6: =$MI6 -> 0.1800939421 | PK6: 1 | PL6: =ES6+ER6 -> 0
A7: 2 | B7: 1 | C7: =Weather_data!$B6 -> 2011 | D7: =Weather_data!$F6 -> 2.124 | E7: =Weather_data!$E6 -> 0.154 | F7: =$D7-$E7 -> 1.97 | G7: =AVERAGE($D7:$E7)+Control!$B$9 -> 1.139 | H7: =Weather_data!$G6 -> 0.5525986015 | I7: =Weather_data!$I6+Control!$B$14 -> 0 | J7: =Weather_data!$H6 -> 1.815448 | K7: =Weather_data!$D6 -> 1974 | L7: =$L6+$DN6 -> 0.02710860962 | M7: 1087.042747 | N7: -0.38421 | O7: =$O6+$N6 -> 4.9811 | P7: 3 | Q7: =MAX($G7-Control!$C$90,0) -> 0 | R7: =IF($G7<=3,0,IF(33>=$G7>3,0+($G7-3)*((30-0)/(33-3)),IF($G7>33,30))) -> 0 | S7: =MAX(0, $R7) -> 0 | T7: 0 | U7: 0 | V7: =MAX(0,MIN(Control!$C$83-Control!$C$82,$G7-Control!$C$82)*Control!$C$46) -> 0 | W7: =$D7-0.25*($D7-$E7) -> 1.6315 | X7: =6.11*0.1*EXP(17.4*$G7/($G7+239)) -> 0.6635648981 | Y7: =MIN($H7,$X7) -> 0.5525986015 | Z7: =6.10588*0.1*EXP((17.32491*$G7)/($G7+238.102)) -> 0.6630858122 | AA7: 0.6550080917 | AB7: =101.3*EXP(-0.034*Control!$C$49/($G7+273)) -> 99.70454404 | AC7: 0.04675249915 | AD7: 0.04781282907 | AE7: 0.8333741898 | AF7: =MAX(0,$G7-Control!$C$75) -> 0 | AG7: =DATE($C7,$B7,$A7) -> 2011-01-02 | AH7: 2 | AI7: =$HG7 -> -0.4000768179 | AJ7: =IF(Control!$C$43<=0,$HK7,$HL7) -> 1 | AK7: -1.342708093 | AL7: 1.758333062e-18 | AM7: -1.342708093 | AN7: -0.3979150824 | AO7: =-0.10453/COS(Control!$B$8*PI()/180)*COS(AN7) -> -0.1558883102 | AP7: =ACOS(AO7-TAN(Control!$B$8*PI()/180)*TAN(AN7)) -> 1.182491497 | AQ7: =$K7/1000 -> 1.974 | AR7: =$AQ7*0.5 -> 0.987 | AS7: =IF(Control!$E$7=2,(IF(OR($AH7=Control!$B$158,$AH7=Control!$B$159,$AH7=Control!$B$160,$AH7=Control!$B$161,$AH7=Control!$B$162,$AH7=Control!$B$163,$AH7=Control!$B$164,$AH7=Control!$B$165,$AH7=Control!$B$166,$AH7=Control!$B$167,$AH7=Control!$B$168),1,0)),0) -> 0 | AT7: =IF(Control!$E$9=1,IF(AND($AH7>=Control!$B$155,$AH7<=Control!$B$156),1,0),0) -> 0 | AU7: =IF(Control!$E$9=1,IF($AV6=1,1*$AT7,IF($AT7=1,$AU6+1,$AU6)),0) -> 0 | AV7: =IF(Control!$E$9=1,IF($AU7>=Control!$B$157,1,0),0) -> 0 | AW7: =IF(Control!$E$7=1,IF($EC6+$EE6+$EG6+$EF6-$EP6+$EL6+$EK6-$EQ6>=Control!$E$8,1,0),0) -> 0 | AX7: =IF(Control!$E$7=1,AW7,IF(AND(Control!$E$7=2,Control!$B$154=1),$AV7,$AS7)) -> 0 | AY7: =IF(AND(Control!$E$7=1,$EX7>=Control!$E$8),-$AZ7,IF(AND(Control!$E$7=2,$AX7=1,$EX7>$DT7),-$AZ7, IF(Control!$C$91=0,0, IF(Control!$C$91<>0,1)))) -> 1 | AZ7: =$AZ6+$AY6 -> 1 | BA7: =IF(AND(Control!$E$7=1,$EC7>Control!$E$8),$BA6+1, IF(AND(Control!$E$7=2, $AX7=1, $EC7>$DT7), $BA6+1,$BA6)) -> 0 | BB7: =IF(Control!$C$64=0,1,IF($AH7>=Control!$C$65,1,0)) -> 1 | BC7: =IF($BB7>$BB6,Control!$C$66,IF($AX7>0,$AX7*Control!$C$67,0)) -> 0 | BD7: =IF($BB7=0,0,IF(AND($BC7>0,$BC7<9),1,$BH6)) -> 0 | BE7: =BD7*IF(OR($G7<Control!$C$75,$G7>Control!$C$78),0,IF(AND($G7>=Control!$C$75,$G7<=Control!$C$76),$G7-Control!$C$75,IF(AND($G7>Control!$C$76,$G7<=Control!$C$77),Control!$C$76-Control!$C$75,IF(AND($G7>Control!$C$77,$G7<=Control!$C$78),(Control!$C$76-Control!$C$75)*(Control!$C$77-$G7)/(Control!$C$78-Control!$C$77))))) -> 0 | BF7: =IF($BD7=0,0,$BG6+$BE7) -> 0 | BG7: =IF($BF7<=Control!$C$69,$BF7,Control!$C$69-$BF7) -> 0 | BH7: =IF(AND($AX7=1,Control!$C$67<9),1,IF($BF7>=Control!$C$69,0,$BD7)) -> 0 | BI7: =IF($BH7=0,0,IF($BF7<=Control!$C$69,$BD7*9*($BG7/Control!$C$69),0)) -> 0 | BJ7: =IF($BH7=1,0,IF($BF7>=Control!$C$69,1,IF(AND($BC7<21,$BC7>=9),1,$BN6))) -> 0 | BK7: =IF($BG7<0,-$BG7,$BJ7*IF(OR($G7<Control!$C$75,$G7>Control!$C$78),0,IF(AND($G7>=Control!$C$75,$G7<=Control!$C$76),$G7-Control!$C$75,IF(AND($G7>Control!$C$76,$G7<=Control!$C$77),Control!$C$76-Control!$C$75,IF(AND($G7>Control!$C$77,$G7<=Control!$C$78),(Control!$C$76-Control!$C$75)*(Control!$C$77-$G7)/(Control!$C$78-Control!$C$77)))))) -> 0 | BL7: =IF($BJ7=0,0,IF($BG7<0,$BM6+$BK7-$BG7,$BM6+$BK7)) -> 0 | BM7: =IF($BL7<=Control!$C$70,$BL7,Control!$C$70-$BL7) -> 0 | BN7: =IF(AND($BC7>=9,$BC7<21),1,IF($BL7>=Control!$C$70,0,$BJ7)) -> 0 | BO7: =IF($BN7=0,0,IF($BL7<=Control!$C$70,$BJ7*(9+(21-9)*($BM7/Control!$C$70)),0)) -> 0 | BP7: =IF($BN7=1,0,IF($BL7>=Control!$C$70,1,IF(AND($BC7<30,$BC7>=21),1,$BT6))) -> 1 | BQ7: =IF($BM7<0,-$BM7,$BP7*IF(OR($G7<Control!$C$75,$G7>Control!$C$78),0,IF(AND($G7>=Control!$C$75,$G7<=Control!$C$76),$G7-Control!$C$75,IF(AND($G7>Control!$C$76,$G7<=Control!$C$77),Control!$C$76-Control!$C$75,IF(AND($G7>Control!$C$77,$G7<=Control!$C$78),(Control!$C$76-Control!$C$75)*(Control!$C$77-$G7)/(Control!$C$78-Control!$C$77)))))) -> 0 | BR7: 1.811 | BS7: =IF($BR7<=Control!$C$71,$BR7,Control!$C$71-$BR7) -> 1.811 | BT7: =IF(AND($BC7>=21,$BC7<30),1,IF($BR7>=Control!$C$71,0,$BP7)) -> 1 | BU7: =IF($BT7=0,0,IF($BR7<=Control!$C$71,$BP7*(21+(30-21)*(BS7/Control!$C$71)),0)) -> 21.10866 | BV7: =IF(BH7+BN7+BT7=1,0,IF(OR(AND($BC7<60,$BC7>=30),$BR7>=Control!$C$71),1*$BB7,$BZ6)) -> 0 | BW7: =IF($BS7<0,-$BS7,$BV7*IF(OR($G7<Control!$C$75,$G7>Control!$C$78),0,IF(AND($G7>=Control!$C$75,$G7<=Control!$C$76),$G7-Control!$C$75,IF(AND($G7>Control!$C$76,$G7<=Control!$C$77),Control!$C$76-Control!$C$75,IF(AND($G7>Control!$C$77,$G7<=Control!$C$78),(Control!$C$76-Control!$C$75)*(Control!$C$77-$G7)/(Control!$C$78-Control!$C$77)))))) -> 0 | BX7: 0 | BY7: =IF($BX7<=Control!$C$72,$BX7,Control!$C$72-$BX7) -> 0 | BZ7: =IF(AND($AJ7>=30,$AJ7<60),1,IF($BX7>=Control!$C$72,0,$BV7)) -> 0 | CA7: =IF($BZ7=0,0,IF($BX7<=Control!$C$72,$BV7*(30+(60-30)*(BY7/Control!$C$72)),0)) -> 0 | CB7: =IF($BH7+$BN7+$BT7+$BZ7=1,0,IF(OR(AND($BC7<65,$BC7>=60),$BX7>=Control!$C$72),1*$BB7,$CF6)) -> 0 | CC7: =IF($BY7<0,-$BY7,$CB7*IF(OR($G7<Control!$C$75,$G7>Control!$C$78),0,IF(AND($G7>=Control!$C$75,$G7<=Control!$C$76),$G7-Control!$C$75,IF(AND($G7>Control!$C$76,$G7<=Control!$C$77),Control!$C$76-Control!$C$75,IF(AND($G7>Control!$C$77,$G7<=Control!$C$78),(Control!$C$76-Control!$C$75)*(Control!$C$77-$G7)/(Control!$C$78-Control!$C$77)))))) -> 0 | CD7: =IF($CB7=1,$CD6+$CC7,0) -> 0 | CE7: =IF($CD7<=Control!$C$73,$CD7,Control!$C$73-$CD7) -> 0 | CF7: =IF(AND($BC7>=60,$BC7<65),1,IF($CD7>=Control!$C$73,0,$CB7)) -> 0 | CG7: =IF($CF7=0,0,IF($CD7<=Control!$C$73,$CB7*(60+(65-60)*(CE7/Control!$C$73)),0)) -> 0 | CH7: =IF($BH7+$BN7+$BT7+$BZ7+$CF7=1,0,IF(OR(AND($BC7<90,$BC7>=65),$CD7>=Control!$C$73),$BB7,$CL6)) -> 0 | CI7: =IF($CE7<0,-$CE7,$CH7*IF(OR($G7<Control!$C$75,$G7>Control!$C$78),0,IF(AND($G7>=Control!$C$75,$G7<=Control!$C$76),$G7-Control!$C$75,IF(AND($G7>Control!$C$76,$G7<=Control!$C$77),Control!$C$76-Control!$C$75,IF(AND($G7>Control!$C$77,$G7<=Control!$C$78),(Control!$C$76-Control!$C$75)*(Control!$C$77-$G7)/(Control!$C$78-Control!$C$77)))))) -> 0 | CJ7: =IF($CH7=1,$CJ6+$CI7,0) -> 0 | CK7: =IF($CJ7<=Control!$C$74,$CJ7,Control!$C$74-$CJ7) -> 0 | CL7: =IF(AND($BC7>=65,$BC7<90),1,IF($CJ7>=Control!$C$74,0,$CH7)) -> 0 | CM7: =IF($CL7=0,0,IF($CJ7<=Control!$C$74,$CH7*(65+(90-65)*($CK7/Control!$C$74)),0)) -> 0 | CN7: =IF($BH7+$BN7+$BT7+$BZ7+$CF7+$CL7=1,0,IF(OR($BC7>=90,$CJ7>=Control!$C$74),$BB7,$CN6)) -> 0 | CO7: =CN7*90 -> 0 | CP7: =MAX(0.0001,$BG7+$BM7+$BS7+$BY7+$CE7+$CK7) -> 1.811 | CQ7: =BI7+BO7+BU7+CA7+CG7+CM7+CO7 -> 21.10866 | CR7: =VLOOKUP($CQ7,Control!$B$69:$G$74,6) -> 0.15 | CS7: =(1-$CR7)*VLOOKUP($CQ7,Control!$B$69:$D$74,3) -> 0.765 | CT7: =(1-$CR7)*VLOOKUP($CQ7,Control!$B$69:$E$74,4) -> 0.085 | CU7: =(1-$CR7)*VLOOKUP($CQ7,Control!$B$69:$F$74,5) -> 0 | CV7: =$CV6+$T6 -> 1.811 | CW7: =$CW6+$U6 -> 1.811 | CX7: =$AG7 -> 2011-01-02 | CY7: =IF(Control!$C$97=1,(MIN(Control!$C$103*(IF($NX7-0.01<0,0,1)),Control!$C$102-$CZ7))) -> 0 | CZ7: =$CZ6+$CY6 -> 1000 | DA7: 0.39622 | DB7: 0.049811 | DC7: 0.5623519693 | DD7: 0.1291011696 | DE7: =IF($DF6<14000,(($DD6-$DY6)*$DB6*$DF6),(-$DY6*$DB6*$DF6)) -> 42.1630125 | DF7: =$DF6+$DE6 -> 7000 | DG7: =$DS7*EXP(-Control!$C$141*(1-$KK7)) -> 0.002275109273 | DH7: =IF(Control!$C$97=1, $DG7*$FB7, 0) -> 0 | DI7: =$DH7-$EA7 -> -0.005687720854 | DJ7: =IF($DJ6+$DI6<0,0,$DJ6+$DI6) -> 0.1 | DK7: =$EG7*Control!$C$92 -> 0.03683527182 | DL7: =$DJ7+$DK7 -> 0.1368352718 | DM7: 0.05823546642 | DN7: =IF(Control!$C$97=1, (1-EXP(-Control!$C$79*$DJ7))*$AR7, 0) -> 0.05747840535 | DO7: =$DO6+$AR6 -> 0.4655 | DP7: =Control!$C$80 -> 4 | DQ7: =$DJ7/MAX(0.1,$EC7) -> 0.0003770540626 | DR7: =IF(AND($CQ7>=0,$CQ7<=90),Control!$C$94,Control!$C$94) -> 0.0025 | DS7: 0.0025 | DT7: =Control!$E$15/DS7 -> 200 | DU7: =IF(AND(Control!$C$97=1,$KK7<1),$IP7*$DG7, 0) -> 0.005687720854 | DV7: =$DV6+$DX6 -> 0.4114511191 | DW7: =IF($G7-Control!$C$90<=0, 0, 0.83*LN(MAX($G7, 3))-0.8924) -> 0 | DX7: 0 | DY7: =MAX(0.01*(1+$CV7/Control!$C$85),0.05*($DL7-Control!$C$80)/Control!$C$80) -> 0.01003018333 | DZ7: =IF(Control!$C$97=1, $DJ7*$FV7, 0) -> 0 | EA7: =IF($EO7<=0, MIN(($DJ7-0.08), $DZ7+$DU7), $EO7*$DQ7) -> 0.005687720854 | EB7: =$AG7 -> 2011-01-02 | EC7: =$EC6+$EE6 -> 265.2139571 | ED7: =$EM7+$FP7+$FJ7 -> 294.6821746 | EE7: =IF(Control!$C$97=1, $HP7*$GB7-$FG7, 0) -> -2.499976999 | EF7: =IF(Control!$C$97=1, $HP7*$GC7-$FI7, 0) -> 0 | EG7: =$EG6+$EF6-$EP6 -> 29.46821746 | EH7: =IF(Control!$C$97=1, $HA7*$FZ7-$FL7, 0) -> 0 | EI7: =$EI6+$EH6 -> 52.00273669 | EJ7: =-$EI7 -> -52.00273669 | EK7: =IF(Control!$C$97=1, $HP7*$GE7, 0) -> 0 | EL7: =$EL6+$EK6-$EQ6 -> 0 | EM7: =$EC7+$EG7+$EL7 -> 294.6821746 | EN7: 65.21395713 | EO7: =IF(Control!$C$91=0,0,IF(AND($AX7=1,$EC7>$DT7),$EC7-$DT7,0)) -> 0 | EP7: =IF(Control!$C$91=0,0,IF($AX7=1,$EG7*EO7/EC7,0)) -> 0 | EQ7: =IF(Control!$C$91=0,0,IF($AX7=1,$EL7,0)) -> 0 | ER7: =IF(AZ7<21,0,IF(AZ7>70,0.1715*(EO7+EP7),0.0035*(AZ7-21)*(EO7+EP7))) -> 0 | ES7: =$EO7+$EP7+$EQ7 -> 0 | ET7: =$ET6+$EO6 -> 0 | EU7: =$EU6+$EP6 -> 0 | EV7: =$EV6+$EQ6 -> 0 | EW7: =EW6+ER6 -> 0 | EX7: =ET7+EU7+EV7 -> 0 | EY7: =ET7+EC7 -> 265.2139571 | EZ7: =$ET7+MAX(0,$EN7) -> 65.21395713 | FA7: =$ET7+$ED7 -> 294.6821746 | FB7: =$HA7*$GB7*(1-$FZ7) -> 0 | FC7: -2.499976999 | FD7: =$FD6+$HF6 -> 153.5921327 | FE7: 294.6821746 | FF7: 265.2139571 | FG7: =IF($EO7<=0, MIN(($DJ7-0.08)/$DG7, $IB7+$IP7), $EO7) -> 2.499976999 | FH7: =IF(AND($CQ7>=0, $CQ7<=90),0,0) -> 0 | FI7: =$EG7*$FH7 -> 0 | FJ7: =$FJ6+$FI6 -> 0 | FK7: =IF(AND($CQ7>=0, $CQ7<=90), 0,0) -> 0 | FL7: =$FK7*$EI7 -> 0 | FM7: =$FM6+$FL6 -> 0 | FN7: -52.00273669 | FO7: =$FO6+$FG6 -> 0 | FP7: =$FO7-$ET7 -> 0 | FQ7: =IF(AND($G7<=50,$G7>=30),(0.05+($G7-30)*((0.09-0.05)/(50-30))),IF(AND($G7<30,$G7>=15),(0.02+($G7-15)*((0.05-0.02)/(30-15))),IF(AND($G7<15,$G7>=10),(0.01+($G7-10)*((0.02-0.01)/(15-10))),IF(AND($G7<10,$G7>=-10),($G7+10)*((0.02-0)/(10+10)),IF($G7=-10,0))))) -> 0.011139 | FR7: =Control!$C$84 -> 50 | FS7: 0 | FT7: =MAX(0,(Control!$C$95*(($DL7-Control!$C$80)/Control!$C$80))) -> 0 | FU7: =(1-$NX7)*Control!$C$96 -> 0 | FV7: 0 | FW7: =$AG7 -> 2011-01-02 | FX7: =IF(Control!$B$20=1,VLOOKUP($CQ7,Control!$B$69:$G$74,6),Control!$B$21) -> 0.15 | FY7: 1 | FZ7: =IF(Control!$E$26=1,$FX7*$FY7, $FX7) -> 0.15 | GA7: =IF(Control!$B$20=1,VLOOKUP($CQ7,Control!$B$69:$G$74,3),Control!$B$22) -> 0.9 | GB7: 0.9 | GC7: =IF(Control!$B$20=1,VLOOKUP($CQ7,Control!$B$69:$G$74,4),Control!$B$23) -> 0.1 | GD7: 0.1 | GE7: =IF(Control!$B$20=1,VLOOKUP($CQ7,Control!$B$69:$G$74,5),Control!$B$24) -> 0 | GF7: =$GE7 -> 0 | GG7: 1 | GH7: 1 | GI7: =IF(AND(Control!$C$87=1, Control!$C$45="F"),$GH7,1) -> 1 | GJ7: =IF(Control!$B$17=40,0,IF(AND(Control!$B$17>40,Control!$B$17<=360),(Control!$B$17-40)*((1-0)/(360-40)),IF(AND(Control!$B$17>360,Control!$B$17<=720),(1+(Control!$B$17-360)*((1.25-1)/(720-360))),IF(AND(Control!$B$17>720,Control!$B$17<=1000),(1.25+(Control!$B$17-720)*((1.35-1.25)/(1000-720))),IF(AND(Control!$B$17>1000,Control!$B$17<=2000),(1.35+(Control!$B$17-1000)*0)))))) -> 1.021978009 | GK7: 1.021978009 | GL7: =IF($E7<=0,0,IF(AND($E7>=3,$E7<=30),1,(($E7-0)*((1-0)/(3-0))))) -> 0.05133333333 | GM7: 0.02033929333 | GN7: =IF(AND($AR7>=0,$AR7<=10),1,IF(AND($AR7>=40,$AR7<=42),0.33,((1+($AR7-10)*((0.33-1)/(40-10)))))) -> 1 | GO7: 1 | GP7: =MAX(0,MIN(1,1-Control!$C$139*(1.0001-$KK7)^2)) -> 0.9608625471 | GQ7: =IF(Control!$E$21=1,$KX7,$LA7) -> 1 | GR7: =IF($CQ7<=60,Control!$C$88,IF($CQ7>=90,Control!$C$89,Control!$C$88+($CQ7-60)*((Control!$C$89-Control!$C$88)/(90-60)))) -> 2.5 | GS7: =$GM7*$GK7*$GO7 -> 0.02078631051 | GT7: =GQ7*GR7*GS7 -> 0.05196577628 | GU7: 0.02870009906 | GV7: 153.6208328 | GW7: =($DF7*10000*($DW7*0.31))*0.00000001 -> 0 | GX7: =IF($EO7<=0,$GW7*(1/$DG7),0) -> 0 | GY7: 0 | GZ7: =IF($GV7-$GY7<=0,0,$GV7-$GY7) -> 153.6208328 | HA7: =IF($GV7-$GY7<=0, $GV7, $GY7) -> 0 | HB7: =IF($GV7-$GX7<=0, $GV7, $GX7) -> 0 | HC7: =$EG7+$EC7 -> 294.6821746 | HD7: =IF(Control!$C$97=1, $DJ7*$FV7, 0) -> 0 | HE7: =$FD7/Control!$C$47 -> 153.5921327 | HF7: =$GZ7-$HE7 -> 0.02870009906 | HG7: =-ASIN(SIN(23.45*Control!$C$122)*COS(2*Control!$C$121*($AH7+10)/365)) -> -0.4000768179 | HH7: =$HH6+$V7 -> 0 | HI7: =IF(AND(Control!$C$44="T",$HH7>=Control!$C$86,Control!$C$97=0),$AH7,Control!$C$42) -> 1 | HJ7: =IF(AND(Control!$C$44="T",$HH7>=Control!$C$86,Control!$C$97=0),$HI7,Control!$C$42) -> 1 | HK7: =IF(AND(OR(Control!$C$43<=0, $AH7= Control!$C$42, Control!$C$43 >0, $AH7 = Control!$C$43)), Control!$C$42, IF(Control!$C$43>0, 0)) -> 1 | HL7: =IF(AND(OR(Control!$C$43<=0, $AH7= Control!$C$42, Control!$C$43 >0, $AH7 = Control!$C$43)), Control!$C$43, IF(Control!$C$43<=0, 0)) -> 0 | HM7: =IF(AND(Control!$C$45="F",$CW7>=Control!$C$85),$AH7,0) -> 0 | HN7: =$ET7+$EC7+$FP7+$EU7+$EG7+$EL7+$EI7+$EW7 -> 346.6849113 | HO7: =IF(AND(Control!$C$44="T",$HH7>=Control!$C$86,Control!$C$97=0),$HI7,0) -> 0 | HP7: 0 | HQ7: =$CX7 -> 2011-01-02 | HR7: =IF(AND($CQ7>=0, $CQ7<=90), Control!$C$135, Control!$C$135) -> 0.035 | HS7: 0.035 | HT7: =IF(OR(Control!$E$21=1,Control!$E$21=2),$KY7,$KV7) -> 0.1038496153 | HU7: =$HU6-$HT6 -> 199.8957829 | HV7: =Control!$C$137*$HS7 -> 0.0175 | HW7: =Control!$C$138*$HS7 -> 0.0175 | HX7: =Control!$C$144*$FL7 -> 0 | HY7: =$HY6+$HX6 -> 0 | HZ7: =Control!$C$143*$FI7+$IS7*$EP7 -> 0 | IA7: =$IA6+$HZ6 -> 0 | IB7: =IF(Control!$C$97=1, $EC7*$FV7, 0) -> 0 | IC7: 0 | ID7: =Control!$C$136*$HR7 -> 0.035 | IE7: 9.2824885 | IF7: =Control!$C$136*$HW7 -> 0.0175 | IG7: 0.5156938055 | IH7: =($EC7*Control!$C$142+$EG7*Control!$C$143)/(IF($HC7<>0,$HC7,1)) -> 0.0095 | II7: 0.03325 | IJ7: =IF(OR(Control!$B$180=$AH7,Control!$B$181=$AH7, Control!$B$182=$AH7, Control!$B$183=$AH7, Control!$B$184=$AH7, Control!$B$185=$AH7, Control!$B$186=$AH7, Control!$B$187=$AH7, Control!$B$188=$AH7, Control!$B$189=$AH7), 1, 0) -> 0 | IK7: =IF($IJ7=0,0, VLOOKUP($AH7,Control!$B$180:$C$189,2)) -> 0 | IL7: =$IL6+$IK7 -> 0 | IM7: =Control!$C$104 -> 0.7 | IN7: =$IK7*$IM7 -> 0 | IO7: =$IO6+$KG6 -> 0.44625 | IP7: =IF(AND(Control!$C$97=1,$KK7<1),$EC7*Control!$C$131*(1-$KK7), 0) -> 2.499976999 | IQ7: 0.8114747032 | IR7: =MAX(0,$IO7-$EG7*Control!$C$143) -> 0.2989089127 | IS7: 0.01514343379 | IT7: =$IT6+$KI6 -> 8.0325 | IU7: =$IT7+$IO7 -> 8.47875 | IV7: =Control!$C$142*MAX(0,$FG7-$EO7) -> 0.02499976999 | IW7: =$IW6+$IV7 -> 0.02499976999 | IX7: =$KJ7*$EO7 -> 0 | IY7: =$IY6+$IX7 -> 0 | IZ7: =IF(OR($AX7=1,AND($AX7=0, Control!$E$7=1,$EO7<>0)), $IT7-$IX7, $IT7) -> 8.0325 | JA7: 0 | JB7: =MAX(0,$IT7-$EC7*Control!$C$142) -> 5.380360429 | JC7: 1.2499885 | JD7: 0.03028686758 | JE7: 0.06944380554 | JF7: =MAX(Control!$C$140*$EL7-$JW7, 0)/Control!$C$145 -> 0 | JG7: 0 | JH7: 8.47875 | JI7: =$JI6+$JY6 -> 0.7875 | JJ7: 0.1225478921 | JK7: =$IV7 -> 0.02499976999 | JL7: =MAX(0, $JC7+$JE7+$JJ7-JK7) -> 1.416980427 | JM7: =$JM6+$JO6 -> 75.10421709 | JN7: =IF(Control!$C$97=1,IF(Control!$E$18=0,MAX(0,$JL7)*$GQ7/Control!$C$47,(MAX(0,MIN($JL7,$JM7*$GQ7/Control!$C$47),0)))) -> 1.416980427 | JO7: =$IN7/Control!$C$47-$JN7+$HT7 -> -1.313130812 | JP7: =IF(Control!$C$97=1,($JE7/(IF($JL7<>0,$JL7,1)))*$JN7,0) -> 0.06944380554 | JQ7: =IF(Control!$C$97=1,($JJ7/(IF($JL7<>0,$JL7,1)))*$JN7, 0) -> 0.1225478921 | JR7: 9.26625 | JS7: =MIN(($JB7+$IR7)*Control!$C$134, $JI7-$EI7*Control!$C$144) -> 0.5274863165 | JT7: 6.206755658 | JU7: =IF($CQ7-Control!$C$133<0, 0, $JT7/Control!$C$145) -> 0 | JV7: 0 | JW7: =$JW6+$JV6 -> 0 | JX7: 0 | JY7: 0.1225478921 | JZ7: 0.01514343379 | KA7: 0.0287725242 | KB7: 0.7875 | KC7: =IF(Control!$C$97=1,($JC7/(IF($JL7<>0,$JL7,1)))*$JN7, 0) -> 1.2499885 | KD7: =KD6+JN6 -> 0 | KE7: =$IY7+$IZ7+$IA7+$IO7+$JI7 -> 9.26625 | KF7: 0 | KG7: 0.06944380554 | KH7: 0 | KI7: 1.2499885 | KJ7: 0.0287725242 | KK7: =IF(Control!$E$18=0,1,MAX(0.001,MIN(1,IF(($II7-$IH7)<>0,($KJ7-$IH7)/($II7-$IH7),1)))) -> 0.8114747032 | KL7: =IF(Control!$C$97=1, $KL6+ $KK6, 0) -> 1 | KM7: 1 | KN7: 0 | KO7: =IF(Control!$E$21=3,4000000000*EXP(-8400/($O7+273)),IF(Control!$E$21=4,4000000000*EXP(-8400/($O7+273))*($KW7),0)) -> 0.0001720135493 | KP7: =IF(Control!$E$21=3,5600000000000*EXP(-9800/($O7+273)),IF(Control!$E$21=4,5600000000000*EXP(-9800/($O7+273))*$KW7,0)) -> 0.001564759074 | KQ7: =$KQ6-$KQ6*(1-EXP(-$KO6)) -> 149.9741471 | KR7: =$KR6-$KR6*(1-EXP(-$KP6)) -> 49.92163578 | KS7: 199.8957829 | KT7: 0.02579536671 | KU7: 0.07805424857 | KV7: 0.1038496153 | KW7: 0.5714285714 | KX7: =IF($CQ7-Control!$C$132<0, IF($NX7-0.01<0,0,1),0) -> 1 | KY7: =IF(Control!$C$97=1,MAX(0,MIN(Control!$C$108*$KZ7*$GQ7,$KZ7))) -> 1.828125 | KZ7: =KZ6-KY6 -> 73.125 | LA7: =IF($CQ7-Control!$C$132<0, IF($MV7-$OQ7<0,0,1),0) -> 1 | LB7: =$AG7 -> 2011-01-02 | LC7: =1370*(1+0.033*COS(2*Control!$C$121*$AH7/365)) -> 1415.183208 | LD7: =1+0.033*COS((2*PI()/365)*$AH7) -> 1.032980444 | LE7: =0.409*SIN((2*PI()*$AH7/365)-1.39) -> -0.3995637246 | LF7: =ACOS(-TAN((2*Control!$B$8/360))*TAN(Calculations!$LE7)) -> 1.4454289 | LG7: =((24*60)/PI())*0.082*$LD7*(($LF7*SIN(Control!$B$8*2*PI()/360))*SIN($LE7)+COS(Control!$B$8*2*PI()/360)*COS($LE7)*SIN($LF7)) -> 4.775490701 | LH7: 6.404220176 | LI7: =SIN(Control!$C$122*Control!$B$8)*SIN($HG7) -> -0.3061607868 | LJ7: =COS(Control!$C$122*Control!$B$8)*COS($HG7) -> 0.5693385906 | LK7: =12*(1+2*ASIN(MAX(-1,MIN(1,$LI7/$LJ7))/Control!$C$121)) -> 7.871586365 | LL7: =12*(1+2*ASIN(MAX(-1,MIN(1,(-SIN(-4*Control!$C$122)+$LI7)/$LJ7))/Control!$C$121)) -> 8.818606042 | LM7: =3600*($LK7*$LI7+24*$LJ7*SQRT(1-$LN7*$LN7)/Control!$C$121) -> 4525.364729 | LN7: -0.5377481727 | LO7: 0.3082342495 | LP7: =Control!$C$128*$AB7 -> 0.06600440815 | LQ7: =0.54+0.35*MAX(0,MIN(1,$F7-12)/4) -> 0.54 | LR7: 0.1932754456 | LS7: =Control!$C$123*((($D7+273.16)^4+($E7+273.16)^4)/2)*(0.34-0.14*SQRT($Y7))*(1.35*$AQ7/(0.75*$LG7)-0.35) -> 2.579033215 | LT7: =Control!$C$123*($G7+273)^4*(0.56-0.079*SQRT($Y7*10))*(0.1+0.9*$LR7) -> 2.837639492 | LU7: =$AQ7*(1-Control!$C$125)-$LT7 -> -0.9623394918 | LV7: =$AQ7*(1-Control!$C$126)-$LT7 -> -1.159739492 | LW7: =$AQ7*(1-Control!$C$127)-$LT7 -> -1.357139492 | LX7: =(1-Control!$C$127)*AQ7-LS7 -> -1.098533215 | LY7: 0.4270969574 | LZ7: 0.5713531429 | MA7: =($AC7*($LU7/Control!$C$124)+$LP7*$LY7)/($AC7+$LP7) -> 0.08714580611 | MB7: =($AC7*($LV7/Control!$C$124)+$LP7*$LY7)/($AC7+$LP7) -> 0.05373840132 | MC7: 0.08714580611 | MD7: 0.05373840132 | ME7: 0.05060892045 | MF7: =$AA7-$Y7 -> 0.1024094902 | MG7: 0.1220091225 | MH7: =IF((MH6+MG7-I7)<0,0,MH6+MG7-I7) -> 0.1220091225 | MI7: =($AC7*($LW7/Control!$C$124)+$LP7*$LZ7)/($AC7+$LP7) -> 0.1047741085 | MJ7: =IF(Control!$B$17>=1000,0.92,IF(AND(720<=Control!$B$17,1000>Control!$B$17),(0.95+(Control!$B$17-720)*((0.92-0.95)/(1000-720))),IF(AND(360<=Control!$B$17,720>Control!$B$17),(1+(Control!$B$17-360)*((0.95-1)/(720-360))),IF(AND(40<=Control!$B$17,360>Control!$B$17),(1.05+(Control!$B$17-40)*((1.05-1)/(360-40))))))) -> 0.9956043981 | MK7: 0.1047741085 | ML7: 0.1043135632 | MM7: 0.1043135632 | MN7: =MAX(0.0001, Control!$C$115*$MM7*$DM7) -> 0.006074749009 | MO7: =1/(0.76+1.5*($MK7/10))-(5-Control!$C$93)*0.1 -> 1.139131396 | MP7: =IF(Control!$C$93<3,$MO7+($MK7-0.6)/(Control!$C$93*(Control!$C$93+3)), MAX(0.1, MIN(0.95,$MO7))) -> 0.95 | MQ7: =IF(Control!$C$93<3,$MO7+(($MM7/10)-0.6)/(Control!$C$93*(Control!$C$93+3)), MAX(0.1, MIN(0.95,$MO7))) -> 0.95 | MR7: =(1-$MQ7)*(Control!$C$111-Control!$C$110)+Control!$C$110 -> 0.16 | MS7: =MAX(0,MIN(1,($MW7-Control!$C$110)/($MR7-Control!$C$110))) -> 1 | MT7: =1/(0.76+1.5*$MM7)-(5-Control!$C$93)*0.1 -> 0.9411427801 | MU7: =$MU6+$NP6 -> 0.8 | MV7: =$MV6+$OM6 -> 350 | MW7: =MAX(Control!$C$110, MIN(Control!$C$117, $MV7/MAX(0.0001,$CZ7))) -> 0.35 | MX7: =(Control!$C$111-$MW7)*Control!$C$57 -> 0 | MY7: =(Control!$C$117-$MW7)*Control!$C$57 -> 100 | MZ7: =$MZ6+$OE6 -> 200 | NA7: =$NA6+$ON6 -> 0 | NB7: =MAX(Control!$C$110, MIN(Control!$C$117, $NA7/MAX(0.0001,Control!$C$102-$CZ7))) -> 0.15 | NC7: =IF(Control!$C$97=1, $CY7*$NB7, 0) -> 0 | ND7: =$ND6+$NC6 -> 0 | NE7: =(Control!$C$111-$NB7)*(Control!$C$102-Control!$C$57) -> 0 | NF7: =(Control!$C$117-$NB7)*(Control!$C$102-Control!$C$57) -> 0 | NG7: =IF($NP6>=5, 1, $NG6+1) -> 2 | NH7: =IF(Control!$C$41=2, IF(OR(Control!$B$200=$AH7,Control!$B$201=$AH7, Control!$B$202=$AH7, Control!$B$203=$AH7, Control!$B$204=$AH7, Control!$B$205=$AH7, Control!$B$206=$AH7, Control!$B$207=$AH7, Control!$B$208=$AH7, Control!$B$209=$AH7, Control!$B$210=$AH7), 1, 0), 0) -> 0 | NI7: =IF($NH7=0,0, VLOOKUP($AH7,Control!$B$200:$C$210,2)) -> 0 | NJ7: =$CZ7*(Control!$C$111-Control!$C$110) -> 200 | NK7: =IF(Control!$C$41=2, $NM6-$NN6, 0) -> 0 | NL7: =IF(AND(Control!$C$41=1, $MW6<= ($MR6+0.02), $I6<10), 0, IF(Control!$C$41=2, $NK6, 0)) -> 0 | NM7: =IF(Control!$C$41=2, $NI7+$NL7,0) -> 0 | NN7: =IF(AND(Control!$C$41=1, $MW7<= ($MR7+0.02), $I7<10), MAX(0, MIN(10, 0.7*($NJ7-$MZ7))), IF(Control!$C$41=2, MIN(10,$NM7),0)) -> 0 | NO7: 0 | NP7: =(1-Control!$C$56)*$I7+$NN7 -> 0 | NQ7: =IF($NP7<5, $ME7* MAX(0, MIN(1, (SQRT($NG7)-SQRT($NG7-1))*Control!$C$54)),0) -> 0.04192580246 | NR7: =IF($NP7>=5, $ME7, MAX(0,MIN($ME7, $NQ7+$NP7,($MW7-Control!$C$112)))) -> 0.04192580246 | NS7: =IF(Control!$C$116<>1, Control!$C$117-Control!$C$114, 0) -> 0.38 | NT7: 0 | NU7: =MAX(0,MIN(1,(Control!$C$117-$MW7)/(Control!$C$117-$NS7))) -> 1 | NV7: =IF(Control!$C$116<>1, $NU7+((1-$NT7/4)*(1-$NU7)),1) -> 1 | NW7: =IF(Control!$E$26=0,$MN7,MAX(0,MIN($MZ7,$MS7*$NV7*$MN7))) -> 0.006074749009 | NX7: =$NW7/$MN7 -> 1 | NY7: =$NY6+$NX7 -> 2 | NZ7: 2 | OA7: =$NP7-$NR7-$NW7 -> -0.04800055147 | OB7: =MIN(Control!$C$55+$MY7, $OA7) -> -0.04800055147 | OC7: =IF($MX7<=$OB7,MIN(Control!$C$55+$NF7,$OB7-$MX7),0) -> 0 | OD7: =IF(Control!$C$97=1, $CY7*($NB7-Control!$C$110), 0) -> 0 | OE7: =$OB7-$OC7+$OD7 -> -0.04800055147 | OF7: =IF($NE7 <=$OC7, MIN(Control!$C$55, $OC7-$NE7), 0) -> 0 | OG7: 0 | OH7: =$OH6+$OG6 -> 0 | OI7: =Control!$C$56*$I7 -> 0 | OJ7: =$OI7+MAX(0,$OA7-$OB7) -> 0 | OK7: 0 | OL7: 0 | OM7: =$OB7-$OC7+$NC7 -> -0.04800055147 | ON7: 0 | OO7: =$OK7+$OL7 -> 0 | OP7: =Control!$C$110 -> 0.15 | OQ7: 150 | OR7: =Control!$C$111 -> 0.35 | OS7: 350 | OT7: =$OT6+$I6 -> 1.6 | OU7: =$OU6+$NN6 -> 0 | OV7: =$OT7+$OU7 -> 1.6 | OW7: =$OW6+$OJ6 -> 0 | OX7: =$OX6+$OF6 -> 1.322064069 | OY7: =$OY6+$NW6 -> 0.01044175428 | OZ7: =$OZ6+$NR6 -> 0.1285262111 | PA7: =$PA6+$OM7 -> -0.04800055147 | PB7: =$PB6+$OM6 -> 0 | PC7: =$PC6+$ON6 -> 0 | PD7: 349.9519994 | PE7: 0 | PF7: =IF(Control!$C$44="T", IF(Control!$C$48="F", IF($AH$6-Control!$C$43<0,0,1), IF(365+$AH$6-Control!$C$43<0,0,1)),0) -> 0 | PG7: =IF(Control!$C$48="F", IF($AH$6-$HI7<0,0,1), IF(365+$AH$6-$HI7<0,0,1)) -> 1 | PH7: =Control!$C$101 -> 1500 | PI7: 0 | PJ7: =$MI7 -> 0.1047741085 | PK7: =PK6+1 -> 2 | PL7: =ES7+ER7 -> 0
A8: 3 | B8: 1 | C8: =Weather_data!$B7 -> 2011 | D8: =Weather_data!$F7 -> 1.887 | E8: =Weather_data!$E7 -> -0.995 | F8: 2.882 | G8: =AVERAGE($D8:$E8)+Control!$B$9 -> 0.446 | H8: =Weather_data!$G7 -> 0.5082919174 | I8: =Weather_data!$I7+Control!$B$14 -> 0 | J8: =Weather_data!$H7 -> 0.766374 | K8: =Weather_data!$D7 -> 2219 | L8: 0.08458701497 | M8: 348.377555 | N8: -0.415089 | O8: 4.59689 | P8: 3 | Q8: =MAX($G8-Control!$C$90,0) -> 0 | R8: 0 | S8: 0 | T8: 0 | U8: 0 | V8: =MAX(0,MIN(Control!$C$83-Control!$C$82,$G8-Control!$C$82)*Control!$C$46) -> 0 | W8: =$D8-0.25*($D8-$E8) -> 1.1665 | X8: 0.6311267865 | Y8: 0.5082919174 | Z8: 0.6306896185 | AA8: 0.6246165653 | AB8: =101.3*EXP(-0.034*Control!$C$49/($G8+273)) -> 99.70053273 | AC8: =(239*17*$X8/($G8+239)^2) -> 0.0447247851 | AD8: 0.04574195061 | AE8: 0.8059303698 | AF8: =MAX(0,$G8-Control!$C$75) -> 0 | AG8: 2011-01-03 | AH8: 3 | AI8: -0.3984892505 | AJ8: =IF(Control!$C$43<=0,$HK8,$HL8) -> 1 | AK8: -1.325493887 | AL8: 1.735790331e-18 | AM8: -1.325493887 | AN8: -0.3961738989 | AO8: =-0.10453/COS(Control!$B$8*PI()/180)*COS(AN8) -> -0.1560021661 | AP8: =ACOS(AO8-TAN(Control!$B$8*PI()/180)*TAN(AN8)) -> 1.185425576 | AQ8: 2.219 | AR8: =$AQ8*0.5 -> 1.1095 | AS8: =IF(Control!$E$7=2,(IF(OR($AH8=Control!$B$158,$AH8=Control!$B$159,$AH8=Control!$B$160,$AH8=Control!$B$161,$AH8=Control!$B$162,$AH8=Control!$B$163,$AH8=Control!$B$164,$AH8=Control!$B$165,$AH8=Control!$B$166,$AH8=Control!$B$167,$AH8=Control!$B$168),1,0)),0) -> 0 | AT8: =IF(Control!$E$9=1,IF(AND($AH8>=Control!$B$155,$AH8<=Control!$B$156),1,0),0) -> 0 | AU8: =IF(Control!$E$9=1,IF($AV7=1,1*$AT8,IF($AT8=1,$AU7+1,$AU7)),0) -> 0 | AV8: =IF(Control!$E$9=1,IF($AU8>=Control!$B$157,1,0),0) -> 0 | AW8: =IF(Control!$E$7=1,IF($EC7+$EE7+$EG7+$EF7-$EP7+$EL7+$EK7-$EQ7>=Control!$E$8,1,0),0) -> 0 | AX8: =IF(Control!$E$7=1,AW8,IF(AND(Control!$E$7=2,Control!$B$154=1),$AV8,$AS8)) -> 0 | AY8: =IF(AND(Control!$E$7=1,$EX8>=Control!$E$8),-$AZ8,IF(AND(Control!$E$7=2,$AX8=1,$EX8>$DT8),-$AZ8, IF(Control!$C$91=0,0, IF(Control!$C$91<>0,1)))) -> 1 | AZ8: 2 | BA8: =IF(AND(Control!$E$7=1,$EC8>Control!$E$8),$BA7+1, IF(AND(Control!$E$7=2, $AX8=1, $EC8>$DT8), $BA7+1,$BA7)) -> 0 | BB8: =IF(Control!$C$64=0,1,IF($AH8>=Control!$C$65,1,0)) -> 1 | BC8: =IF($BB8>$BB7,Control!$C$66,IF($AX8>0,$AX8*Control!$C$67,0)) -> 0 | BD8: 0 | BE8: =BD8*IF(OR($G8<Control!$C$75,$G8>Control!$C$78),0,IF(AND($G8>=Control!$C$75,$G8<=Control!$C$76),$G8-Control!$C$75,IF(AND($G8>Control!$C$76,$G8<=Control!$C$77),Control!$C$76-Control!$C$75,IF(AND($G8>Control!$C$77,$G8<=Control!$C$78),(Control!$C$76-Control!$C$75)*(Control!$C$77-$G8)/(Control!$C$78-Control!$C$77))))) -> 0 | BF8: 0 | BG8: =IF($BF8<=Control!$C$69,$BF8,Control!$C$69-$BF8) -> 0 | BH8: =IF(AND($AX8=1,Control!$C$67<9),1,IF($BF8>=Control!$C$69,0,$BD8)) -> 0 | BI8: =IF($BH8=0,0,IF($BF8<=Control!$C$69,$BD8*9*($BG8/Control!$C$69),0)) -> 0 | BJ8: =IF($BH8=1,0,IF($BF8>=Control!$C$69,1,IF(AND($BC8<21,$BC8>=9),1,$BN7))) -> 0 | BK8: =IF($BG8<0,-$BG8,$BJ8*IF(OR($G8<Control!$C$75,$G8>Control!$C$78),0,IF(AND($G8>=Control!$C$75,$G8<=Control!$C$76),$G8-Control!$C$75,IF(AND($G8>Control!$C$76,$G8<=Control!$C$77),Control!$C$76-Control!$C$75,IF(AND($G8>Control!$C$77,$G8<=Control!$C$78),(Control!$C$76-Control!$C$75)*(Control!$C$77-$G8)/(Control!$C$78-Control!$C$77)))))) -> 0 | BL8: 0 | BM8: =IF($BL8<=Control!$C$70,$BL8,Control!$C$70-$BL8) -> 0 | BN8: =IF(AND($BC8>=9,$BC8<21),1,IF($BL8>=Control!$C$70,0,$BJ8)) -> 0 | BO8: =IF($BN8=0,0,IF($BL8<=Control!$C$70,$BJ8*(9+(21-9)*($BM8/Control!$C$70)),0)) -> 0 | BP8: =IF($BN8=1,0,IF($BL8>=Control!$C$70,1,IF(AND($BC8<30,$BC8>=21),1,$BT7))) -> 1 | BQ8: =IF($BM8<0,-$BM8,$BP8*IF(OR($G8<Control!$C$75,$G8>Control!$C$78),0,IF(AND($G8>=Control!$C$75,$G8<=Control!$C$76),$G8-Control!$C$75,IF(AND($G8>Control!$C$76,$G8<=Control!$C$77),Control!$C$76-Control!$C$75,IF(AND($G8>Control!$C$77,$G8<=Control!$C$78),(Control!$C$76-Control!$C$75)*(Control!$C$77-$G8)/(Control!$C$78-Control!$C$77)))))) -> 0 | BR8: 1.811 | BS8: =IF($BR8<=Control!$C$71,$BR8,Control!$C$71-$BR8) -> 1.811 | BT8: =IF(AND($BC8>=21,$BC8<30),1,IF($BR8>=Control!$C$71,0,$BP8)) -> 1 | BU8: =IF($BT8=0,0,IF($BR8<=Control!$C$71,$BP8*(21+(30-21)*(BS8/Control!$C$71)),0)) -> 21.10866 | BV8: =IF(BH8+BN8+BT8=1,0,IF(OR(AND($BC8<60,$BC8>=30),$BR8>=Control!$C$71),1*$BB8,$BZ7)) -> 0 | BW8: =IF($BS8<0,-$BS8,$BV8*IF(OR($G8<Control!$C$75,$G8>Control!$C$78),0,IF(AND($G8>=Control!$C$75,$G8<=Control!$C$76),$G8-Control!$C$75,IF(AND($G8>Control!$C$76,$G8<=Control!$C$77),Control!$C$76-Control!$C$75,IF(AND($G8>Control!$C$77,$G8<=Control!$C$78),(Control!$C$76-Control!$C$75)*(Control!$C$77-$G8)/(Control!$C$78-Control!$C$77)))))) -> 0 | BX8: 0 | BY8: =IF($BX8<=Control!$C$72,$BX8,Control!$C$72-$BX8) -> 0 | BZ8: =IF(AND($AJ8>=30,$AJ8<60),1,IF($BX8>=Control!$C$72,0,$BV8)) -> 0 | CA8: =IF($BZ8=0,0,IF($BX8<=Control!$C$72,$BV8*(30+(60-30)*(BY8/Control!$C$72)),0)) -> 0 | CB8: =IF($BH8+$BN8+$BT8+$BZ8=1,0,IF(OR(AND($BC8<65,$BC8>=60),$BX8>=Control!$C$72),1*$BB8,$CF7)) -> 0 | CC8: =IF($BY8<0,-$BY8,$CB8*IF(OR($G8<Control!$C$75,$G8>Control!$C$78),0,IF(AND($G8>=Control!$C$75,$G8<=Control!$C$76),$G8-Control!$C$75,IF(AND($G8>Control!$C$76,$G8<=Control!$C$77),Control!$C$76-Control!$C$75,IF(AND($G8>Control!$C$77,$G8<=Control!$C$78),(Control!$C$76-Control!$C$75)*(Control!$C$77-$G8)/(Control!$C$78-Control!$C$77)))))) -> 0 | CD8: 0 | CE8: =IF($CD8<=Control!$C$73,$CD8,Control!$C$73-$CD8) -> 0 | CF8: =IF(AND($BC8>=60,$BC8<65),1,IF($CD8>=Control!$C$73,0,$CB8)) -> 0 | CG8: =IF($CF8=0,0,IF($CD8<=Control!$C$73,$CB8*(60+(65-60)*(CE8/Control!$C$73)),0)) -> 0 | CH8: =IF($BH8+$BN8+$BT8+$BZ8+$CF8=1,0,IF(OR(AND($BC8<90,$BC8>=65),$CD8>=Control!$C$73),$BB8,$CL7)) -> 0 | CI8: =IF($CE8<0,-$CE8,$CH8*IF(OR($G8<Control!$C$75,$G8>Control!$C$78),0,IF(AND($G8>=Control!$C$75,$G8<=Control!$C$76),$G8-Control!$C$75,IF(AND($G8>Control!$C$76,$G8<=Control!$C$77),Control!$C$76-Control!$C$75,IF(AND($G8>Control!$C$77,$G8<=Control!$C$78),(Control!$C$76-Control!$C$75)*(Control!$C$77-$G8)/(Control!$C$78-Control!$C$77)))))) -> 0 | CJ8: 0 | CK8: =IF($CJ8<=Control!$C$74,$CJ8,Control!$C$74-$CJ8) -> 0 | CL8: =IF(AND($BC8>=65,$BC8<90),1,IF($CJ8>=Control!$C$74,0,$CH8)) -> 0 | CM8: =IF($CL8=0,0,IF($CJ8<=Control!$C$74,$CH8*(65+(90-65)*($CK8/Control!$C$74)),0)) -> 0 | CN8: =IF($BH8+$BN8+$BT8+$BZ8+$CF8+$CL8=1,0,IF(OR($BC8>=90,$CJ8>=Control!$C$74),$BB8,$CN7)) -> 0 | CO8: 0 | CP8: 1.811 | CQ8: =BI8+BO8+BU8+CA8+CG8+CM8+CO8 -> 21.10866 | CR8: =VLOOKUP($CQ8,Control!$B$69:$G$74,6) -> 0.15 | CS8: =(1-$CR8)*VLOOKUP($CQ8,Control!$B$69:$D$74,3) -> 0.765 | CT8: =(1-$CR8)*VLOOKUP($CQ8,Control!$B$69:$E$74,4) -> 0.085 | CU8: =(1-$CR8)*VLOOKUP($CQ8,Control!$B$69:$F$74,5) -> 0 | CV8: 1.811 | CW8: 1.811 | CX8: 2011-01-03 | CY8: =IF(Control!$C$97=1,(MIN(Control!$C$103*(IF($NX8-0.01<0,0,1)),Control!$C$102-$CZ8))) -> 0 | CZ8: =$CZ7+$CY7 -> 1000 | DA8: 0.319378 | DB8: 0.0459689 | DC8: 0.693 | DD8: 0.104185292 | DE8: =IF($DF7<14000,(($DD7-$DY7)*$DB7*$DF7),(-$DY7*$DB7*$DF7)) -> 41.51731428 | DF8: 7042.163013 | DG8: =$DS8*EXP(-Control!$C$141*(1-$KK8)) -> 0.0025 | DH8: =IF(Control!$C$97=1, $DG8*$FB8, 0) -> 0 | DI8: 0 | DJ8: =IF($DJ7+$DI7<0,0,$DJ7+$DI7) -> 0.09431227915 | DK8: =$EG8*Control!$C$92 -> 0.03683527182 | DL8: 0.131147551 | DM8: 0.05501607998 | DN8: =IF(Control!$C$97=1, (1-EXP(-Control!$C$79*$DJ8))*$AR8, 0) -> 0.06104034074 | DO8: 1.4525 | DP8: =Control!$C$80 -> 4 | DQ8: 0.000358992236 | DR8: =IF(AND($CQ8>=0,$CQ8<=90),Control!$C$94,Control!$C$94) -> 0.0025 | DS8: 0.0025 | DT8: =Control!$E$15/DS8 -> 200 | DU8: =IF(AND(Control!$C$97=1,$KK8<1),$IP8*$DG8, 0) -> 0 | DV8: =$DV7+$DX7 -> 0.4114511191 | DW8: =IF($G8-Control!$C$90<=0, 0, 0.83*LN(MAX($G8, 3))-0.8924) -> 0 | DX8: 0 | DY8: =MAX(0.01*(1+$CV8/Control!$C$85),0.05*($DL8-Control!$C$80)/Control!$C$80) -> 0.01003018333 | DZ8: =IF(Control!$C$97=1, $DJ8*$FV8, 0) -> 0 | EA8: 0 | EB8: 2011-01-03 | EC8: =$EC7+$EE7 -> 262.7139801 | ED8: 294.6821746 | EE8: =IF(Control!$C$97=1, $HP8*$GB8-$FG8, 0) -> 0 | EF8: =IF(Control!$C$97=1, $HP8*$GC8-$FI8, 0) -> 0 | EG8: =$EG7+$EF7-$EP7 -> 29.46821746 | EH8: =IF(Control!$C$97=1, $HA8*$FZ8-$FL8, 0) -> 0 | EI8: 52.00273669 | EJ8: -52.00273669 | EK8: =IF(Control!$C$97=1, $HP8*$GE8, 0) -> 0 | EL8: =$EL7+$EK7-$EQ7 -> 0 | EM8: 292.1821976 | EN8: 62.71398013 | EO8: =IF(Control!$C$91=0,0,IF(AND($AX8=1,$EC8>$DT8),$EC8-$DT8,0)) -> 0 | EP8: =IF(Control!$C$91=0,0,IF($AX8=1,$EG8*EO8/EC8,0)) -> 0 | EQ8: =IF(Control!$C$91=0,0,IF($AX8=1,$EL8,0)) -> 0 | ER8: 0 | ES8: =$EO8+$EP8+$EQ8 -> 0 | ET8: =$ET7+$EO7 -> 0 | EU8: =$EU7+$EP7 -> 0 | EV8: =$EV7+$EQ7 -> 0 | EW8: =EW7+ER7 -> 0 | EX8: =ET8+EU8+EV8 -> 0 | EY8: 262.7139801 | EZ8: =$ET8+MAX(0,$EN8) -> 62.71398013 | FA8: 294.6821746 | FB8: 0 | FC8: 0 | FD8: =$FD7+$HF7 -> 153.6208328 | FE8: 294.6821746 | FF8: 265.2139571 | FG8: =IF($EO8<=0, MIN(($DJ8-0.08)/$DG8, $IB8+$IP8), $EO8) -> 0 | FH8: 0 | FI8: 0 | FJ8: 0 | FK8: 0 | FL8: 0 | FM8: 0 | FN8: -52.00273669 | FO8: =$FO7+$FG7 -> 2.499976999 | FP8: 2.499976999 | FQ8: =IF(AND($G8<=50,$G8>=30),(0.05+($G8-30)*((0.09-0.05)/(50-30))),IF(AND($G8<30,$G8>=15),(0.02+($G8-15)*((0.05-0.02)/(30-15))),IF(AND($G8<15,$G8>=10),(0.01+($G8-10)*((0.02-0.01)/(15-10))),IF(AND($G8<10,$G8>=-10),($G8+10)*((0.02-0)/(10+10)),IF($G8=-10,0))))) -> 0.010446 | FR8: =Control!$C$84 -> 50 | FS8: 0 | FT8: =MAX(0,(Control!$C$95*(($DL8-Control!$C$80)/Control!$C$80))) -> 0 | FU8: =(1-$NX8)*Control!$C$96 -> 0 | FV8: 0 | FW8: 2011-01-03 | FX8: =IF(Control!$B$20=1,VLOOKUP($CQ8,Control!$B$69:$G$74,6),Control!$B$21) -> 0.15 | FY8: 1 | FZ8: =IF(Control!$E$26=1,$FX8*$FY8, $FX8) -> 0.15 | GA8: =IF(Control!$B$20=1,VLOOKUP($CQ8,Control!$B$69:$G$74,3),Control!$B$22) -> 0.9 | GB8: 0.9 | GC8: =IF(Control!$B$20=1,VLOOKUP($CQ8,Control!$B$69:$G$74,4),Control!$B$23) -> 0.1 | GD8: 0.1 | GE8: =IF(Control!$B$20=1,VLOOKUP($CQ8,Control!$B$69:$G$74,5),Control!$B$24) -> 0 | GF8: 0 | GG8: 1 | GH8: 1 | GI8: =IF(AND(Control!$C$87=1, Control!$C$45="F"),$GH8,1) -> 1 | GJ8: =IF(Control!$B$17=40,0,IF(AND(Control!$B$17>40,Control!$B$17<=360),(Control!$B$17-40)*((1-0)/(360-40)),IF(AND(Control!$B$17>360,Control!$B$17<=720),(1+(Control!$B$17-360)*((1.25-1)/(720-360))),IF(AND(Control!$B$17>720,Control!$B$17<=1000),(1.25+(Control!$B$17-720)*((1.35-1.25)/(1000-720))),IF(AND(Control!$B$17>1000,Control!$B$17<=2000),(1.35+(Control!$B$17-1000)*0)))))) -> 1.021978009 | GK8: 1.021978009 | GL8: =IF($E8<=0,0,IF(AND($E8>=3,$E8<=30),1,(($E8-0)*((1-0)/(3-0))))) -> 0 | GM8: 0 | GN8: =IF(AND($AR8>=0,$AR8<=10),1,IF(AND($AR8>=40,$AR8<=42),0.33,((1+($AR8-10)*((0.33-1)/(40-10)))))) -> 1 | GO8: 1 | GP8: =MAX(0,MIN(1,1-Control!$C$139*(1.0001-$KK8)^2)) -> 0.999999989 | GQ8: =IF(Control!$E$21=1,$KX8,$LA8) -> 1 | GR8: =IF($CQ8<=60,Control!$C$88,IF($CQ8>=90,Control!$C$89,Control!$C$88+($CQ8-60)*((Control!$C$89-Control!$C$88)/(90-60)))) -> 2.5 | GS8: 0 | GT8: 0 | GU8: 0 | GV8: 153.6208328 | GW8: 0 | GX8: 0 | GY8: 0 | GZ8: =IF($GV8-$GY8<=0,0,$GV8-$GY8) -> 153.6208328 | HA8: =IF($GV8-$GY8<=0, $GV8, $GY8) -> 0 | HB8: 0 | HC8: =$EG8+$EC8 -> 292.1821976 | HD8: =IF(Control!$C$97=1, $DJ8*$FV8, 0) -> 0 | HE8: =$FD8/Control!$C$47 -> 153.6208328 | HF8: =$GZ8-$HE8 -> 0 | HG8: =-ASIN(SIN(23.45*Control!$C$122)*COS(2*Control!$C$121*($AH8+10)/365)) -> -0.3984892505 | HH8: 0 | HI8: =IF(AND(Control!$C$44="T",$HH8>=Control!$C$86,Control!$C$97=0),$AH8,Control!$C$42) -> 1 | HJ8: =IF(AND(Control!$C$44="T",$HH8>=Control!$C$86,Control!$C$97=0),$HI8,Control!$C$42) -> 1 | HK8: =IF(AND(OR(Control!$C$43<=0, $AH8= Control!$C$42, Control!$C$43 >0, $AH8 = Control!$C$43)), Control!$C$42, IF(Control!$C$43>0, 0)) -> 1 | HL8: =IF(AND(OR(Control!$C$43<=0, $AH8= Control!$C$42, Control!$C$43 >0, $AH8 = Control!$C$43)), Control!$C$43, IF(Control!$C$43<=0, 0)) -> 0 | HM8: =IF(AND(Control!$C$45="F",$CW8>=Control!$C$85),$AH8,0) -> 0 | HN8: 346.6849113 | HO8: =IF(AND(Control!$C$44="T",$HH8>=Control!$C$86,Control!$C$97=0),$HI8,0) -> 0 | HP8: 0 | HQ8: 2011-01-03 | HR8: =IF(AND($CQ8>=0, $CQ8<=90), Control!$C$135, Control!$C$135) -> 0.035 | HS8: 0.035 | HT8: =IF(OR(Control!$E$21=1,Control!$E$21=2),$KY8,$KV8) -> 0.09893450809 | HU8: =$HU7-$HT7 -> 199.7919333 | HV8: =Control!$C$137*$HS8 -> 0.0175 | HW8: =Control!$C$138*$HS8 -> 0.0175 | HX8: =Control!$C$144*$FL8 -> 0 | HY8: 0 | HZ8: =Control!$C$143*$FI8+$IS8*$EP8 -> 0 | IA8: =$IA7+$HZ7 -> 0 | IB8: =IF(Control!$C$97=1, $EC8*$FV8, 0) -> 0 | IC8: 1.416980427 | ID8: =Control!$C$136*$HR8 -> 0.035 | IE8: 9.194989305 | IF8: =Control!$C$136*$HW8 -> 0.0175 | IG8: 0.5156938055 | IH8: =($EC8*Control!$C$142+$EG8*Control!$C$143)/(IF($HC8<>0,$HC8,1)) -> 0.009495721887 | II8: 0.0332350266 | IJ8: =IF(OR(Control!$B$180=$AH8,Control!$B$181=$AH8, Control!$B$182=$AH8, Control!$B$183=$AH8, Control!$B$184=$AH8, Control!$B$185=$AH8, Control!$B$186=$AH8, Control!$B$187=$AH8, Control!$B$188=$AH8, Control!$B$189=$AH8), 1, 0) -> 0 | IK8: =IF($IJ8=0,0, VLOOKUP($AH8,Control!$B$180:$C$189,2)) -> 0 | IL8: 0 | IM8: =Control!$C$104 -> 0.7 | IN8: =$IK8*$IM8 -> 0 | IO8: =$IO7+$KG7 -> 0.5156938055 | IP8: =IF(AND(Control!$C$97=1,$KK8<1),$EC8*Control!$C$131*(1-$KK8), 0) -> 0 | IQ8: 1 | IR8: =MAX(0,$IO8-$EG8*Control!$C$143) -> 0.3683527182 | IS8: 0.0175 | IT8: 9.2824885 | IU8: =$IT8+$IO8 -> 9.798182305 | IV8: =Control!$C$142*MAX(0,$FG8-$EO8) -> 0 | IW8: =$IW7+$IV8 -> 0.02499976999 | IX8: 0 | IY8: =$IY7+$IX8 -> 0 | IZ8: =IF(OR($AX8=1,AND($AX8=0, Control!$E$7=1,$EO8<>0)), $IT8-$IX8, $IT8) -> 9.2824885 | JA8: 0 | JB8: =MAX(0,$IT8-$EC8*Control!$C$142) -> 6.655348698 | JC8: 0 | JD8: 0.03533305877 | JE8: 0 | JF8: =MAX(Control!$C$140*$EL8-$JW8, 0)/Control!$C$145 -> 0 | JG8: 0 | JH8: 9.798182305 | JI8: =$JI7+$JY7 -> 0.9100478921 | JJ8: 0 | JK8: 0 | JL8: =MAX(0, $JC8+$JE8+$JJ8-JK8) -> 0 | JM8: =$JM7+$JO7 -> 73.79108628 | JN8: =IF(Control!$C$97=1,IF(Control!$E$18=0,MAX(0,$JL8)*$GQ8/Control!$C$47,(MAX(0,MIN($JL8,$JM8*$GQ8/Control!$C$47),0)))) -> 0 | JO8: =$IN8/Control!$C$47-$JN8+$HT8 -> 0.09893450809 | JP8: =IF(Control!$C$97=1,($JE8/(IF($JL8<>0,$JL8,1)))*$JN8,0) -> 0 | JQ8: =IF(Control!$C$97=1,($JJ8/(IF($JL8<>0,$JL8,1)))*$JN8, 0) -> 0 | JR8: 10.7082302 | JS8: =MIN(($JB8+$IR8)*Control!$C$134, $JI8-$EI8*Control!$C$144) -> 0.6500342087 | JT8: 7.673735625 | JU8: =IF($CQ8-Control!$C$133<0, 0, $JT8/Control!$C$145) -> 0 | JV8: 0 | JW8: 0 | JX8: 0 | JY8: 0 | JZ8: 0.0175 | KA8: 0.03353449452 | KB8: 0.9100478921 | KC8: =IF(Control!$C$97=1,($JC8/(IF($JL8<>0,$JL8,1)))*$JN8, 0) -> 0 | KD8: =KD7+JN7 -> 1.416980427 | KE8: 10.7082302 | KF8: 0 | KG8: 0 | KH8: 0 | KI8: 0 | KJ8: =$IU8/IF($HC8<>0, $HC8, 1) -> 0.03353449452 | KK8: =IF(Control!$E$18=0,1,MAX(0.001,MIN(1,IF(($II8-$IH8)<>0,($KJ8-$IH8)/($II8-$IH8),1)))) -> 1 | KL8: =IF(Control!$C$97=1, $KL7+ $KK7, 0) -> 1.811474703 | KM8: 0.9057373516 | KN8: 1.416980427 | KO8: =IF(Control!$E$21=3,4000000000*EXP(-8400/($O8+273)),IF(Control!$E$21=4,4000000000*EXP(-8400/($O8+273))*($KW8),0)) -> 0.0001649281522 | KP8: =IF(Control!$E$21=3,5600000000000*EXP(-9800/($O8+273)),IF(Control!$E$21=4,5600000000000*EXP(-9800/($O8+273))*$KW8,0)) -> 0.001489883617 | KQ8: 149.9483518 | KR8: 49.84358153 | KS8: 199.7919333 | KT8: 0.0247286653 | KU8: 0.07420584279 | KV8: =$KT8+$KU8 -> 0.09893450809 | KW8: 0.571291427 | KX8: =IF($CQ8-Control!$C$132<0, IF($NX8-0.01<0,0,1),0) -> 1 | KY8: =IF(Control!$C$97=1,MAX(0,MIN(Control!$C$108*$KZ8*$GQ8,$KZ8))) -> 1.782421875 | KZ8: =KZ7-KY7 -> 71.296875 | LA8: =IF($CQ8-Control!$C$132<0, IF($MV8-$OQ8<0,0,1),0) -> 1 | LB8: 2011-01-03 | LC8: =1370*(1+0.033*COS(2*Control!$C$121*$AH8/365)) -> 1415.149726 | LD8: 1.032956005 | LE8: -0.3980009572 | LF8: =ACOS(-TAN((2*Control!$B$8/360))*TAN(Calculations!$LE8)) -> 1.445978094 | LG8: =((24*60)/PI())*0.082*$LD8*(($LF8*SIN(Control!$B$8*2*PI()/360))*SIN($LE8)+COS(Control!$B$8*2*PI()/360)*COS($LE8)*SIN($LF8)) -> 4.848374718 | LH8: 6.467571854 | LI8: =SIN(Control!$C$122*Control!$B$8)*SIN($HG8) -> -0.3050110291 | LJ8: =COS(Control!$C$122*Control!$B$8)*COS($HG8) -> 0.5697201022 | LK8: =12*(1+2*ASIN(MAX(-1,MIN(1,$LI8/$LJ8))/Control!$C$121)) -> 7.890025441 | LL8: =12*(1+2*ASIN(MAX(-1,MIN(1,(-SIN(-4*Control!$C$122)+$LI8)/$LJ8))/Control!$C$121)) -> 8.836301791 | LM8: =3600*($LK8*$LI8+24*$LJ8*SQRT(1-$LN8*$LN8)/Control!$C$121) -> 4570.238564 | LN8: -0.5353699614 | LO8: 0.3430963042 | LP8: =Control!$C$128*$AB8 -> 0.06600175267 | LQ8: 0.54 | LR8: 0.2555291146 | LS8: =Control!$C$123*((($D8+273.16)^4+($E8+273.16)^4)/2)*(0.34-0.14*SQRT($Y8))*(1.35*$AQ8/(0.75*$LG8)-0.35) -> 3.125625861 | LT8: =Control!$C$123*($G8+273)^4*(0.56-0.079*SQRT($Y8*10))*(0.1+0.9*$LR8) -> 3.452275427 | LU8: =$AQ8*(1-Control!$C$125)-$LT8 -> -1.344225427 | LV8: =$AQ8*(1-Control!$C$126)-$LT8 -> -1.566125427 | LW8: =$AQ8*(1-Control!$C$127)-$LT8 -> -1.788025427 | LX8: =(1-Control!$C$127)*AQ8-LS8 -> -1.461375861 | LY8: 0.2918543095 | LZ8: 0.4515396392 | MA8: =($AC8*($LU8/Control!$C$124)+$LP8*$LY8)/($AC8+$LP8) -> -0.04764854548 | MB8: =($AC8*($LV8/Control!$C$124)+$LP8*$LY8)/($AC8+$LP8) -> -0.08423225667 | MC8: 0 | MD8: 0 | ME8: 0 | MF8: 0.1163246478 | MG8: -0.06132457019 | MH8: 0.06068455233 | MI8: =($AC8*($LW8/Control!$C$124)+$LP8*$LZ8)/($AC8+$LP8) -> -0.02563091238 | MJ8: =IF(Control!$B$17>=1000,0.92,IF(AND(720<=Control!$B$17,1000>Control!$B$17),(0.95+(Control!$B$17-720)*((0.92-0.95)/(1000-720))),IF(AND(360<=Control!$B$17,720>Control!$B$17),(1+(Control!$B$17-360)*((0.95-1)/(720-360))),IF(AND(40<=Control!$B$17,360>Control!$B$17),(1.05+(Control!$B$17-40)*((1.05-1)/(360-40))))))) -> 0.9956043981 | MK8: 0 | ML8: 0 | MM8: 0 | MN8: =MAX(0.0001, Control!$C$115*$MM8*$DM8) -> 0.0001 | MO8: =1/(0.76+1.5*($MK8/10))-(5-Control!$C$93)*0.1 -> 1.165789474 | MP8: =IF(Control!$C$93<3,$MO8+($MK8-0.6)/(Control!$C$93*(Control!$C$93+3)), MAX(0.1, MIN(0.95,$MO8))) -> 0.95 | MQ8: =IF(Control!$C$93<3,$MO8+(($MM8/10)-0.6)/(Control!$C$93*(Control!$C$93+3)), MAX(0.1, MIN(0.95,$MO8))) -> 0.95 | MR8: =(1-$MQ8)*(Control!$C$111-Control!$C$110)+Control!$C$110 -> 0.16 | MS8: =MAX(0,MIN(1,($MW8-Control!$C$110)/($MR8-Control!$C$110))) -> 1 | MT8: =1/(0.76+1.5*$MM8)-(5-Control!$C$93)*0.1 -> 1.165789474 | MU8: =$MU7+$NP7 -> 0.8 | MV8: =$MV7+$OM7 -> 349.9519994 | MW8: =MAX(Control!$C$110, MIN(Control!$C$117, $MV8/MAX(0.0001,$CZ8))) -> 0.3499519994 | MX8: =(Control!$C$111-$MW8)*Control!$C$57 -> 0.04800055147 | MY8: =(Control!$C$117-$MW8)*Control!$C$57 -> 100.0480006 | MZ8: =$MZ7+$OE7 -> 199.9519994 | NA8: 0 | NB8: =MAX(Control!$C$110, MIN(Control!$C$117, $NA8/MAX(0.0001,Control!$C$102-$CZ8))) -> 0.15 | NC8: =IF(Control!$C$97=1, $CY8*$NB8, 0) -> 0 | ND8: 0 | NE8: =(Control!$C$111-$NB8)*(Control!$C$102-Control!$C$57) -> 0 | NF8: =(Control!$C$117-$NB8)*(Control!$C$102-Control!$C$57) -> 0 | NG8: 3 | NH8: =IF(Control!$C$41=2, IF(OR(Control!$B$200=$AH8,Control!$B$201=$AH8, Control!$B$202=$AH8, Control!$B$203=$AH8, Control!$B$204=$AH8, Control!$B$205=$AH8, Control!$B$206=$AH8, Control!$B$207=$AH8, Control!$B$208=$AH8, Control!$B$209=$AH8, Control!$B$210=$AH8), 1, 0), 0) -> 0 | NI8: =IF($NH8=0,0, VLOOKUP($AH8,Control!$B$200:$C$210,2)) -> 0 | NJ8: =$CZ8*(Control!$C$111-Control!$C$110) -> 200 | NK8: =IF(Control!$C$41=2, $NM7-$NN7, 0) -> 0 | NL8: =IF(AND(Control!$C$41=1, $MW7<= ($MR7+0.02), $I7<10), 0, IF(Control!$C$41=2, $NK7, 0)) -> 0 | NM8: =IF(Control!$C$41=2, $NI8+$NL8,0) -> 0 | NN8: =IF(AND(Control!$C$41=1, $MW8<= ($MR8+0.02), $I8<10), MAX(0, MIN(10, 0.7*($NJ8-$MZ8))), IF(Control!$C$41=2, MIN(10,$NM8),0)) -> 0 | NO8: 0 | NP8: =(1-Control!$C$56)*$I8+$NN8 -> 0 | NQ8: =IF($NP8<5, $ME8* MAX(0, MIN(1, (SQRT($NG8)-SQRT($NG8-1))*Control!$C$54)),0) -> 0 | NR8: =IF($NP8>=5, $ME8, MAX(0,MIN($ME8, $NQ8+$NP8,($MW8-Control!$C$112)))) -> 0 | NS8: =IF(Control!$C$116<>1, Control!$C$117-Control!$C$114, 0) -> 0.38 | NT8: 0 | NU8: =MAX(0,MIN(1,(Control!$C$117-$MW8)/(Control!$C$117-$NS8))) -> 1 | NV8: =IF(Control!$C$116<>1, $NU8+((1-$NT8/4)*(1-$NU8)),1) -> 1 | NW8: =IF(Control!$E$26=0,$MN8,MAX(0,MIN($MZ8,$MS8*$NV8*$MN8))) -> 0.0001 | NX8: =$NW8/$MN8 -> 1 | NY8: 3 | NZ8: 1.5 | OA8: -0.0001 | OB8: =MIN(Control!$C$55+$MY8, $OA8) -> -0.0001 | OC8: =IF($MX8<=$OB8,MIN(Control!$C$55+$NF8,$OB8-$MX8),0) -> 0 | OD8: =IF(Control!$C$97=1, $CY8*($NB8-Control!$C$110), 0) -> 0 | OE8: =$OB8-$OC8+$OD8 -> -0.0001 | OF8: =IF($NE8 <=$OC8, MIN(Control!$C$55, $OC8-$NE8), 0) -> 0 | OG8: 0 | OH8: 0 | OI8: =Control!$C$56*$I8 -> 0 | OJ8: 0 | OK8: 0.04800055147 | OL8: 0 | OM8: =$OB8-$OC8+$NC8 -> -0.0001 | ON8: 0 | OO8: 0.04800055147 | OP8: =Control!$C$110 -> 0.15 | OQ8: 150 | OR8: =Control!$C$111 -> 0.35 | OS8: 350 | OT8: 1.6 | OU8: =$OU7+$NN7 -> 0 | OV8: 1.6 | OW8: =$OW7+$OJ7 -> 0 | OX8: =$OX7+$OF7 -> 1.322064069 | OY8: =$OY7+$NW7 -> 0.01651650329 | OZ8: =$OZ7+$NR7 -> 0.1704520136 | PA8: -0.04810055147 | PB8: -0.04800055147 | PC8: 0 | PD8: 349.9999 | PE8: 0 | PF8: =IF(Control!$C$44="T", IF(Control!$C$48="F", IF($AH$6-Control!$C$43<0,0,1), IF(365+$AH$6-Control!$C$43<0,0,1)),0) -> 0 | PG8: =IF(Control!$C$48="F", IF($AH$6-$HI8<0,0,1), IF(365+$AH$6-$HI8<0,0,1)) -> 1 | PH8: =Control!$C$101 -> 1500 | PI8: 0.04800055147 | PJ8: -0.02563091238 | PK8: =PK7+1 -> 3 | PL8: 0
A9: 4 | B9: 1 | C9: =Weather_data!$B8 -> 2011 | D9: =Weather_data!$F8 -> 5 | E9: =Weather_data!$E8 -> -0.73 | F9: 5.73 | G9: =AVERAGE($D9:$E9)+Control!$B$9 -> 2.135 | H9: =Weather_data!$G8 -> 0.5898943216 | I9: =Weather_data!$I8+Control!$B$14 -> 0.4 | J9: =Weather_data!$H8 -> 2.515002 | K9: =Weather_data!$D8 -> 1424 | L9: 0.1456273557 | M9: 202.3535847 | N9: -0.2046801 | O9: 4.181801 | P9: 3 | Q9: =MAX($G9-Control!$C$90,0) -> 0 | R9: 0 | S9: 0 | T9: 0 | U9: 0 | V9: =MAX(0,MIN(Control!$C$83-Control!$C$82,$G9-Control!$C$82)*Control!$C$46) -> 0 | W9: =$D9-0.25*($D9-$E9) -> 3.5675 | X9: 0.7127679337 | Y9: 0.5898943216 | Z9: 0.7122221679 | AA9: 0.7150132856 | AB9: =101.3*EXP(-0.034*Control!$C$49/($G9+273)) -> 99.71027409 | AC9: 0.04980517526 | AD9: 0.05093006962 | AE9: 0.8282448205 | AF9: =MAX(0,$G9-Control!$C$75) -> 0 | AG9: =DATE($C9,$B9,$A9) -> 2011-01-04 | AH9: 4 | AI9: -0.3967780738 | AJ9: =IF(Control!$C$43<=0,$HK9,$HL9) -> 1 | AK9: -1.30827968 | AL9: 1.713247599e-18 | AM9: -1.30827968 | AN9: -0.3943101273 | AO9: =-0.10453/COS(Control!$B$8*PI()/180)*COS(AN9) -> -0.1561235141 | AP9: =ACOS(AO9-TAN(Control!$B$8*PI()/180)*TAN(AN9)) -> 1.188557274 | AQ9: 1.424 | AR9: 0.712 | AS9: =IF(Control!$E$7=2,(IF(OR($AH9=Control!$B$158,$AH9=Control!$B$159,$AH9=Control!$B$160,$AH9=Control!$B$161,$AH9=Control!$B$162,$AH9=Control!$B$163,$AH9=Control!$B$164,$AH9=Control!$B$165,$AH9=Control!$B$166,$AH9=Control!$B$167,$AH9=Control!$B$168),1,0)),0) -> 0 | AT9: =IF(Control!$E$9=1,IF(AND($AH9>=Control!$B$155,$AH9<=Control!$B$156),1,0),0) -> 0 | AU9: =IF(Control!$E$9=1,IF($AV8=1,1*$AT9,IF($AT9=1,$AU8+1,$AU8)),0) -> 0 | AV9: =IF(Control!$E$9=1,IF($AU9>=Control!$B$157,1,0),0) -> 0 | AW9: =IF(Control!$E$7=1,IF($EC8+$EE8+$EG8+$EF8-$EP8+$EL8+$EK8-$EQ8>=Control!$E$8,1,0),0) -> 0 | AX9: =IF(Control!$E$7=1,AW9,IF(AND(Control!$E$7=2,Control!$B$154=1),$AV9,$AS9)) -> 0 | AY9: =IF(AND(Control!$E$7=1,$EX9>=Control!$E$8),-$AZ9,IF(AND(Control!$E$7=2,$AX9=1,$EX9>$DT9),-$AZ9, IF(Control!$C$91=0,0, IF(Control!$C$91<>0,1)))) -> 1 | AZ9: 3 | BA9: =IF(AND(Control!$E$7=1,$EC9>Control!$E$8),$BA8+1, IF(AND(Control!$E$7=2, $AX9=1, $EC9>$DT9), $BA8+1,$BA8)) -> 0 | BB9: =IF(Control!$C$64=0,1,IF($AH9>=Control!$C$65,1,0)) -> 1 | BC9: =IF($BB9>$BB8,Control!$C$66,IF($AX9>0,$AX9*Control!$C$67,0)) -> 0 | BD9: 0 | BE9: =BD9*IF(OR($G9<Control!$C$75,$G9>Control!$C$78),0,IF(AND($G9>=Control!$C$75,$G9<=Control!$C$76),$G9-Control!$C$75,IF(AND($G9>Control!$C$76,$G9<=Control!$C$77),Control!$C$76-Control!$C$75,IF(AND($G9>Control!$C$77,$G9<=Control!$C$78),(Control!$C$76-Control!$C$75)*(Control!$C$77-$G9)/(Control!$C$78-Control!$C$77))))) -> 0 | BF9: 0 | BG9: =IF($BF9<=Control!$C$69,$BF9,Control!$C$69-$BF9) -> 0 | BH9: =IF(AND($AX9=1,Control!$C$67<9),1,IF($BF9>=Control!$C$69,0,$BD9)) -> 0 | BI9: =IF($BH9=0,0,IF($BF9<=Control!$C$69,$BD9*9*($BG9/Control!$C$69),0)) -> 0 | BJ9: =IF($BH9=1,0,IF($BF9>=Control!$C$69,1,IF(AND($BC9<21,$BC9>=9),1,$BN8))) -> 0 | BK9: =IF($BG9<0,-$BG9,$BJ9*IF(OR($G9<Control!$C$75,$G9>Control!$C$78),0,IF(AND($G9>=Control!$C$75,$G9<=Control!$C$76),$G9-Control!$C$75,IF(AND($G9>Control!$C$76,$G9<=Control!$C$77),Control!$C$76-Control!$C$75,IF(AND($G9>Control!$C$77,$G9<=Control!$C$78),(Control!$C$76-Control!$C$75)*(Control!$C$77-$G9)/(Control!$C$78-Control!$C$77)))))) -> 0 | BL9: 0 | BM9: =IF($BL9<=Control!$C$70,$BL9,Control!$C$70-$BL9) -> 0 | BN9: =IF(AND($BC9>=9,$BC9<21),1,IF($BL9>=Control!$C$70,0,$BJ9)) -> 0 | BO9: =IF($BN9=0,0,IF($BL9<=Control!$C$70,$BJ9*(9+(21-9)*($BM9/Control!$C$70)),0)) -> 0 | BP9: =IF($BN9=1,0,IF($BL9>=Control!$C$70,1,IF(AND($BC9<30,$BC9>=21),1,$BT8))) -> 1 | BQ9: =IF($BM9<0,-$BM9,$BP9*IF(OR($G9<Control!$C$75,$G9>Control!$C$78),0,IF(AND($G9>=Control!$C$75,$G9<=Control!$C$76),$G9-Control!$C$75,IF(AND($G9>Control!$C$76,$G9<=Control!$C$77),Control!$C$76-Control!$C$75,IF(AND($G9>Control!$C$77,$G9<=Control!$C$78),(Control!$C$76-Control!$C$75)*(Control!$C$77-$G9)/(Control!$C$78-Control!$C$77)))))) -> 0 | BR9: 1.811 | BS9: =IF($BR9<=Control!$C$71,$BR9,Control!$C$71-$BR9) -> 1.811 | BT9: =IF(AND($BC9>=21,$BC9<30),1,IF($BR9>=Control!$C$71,0,$BP9)) -> 1 | BU9: =IF($BT9=0,0,IF($BR9<=Control!$C$71,$BP9*(21+(30-21)*(BS9/Control!$C$71)),0)) -> 21.10866 | BV9: =IF(BH9+BN9+BT9=1,0,IF(OR(AND($BC9<60,$BC9>=30),$BR9>=Control!$C$71),1*$BB9,$BZ8)) -> 0 | BW9: =IF($BS9<0,-$BS9,$BV9*IF(OR($G9<Control!$C$75,$G9>Control!$C$78),0,IF(AND($G9>=Control!$C$75,$G9<=Control!$C$76),$G9-Control!$C$75,IF(AND($G9>Control!$C$76,$G9<=Control!$C$77),Control!$C$76-Control!$C$75,IF(AND($G9>Control!$C$77,$G9<=Control!$C$78),(Control!$C$76-Control!$C$75)*(Control!$C$77-$G9)/(Control!$C$78-Control!$C$77)))))) -> 0 | BX9: 0 | BY9: =IF($BX9<=Control!$C$72,$BX9,Control!$C$72-$BX9) -> 0 | BZ9: =IF(AND($AJ9>=30,$AJ9<60),1,IF($BX9>=Control!$C$72,0,$BV9)) -> 0 | CA9: =IF($BZ9=0,0,IF($BX9<=Control!$C$72,$BV9*(30+(60-30)*(BY9/Control!$C$72)),0)) -> 0 | CB9: =IF($BH9+$BN9+$BT9+$BZ9=1,0,IF(OR(AND($BC9<65,$BC9>=60),$BX9>=Control!$C$72),1*$BB9,$CF8)) -> 0 | CC9: =IF($BY9<0,-$BY9,$CB9*IF(OR($G9<Control!$C$75,$G9>Control!$C$78),0,IF(AND($G9>=Control!$C$75,$G9<=Control!$C$76),$G9-Control!$C$75,IF(AND($G9>Control!$C$76,$G9<=Control!$C$77),Control!$C$76-Control!$C$75,IF(AND($G9>Control!$C$77,$G9<=Control!$C$78),(Control!$C$76-Control!$C$75)*(Control!$C$77-$G9)/(Control!$C$78-Control!$C$77)))))) -> 0 | CD9: 0 | CE9: =IF($CD9<=Control!$C$73,$CD9,Control!$C$73-$CD9) -> 0 | CF9: =IF(AND($BC9>=60,$BC9<65),1,IF($CD9>=Control!$C$73,0,$CB9)) -> 0 | CG9: =IF($CF9=0,0,IF($CD9<=Control!$C$73,$CB9*(60+(65-60)*(CE9/Control!$C$73)),0)) -> 0 | CH9: =IF($BH9+$BN9+$BT9+$BZ9+$CF9=1,0,IF(OR(AND($BC9<90,$BC9>=65),$CD9>=Control!$C$73),$BB9,$CL8)) -> 0 | CI9: =IF($CE9<0,-$CE9,$CH9*IF(OR($G9<Control!$C$75,$G9>Control!$C$78),0,IF(AND($G9>=Control!$C$75,$G9<=Control!$C$76),$G9-Control!$C$75,IF(AND($G9>Control!$C$76,$G9<=Control!$C$77),Control!$C$76-Control!$C$75,IF(AND($G9>Control!$C$77,$G9<=Control!$C$78),(Control!$C$76-Control!$C$75)*(Control!$C$77-$G9)/(Control!$C$78-Control!$C$77)))))) -> 0 | CJ9: 0 | CK9: =IF($CJ9<=Control!$C$74,$CJ9,Control!$C$74-$CJ9) -> 0 | CL9: =IF(AND($BC9>=65,$BC9<90),1,IF($CJ9>=Control!$C$74,0,$CH9)) -> 0 | CM9: =IF($CL9=0,0,IF($CJ9<=Control!$C$74,$CH9*(65+(90-65)*($CK9/Control!$C$74)),0)) -> 0 | CN9: =IF($BH9+$BN9+$BT9+$BZ9+$CF9+$CL9=1,0,IF(OR($BC9>=90,$CJ9>=Control!$C$74),$BB9,$CN8)) -> 0 | CO9: 0 | CP9: 1.811 | CQ9: 21.10866 | CR9: =VLOOKUP($CQ9,Control!$B$69:$G$74,6) -> 0.15 | CS9: =(1-$CR9)*VLOOKUP($CQ9,Control!$B$69:$D$74,3) -> 0.765 | CT9: =(1-$CR9)*VLOOKUP($CQ9,Control!$B$69:$E$74,4) -> 0.085 | CU9: =(1-$CR9)*VLOOKUP($CQ9,Control!$B$69:$F$74,5) -> 0 | CV9: 1.811 | CW9: 1.811 | CX9: 2011-01-04 | CY9: =IF(Control!$C$97=1,(MIN(Control!$C$103*(IF($NX9-0.01<0,0,1)),Control!$C$102-$CZ9))) -> 0 | CZ9: 1000 | DA9: 0.2363602 | DB9: 0.04181801 | DC9: 0.693 | DD9: 0.07710379689 | DE9: =IF($DF8<14000,(($DD8-$DY8)*$DB8*$DF8),(-$DY8*$DB8*$DF8)) -> 30.47993764 | DF9: 7083.680327 | DG9: =$DS9*EXP(-Control!$C$141*(1-$KK9)) -> 0.0025 | DH9: =IF(Control!$C$97=1, $DG9*$FB9, 0) -> 0 | DI9: 0 | DJ9: 0.09431227915 | DK9: =$EG9*Control!$C$92 -> 0.03683527182 | DL9: 0.131147551 | DM9: 0.05501607998 | DN9: =IF(Control!$C$97=1, (1-EXP(-Control!$C$79*$DJ9))*$AR9, 0) -> 0.03917144895 | DO9: 2.562 | DP9: =Control!$C$80 -> 4 | DQ9: 0.000358992236 | DR9: =IF(AND($CQ9>=0,$CQ9<=90),Control!$C$94,Control!$C$94) -> 0.0025 | DS9: 0.0025 | DT9: =Control!$E$15/DS9 -> 200 | DU9: =IF(AND(Control!$C$97=1,$KK9<1),$IP9*$DG9, 0) -> 0 | DV9: 0.4114511191 | DW9: =IF($G9-Control!$C$90<=0, 0, 0.83*LN(MAX($G9, 3))-0.8924) -> 0 | DX9: 0 | DY9: =MAX(0.01*(1+$CV9/Control!$C$85),0.05*($DL9-Control!$C$80)/Control!$C$80) -> 0.01003018333 | DZ9: =IF(Control!$C$97=1, $DJ9*$FV9, 0) -> 0 | EA9: 0 | EB9: 2011-01-04 | EC9: =$EC8+$EE8 -> 262.7139801 | ED9: 294.6821746 | EE9: =IF(Control!$C$97=1, $HP9*$GB9-$FG9, 0) -> 0 | EF9: =IF(Control!$C$97=1, $HP9*$GC9-$FI9, 0) -> 0 | EG9: 29.46821746 | EH9: =IF(Control!$C$97=1, $HA9*$FZ9-$FL9, 0) -> 0 | EI9: 52.00273669 | EJ9: -52.00273669 | EK9: =IF(Control!$C$97=1, $HP9*$GE9, 0) -> 0 | EL9: 0 | EM9: 292.1821976 | EN9: 62.71398013 | EO9: =IF(Control!$C$91=0,0,IF(AND($AX9=1,$EC9>$DT9),$EC9-$DT9,0)) -> 0 | EP9: =IF(Control!$C$91=0,0,IF($AX9=1,$EG9*EO9/EC9,0)) -> 0 | EQ9: =IF(Control!$C$91=0,0,IF($AX9=1,$EL9,0)) -> 0 | ER9: 0 | ES9: 0 | ET9: =$ET8+$EO8 -> 0 | EU9: =$EU8+$EP8 -> 0 | EV9: 0 | EW9: 0 | EX9: 0 | EY9: 262.7139801 | EZ9: =$ET9+MAX(0,$EN9) -> 62.71398013 | FA9: 294.6821746 | FB9: 0 | FC9: 0 | FD9: 153.6208328 | FE9: 294.6821746 | FF9: 265.2139571 | FG9: 0 | FH9: 0 | FI9: 0 | FJ9: 0 | FK9: 0 | FL9: 0 | FM9: 0 | FN9: -52.00273669 | FO9: =$FO8+$FG8 -> 2.499976999 | FP9: 2.499976999 | FQ9: =IF(AND($G9<=50,$G9>=30),(0.05+($G9-30)*((0.09-0.05)/(50-30))),IF(AND($G9<30,$G9>=15),(0.02+($G9-15)*((0.05-0.02)/(30-15))),IF(AND($G9<15,$G9>=10),(0.01+($G9-10)*((0.02-0.01)/(15-10))),IF(AND($G9<10,$G9>=-10),($G9+10)*((0.02-0)/(10+10)),IF($G9=-10,0))))) -> 0.012135 | FR9: =Control!$C$84 -> 50 | FS9: 0 | FT9: =MAX(0,(Control!$C$95*(($DL9-Control!$C$80)/Control!$C$80))) -> 0 | FU9: =(1-$NX9)*Control!$C$96 -> 0 | FV9: 0 | FW9: 2011-01-04 | FX9: =IF(Control!$B$20=1,VLOOKUP($CQ9,Control!$B$69:$G$74,6),Control!$B$21) -> 0.15 | FY9: 1 | FZ9: =IF(Control!$E$26=1,$FX9*$FY9, $FX9) -> 0.15 | GA9: =IF(Control!$B$20=1,VLOOKUP($CQ9,Control!$B$69:$G$74,3),Control!$B$22) -> 0.9 | GB9: 0.9 | GC9: =IF(Control!$B$20=1,VLOOKUP($CQ9,Control!$B$69:$G$74,4),Control!$B$23) -> 0.1 | GD9: 0.1 | GE9: =IF(Control!$B$20=1,VLOOKUP($CQ9,Control!$B$69:$G$74,5),Control!$B$24) -> 0 | GF9: 0 | GG9: 1 | GH9: 1 | GI9: =IF(AND(Control!$C$87=1, Control!$C$45="F"),$GH9,1) -> 1 | GJ9: =IF(Control!$B$17=40,0,IF(AND(Control!$B$17>40,Control!$B$17<=360),(Control!$B$17-40)*((1-0)/(360-40)),IF(AND(Control!$B$17>360,Control!$B$17<=720),(1+(Control!$B$17-360)*((1.25-1)/(720-360))),IF(AND(Control!$B$17>720,Control!$B$17<=1000),(1.25+(Control!$B$17-720)*((1.35-1.25)/(1000-720))),IF(AND(Control!$B$17>1000,Control!$B$17<=2000),(1.35+(Control!$B$17-1000)*0)))))) -> 1.021978009 | GK9: 1.021978009 | GL9: 0 | GM9: 0 | GN9: =IF(AND($AR9>=0,$AR9<=10),1,IF(AND($AR9>=40,$AR9<=42),0.33,((1+($AR9-10)*((0.33-1)/(40-10)))))) -> 1 | GO9: 1 | GP9: =MAX(0,MIN(1,1-Control!$C$139*(1.0001-$KK9)^2)) -> 0.999999989 | GQ9: =IF(Control!$E$21=1,$KX9,$LA9) -> 1 | GR9: =IF($CQ9<=60,Control!$C$88,IF($CQ9>=90,Control!$C$89,Control!$C$88+($CQ9-60)*((Control!$C$89-Control!$C$88)/(90-60)))) -> 2.5 | GS9: 0 | GT9: 0 | GU9: 0 | GV9: 153.6208328 | GW9: 0 | GX9: 0 | GY9: =IF($EO9<=0,$GW9*(1/$DG9)*(1/$GB9)*(1/(1-$FZ9)),0) -> 0 | GZ9: =IF($GV9-$GY9<=0,0,$GV9-$GY9) -> 153.6208328 | HA9: =IF($GV9-$GY9<=0, $GV9, $GY9) -> 0 | HB9: 0 | HC9: 292.1821976 | HD9: =IF(Control!$C$97=1, $DJ9*$FV9, 0) -> 0 | HE9: =$FD9/Control!$C$47 -> 153.6208328 | HF9: =$GZ9-$HE9 -> 0 | HG9: =-ASIN(SIN(23.45*Control!$C$122)*COS(2*Control!$C$121*($AH9+10)/365)) -> -0.3967780738 | HH9: 0 | HI9: =IF(AND(Control!$C$44="T",$HH9>=Control!$C$86,Control!$C$97=0),$AH9,Control!$C$42) -> 1 | HJ9: =IF(AND(Control!$C$44="T",$HH9>=Control!$C$86,Control!$C$97=0),$HI9,Control!$C$42) -> 1 | HK9: =IF(AND(OR(Control!$C$43<=0, $AH9= Control!$C$42, Control!$C$43 >0, $AH9 = Control!$C$43)), Control!$C$42, IF(Control!$C$43>0, 0)) -> 1 | HL9: =IF(AND(OR(Control!$C$43<=0, $AH9= Control!$C$42, Control!$C$43 >0, $AH9 = Control!$C$43)), Control!$C$43, IF(Control!$C$43<=0, 0)) -> 0 | HM9: =IF(AND(Control!$C$45="F",$CW9>=Control!$C$85),$AH9,0) -> 0 | HN9: 346.6849113 | HO9: =IF(AND(Control!$C$44="T",$HH9>=Control!$C$86,Control!$C$97=0),$HI9,0) -> 0 | HP9: 0 | HQ9: 2011-01-04 | HR9: =IF(AND($CQ9>=0, $CQ9<=90), Control!$C$135, Control!$C$135) -> 0.035 | HS9: 0.035 | HT9: =IF(OR(Control!$E$21=1,Control!$E$21=2),$KY9,$KV9) -> 0.09391181865 | HU9: =$HU8-$HT8 -> 199.6929988 | HV9: =Control!$C$137*$HS9 -> 0.0175 | HW9: =Control!$C$138*$HS9 -> 0.0175 | HX9: =Control!$C$144*$FL9 -> 0 | HY9: 0 | HZ9: =Control!$C$143*$FI9+$IS9*$EP9 -> 0 | IA9: 0 | IB9: =IF(Control!$C$97=1, $EC9*$FV9, 0) -> 0 | IC9: 1.416980427 | ID9: =Control!$C$136*$HR9 -> 0.035 | IE9: 9.194989305 | IF9: =Control!$C$136*$HW9 -> 0.0175 | IG9: 0.5156938055 | IH9: =($EC9*Control!$C$142+$EG9*Control!$C$143)/(IF($HC9<>0,$HC9,1)) -> 0.009495721887 | II9: =($IE9+$IG9)/IF($HC9<>0, $HC9,1) -> 0.0332350266 | IJ9: =IF(OR(Control!$B$180=$AH9,Control!$B$181=$AH9, Control!$B$182=$AH9, Control!$B$183=$AH9, Control!$B$184=$AH9, Control!$B$185=$AH9, Control!$B$186=$AH9, Control!$B$187=$AH9, Control!$B$188=$AH9, Control!$B$189=$AH9), 1, 0) -> 0 | IK9: =IF($IJ9=0,0, VLOOKUP($AH9,Control!$B$180:$C$189,2)) -> 0 | IL9: =$IL8+$IK9 -> 0 | IM9: =Control!$C$104 -> 0.7 | IN9: 0 | IO9: 0.5156938055 | IP9: =IF(AND(Control!$C$97=1,$KK9<1),$EC9*Control!$C$131*(1-$KK9), 0) -> 0 | IQ9: 1 | IR9: =MAX(0,$IO9-$EG9*Control!$C$143) -> 0.3683527182 | IS9: 0.0175 | IT9: 9.2824885 | IU9: 9.798182305 | IV9: =Control!$C$142*MAX(0,$FG9-$EO9) -> 0 | IW9: 0.02499976999 | IX9: =$KJ9*$EO9 -> 0 | IY9: 0 | IZ9: =IF(OR($AX9=1,AND($AX9=0, Control!$E$7=1,$EO9<>0)), $IT9-$IX9, $IT9) -> 9.2824885 | JA9: 0 | JB9: =MAX(0,$IT9-$EC9*Control!$C$142) -> 6.655348698 | JC9: 0 | JD9: 0.03533305877 | JE9: 0 | JF9: =MAX(Control!$C$140*$EL9-$JW9, 0)/Control!$C$145 -> 0 | JG9: 0 | JH9: 9.798182305 | JI9: 0.9100478921 | JJ9: 0 | JK9: 0 | JL9: 0 | JM9: =$JM8+$JO8 -> 73.89002079 | JN9: =IF(Control!$C$97=1,IF(Control!$E$18=0,MAX(0,$JL9)*$GQ9/Control!$C$47,(MAX(0,MIN($JL9,$JM9*$GQ9/Control!$C$47),0)))) -> 0 | JO9: =$IN9/Control!$C$47-$JN9+$HT9 -> 0.09391181865 | JP9: =IF(Control!$C$97=1,($JE9/(IF($JL9<>0,$JL9,1)))*$JN9,0) -> 0 | JQ9: =IF(Control!$C$97=1,($JJ9/(IF($JL9<>0,$JL9,1)))*$JN9, 0) -> 0 | JR9: 10.7082302 | JS9: =MIN(($JB9+$IR9)*Control!$C$134, $JI9-$EI9*Control!$C$144) -> 0.6500342087 | JT9: 7.673735625 | JU9: =IF($CQ9-Control!$C$133<0, 0, $JT9/Control!$C$145) -> 0 | JV9: 0 | JW9: 0 | JX9: 0 | JY9: 0 | JZ9: =$JI9/IF($EI9<>0, $EI9, 1) -> 0.0175 | KA9: 0.03353449452 | KB9: 0.9100478921 | KC9: =IF(Control!$C$97=1,($JC9/(IF($JL9<>0,$JL9,1)))*$JN9, 0) -> 0 | KD9: =KD8+JN8 -> 1.416980427 | KE9: 10.7082302 | KF9: 0 | KG9: 0 | KH9: 0 | KI9: 0 | KJ9: =$IU9/IF($HC9<>0, $HC9, 1) -> 0.03353449452 | KK9: =IF(Control!$E$18=0,1,MAX(0.001,MIN(1,IF(($II9-$IH9)<>0,($KJ9-$IH9)/($II9-$IH9),1)))) -> 1 | KL9: =IF(Control!$C$97=1, $KL8+ $KK8, 0) -> 2.811474703 | KM9: 0.9371582344 | KN9: 1.416980427 | KO9: =IF(Control!$E$21=3,4000000000*EXP(-8400/($O9+273)),IF(Control!$E$21=4,4000000000*EXP(-8400/($O9+273))*($KW9),0)) -> 0.0001576211737 | KP9: =IF(Control!$E$21=3,5600000000000*EXP(-9800/($O9+273)),IF(Control!$E$21=4,5600000000000*EXP(-9800/($O9+273))*$KW9,0)) -> 0.001413162503 | KQ9: 149.9236231 | KR9: 49.76937568 | KS9: 199.6929988 | KT9: 0.02362927515 | KU9: 0.0702825435 | KV9: 0.09391181865 | KW9: 0.5712911413 | KX9: =IF($CQ9-Control!$C$132<0, IF($NX9-0.01<0,0,1),0) -> 1 | KY9: =IF(Control!$C$97=1,MAX(0,MIN(Control!$C$108*$KZ9*$GQ9,$KZ9))) -> 1.737861328 | KZ9: =KZ8-KY8 -> 69.51445313 | LA9: =IF($CQ9-Control!$C$132<0, IF($MV9-$OQ9<0,0,1),0) -> 1 | LB9: 2011-01-04 | LC9: =1370*(1+0.033*COS(2*Control!$C$121*$AH9/365)) -> 1415.102866 | LD9: 1.0329218 | LE9: -0.3963202536 | LF9: =ACOS(-TAN((2*Control!$B$8/360))*TAN(Calculations!$LE9)) -> 1.446567885 | LG9: =((24*60)/PI())*0.082*$LD9*(($LF9*SIN(Control!$B$8*2*PI()/360))*SIN($LE9)+COS(Control!$B$8*2*PI()/360)*COS($LE9)*SIN($LF9)) -> 4.926760542 | LH9: 6.535840943 | LI9: =SIN(Control!$C$122*Control!$B$8)*SIN($HG9) -> -0.3037708897 | LJ9: =COS(Control!$C$122*Control!$B$8)*COS($HG9) -> 0.5701297105 | LK9: =12*(1+2*ASIN(MAX(-1,MIN(1,$LI9/$LJ9))/Control!$C$121)) -> 7.909869882 | LL9: =12*(1+2*ASIN(MAX(-1,MIN(1,(-SIN(-4*Control!$C$122)+$LI9)/$LJ9))/Control!$C$121)) -> 8.855349604 | LM9: =3600*($LK9*$LI9+24*$LJ9*SQRT(1-$LN9*$LN9)/Control!$C$121) -> 4618.633106 | LN9: -0.5328101379 | LO9: 0.2178755592 | LP9: =Control!$C$128*$AB9 -> 0.06600820145 | LQ9: 0.54 | LR9: 0.03192064136 | LS9: =Control!$C$123*((($D9+273.16)^4+($E9+273.16)^4)/2)*(0.34-0.14*SQRT($Y9))*(1.35*$AQ9/(0.75*$LG9)-0.35) -> 1.114704115 | LT9: =Control!$C$123*($G9+273)^4*(0.56-0.079*SQRT($Y9*10))*(0.1+0.9*$LR9) -> 1.330613452 | LU9: =$AQ9*(1-Control!$C$125)-$LT9 -> 0.02218654788 | LV9: =$AQ9*(1-Control!$C$126)-$LT9 -> -0.1202134521 | LW9: =$AQ9*(1-Control!$C$127)-$LT9 -> -0.2626134521 | LX9: =(1-Control!$C$127)*AQ9-LS9 -> -0.04670411482 | LY9: 0.5936101376 | LZ9: 0.7533458333 | MA9: =($AC9*($LU9/Control!$C$124)+$LP9*$LY9)/($AC9+$LP9) -> 0.3422243706 | MB9: =($AC9*($LV9/Control!$C$124)+$LP9*$LY9)/($AC9+$LP9) -> 0.3172289958 | MC9: 0.3422243706 | MD9: 0.3172289958 | ME9: 0.2997763 | MF9: 0.1251189639 | MG9: 0.386281807 | MH9: 0.04696635934 | MI9: =($AC9*($LW9/Control!$C$124)+$LP9*$LZ9)/($AC9+$LP9) -> 0.3832754875 | MJ9: =IF(Control!$B$17>=1000,0.92,IF(AND(720<=Control!$B$17,1000>Control!$B$17),(0.95+(Control!$B$17-720)*((0.92-0.95)/(1000-720))),IF(AND(360<=Control!$B$17,720>Control!$B$17),(1+(Control!$B$17-360)*((0.95-1)/(720-360))),IF(AND(40<=Control!$B$17,360>Control!$B$17),(1.05+(Control!$B$17-40)*((1.05-1)/(360-40))))))) -> 0.9956043981 | MK9: 0.3832754875 | ML9: 0.3815907611 | MM9: 0.3815907611 | MN9: =MAX(0.0001, Control!$C$115*$MM9*$DM9) -> 0.02099362783 | MO9: =1/(0.76+1.5*($MK9/10))-(5-Control!$C$93)*0.1 -> 1.073254574 | MP9: =IF(Control!$C$93<3,$MO9+($MK9-0.6)/(Control!$C$93*(Control!$C$93+3)), MAX(0.1, MIN(0.95,$MO9))) -> 0.95 | MQ9: =IF(Control!$C$93<3,$MO9+(($MM9/10)-0.6)/(Control!$C$93*(Control!$C$93+3)), MAX(0.1, MIN(0.95,$MO9))) -> 0.95 | MR9: =(1-$MQ9)*(Control!$C$111-Control!$C$110)+Control!$C$110 -> 0.16 | MS9: =MAX(0,MIN(1,($MW9-Control!$C$110)/($MR9-Control!$C$110))) -> 1 | MT9: =1/(0.76+1.5*$MM9)-(5-Control!$C$93)*0.1 -> 0.6005331741 | MU9: 0.8 | MV9: =$MV8+$OM8 -> 349.9518994 | MW9: =MAX(Control!$C$110, MIN(Control!$C$117, $MV9/MAX(0.0001,$CZ9))) -> 0.3499518994 | MX9: =(Control!$C$111-$MW9)*Control!$C$57 -> 0.04810055147 | MY9: =(Control!$C$117-$MW9)*Control!$C$57 -> 100.0481006 | MZ9: 199.9518994 | NA9: 0 | NB9: =MAX(Control!$C$110, MIN(Control!$C$117, $NA9/MAX(0.0001,Control!$C$102-$CZ9))) -> 0.15 | NC9: =IF(Control!$C$97=1, $CY9*$NB9, 0) -> 0 | ND9: 0 | NE9: =(Control!$C$111-$NB9)*(Control!$C$102-Control!$C$57) -> 0 | NF9: =(Control!$C$117-$NB9)*(Control!$C$102-Control!$C$57) -> 0 | NG9: 4 | NH9: =IF(Control!$C$41=2, IF(OR(Control!$B$200=$AH9,Control!$B$201=$AH9, Control!$B$202=$AH9, Control!$B$203=$AH9, Control!$B$204=$AH9, Control!$B$205=$AH9, Control!$B$206=$AH9, Control!$B$207=$AH9, Control!$B$208=$AH9, Control!$B$209=$AH9, Control!$B$210=$AH9), 1, 0), 0) -> 0 | NI9: =IF($NH9=0,0, VLOOKUP($AH9,Control!$B$200:$C$210,2)) -> 0 | NJ9: =$CZ9*(Control!$C$111-Control!$C$110) -> 200 | NK9: =IF(Control!$C$41=2, $NM8-$NN8, 0) -> 0 | NL9: =IF(AND(Control!$C$41=1, $MW8<= ($MR8+0.02), $I8<10), 0, IF(Control!$C$41=2, $NK8, 0)) -> 0 | NM9: =IF(Control!$C$41=2, $NI9+$NL9,0) -> 0 | NN9: =IF(AND(Control!$C$41=1, $MW9<= ($MR9+0.02), $I9<10), MAX(0, MIN(10, 0.7*($NJ9-$MZ9))), IF(Control!$C$41=2, MIN(10,$NM9),0)) -> 0 | NO9: 0 | NP9: =(1-Control!$C$56)*$I9+$NN9 -> 0.4 | NQ9: =IF($NP9<5, $ME9* MAX(0, MIN(1, (SQRT($NG9)-SQRT($NG9-1))*Control!$C$54)),0) -> 0.160649635 | NR9: =IF($NP9>=5, $ME9, MAX(0,MIN($ME9, $NQ9+$NP9,($MW9-Control!$C$112)))) -> 0.2499518994 | NS9: =IF(Control!$C$116<>1, Control!$C$117-Control!$C$114, 0) -> 0.38 | NT9: 0 | NU9: =MAX(0,MIN(1,(Control!$C$117-$MW9)/(Control!$C$117-$NS9))) -> 1 | NV9: =IF(Control!$C$116<>1, $NU9+((1-$NT9/4)*(1-$NU9)),1) -> 1 | NW9: =IF(Control!$E$26=0,$MN9,MAX(0,MIN($MZ9,$MS9*$NV9*$MN9))) -> 0.02099362783 | NX9: =$NW9/$MN9 -> 1 | NY9: 4 | NZ9: 1.333333333 | OA9: 0.1290544727 | OB9: =MIN(Control!$C$55+$MY9, $OA9) -> 0.1290544727 | OC9: =IF($MX9<=$OB9,MIN(Control!$C$55+$NF9,$OB9-$MX9),0) -> 0.08095392125 | OD9: =IF(Control!$C$97=1, $CY9*($NB9-Control!$C$110), 0) -> 0 | OE9: 0.04810055147 | OF9: =IF($NE9 <=$OC9, MIN(Control!$C$55, $OC9-$NE9), 0) -> 0.08095392125 | OG9: 0 | OH9: 0 | OI9: =Control!$C$56*$I9 -> 0 | OJ9: =$OI9+MAX(0,$OA9-$OB9) -> 0 | OK9: 0.04810055147 | OL9: 0 | OM9: 0.04810055147 | ON9: 0 | OO9: 0.04810055147 | OP9: =Control!$C$110 -> 0.15 | OQ9: 150 | OR9: =Control!$C$111 -> 0.35 | OS9: 350 | OT9: 1.6 | OU9: 0 | OV9: 1.6 | OW9: 0 | OX9: 1.322064069 | OY9: 0.01661650329 | OZ9: 0.1704520136 | PA9: -3.236994006e-14 | PB9: -0.04810055147 | PC9: 0 | PD9: 350.0481006 | PE9: 0 | PF9: =IF(Control!$C$44="T", IF(Control!$C$48="F", IF($AH$6-Control!$C$43<0,0,1), IF(365+$AH$6-Control!$C$43<0,0,1)),0) -> 0 | PG9: =IF(Control!$C$48="F", IF($AH$6-$HI9<0,0,1), IF(365+$AH$6-$HI9<0,0,1)) -> 1 | PH9: =Control!$C$101 -> 1500 | PI9: 0.04810055147 | PJ9: 0.3832754875 | PK9: 4 | PL9: 0
A10: 5 | B10: 1 | C10: =Weather_data!$B9 -> 2011 | D10: =Weather_data!$F9 -> 5.407 | E10: =Weather_data!$E9 -> 0.371 | F10: 5.036 | G10: =AVERAGE($D10:$E10)+Control!$B$9 -> 2.889 | H10: =Weather_data!$G9 -> 0.6201465874 | I10: =Weather_data!$I9+Control!$B$14 -> 3.4 | J10: =Weather_data!$H9 -> 4.37414 | K10: =Weather_data!$D9 -> 2240 | L10: 0.1847988047 | M10: 159.4610826 | N10: -0.10881209 | O10: 3.9771209 | P10: 3 | Q10: =MAX($G10-Control!$C$90,0) -> 0 | R10: 0 | S10: 0 | T10: 0 | U10: 0 | V10: =MAX(0,MIN(Control!$C$83-Control!$C$82,$G10-Control!$C$82)*Control!$C$46) -> 0 | W10: 4.148 | X10: 0.7521334495 | Y10: 0.6201465874 | Z10: 0.7515317376 | AA10: 0.7512136582 | AB10: =101.3*EXP(-0.034*Control!$C$49/($G10+273)) -> 99.71458461 | AC10: 0.05222873264 | AD10: 0.05340453768 | AE10: 0.825176844 | AF10: =MAX(0,$G10-Control!$C$75) -> 0 | AG10: 2011-01-05 | AH10: 5 | AI10: -0.3949440555 | AJ10: =IF(Control!$C$43<=0,$HK10,$HL10) -> 1 | AK10: -1.291065474 | AL10: 1.690704868e-18 | AM10: -1.291065474 | AN10: -0.3923245983 | AO10: =-0.10453/COS(Control!$B$8*PI()/180)*COS(AN10) -> -0.1562521929 | AP10: =ACOS(AO10-TAN(Control!$B$8*PI()/180)*TAN(AN10)) -> 1.191883483 | AQ10: 2.24 | AR10: 1.12 | AS10: =IF(Control!$E$7=2,(IF(OR($AH10=Control!$B$158,$AH10=Control!$B$159,$AH10=Control!$B$160,$AH10=Control!$B$161,$AH10=Control!$B$162,$AH10=Control!$B$163,$AH10=Control!$B$164,$AH10=Control!$B$165,$AH10=Control!$B$166,$AH10=Control!$B$167,$AH10=Control!$B$168),1,0)),0) -> 0 | AT10: =IF(Control!$E$9=1,IF(AND($AH10>=Control!$B$155,$AH10<=Control!$B$156),1,0),0) -> 0 | AU10: =IF(Control!$E$9=1,IF($AV9=1,1*$AT10,IF($AT10=1,$AU9+1,$AU9)),0) -> 0 | AV10: =IF(Control!$E$9=1,IF($AU10>=Control!$B$157,1,0),0) -> 0 | AW10: =IF(Control!$E$7=1,IF($EC9+$EE9+$EG9+$EF9-$EP9+$EL9+$EK9-$EQ9>=Control!$E$8,1,0),0) -> 0 | AX10: =IF(Control!$E$7=1,AW10,IF(AND(Control!$E$7=2,Control!$B$154=1),$AV10,$AS10)) -> 0 | AY10: =IF(AND(Control!$E$7=1,$EX10>=Control!$E$8),-$AZ10,IF(AND(Control!$E$7=2,$AX10=1,$EX10>$DT10),-$AZ10, IF(Control!$C$91=0,0, IF(Control!$C$91<>0,1)))) -> 1 | AZ10: 4 | BA10: =IF(AND(Control!$E$7=1,$EC10>Control!$E$8),$BA9+1, IF(AND(Control!$E$7=2, $AX10=1, $EC10>$DT10), $BA9+1,$BA9)) -> 0 | BB10: =IF(Control!$C$64=0,1,IF($AH10>=Control!$C$65,1,0)) -> 1 | BC10: =IF($BB10>$BB9,Control!$C$66,IF($AX10>0,$AX10*Control!$C$67,0)) -> 0 | BD10: 0 | BE10: =BD10*IF(OR($G10<Control!$C$75,$G10>Control!$C$78),0,IF(AND($G10>=Control!$C$75,$G10<=Control!$C$76),$G10-Control!$C$75,IF(AND($G10>Control!$C$76,$G10<=Control!$C$77),Control!$C$76-Control!$C$75,IF(AND($G10>Control!$C$77,$G10<=Control!$C$78),(Control!$C$76-Control!$C$75)*(Control!$C$77-$G10)/(Control!$C$78-Control!$C$77))))) -> 0 | BF10: 0 | BG10: =IF($BF10<=Control!$C$69,$BF10,Control!$C$69-$BF10) -> 0 | BH10: =IF(AND($AX10=1,Control!$C$67<9),1,IF($BF10>=Control!$C$69,0,$BD10)) -> 0 | BI10: =IF($BH10=0,0,IF($BF10<=Control!$C$69,$BD10*9*($BG10/Control!$C$69),0)) -> 0 | BJ10: =IF($BH10=1,0,IF($BF10>=Control!$C$69,1,IF(AND($BC10<21,$BC10>=9),1,$BN9))) -> 0 | BK10: =IF($BG10<0,-$BG10,$BJ10*IF(OR($G10<Control!$C$75,$G10>Control!$C$78),0,IF(AND($G10>=Control!$C$75,$G10<=Control!$C$76),$G10-Control!$C$75,IF(AND($G10>Control!$C$76,$G10<=Control!$C$77),Control!$C$76-Control!$C$75,IF(AND($G10>Control!$C$77,$G10<=Control!$C$78),(Control!$C$76-Control!$C$75)*(Control!$C$77-$G10)/(Control!$C$78-Control!$C$77)))))) -> 0 | BL10: 0 | BM10: =IF($BL10<=Control!$C$70,$BL10,Control!$C$70-$BL10) -> 0 | BN10: =IF(AND($BC10>=9,$BC10<21),1,IF($BL10>=Control!$C$70,0,$BJ10)) -> 0 | BO10: =IF($BN10=0,0,IF($BL10<=Control!$C$70,$BJ10*(9+(21-9)*($BM10/Control!$C$70)),0)) -> 0 | BP10: =IF($BN10=1,0,IF($BL10>=Control!$C$70,1,IF(AND($BC10<30,$BC10>=21),1,$BT9))) -> 1 | BQ10: =IF($BM10<0,-$BM10,$BP10*IF(OR($G10<Control!$C$75,$G10>Control!$C$78),0,IF(AND($G10>=Control!$C$75,$G10<=Control!$C$76),$G10-Control!$C$75,IF(AND($G10>Control!$C$76,$G10<=Control!$C$77),Control!$C$76-Control!$C$75,IF(AND($G10>Control!$C$77,$G10<=Control!$C$78),(Control!$C$76-Control!$C$75)*(Control!$C$77-$G10)/(Control!$C$78-Control!$C$77)))))) -> 0 | BR10: 1.811 | BS10: =IF($BR10<=Control!$C$71,$BR10,Control!$C$71-$BR10) -> 1.811 | BT10: =IF(AND($BC10>=21,$BC10<30),1,IF($BR10>=Control!$C$71,0,$BP10)) -> 1 | BU10: =IF($BT10=0,0,IF($BR10<=Control!$C$71,$BP10*(21+(30-21)*(BS10/Control!$C$71)),0)) -> 21.10866 | BV10: =IF(BH10+BN10+BT10=1,0,IF(OR(AND($BC10<60,$BC10>=30),$BR10>=Control!$C$71),1*$BB10,$BZ9)) -> 0 | BW10: =IF($BS10<0,-$BS10,$BV10*IF(OR($G10<Control!$C$75,$G10>Control!$C$78),0,IF(AND($G10>=Control!$C$75,$G10<=Control!$C$76),$G10-Control!$C$75,IF(AND($G10>Control!$C$76,$G10<=Control!$C$77),Control!$C$76-Control!$C$75,IF(AND($G10>Control!$C$77,$G10<=Control!$C$78),(Control!$C$76-Control!$C$75)*(Control!$C$77-$G10)/(Control!$C$78-Control!$C$77)))))) -> 0 | BX10: 0 | BY10: =IF($BX10<=Control!$C$72,$BX10,Control!$C$72-$BX10) -> 0 | BZ10: =IF(AND($AJ10>=30,$AJ10<60),1,IF($BX10>=Control!$C$72,0,$BV10)) -> 0 | CA10: =IF($BZ10=0,0,IF($BX10<=Control!$C$72,$BV10*(30+(60-30)*(BY10/Control!$C$72)),0)) -> 0 | CB10: =IF($BH10+$BN10+$BT10+$BZ10=1,0,IF(OR(AND($BC10<65,$BC10>=60),$BX10>=Control!$C$72),1*$BB10,$CF9)) -> 0 | CC10: =IF($BY10<0,-$BY10,$CB10*IF(OR($G10<Control!$C$75,$G10>Control!$C$78),0,IF(AND($G10>=Control!$C$75,$G10<=Control!$C$76),$G10-Control!$C$75,IF(AND($G10>Control!$C$76,$G10<=Control!$C$77),Control!$C$76-Control!$C$75,IF(AND($G10>Control!$C$77,$G10<=Control!$C$78),(Control!$C$76-Control!$C$75)*(Control!$C$77-$G10)/(Control!$C$78-Control!$C$77)))))) -> 0 | CD10: 0 | CE10: =IF($CD10<=Control!$C$73,$CD10,Control!$C$73-$CD10) -> 0 | CF10: =IF(AND($BC10>=60,$BC10<65),1,IF($CD10>=Control!$C$73,0,$CB10)) -> 0 | CG10: =IF($CF10=0,0,IF($CD10<=Control!$C$73,$CB10*(60+(65-60)*(CE10/Control!$C$73)),0)) -> 0 | CH10: =IF($BH10+$BN10+$BT10+$BZ10+$CF10=1,0,IF(OR(AND($BC10<90,$BC10>=65),$CD10>=Control!$C$73),$BB10,$CL9)) -> 0 | CI10: =IF($CE10<0,-$CE10,$CH10*IF(OR($G10<Control!$C$75,$G10>Control!$C$78),0,IF(AND($G10>=Control!$C$75,$G10<=Control!$C$76),$G10-Control!$C$75,IF(AND($G10>Control!$C$76,$G10<=Control!$C$77),Control!$C$76-Control!$C$75,IF(AND($G10>Control!$C$77,$G10<=Control!$C$78),(Control!$C$76-Control!$C$75)*(Control!$C$77-$G10)/(Control!$C$78-Control!$C$77)))))) -> 0 | CJ10: 0 | CK10: =IF($CJ10<=Control!$C$74,$CJ10,Control!$C$74-$CJ10) -> 0 | CL10: =IF(AND($BC10>=65,$BC10<90),1,IF($CJ10>=Control!$C$74,0,$CH10)) -> 0 | CM10: =IF($CL10=0,0,IF($CJ10<=Control!$C$74,$CH10*(65+(90-65)*($CK10/Control!$C$74)),0)) -> 0 | CN10: =IF($BH10+$BN10+$BT10+$BZ10+$CF10+$CL10=1,0,IF(OR($BC10>=90,$CJ10>=Control!$C$74),$BB10,$CN9)) -> 0 | CO10: 0 | CP10: 1.811 | CQ10: 21.10866 | CR10: =VLOOKUP($CQ10,Control!$B$69:$G$74,6) -> 0.15 | CS10: =(1-$CR10)*VLOOKUP($CQ10,Control!$B$69:$D$74,3) -> 0.765 | CT10: =(1-$CR10)*VLOOKUP($CQ10,Control!$B$69:$E$74,4) -> 0.085 | CU10: =(1-$CR10)*VLOOKUP($CQ10,Control!$B$69:$F$74,5) -> 0 | CV10: 1.811 | CW10: 1.811 | CX10: 2011-01-05 | CY10: =IF(Control!$C$97=1,(MIN(Control!$C$103*(IF($NX10-0.01<0,0,1)),Control!$C$102-$CZ10))) -> 0 | CZ10: 1000 | DA10: 0.19542418 | DB10: 0.039771209 | DC10: 0.693 | DD10: 0.06374993033 | DE10: 19.86890899 | DF10: 7114.160264 | DG10: =$DS10*EXP(-Control!$C$141*(1-$KK10)) -> 0.0025 | DH10: =IF(Control!$C$97=1, $DG10*$FB10, 0) -> 0 | DI10: 0 | DJ10: 0.09431227915 | DK10: =$EG10*Control!$C$92 -> 0.03683527182 | DL10: 0.131147551 | DM10: 0.05501607998 | DN10: =IF(Control!$C$97=1, (1-EXP(-Control!$C$79*$DJ10))*$AR10, 0) -> 0.06161800958 | DO10: 3.274 | DP10: =Control!$C$80 -> 4 | DQ10: 0.000358992236 | DR10: =IF(AND($CQ10>=0,$CQ10<=90),Control!$C$94,Control!$C$94) -> 0.0025 | DS10: 0.0025 | DT10: =Control!$E$15/DS10 -> 200 | DU10: =IF(AND(Control!$C$97=1,$KK10<1),$IP10*$DG10, 0) -> 0 | DV10: 0.4114511191 | DW10: =IF($G10-Control!$C$90<=0, 0, 0.83*LN(MAX($G10, 3))-0.8924) -> 0 | DX10: 0 | DY10: =MAX(0.01*(1+$CV10/Control!$C$85),0.05*($DL10-Control!$C$80)/Control!$C$80) -> 0.01003018333 | DZ10: =IF(Control!$C$97=1, $DJ10*$FV10, 0) -> 0 | EA10: 0 | EB10: 2011-01-05 | EC10: 262.7139801 | ED10: 294.6821746 | EE10: =IF(Control!$C$97=1, $HP10*$GB10-$FG10, 0) -> 0 | EF10: =IF(Control!$C$97=1, $HP10*$GC10-$FI10, 0) -> 0 | EG10: 29.46821746 | EH10: =IF(Control!$C$97=1, $HA10*$FZ10-$FL10, 0) -> 0 | EI10: 52.00273669 | EJ10: -52.00273669 | EK10: =IF(Control!$C$97=1, $HP10*$GE10, 0) -> 0 | EL10: 0 | EM10: 292.1821976 | EN10: 62.71398013 | EO10: =IF(Control!$C$91=0,0,IF(AND($AX10=1,$EC10>$DT10),$EC10-$DT10,0)) -> 0 | EP10: =IF(Control!$C$91=0,0,IF($AX10=1,$EG10*EO10/EC10,0)) -> 0 | EQ10: =IF(Control!$C$91=0,0,IF($AX10=1,$EL10,0)) -> 0 | ER10: 0 | ES10: 0 | ET10: 0 | EU10: 0 | EV10: 0 | EW10: 0 | EX10: 0 | EY10: 262.7139801 | EZ10: =$ET10+MAX(0,$EN10) -> 62.71398013 | FA10: 294.6821746 | FB10: 0 | FC10: 0 | FD10: 153.6208328 | FE10: 294.6821746 | FF10: 265.2139571 | FG10: 0 | FH10: 0 | FI10: 0 | FJ10: 0 | FK10: 0 | FL10: 0 | FM10: 0 | FN10: -52.00273669 | FO10: =$FO9+$FG9 -> 2.499976999 | FP10: 2.499976999 | FQ10: 0.012889 | FR10: =Control!$C$84 -> 50 | FS10: 0 | FT10: =MAX(0,(Control!$C$95*(($DL10-Control!$C$80)/Control!$C$80))) -> 0 | FU10: =(1-$NX10)*Control!$C$96 -> 0 | FV10: 0 | FW10: 2011-01-05 | FX10: =IF(Control!$B$20=1,VLOOKUP($CQ10,Control!$B$69:$G$74,6),Control!$B$21) -> 0.15 | FY10: 1 | FZ10: =IF(Control!$E$26=1,$FX10*$FY10, $FX10) -> 0.15 | GA10: =IF(Control!$B$20=1,VLOOKUP($CQ10,Control!$B$69:$G$74,3),Control!$B$22) -> 0.9 | GB10: 0.9 | GC10: =IF(Control!$B$20=1,VLOOKUP($CQ10,Control!$B$69:$G$74,4),Control!$B$23) -> 0.1 | GD10: 0.1 | GE10: =IF(Control!$B$20=1,VLOOKUP($CQ10,Control!$B$69:$G$74,5),Control!$B$24) -> 0 | GF10: 0 | GG10: 1 | GH10: 1 | GI10: =IF(AND(Control!$C$87=1, Control!$C$45="F"),$GH10,1) -> 1 | GJ10: =IF(Control!$B$17=40,0,IF(AND(Control!$B$17>40,Control!$B$17<=360),(Control!$B$17-40)*((1-0)/(360-40)),IF(AND(Control!$B$17>360,Control!$B$17<=720),(1+(Control!$B$17-360)*((1.25-1)/(720-360))),IF(AND(Control!$B$17>720,Control!$B$17<=1000),(1.25+(Control!$B$17-720)*((1.35-1.25)/(1000-720))),IF(AND(Control!$B$17>1000,Control!$B$17<=2000),(1.35+(Control!$B$17-1000)*0)))))) -> 1.021978009 | GK10: 1.021978009 | GL10: 0.1236666667 | GM10: 0.02416745693 | GN10: 1 | GO10: 1 | GP10: =MAX(0,MIN(1,1-Control!$C$139*(1.0001-$KK10)^2)) -> 0.999999989 | GQ10: =IF(Control!$E$21=1,$KX10,$LA10) -> 1 | GR10: =IF($CQ10<=60,Control!$C$88,IF($CQ10>=90,Control!$C$89,Control!$C$88+($CQ10-60)*((Control!$C$89-Control!$C$88)/(90-60)))) -> 2.5 | GS10: 0.02469860952 | GT10: 0.0617465238 | GU10: 0.03804697853 | GV10: 153.6588798 | GW10: =($DF10*10000*($DW10*0.31))*0.00000001 -> 0 | GX10: 0 | GY10: 0 | GZ10: 153.6588798 | HA10: =IF($GV10-$GY10<=0, $GV10, $GY10) -> 0 | HB10: 0 | HC10: 292.1821976 | HD10: =IF(Control!$C$97=1, $DJ10*$FV10, 0) -> 0 | HE10: =$FD10/Control!$C$47 -> 153.6208328 | HF10: 0.03804697853 | HG10: =-ASIN(SIN(23.45*Control!$C$122)*COS(2*Control!$C$121*($AH10+10)/365)) -> -0.3949440555 | HH10: 0 | HI10: =IF(AND(Control!$C$44="T",$HH10>=Control!$C$86,Control!$C$97=0),$AH10,Control!$C$42) -> 1 | HJ10: =IF(AND(Control!$C$44="T",$HH10>=Control!$C$86,Control!$C$97=0),$HI10,Control!$C$42) -> 1 | HK10: =IF(AND(OR(Control!$C$43<=0, $AH10= Control!$C$42, Control!$C$43 >0, $AH10 = Control!$C$43)), Control!$C$42, IF(Control!$C$43>0, 0)) -> 1 | HL10: =IF(AND(OR(Control!$C$43<=0, $AH10= Control!$C$42, Control!$C$43 >0, $AH10 = Control!$C$43)), Control!$C$43, IF(Control!$C$43<=0, 0)) -> 0 | HM10: =IF(AND(Control!$C$45="F",$CW10>=Control!$C$85),$AH10,0) -> 0 | HN10: 346.6849113 | HO10: =IF(AND(Control!$C$44="T",$HH10>=Control!$C$86,Control!$C$97=0),$HI10,0) -> 0 | HP10: 0 | HQ10: 2011-01-05 | HR10: =IF(AND($CQ10>=0, $CQ10<=90), Control!$C$135, Control!$C$135) -> 0.035 | HS10: 0.035 | HT10: =IF(OR(Control!$E$21=1,Control!$E$21=2),$KY10,$KV10) -> 0.09149896946 | HU10: =$HU9-$HT9 -> 199.599087 | HV10: =Control!$C$137*$HS10 -> 0.0175 | HW10: =Control!$C$138*$HS10 -> 0.0175 | HX10: =Control!$C$144*$FL10 -> 0 | HY10: 0 | HZ10: =Control!$C$143*$FI10+$IS10*$EP10 -> 0 | IA10: 0 | IB10: =IF(Control!$C$97=1, $EC10*$FV10, 0) -> 0 | IC10: 1.416980427 | ID10: =Control!$C$136*$HR10 -> 0.035 | IE10: 9.194989305 | IF10: =Control!$C$136*$HW10 -> 0.0175 | IG10: 0.5156938055 | IH10: =($EC10*Control!$C$142+$EG10*Control!$C$143)/(IF($HC10<>0,$HC10,1)) -> 0.009495721887 | II10: 0.0332350266 | IJ10: =IF(OR(Control!$B$180=$AH10,Control!$B$181=$AH10, Control!$B$182=$AH10, Control!$B$183=$AH10, Control!$B$184=$AH10, Control!$B$185=$AH10, Control!$B$186=$AH10, Control!$B$187=$AH10, Control!$B$188=$AH10, Control!$B$189=$AH10), 1, 0) -> 0 | IK10: =IF($IJ10=0,0, VLOOKUP($AH10,Control!$B$180:$C$189,2)) -> 0 | IL10: 0 | IM10: =Control!$C$104 -> 0.7 | IN10: 0 | IO10: 0.5156938055 | IP10: =IF(AND(Control!$C$97=1,$KK10<1),$EC10*Control!$C$131*(1-$KK10), 0) -> 0 | IQ10: 1 | IR10: =MAX(0,$IO10-$EG10*Control!$C$143) -> 0.3683527182 | IS10: 0.0175 | IT10: 9.2824885 | IU10: =$IT10+$IO10 -> 9.798182305 | IV10: =Control!$C$142*MAX(0,$FG10-$EO10) -> 0 | IW10: 0.02499976999 | IX10: 0 | IY10: 0 | IZ10: =IF(OR($AX10=1,AND($AX10=0, Control!$E$7=1,$EO10<>0)), $IT10-$IX10, $IT10) -> 9.2824885 | JA10: 0 | JB10: =MAX(0,$IT10-$EC10*Control!$C$142) -> 6.655348698 | JC10: 0 | JD10: 0.03533305877 | JE10: 0 | JF10: =MAX(Control!$C$140*$EL10-$JW10, 0)/Control!$C$145 -> 0 | JG10: 0 | JH10: 9.798182305 | JI10: 0.9100478921 | JJ10: 0 | JK10: 0 | JL10: 0 | JM10: 73.9839326 | JN10: =IF(Control!$C$97=1,IF(Control!$E$18=0,MAX(0,$JL10)*$GQ10/Control!$C$47,(MAX(0,MIN($JL10,$JM10*$GQ10/Control!$C$47),0)))) -> 0 | JO10: =$IN10/Control!$C$47-$JN10+$HT10 -> 0.09149896946 | JP10: =IF(Control!$C$97=1,($JE10/(IF($JL10<>0,$JL10,1)))*$JN10,0) -> 0 | JQ10: =IF(Control!$C$97=1,($JJ10/(IF($JL10<>0,$JL10,1)))*$JN10, 0) -> 0 | JR10: 10.7082302 | JS10: =MIN(($JB10+$IR10)*Control!$C$134, $JI10-$EI10*Control!$C$144) -> 0.6500342087 | JT10: 7.673735625 | JU10: =IF($CQ10-Control!$C$133<0, 0, $JT10/Control!$C$145) -> 0 | JV10: 0 | JW10: 0 | JX10: 0 | JY10: 0 | JZ10: =$JI10/IF($EI10<>0, $EI10, 1) -> 0.0175 | KA10: 0.03353449452 | KB10: 0.9100478921 | KC10: =IF(Control!$C$97=1,($JC10/(IF($JL10<>0,$JL10,1)))*$JN10, 0) -> 0 | KD10: 1.416980427 | KE10: 10.7082302 | KF10: 0 | KG10: 0 | KH10: 0 | KI10: 0 | KJ10: 0.03353449452 | KK10: =IF(Control!$E$18=0,1,MAX(0.001,MIN(1,IF(($II10-$IH10)<>0,($KJ10-$IH10)/($II10-$IH10),1)))) -> 1 | KL10: =IF(Control!$C$97=1, $KL9+ $KK9, 0) -> 3.811474703 | KM10: 0.9528686758 | KN10: 1.416980427 | KO10: =IF(Control!$E$21=3,4000000000*EXP(-8400/($O10+273)),IF(Control!$E$21=4,4000000000*EXP(-8400/($O10+273))*($KW10),0)) -> 0.0001541675961 | KP10: =IF(Control!$E$21=3,5600000000000*EXP(-9800/($O10+273)),IF(Control!$E$21=4,5600000000000*EXP(-9800/($O10+273))*$KW10,0)) -> 0.001377049851 | KQ10: 149.8999938 | KR10: 49.69909314 | KS10: 199.599087 | KT10: 0.0231079404 | KU10: 0.06839102906 | KV10: 0.09149896946 | KW10: 0.5714285714 | KX10: =IF($CQ10-Control!$C$132<0, IF($NX10-0.01<0,0,1),0) -> 1 | KY10: =IF(Control!$C$97=1,MAX(0,MIN(Control!$C$108*$KZ10*$GQ10,$KZ10))) -> 1.694414795 | KZ10: 67.7765918 | LA10: =IF($CQ10-Control!$C$132<0, IF($MV10-$OQ10<0,0,1),0) -> 1 | LB10: 2011-01-05 | LC10: =1370*(1+0.033*COS(2*Control!$C$121*$AH10/365)) -> 1415.04264 | LD10: 1.03287784 | LE10: -0.3945221117 | LF10: =ACOS(-TAN((2*Control!$B$8/360))*TAN(Calculations!$LE10)) -> 1.447197923 | LG10: =((24*60)/PI())*0.082*$LD10*(($LF10*SIN(Control!$B$8*2*PI()/360))*SIN($LE10)+COS(Control!$B$8*2*PI()/360)*COS($LE10)*SIN($LF10)) -> 5.010631173 | LH10: 6.609003918 | LI10: =SIN(Control!$C$122*Control!$B$8)*SIN($HG10) -> -0.3024407359 | LJ10: =COS(Control!$C$122*Control!$B$8)*COS($HG10) -> 0.5705668702 | LK10: =12*(1+2*ASIN(MAX(-1,MIN(1,$LI10/$LJ10))/Control!$C$121)) -> 7.931104216 | LL10: =12*(1+2*ASIN(MAX(-1,MIN(1,(-SIN(-4*Control!$C$122)+$LI10)/$LJ10))/Control!$C$121)) -> 8.875735373 | LM10: =3600*($LK10*$LI10+24*$LJ10*SQRT(1-$LN10*$LN10)/Control!$C$121) -> 4670.533405 | LN10: -0.5300706223 | LO10: 0.3389315588 | LP10: =Control!$C$128*$AB10 -> 0.06601105501 | LQ10: 0.54 | LR10: 0.2480920693 | LS10: =Control!$C$123*((($D10+273.16)^4+($E10+273.16)^4)/2)*(0.34-0.14*SQRT($Y10))*(1.35*$AQ10/(0.75*$LG10)-0.35) -> 2.973919313 | LT10: =Control!$C$123*($G10+273)^4*(0.56-0.079*SQRT($Y10*10))*(0.1+0.9*$LR10) -> 3.333833027 | LU10: =$AQ10*(1-Control!$C$125)-$LT10 -> -1.205833027 | LV10: =$AQ10*(1-Control!$C$126)-$LT10 -> -1.429833027 | LW10: =$AQ10*(1-Control!$C$127)-$LT10 -> -1.653833027 | LX10: =(1-Control!$C$127)*AQ10-LS10 -> -1.293919313 | LY10: 0.9821528554 | LZ10: 1.153735776 | MA10: =($AC10*($LU10/Control!$C$124)+$LP10*$LY10)/($AC10+$LP10) -> 0.330913809 | MB10: =($AC10*($LV10/Control!$C$124)+$LP10*$LY10)/($AC10+$LP10) -> 0.2905280936 | MC10: 0.330913809 | MD10: 0.2905280936 | ME10: 0.2745443768 | MF10: 0.1310670708 | MG10: 0.4378114605 | MH10: 0 | MI10: =($AC10*($LW10/Control!$C$124)+$LP10*$LZ10)/($AC10+$LP10) -> 0.3459339036 | MJ10: =IF(Control!$B$17>=1000,0.92,IF(AND(720<=Control!$B$17,1000>Control!$B$17),(0.95+(Control!$B$17-720)*((0.92-0.95)/(1000-720))),IF(AND(360<=Control!$B$17,720>Control!$B$17),(1+(Control!$B$17-360)*((0.95-1)/(720-360))),IF(AND(40<=Control!$B$17,360>Control!$B$17),(1.05+(Control!$B$17-40)*((1.05-1)/(360-40))))))) -> 0.9956043981 | MK10: 0.3459339036 | ML10: 0.3444133159 | MM10: 0.3444133159 | MN10: =MAX(0.0001, Control!$C$115*$MM10*$DM10) -> 0.01894827054 | MO10: =1/(0.76+1.5*($MK10/10))-(5-Control!$C$93)*0.1 -> 1.081693819 | MP10: =IF(Control!$C$93<3,$MO10+($MK10-0.6)/(Control!$C$93*(Control!$C$93+3)), MAX(0.1, MIN(0.95,$MO10))) -> 0.95 | MQ10: =IF(Control!$C$93<3,$MO10+(($MM10/10)-0.6)/(Control!$C$93*(Control!$C$93+3)), MAX(0.1, MIN(0.95,$MO10))) -> 0.95 | MR10: =(1-$MQ10)*(Control!$C$111-Control!$C$110)+Control!$C$110 -> 0.16 | MS10: =MAX(0,MIN(1,($MW10-Control!$C$110)/($MR10-Control!$C$110))) -> 1 | MT10: =1/(0.76+1.5*$MM10)-(5-Control!$C$93)*0.1 -> 0.6333184663 | MU10: 1.2 | MV10: =$MV9+$OM9 -> 350 | MW10: =MAX(Control!$C$110, MIN(Control!$C$117, $MV10/MAX(0.0001,$CZ10))) -> 0.35 | MX10: =(Control!$C$111-$MW10)*Control!$C$57 -> 0 | MY10: =(Control!$C$117-$MW10)*Control!$C$57 -> 100 | MZ10: 200 | NA10: 0 | NB10: =MAX(Control!$C$110, MIN(Control!$C$117, $NA10/MAX(0.0001,Control!$C$102-$CZ10))) -> 0.15 | NC10: =IF(Control!$C$97=1, $CY10*$NB10, 0) -> 0 | ND10: 0 | NE10: =(Control!$C$111-$NB10)*(Control!$C$102-Control!$C$57) -> 0 | NF10: =(Control!$C$117-$NB10)*(Control!$C$102-Control!$C$57) -> 0 | NG10: 5 | NH10: =IF(Control!$C$41=2, IF(OR(Control!$B$200=$AH10,Control!$B$201=$AH10, Control!$B$202=$AH10, Control!$B$203=$AH10, Control!$B$204=$AH10, Control!$B$205=$AH10, Control!$B$206=$AH10, Control!$B$207=$AH10, Control!$B$208=$AH10, Control!$B$209=$AH10, Control!$B$210=$AH10), 1, 0), 0) -> 0 | NI10: =IF($NH10=0,0, VLOOKUP($AH10,Control!$B$200:$C$210,2)) -> 0 | NJ10: =$CZ10*(Control!$C$111-Control!$C$110) -> 200 | NK10: =IF(Control!$C$41=2, $NM9-$NN9, 0) -> 0 | NL10: =IF(AND(Control!$C$41=1, $MW9<= ($MR9+0.02), $I9<10), 0, IF(Control!$C$41=2, $NK9, 0)) -> 0 | NM10: =IF(Control!$C$41=2, $NI10+$NL10,0) -> 0 | NN10: =IF(AND(Control!$C$41=1, $MW10<= ($MR10+0.02), $I10<10), MAX(0, MIN(10, 0.7*($NJ10-$MZ10))), IF(Control!$C$41=2, MIN(10,$NM10),0)) -> 0 | NO10: 0 | NP10: =(1-Control!$C$56)*$I10+$NN10 -> 3.4 | NQ10: =IF($NP10<5, $ME10* MAX(0, MIN(1, (SQRT($NG10)-SQRT($NG10-1))*Control!$C$54)),0) -> 0.1296222715 | NR10: =IF($NP10>=5, $ME10, MAX(0,MIN($ME10, $NQ10+$NP10,($MW10-Control!$C$112)))) -> 0.25 | NS10: =IF(Control!$C$116<>1, Control!$C$117-Control!$C$114, 0) -> 0.38 | NT10: 0 | NU10: =MAX(0,MIN(1,(Control!$C$117-$MW10)/(Control!$C$117-$NS10))) -> 1 | NV10: =IF(Control!$C$116<>1, $NU10+((1-$NT10/4)*(1-$NU10)),1) -> 1 | NW10: =IF(Control!$E$26=0,$MN10,MAX(0,MIN($MZ10,$MS10*$NV10*$MN10))) -> 0.01894827054 | NX10: 1 | NY10: 5 | NZ10: 1.25 | OA10: 3.131051729 | OB10: =MIN(Control!$C$55+$MY10, $OA10) -> 3.131051729 | OC10: =IF($MX10<=$OB10,MIN(Control!$C$55+$NF10,$OB10-$MX10),0) -> 3.131051729 | OD10: =IF(Control!$C$97=1, $CY10*($NB10-Control!$C$110), 0) -> 0 | OE10: 0 | OF10: =IF($NE10 <=$OC10, MIN(Control!$C$55, $OC10-$NE10), 0) -> 3.131051729 | OG10: 0 | OH10: 0 | OI10: =Control!$C$56*$I10 -> 0 | OJ10: =$OI10+MAX(0,$OA10-$OB10) -> 0 | OK10: 0 | OL10: 0 | OM10: 0 | ON10: 0 | OO10: 0 | OP10: =Control!$C$110 -> 0.15 | OQ10: 150 | OR10: =Control!$C$111 -> 0.35 | OS10: 350 | OT10: 2 | OU10: 0 | OV10: 2 | OW10: 0 | OX10: 1.40301799 | OY10: 0.03761013112 | OZ10: 0.420403913 | PA10: -3.236994006e-14 | PB10: -3.236994006e-14 | PC10: 0 | PD10: 350 | PE10: 0 | PF10: =IF(Control!$C$44="T", IF(Control!$C$48="F", IF($AH$6-Control!$C$43<0,0,1), IF(365+$AH$6-Control!$C$43<0,0,1)),0) -> 0 | PG10: =IF(Control!$C$48="F", IF($AH$6-$HI10<0,0,1), IF(365+$AH$6-$HI10<0,0,1)) -> 1 | PH10: =Control!$C$101 -> 1500 | PI10: 0 | PJ10: 0.3459339036 | PK10: 5 | PL10: 0
A11: 6 | B11: 1 | C11: =Weather_data!$B10 -> 2011 | D11: =Weather_data!$F10 -> 3.271 | E11: =Weather_data!$E10 -> 2.221 | F11: 1.05 | G11: =AVERAGE($D11:$E11)+Control!$B$9 -> 2.746 | H11: =Weather_data!$G10 -> 0.7240540487 | I11: =Weather_data!$I10+Control!$B$14 -> 6.2 | J11: =Weather_data!$H10 -> 1.126174 | K11: =Weather_data!$D10 -> 569 | L11: 0.2464168142 | M11: 119.5868778 | N11: -0.112230881 | O11: 3.86830881 | P11: 3 | Q11: =MAX($G11-Control!$C$90,0) -> 0 | R11: 0 | S11: 0 | T11: 0 | U11: 0 | V11: =MAX(0,MIN(Control!$C$83-Control!$C$82,$G11-Control!$C$82)*Control!$C$46) -> 0 | W11: 3.0085 | X11: 0.7445232468 | Y11: 0.7240540487 | Z11: 0.7439325265 | AA11: 0.7336999492 | AB11: =101.3*EXP(-0.034*Control!$C$49/($G11+273)) -> 99.7137689 | AC11: 0.05176145685 | AD11: 0.05292746951 | AE11: 0.9732791925 | AF11: =MAX(0,$G11-Control!$C$75) -> 0 | AG11: 2011-01-06 | AH11: 6 | AI11: -0.3929880145 | AJ11: =IF(Control!$C$43<=0,$HK11,$HL11) -> 1 | AK11: -1.273851268 | AL11: 1.668162136e-18 | AM11: -1.273851268 | AN11: -0.3902181922 | AO11: =-0.10453/COS(Control!$B$8*PI()/180)*COS(AN11) -> -0.1563880321 | AP11: =ACOS(AO11-TAN(Control!$B$8*PI()/180)*TAN(AN11)) -> 1.195400949 | AQ11: 0.569 | AR11: 0.2845 | AS11: =IF(Control!$E$7=2,(IF(OR($AH11=Control!$B$158,$AH11=Control!$B$159,$AH11=Control!$B$160,$AH11=Control!$B$161,$AH11=Control!$B$162,$AH11=Control!$B$163,$AH11=Control!$B$164,$AH11=Control!$B$165,$AH11=Control!$B$166,$AH11=Control!$B$167,$AH11=Control!$B$168),1,0)),0) -> 0 | AT11: =IF(Control!$E$9=1,IF(AND($AH11>=Control!$B$155,$AH11<=Control!$B$156),1,0),0) -> 0 | AU11: =IF(Control!$E$9=1,IF($AV10=1,1*$AT11,IF($AT11=1,$AU10+1,$AU10)),0) -> 0 | AV11: =IF(Control!$E$9=1,IF($AU11>=Control!$B$157,1,0),0) -> 0 | AW11: =IF(Control!$E$7=1,IF($EC10+$EE10+$EG10+$EF10-$EP10+$EL10+$EK10-$EQ10>=Control!$E$8,1,0),0) -> 0 | AX11: =IF(Control!$E$7=1,AW11,IF(AND(Control!$E$7=2,Control!$B$154=1),$AV11,$AS11)) -> 0 | AY11: =IF(AND(Control!$E$7=1,$EX11>=Control!$E$8),-$AZ11,IF(AND(Control!$E$7=2,$AX11=1,$EX11>$DT11),-$AZ11, IF(Control!$C$91=0,0, IF(Control!$C$91<>0,1)))) -> 1 | AZ11: 5 | BA11: =IF(AND(Control!$E$7=1,$EC11>Control!$E$8),$BA10+1, IF(AND(Control!$E$7=2, $AX11=1, $EC11>$DT11), $BA10+1,$BA10)) -> 0 | BB11: =IF(Control!$C$64=0,1,IF($AH11>=Control!$C$65,1,0)) -> 1 | BC11: =IF($BB11>$BB10,Control!$C$66,IF($AX11>0,$AX11*Control!$C$67,0)) -> 0 | BD11: 0 | BE11: =BD11*IF(OR($G11<Control!$C$75,$G11>Control!$C$78),0,IF(AND($G11>=Control!$C$75,$G11<=Control!$C$76),$G11-Control!$C$75,IF(AND($G11>Control!$C$76,$G11<=Control!$C$77),Control!$C$76-Control!$C$75,IF(AND($G11>Control!$C$77,$G11<=Control!$C$78),(Control!$C$76-Control!$C$75)*(Control!$C$77-$G11)/(Control!$C$78-Control!$C$77))))) -> 0 | BF11: 0 | BG11: =IF($BF11<=Control!$C$69,$BF11,Control!$C$69-$BF11) -> 0 | BH11: =IF(AND($AX11=1,Control!$C$67<9),1,IF($BF11>=Control!$C$69,0,$BD11)) -> 0 | BI11: =IF($BH11=0,0,IF($BF11<=Control!$C$69,$BD11*9*($BG11/Control!$C$69),0)) -> 0 | BJ11: =IF($BH11=1,0,IF($BF11>=Control!$C$69,1,IF(AND($BC11<21,$BC11>=9),1,$BN10))) -> 0 | BK11: =IF($BG11<0,-$BG11,$BJ11*IF(OR($G11<Control!$C$75,$G11>Control!$C$78),0,IF(AND($G11>=Control!$C$75,$G11<=Control!$C$76),$G11-Control!$C$75,IF(AND($G11>Control!$C$76,$G11<=Control!$C$77),Control!$C$76-Control!$C$75,IF(AND($G11>Control!$C$77,$G11<=Control!$C$78),(Control!$C$76-Control!$C$75)*(Control!$C$77-$G11)/(Control!$C$78-Control!$C$77)))))) -> 0 | BL11: 0 | BM11: =IF($BL11<=Control!$C$70,$BL11,Control!$C$70-$BL11) -> 0 | BN11: =IF(AND($BC11>=9,$BC11<21),1,IF($BL11>=Control!$C$70,0,$BJ11)) -> 0 | BO11: =IF($BN11=0,0,IF($BL11<=Control!$C$70,$BJ11*(9+(21-9)*($BM11/Control!$C$70)),0)) -> 0 | BP11: =IF($BN11=1,0,IF($BL11>=Control!$C$70,1,IF(AND($BC11<30,$BC11>=21),1,$BT10))) -> 1 | BQ11: =IF($BM11<0,-$BM11,$BP11*IF(OR($G11<Control!$C$75,$G11>Control!$C$78),0,IF(AND($G11>=Control!$C$75,$G11<=Control!$C$76),$G11-Control!$C$75,IF(AND($G11>Control!$C$76,$G11<=Control!$C$77),Control!$C$76-Control!$C$75,IF(AND($G11>Control!$C$77,$G11<=Control!$C$78),(Control!$C$76-Control!$C$75)*(Control!$C$77-$G11)/(Control!$C$78-Control!$C$77)))))) -> 0 | BR11: 1.811 | BS11: =IF($BR11<=Control!$C$71,$BR11,Control!$C$71-$BR11) -> 1.811 | BT11: =IF(AND($BC11>=21,$BC11<30),1,IF($BR11>=Control!$C$71,0,$BP11)) -> 1 | BU11: =IF($BT11=0,0,IF($BR11<=Control!$C$71,$BP11*(21+(30-21)*(BS11/Control!$C$71)),0)) -> 21.10866 | BV11: =IF(BH11+BN11+BT11=1,0,IF(OR(AND($BC11<60,$BC11>=30),$BR11>=Control!$C$71),1*$BB11,$BZ10)) -> 0 | BW11: =IF($BS11<0,-$BS11,$BV11*IF(OR($G11<Control!$C$75,$G11>Control!$C$78),0,IF(AND($G11>=Control!$C$75,$G11<=Control!$C$76),$G11-Control!$C$75,IF(AND($G11>Control!$C$76,$G11<=Control!$C$77),Control!$C$76-Control!$C$75,IF(AND($G11>Control!$C$77,$G11<=Control!$C$78),(Control!$C$76-Control!$C$75)*(Control!$C$77-$G11)/(Control!$C$78-Control!$C$77)))))) -> 0 | BX11: 0 | BY11: =IF($BX11<=Control!$C$72,$BX11,Control!$C$72-$BX11) -> 0 | BZ11: =IF(AND($AJ11>=30,$AJ11<60),1,IF($BX11>=Control!$C$72,0,$BV11)) -> 0 | CA11: =IF($BZ11=0,0,IF($BX11<=Control!$C$72,$BV11*(30+(60-30)*(BY11/Control!$C$72)),0)) -> 0 | CB11: =IF($BH11+$BN11+$BT11+$BZ11=1,0,IF(OR(AND($BC11<65,$BC11>=60),$BX11>=Control!$C$72),1*$BB11,$CF10)) -> 0 | CC11: =IF($BY11<0,-$BY11,$CB11*IF(OR($G11<Control!$C$75,$G11>Control!$C$78),0,IF(AND($G11>=Control!$C$75,$G11<=Control!$C$76),$G11-Control!$C$75,IF(AND($G11>Control!$C$76,$G11<=Control!$C$77),Control!$C$76-Control!$C$75,IF(AND($G11>Control!$C$77,$G11<=Control!$C$78),(Control!$C$76-Control!$C$75)*(Control!$C$77-$G11)/(Control!$C$78-Control!$C$77)))))) -> 0 | CD11: 0 | CE11: =IF($CD11<=Control!$C$73,$CD11,Control!$C$73-$CD11) -> 0 | CF11: =IF(AND($BC11>=60,$BC11<65),1,IF($CD11>=Control!$C$73,0,$CB11)) -> 0 | CG11: =IF($CF11=0,0,IF($CD11<=Control!$C$73,$CB11*(60+(65-60)*(CE11/Control!$C$73)),0)) -> 0 | CH11: =IF($BH11+$BN11+$BT11+$BZ11+$CF11=1,0,IF(OR(AND($BC11<90,$BC11>=65),$CD11>=Control!$C$73),$BB11,$CL10)) -> 0 | CI11: =IF($CE11<0,-$CE11,$CH11*IF(OR($G11<Control!$C$75,$G11>Control!$C$78),0,IF(AND($G11>=Control!$C$75,$G11<=Control!$C$76),$G11-Control!$C$75,IF(AND($G11>Control!$C$76,$G11<=Control!$C$77),Control!$C$76-Control!$C$75,IF(AND($G11>Control!$C$77,$G11<=Control!$C$78),(Control!$C$76-Control!$C$75)*(Control!$C$77-$G11)/(Control!$C$78-Control!$C$77)))))) -> 0 | CJ11: 0 | CK11: =IF($CJ11<=Control!$C$74,$CJ11,Control!$C$74-$CJ11) -> 0 | CL11: =IF(AND($BC11>=65,$BC11<90),1,IF($CJ11>=Control!$C$74,0,$CH11)) -> 0 | CM11: =IF($CL11=0,0,IF($CJ11<=Control!$C$74,$CH11*(65+(90-65)*($CK11/Control!$C$74)),0)) -> 0 | CN11: =IF($BH11+$BN11+$BT11+$BZ11+$CF11+$CL11=1,0,IF(OR($BC11>=90,$CJ11>=Control!$C$74),$BB11,$CN10)) -> 0 | CO11: 0 | CP11: 1.811 | CQ11: 21.10866 | CR11: =VLOOKUP($CQ11,Control!$B$69:$G$74,6) -> 0.15 | CS11: =(1-$CR11)*VLOOKUP($CQ11,Control!$B$69:$D$74,3) -> 0.765 | CT11: =(1-$CR11)*VLOOKUP($CQ11,Control!$B$69:$E$74,4) -> 0.085 | CU11: =(1-$CR11)*VLOOKUP($CQ11,Control!$B$69:$F$74,5) -> 0 | CV11: 1.811 | CW11: 1.811 | CX11: 2011-01-06 | CY11: =IF(Control!$C$97=1,(MIN(Control!$C$103*(IF($NX11-0.01<0,0,1)),Control!$C$102-$CZ11))) -> 0 | CZ11: 1000 | DA11: 0.173661762 | DB11: 0.0386830881 | DC11: 0.693 | DD11: 0.05665074418 | DE11: 15.19939832 | DF11: 7134.029173 | DG11: =$DS11*EXP(-Control!$C$141*(1-$KK11)) -> 0.0025 | DH11: =IF(Control!$C$97=1, $DG11*$FB11, 0) -> 0 | DI11: 0 | DJ11: 0.09431227915 | DK11: =$EG11*Control!$C$92 -> 0.03683527182 | DL11: 0.131147551 | DM11: 0.05501607998 | DN11: =IF(Control!$C$97=1, (1-EXP(-Control!$C$79*$DJ11))*$AR11, 0) -> 0.01565207475 | DO11: 4.394 | DP11: =Control!$C$80 -> 4 | DQ11: 0.000358992236 | DR11: =IF(AND($CQ11>=0,$CQ11<=90),Control!$C$94,Control!$C$94) -> 0.0025 | DS11: 0.0025 | DT11: =Control!$E$15/DS11 -> 200 | DU11: =IF(AND(Control!$C$97=1,$KK11<1),$IP11*$DG11, 0) -> 0 | DV11: =$DV10+$DX10 -> 0.4114511191 | DW11: =IF($G11-Control!$C$90<=0, 0, 0.83*LN(MAX($G11, 3))-0.8924) -> 0 | DX11: 0 | DY11: =MAX(0.01*(1+$CV11/Control!$C$85),0.05*($DL11-Control!$C$80)/Control!$C$80) -> 0.01003018333 | DZ11: =IF(Control!$C$97=1, $DJ11*$FV11, 0) -> 0 | EA11: 0 | EB11: 2011-01-06 | EC11: 262.7139801 | ED11: 294.6821746 | EE11: =IF(Control!$C$97=1, $HP11*$GB11-$FG11, 0) -> 0 | EF11: =IF(Control!$C$97=1, $HP11*$GC11-$FI11, 0) -> 0 | EG11: 29.46821746 | EH11: =IF(Control!$C$97=1, $HA11*$FZ11-$FL11, 0) -> 0 | EI11: 52.00273669 | EJ11: -52.00273669 | EK11: =IF(Control!$C$97=1, $HP11*$GE11, 0) -> 0 | EL11: 0 | EM11: 292.1821976 | EN11: 62.71398013 | EO11: =IF(Control!$C$91=0,0,IF(AND($AX11=1,$EC11>$DT11),$EC11-$DT11,0)) -> 0 | EP11: =IF(Control!$C$91=0,0,IF($AX11=1,$EG11*EO11/EC11,0)) -> 0 | EQ11: =IF(Control!$C$91=0,0,IF($AX11=1,$EL11,0)) -> 0 | ER11: 0 | ES11: 0 | ET11: 0 | EU11: 0 | EV11: 0 | EW11: 0 | EX11: 0 | EY11: 262.7139801 | EZ11: 62.71398013 | FA11: 294.6821746 | FB11: 0 | FC11: 0 | FD11: 153.6588798 | FE11: 294.6821746 | FF11: 265.2139571 | FG11: 0 | FH11: 0 | FI11: 0 | FJ11: 0 | FK11: 0 | FL11: 0 | FM11: 0 | FN11: -52.00273669 | FO11: =$FO10+$FG10 -> 2.499976999 | FP11: 2.499976999 | FQ11: 0.012746 | FR11: =Control!$C$84 -> 50 | FS11: 0 | FT11: =MAX(0,(Control!$C$95*(($DL11-Control!$C$80)/Control!$C$80))) -> 0 | FU11: =(1-$NX11)*Control!$C$96 -> 0 | FV11: 0 | FW11: 2011-01-06 | FX11: =IF(Control!$B$20=1,VLOOKUP($CQ11,Control!$B$69:$G$74,6),Control!$B$21) -> 0.15 | FY11: 1 | FZ11: =IF(Control!$E$26=1,$FX11*$FY11, $FX11) -> 0.15 | GA11: =IF(Control!$B$20=1,VLOOKUP($CQ11,Control!$B$69:$G$74,3),Control!$B$22) -> 0.9 | GB11: 0.9 | GC11: =IF(Control!$B$20=1,VLOOKUP($CQ11,Control!$B$69:$G$74,4),Control!$B$23) -> 0.1 | GD11: 0.1 | GE11: =IF(Control!$B$20=1,VLOOKUP($CQ11,Control!$B$69:$G$74,5),Control!$B$24) -> 0 | GF11: 0 | GG11: 1 | GH11: 1 | GI11: =IF(AND(Control!$C$87=1, Control!$C$45="F"),$GH11,1) -> 1 | GJ11: =IF(Control!$B$17=40,0,IF(AND(Control!$B$17>40,Control!$B$17<=360),(Control!$B$17-40)*((1-0)/(360-40)),IF(AND(Control!$B$17>360,Control!$B$17<=720),(1+(Control!$B$17-360)*((1.25-1)/(720-360))),IF(AND(Control!$B$17>720,Control!$B$17<=1000),(1.25+(Control!$B$17-720)*((1.35-1.25)/(1000-720))),IF(AND(Control!$B$17>1000,Control!$B$17<=2000),(1.35+(Control!$B$17-1000)*0)))))) -> 1.021978009 | GK11: 1.021978009 | GL11: 0.7403333333 | GM11: 0.1285675911 | GN11: 1 | GO11: 1 | GP11: =MAX(0,MIN(1,1-Control!$C$139*(1.0001-$KK11)^2)) -> 0.999999989 | GQ11: =IF(Control!$E$21=1,$KX11,$LA11) -> 1 | GR11: =IF($CQ11<=60,Control!$C$88,IF($CQ11>=90,Control!$C$89,Control!$C$88+($CQ11-60)*((Control!$C$89-Control!$C$88)/(90-60)))) -> 2.5 | GS11: 0.1313932508 | GT11: 0.3284831271 | GU11: 0.05141442405 | GV11: 153.7102942 | GW11: 0 | GX11: 0 | GY11: 0 | GZ11: 153.7102942 | HA11: 0 | HB11: 0 | HC11: 292.1821976 | HD11: =IF(Control!$C$97=1, $DJ11*$FV11, 0) -> 0 | HE11: =$FD11/Control!$C$47 -> 153.6588798 | HF11: =$GZ11-$HE11 -> 0.05141442405 | HG11: =-ASIN(SIN(23.45*Control!$C$122)*COS(2*Control!$C$121*($AH11+10)/365)) -> -0.3929880145 | HH11: 0 | HI11: =IF(AND(Control!$C$44="T",$HH11>=Control!$C$86,Control!$C$97=0),$AH11,Control!$C$42) -> 1 | HJ11: =IF(AND(Control!$C$44="T",$HH11>=Control!$C$86,Control!$C$97=0),$HI11,Control!$C$42) -> 1 | HK11: =IF(AND(OR(Control!$C$43<=0, $AH11= Control!$C$42, Control!$C$43 >0, $AH11 = Control!$C$43)), Control!$C$42, IF(Control!$C$43>0, 0)) -> 1 | HL11: =IF(AND(OR(Control!$C$43<=0, $AH11= Control!$C$42, Control!$C$43 >0, $AH11 = Control!$C$43)), Control!$C$43, IF(Control!$C$43<=0, 0)) -> 0 | HM11: =IF(AND(Control!$C$45="F",$CW11>=Control!$C$85),$AH11,0) -> 0 | HN11: 346.6849113 | HO11: =IF(AND(Control!$C$44="T",$HH11>=Control!$C$86,Control!$C$97=0),$HI11,0) -> 0 | HP11: 0 | HQ11: 2011-01-06 | HR11: =IF(AND($CQ11>=0, $CQ11<=90), Control!$C$135, Control!$C$135) -> 0.035 | HS11: 0.035 | HT11: =IF(OR(Control!$E$21=1,Control!$E$21=2),$KY11,$KV11) -> 0.0901850801 | HU11: 199.507588 | HV11: =Control!$C$137*$HS11 -> 0.0175 | HW11: =Control!$C$138*$HS11 -> 0.0175 | HX11: =Control!$C$144*$FL11 -> 0 | HY11: 0 | HZ11: =Control!$C$143*$FI11+$IS11*$EP11 -> 0 | IA11: 0 | IB11: =IF(Control!$C$97=1, $EC11*$FV11, 0) -> 0 | IC11: 1.416980427 | ID11: =Control!$C$136*$HR11 -> 0.035 | IE11: 9.194989305 | IF11: =Control!$C$136*$HW11 -> 0.0175 | IG11: 0.5156938055 | IH11: =($EC11*Control!$C$142+$EG11*Control!$C$143)/(IF($HC11<>0,$HC11,1)) -> 0.009495721887 | II11: 0.0332350266 | IJ11: =IF(OR(Control!$B$180=$AH11,Control!$B$181=$AH11, Control!$B$182=$AH11, Control!$B$183=$AH11, Control!$B$184=$AH11, Control!$B$185=$AH11, Control!$B$186=$AH11, Control!$B$187=$AH11, Control!$B$188=$AH11, Control!$B$189=$AH11), 1, 0) -> 0 | IK11: =IF($IJ11=0,0, VLOOKUP($AH11,Control!$B$180:$C$189,2)) -> 0 | IL11: 0 | IM11: =Control!$C$104 -> 0.7 | IN11: 0 | IO11: 0.5156938055 | IP11: =IF(AND(Control!$C$97=1,$KK11<1),$EC11*Control!$C$131*(1-$KK11), 0) -> 0 | IQ11: 1 | IR11: =MAX(0,$IO11-$EG11*Control!$C$143) -> 0.3683527182 | IS11: 0.0175 | IT11: 9.2824885 | IU11: 9.798182305 | IV11: =Control!$C$142*MAX(0,$FG11-$EO11) -> 0 | IW11: 0.02499976999 | IX11: 0 | IY11: 0 | IZ11: =IF(OR($AX11=1,AND($AX11=0, Control!$E$7=1,$EO11<>0)), $IT11-$IX11, $IT11) -> 9.2824885 | JA11: 0 | JB11: =MAX(0,$IT11-$EC11*Control!$C$142) -> 6.655348698 | JC11: 0 | JD11: 0.03533305877 | JE11: 0 | JF11: =MAX(Control!$C$140*$EL11-$JW11, 0)/Control!$C$145 -> 0 | JG11: 0 | JH11: 9.798182305 | JI11: 0.9100478921 | JJ11: 0 | JK11: 0 | JL11: 0 | JM11: 74.07543157 | JN11: =IF(Control!$C$97=1,IF(Control!$E$18=0,MAX(0,$JL11)*$GQ11/Control!$C$47,(MAX(0,MIN($JL11,$JM11*$GQ11/Control!$C$47),0)))) -> 0 | JO11: =$IN11/Control!$C$47-$JN11+$HT11 -> 0.0901850801 | JP11: =IF(Control!$C$97=1,($JE11/(IF($JL11<>0,$JL11,1)))*$JN11,0) -> 0 | JQ11: =IF(Control!$C$97=1,($JJ11/(IF($JL11<>0,$JL11,1)))*$JN11, 0) -> 0 | JR11: 10.7082302 | JS11: =MIN(($JB11+$IR11)*Control!$C$134, $JI11-$EI11*Control!$C$144) -> 0.6500342087 | JT11: 7.673735625 | JU11: =IF($CQ11-Control!$C$133<0, 0, $JT11/Control!$C$145) -> 0 | JV11: 0 | JW11: 0 | JX11: 0 | JY11: 0 | JZ11: 0.0175 | KA11: 0.03353449452 | KB11: 0.9100478921 | KC11: =IF(Control!$C$97=1,($JC11/(IF($JL11<>0,$JL11,1)))*$JN11, 0) -> 0 | KD11: 1.416980427 | KE11: 10.7082302 | KF11: 0 | KG11: 0 | KH11: 0 | KI11: 0 | KJ11: 0.03353449452 | KK11: =IF(Control!$E$18=0,1,MAX(0.001,MIN(1,IF(($II11-$IH11)<>0,($KJ11-$IH11)/($II11-$IH11),1)))) -> 1 | KL11: =IF(Control!$C$97=1, $KL10+ $KK10, 0) -> 4.811474703 | KM11: 0.9622949406 | KN11: 1.416980427 | KO11: =IF(Control!$E$21=3,4000000000*EXP(-8400/($O11+273)),IF(Control!$E$21=4,4000000000*EXP(-8400/($O11+273))*($KW11),0)) -> 0.000152340982 | KP11: =IF(Control!$E$21=3,5600000000000*EXP(-9800/($O11+273)),IF(Control!$E$21=4,5600000000000*EXP(-9800/($O11+273))*$KW11,0)) -> 0.001358033827 | KQ11: 149.8768859 | KR11: 49.63070211 | KS11: 199.507588 | KT11: 0.02283065291 | KU11: 0.06735442719 | KV11: 0.0901850801 | KW11: 0.5714285714 | KX11: =IF($CQ11-Control!$C$132<0, IF($NX11-0.01<0,0,1),0) -> 1 | KY11: =IF(Control!$C$97=1,MAX(0,MIN(Control!$C$108*$KZ11*$GQ11,$KZ11))) -> 1.652054425 | KZ11: 66.082177 | LA11: =IF($CQ11-Control!$C$132<0, IF($MV11-$OQ11<0,0,1),0) -> 1 | LB11: 2011-01-06 | LC11: =1370*(1+0.033*COS(2*Control!$C$121*$AH11/365)) -> 1414.969067 | LD11: 1.032824137 | LE11: -0.3926070644 | LF11: =ACOS(-TAN((2*Control!$B$8/360))*TAN(Calculations!$LE11)) -> 1.447867831 | LG11: =((24*60)/PI())*0.082*$LD11*(($LF11*SIN(Control!$B$8*2*PI()/360))*SIN($LE11)+COS(Control!$B$8*2*PI()/360)*COS($LE11)*SIN($LF11)) -> 5.099968124 | LH11: 6.687035911 | LI11: =SIN(Control!$C$122*Control!$B$8)*SIN($HG11) -> -0.301020962 | LJ11: =COS(Control!$C$122*Control!$B$8)*COS($HG11) -> 0.5710310004 | LK11: =12*(1+2*ASIN(MAX(-1,MIN(1,$LI11/$LJ11))/Control!$C$121)) -> 7.953712054 | LL11: =12*(1+2*ASIN(MAX(-1,MIN(1,(-SIN(-4*Control!$C$122)+$LI11)/$LJ11))/Control!$C$121)) -> 8.897444148 | LM11: =3600*($LK11*$LI11+24*$LJ11*SQRT(1-$LN11*$LN11)/Control!$C$121) -> 4725.923745 | LN11: -0.5271534502 | LO11: 0.0850900171 | LP11: =Control!$C$128*$AB11 -> 0.06601051501 | LQ11: 0.54 | LR11: 0 | LS11: =Control!$C$123*((($D11+273.16)^4+($E11+273.16)^4)/2)*(0.34-0.14*SQRT($Y11))*(1.35*$AQ11/(0.75*$LG11)-0.35) -> -0.9355943825 | LT11: =Control!$C$123*($G11+273)^4*(0.56-0.079*SQRT($Y11*10))*(0.1+0.9*$LR11) -> 0.9842236316 | LU11: =$AQ11*(1-Control!$C$125)-$LT11 -> -0.4436736316 | LV11: =$AQ11*(1-Control!$C$126)-$LT11 -> -0.5005736316 | LW11: =$AQ11*(1-Control!$C$127)-$LT11 -> -0.5574736316 | LX11: =(1-Control!$C$127)*AQ11-LS11 -> 1.362344383 | LY11: 0.05897479518 | LZ11: 0.08558475269 | MA11: =($AC11*($LU11/Control!$C$124)+$LP11*$LY11)/($AC11+$LP11) -> -0.04653562044 | MB11: =($AC11*($LV11/Control!$C$124)+$LP11*$LY11)/($AC11+$LP11) -> -0.05674291686 | MC11: 0 | MD11: 0 | ME11: 0 | MF11: 0.009645900482 | MG11: 0.2202254051 | MH11: 0 | MI11: =($AC11*($LW11/Control!$C$124)+$LP11*$LZ11)/($AC11+$LP11) -> -0.05203548465 | MJ11: =IF(Control!$B$17>=1000,0.92,IF(AND(720<=Control!$B$17,1000>Control!$B$17),(0.95+(Control!$B$17-720)*((0.92-0.95)/(1000-720))),IF(AND(360<=Control!$B$17,720>Control!$B$17),(1+(Control!$B$17-360)*((0.95-1)/(720-360))),IF(AND(40<=Control!$B$17,360>Control!$B$17),(1.05+(Control!$B$17-40)*((1.05-1)/(360-40))))))) -> 0.9956043981 | MK11: 0 | ML11: 0 | MM11: 0 | MN11: =MAX(0.0001, Control!$C$115*$MM11*$DM11) -> 0.0001 | MO11: =1/(0.76+1.5*($MK11/10))-(5-Control!$C$93)*0.1 -> 1.165789474 | MP11: =IF(Control!$C$93<3,$MO11+($MK11-0.6)/(Control!$C$93*(Control!$C$93+3)), MAX(0.1, MIN(0.95,$MO11))) -> 0.95 | MQ11: =IF(Control!$C$93<3,$MO11+(($MM11/10)-0.6)/(Control!$C$93*(Control!$C$93+3)), MAX(0.1, MIN(0.95,$MO11))) -> 0.95 | MR11: =(1-$MQ11)*(Control!$C$111-Control!$C$110)+Control!$C$110 -> 0.16 | MS11: =MAX(0,MIN(1,($MW11-Control!$C$110)/($MR11-Control!$C$110))) -> 1 | MT11: =1/(0.76+1.5*$MM11)-(5-Control!$C$93)*0.1 -> 1.165789474 | MU11: 4.6 | MV11: 350 | MW11: =MAX(Control!$C$110, MIN(Control!$C$117, $MV11/MAX(0.0001,$CZ11))) -> 0.35 | MX11: =(Control!$C$111-$MW11)*Control!$C$57 -> 0 | MY11: =(Control!$C$117-$MW11)*Control!$C$57 -> 100 | MZ11: 200 | NA11: 0 | NB11: =MAX(Control!$C$110, MIN(Control!$C$117, $NA11/MAX(0.0001,Control!$C$102-$CZ11))) -> 0.15 | NC11: =IF(Control!$C$97=1, $CY11*$NB11, 0) -> 0 | ND11: 0 | NE11: =(Control!$C$111-$NB11)*(Control!$C$102-Control!$C$57) -> 0 | NF11: =(Control!$C$117-$NB11)*(Control!$C$102-Control!$C$57) -> 0 | NG11: 6 | NH11: =IF(Control!$C$41=2, IF(OR(Control!$B$200=$AH11,Control!$B$201=$AH11, Control!$B$202=$AH11, Control!$B$203=$AH11, Control!$B$204=$AH11, Control!$B$205=$AH11, Control!$B$206=$AH11, Control!$B$207=$AH11, Control!$B$208=$AH11, Control!$B$209=$AH11, Control!$B$210=$AH11), 1, 0), 0) -> 0 | NI11: =IF($NH11=0,0, VLOOKUP($AH11,Control!$B$200:$C$210,2)) -> 0 | NJ11: =$CZ11*(Control!$C$111-Control!$C$110) -> 200 | NK11: =IF(Control!$C$41=2, $NM10-$NN10, 0) -> 0 | NL11: =IF(AND(Control!$C$41=1, $MW10<= ($MR10+0.02), $I10<10), 0, IF(Control!$C$41=2, $NK10, 0)) -> 0 | NM11: =IF(Control!$C$41=2, $NI11+$NL11,0) -> 0 | NN11: =IF(AND(Control!$C$41=1, $MW11<= ($MR11+0.02), $I11<10), MAX(0, MIN(10, 0.7*($NJ11-$MZ11))), IF(Control!$C$41=2, MIN(10,$NM11),0)) -> 0 | NO11: 0 | NP11: =(1-Control!$C$56)*$I11+$NN11 -> 6.2 | NQ11: =IF($NP11<5, $ME11* MAX(0, MIN(1, (SQRT($NG11)-SQRT($NG11-1))*Control!$C$54)),0) -> 0 | NR11: =IF($NP11>=5, $ME11, MAX(0,MIN($ME11, $NQ11+$NP11,($MW11-Control!$C$112)))) -> 0 | NS11: =IF(Control!$C$116<>1, Control!$C$117-Control!$C$114, 0) -> 0.38 | NT11: 0 | NU11: =MAX(0,MIN(1,(Control!$C$117-$MW11)/(Control!$C$117-$NS11))) -> 1 | NV11: =IF(Control!$C$116<>1, $NU11+((1-$NT11/4)*(1-$NU11)),1) -> 1 | NW11: =IF(Control!$E$26=0,$MN11,MAX(0,MIN($MZ11,$MS11*$NV11*$MN11))) -> 0.0001 | NX11: 1 | NY11: 6 | NZ11: 1.2 | OA11: 6.1999 | OB11: =MIN(Control!$C$55+$MY11, $OA11) -> 6.1999 | OC11: =IF($MX11<=$OB11,MIN(Control!$C$55+$NF11,$OB11-$MX11),0) -> 6.1999 | OD11: =IF(Control!$C$97=1, $CY11*($NB11-Control!$C$110), 0) -> 0 | OE11: 0 | OF11: =IF($NE11 <=$OC11, MIN(Control!$C$55, $OC11-$NE11), 0) -> 6.1999 | OG11: 0 | OH11: 0 | OI11: =Control!$C$56*$I11 -> 0 | OJ11: 0 | OK11: 0 | OL11: 0 | OM11: 0 | ON11: 0 | OO11: 0 | OP11: =Control!$C$110 -> 0.15 | OQ11: 150 | OR11: =Control!$C$111 -> 0.35 | OS11: 350 | OT11: 5.4 | OU11: 0 | OV11: 5.4 | OW11: 0 | OX11: 4.53406972 | OY11: 0.05655840166 | OZ11: 0.670403913 | PA11: -3.236994006e-14 | PB11: -3.236994006e-14 | PC11: 0 | PD11: 350 | PE11: 0 | PF11: =IF(Control!$C$44="T", IF(Control!$C$48="F", IF($AH$6-Control!$C$43<0,0,1), IF(365+$AH$6-Control!$C$43<0,0,1)),0) -> 0 | PG11: =IF(Control!$C$48="F", IF($AH$6-$HI11<0,0,1), IF(365+$AH$6-$HI11<0,0,1)) -> 1 | PH11: =Control!$C$101 -> 1500 | PI11: 0 | PJ11: -0.05203548465 | PK11: 6 | PL11: 0
A12: 7 | B12: 1 | C12: =Weather_data!$B11 -> 2011 | D12: =Weather_data!$F11 -> 9.28 | E12: =Weather_data!$E11 -> -0.678 | F12: 9.958 | G12: =AVERAGE($D12:$E12)+Control!$B$9 -> 4.301 | H12: =Weather_data!$G11 -> 0.7077681285 | I12: =Weather_data!$I11+Control!$B$14 -> 12.2 | J12: =Weather_data!$H11 -> 3.412446 | K12: =Weather_data!$D11 -> 875 | L12: 0.262068889 | M12: 112.4445468 | N12: 0.0544922071 | O12: 3.756077929 | P12: 3 | Q12: =MAX($G12-Control!$C$90,0) -> 0.301 | R12: 1.301 | S12: 1.301 | T12: 1.301 | U12: 1.301 | V12: =MAX(0,MIN(Control!$C$83-Control!$C$82,$G12-Control!$C$82)*Control!$C$46) -> 0 | W12: 6.7905 | X12: 0.8310490263 | Y12: 0.7077681285 | Z12: 0.8303285115 | AA12: 0.8627321834 | AB12: =101.3*EXP(-0.034*Control!$C$49/($G12+273)) -> 99.72259427 | AC12: 0.0570408094 | AD12: 0.05831682177 | AE12: 0.8523953094 | AF12: =MAX(0,$G12-Control!$C$75) -> 1.301 | AG12: 2011-01-07 | AH12: 7 | AI12: -0.3909108193 | AJ12: =IF(Control!$C$43<=0,$HK12,$HL12) -> 1 | AK12: -1.256637061 | AL12: 1.645619405e-18 | AM12: -1.256637061 | AN12: -0.3879918376 | AO12: =-0.10453/COS(Control!$B$8*PI()/180)*COS(AN12) -> -0.1565308523 | AP12: =ACOS(AO12-TAN(Control!$B$8*PI()/180)*TAN(AN12)) -> 1.199106284 | AQ12: 0.875 | AR12: 0.4375 | AS12: =IF(Control!$E$7=2,(IF(OR($AH12=Control!$B$158,$AH12=Control!$B$159,$AH12=Control!$B$160,$AH12=Control!$B$161,$AH12=Control!$B$162,$AH12=Control!$B$163,$AH12=Control!$B$164,$AH12=Control!$B$165,$AH12=Control!$B$166,$AH12=Control!$B$167,$AH12=Control!$B$168),1,0)),0) -> 0 | AT12: =IF(Control!$E$9=1,IF(AND($AH12>=Control!$B$155,$AH12<=Control!$B$156),1,0),0) -> 0 | AU12: =IF(Control!$E$9=1,IF($AV11=1,1*$AT12,IF($AT12=1,$AU11+1,$AU11)),0) -> 0 | AV12: =IF(Control!$E$9=1,IF($AU12>=Control!$B$157,1,0),0) -> 0 | AW12: =IF(Control!$E$7=1,IF($EC11+$EE11+$EG11+$EF11-$EP11+$EL11+$EK11-$EQ11>=Control!$E$8,1,0),0) -> 0 | AX12: =IF(Control!$E$7=1,AW12,IF(AND(Control!$E$7=2,Control!$B$154=1),$AV12,$AS12)) -> 0 | AY12: =IF(AND(Control!$E$7=1,$EX12>=Control!$E$8),-$AZ12,IF(AND(Control!$E$7=2,$AX12=1,$EX12>$DT12),-$AZ12, IF(Control!$C$91=0,0, IF(Control!$C$91<>0,1)))) -> 1 | AZ12: 6 | BA12: =IF(AND(Control!$E$7=1,$EC12>Control!$E$8),$BA11+1, IF(AND(Control!$E$7=2, $AX12=1, $EC12>$DT12), $BA11+1,$BA11)) -> 0 | BB12: =IF(Control!$C$64=0,1,IF($AH12>=Control!$C$65,1,0)) -> 1 | BC12: =IF($BB12>$BB11,Control!$C$66,IF($AX12>0,$AX12*Control!$C$67,0)) -> 0 | BD12: 0 | BE12: =BD12*IF(OR($G12<Control!$C$75,$G12>Control!$C$78),0,IF(AND($G12>=Control!$C$75,$G12<=Control!$C$76),$G12-Control!$C$75,IF(AND($G12>Control!$C$76,$G12<=Control!$C$77),Control!$C$76-Control!$C$75,IF(AND($G12>Control!$C$77,$G12<=Control!$C$78),(Control!$C$76-Control!$C$75)*(Control!$C$77-$G12)/(Control!$C$78-Control!$C$77))))) -> 0 | BF12: 0 | BG12: =IF($BF12<=Control!$C$69,$BF12,Control!$C$69-$BF12) -> 0 | BH12: =IF(AND($AX12=1,Control!$C$67<9),1,IF($BF12>=Control!$C$69,0,$BD12)) -> 0 | BI12: =IF($BH12=0,0,IF($BF12<=Control!$C$69,$BD12*9*($BG12/Control!$C$69),0)) -> 0 | BJ12: =IF($BH12=1,0,IF($BF12>=Control!$C$69,1,IF(AND($BC12<21,$BC12>=9),1,$BN11))) -> 0 | BK12: =IF($BG12<0,-$BG12,$BJ12*IF(OR($G12<Control!$C$75,$G12>Control!$C$78),0,IF(AND($G12>=Control!$C$75,$G12<=Control!$C$76),$G12-Control!$C$75,IF(AND($G12>Control!$C$76,$G12<=Control!$C$77),Control!$C$76-Control!$C$75,IF(AND($G12>Control!$C$77,$G12<=Control!$C$78),(Control!$C$76-Control!$C$75)*(Control!$C$77-$G12)/(Control!$C$78-Control!$C$77)))))) -> 0 | BL12: 0 | BM12: =IF($BL12<=Control!$C$70,$BL12,Control!$C$70-$BL12) -> 0 | BN12: =IF(AND($BC12>=9,$BC12<21),1,IF($BL12>=Control!$C$70,0,$BJ12)) -> 0 | BO12: =IF($BN12=0,0,IF($BL12<=Control!$C$70,$BJ12*(9+(21-9)*($BM12/Control!$C$70)),0)) -> 0 | BP12: =IF($BN12=1,0,IF($BL12>=Control!$C$70,1,IF(AND($BC12<30,$BC12>=21),1,$BT11))) -> 1 | BQ12: =IF($BM12<0,-$BM12,$BP12*IF(OR($G12<Control!$C$75,$G12>Control!$C$78),0,IF(AND($G12>=Control!$C$75,$G12<=Control!$C$76),$G12-Control!$C$75,IF(AND($G12>Control!$C$76,$G12<=Control!$C$77),Control!$C$76-Control!$C$75,IF(AND($G12>Control!$C$77,$G12<=Control!$C$78),(Control!$C$76-Control!$C$75)*(Control!$C$77-$G12)/(Control!$C$78-Control!$C$77)))))) -> 1.301 | BR12: 3.112 | BS12: =IF($BR12<=Control!$C$71,$BR12,Control!$C$71-$BR12) -> 3.112 | BT12: =IF(AND($BC12>=21,$BC12<30),1,IF($BR12>=Control!$C$71,0,$BP12)) -> 1 | BU12: =IF($BT12=0,0,IF($BR12<=Control!$C$71,$BP12*(21+(30-21)*(BS12/Control!$C$71)),0)) -> 21.18672 | BV12: =IF(BH12+BN12+BT12=1,0,IF(OR(AND($BC12<60,$BC12>=30),$BR12>=Control!$C$71),1*$BB12,$BZ11)) -> 0 | BW12: =IF($BS12<0,-$BS12,$BV12*IF(OR($G12<Control!$C$75,$G12>Control!$C$78),0,IF(AND($G12>=Control!$C$75,$G12<=Control!$C$76),$G12-Control!$C$75,IF(AND($G12>Control!$C$76,$G12<=Control!$C$77),Control!$C$76-Control!$C$75,IF(AND($G12>Control!$C$77,$G12<=Control!$C$78),(Control!$C$76-Control!$C$75)*(Control!$C$77-$G12)/(Control!$C$78-Control!$C$77)))))) -> 0 | BX12: 0 | BY12: =IF($BX12<=Control!$C$72,$BX12,Control!$C$72-$BX12) -> 0 | BZ12: =IF(AND($AJ12>=30,$AJ12<60),1,IF($BX12>=Control!$C$72,0,$BV12)) -> 0 | CA12: =IF($BZ12=0,0,IF($BX12<=Control!$C$72,$BV12*(30+(60-30)*(BY12/Control!$C$72)),0)) -> 0 | CB12: =IF($BH12+$BN12+$BT12+$BZ12=1,0,IF(OR(AND($BC12<65,$BC12>=60),$BX12>=Control!$C$72),1*$BB12,$CF11)) -> 0 | CC12: =IF($BY12<0,-$BY12,$CB12*IF(OR($G12<Control!$C$75,$G12>Control!$C$78),0,IF(AND($G12>=Control!$C$75,$G12<=Control!$C$76),$G12-Control!$C$75,IF(AND($G12>Control!$C$76,$G12<=Control!$C$77),Control!$C$76-Control!$C$75,IF(AND($G12>Control!$C$77,$G12<=Control!$C$78),(Control!$C$76-Control!$C$75)*(Control!$C$77-$G12)/(Control!$C$78-Control!$C$77)))))) -> 0 | CD12: 0 | CE12: =IF($CD12<=Control!$C$73,$CD12,Control!$C$73-$CD12) -> 0 | CF12: =IF(AND($BC12>=60,$BC12<65),1,IF($CD12>=Control!$C$73,0,$CB12)) -> 0 | CG12: =IF($CF12=0,0,IF($CD12<=Control!$C$73,$CB12*(60+(65-60)*(CE12/Control!$C$73)),0)) -> 0 | CH12: =IF($BH12+$BN12+$BT12+$BZ12+$CF12=1,0,IF(OR(AND($BC12<90,$BC12>=65),$CD12>=Control!$C$73),$BB12,$CL11)) -> 0 | CI12: =IF($CE12<0,-$CE12,$CH12*IF(OR($G12<Control!$C$75,$G12>Control!$C$78),0,IF(AND($G12>=Control!$C$75,$G12<=Control!$C$76),$G12-Control!$C$75,IF(AND($G12>Control!$C$76,$G12<=Control!$C$77),Control!$C$76-Control!$C$75,IF(AND($G12>Control!$C$77,$G12<=Control!$C$78),(Control!$C$76-Control!$C$75)*(Control!$C$77-$G12)/(Control!$C$78-Control!$C$77)))))) -> 0 | CJ12: 0 | CK12: =IF($CJ12<=Control!$C$74,$CJ12,Control!$C$74-$CJ12) -> 0 | CL12: =IF(AND($BC12>=65,$BC12<90),1,IF($CJ12>=Control!$C$74,0,$CH12)) -> 0 | CM12: =IF($CL12=0,0,IF($CJ12<=Control!$C$74,$CH12*(65+(90-65)*($CK12/Control!$C$74)),0)) -> 0 | CN12: =IF($BH12+$BN12+$BT12+$BZ12+$CF12+$CL12=1,0,IF(OR($BC12>=90,$CJ12>=Control!$C$74),$BB12,$CN11)) -> 0 | CO12: 0 | CP12: 3.112 | CQ12: 21.18672 | CR12: =VLOOKUP($CQ12,Control!$B$69:$G$74,6) -> 0.15 | CS12: =(1-$CR12)*VLOOKUP($CQ12,Control!$B$69:$D$74,3) -> 0.765 | CT12: =(1-$CR12)*VLOOKUP($CQ12,Control!$B$69:$E$74,4) -> 0.085 | CU12: =(1-$CR12)*VLOOKUP($CQ12,Control!$B$69:$F$74,5) -> 0 | CV12: 1.811 | CW12: 1.811 | CX12: 2011-01-07 | CY12: =IF(Control!$C$97=1,(MIN(Control!$C$103*(IF($NX12-0.01<0,0,1)),Control!$C$102-$CZ12))) -> 0 | CZ12: 1000 | DA12: 0.1512155858 | DB12: 0.03756077929 | DC12: 0.693 | DD12: 0.04932850714 | DE12: 12.8657027 | DF12: 7149.228572 | DG12: =$DS12*EXP(-Control!$C$141*(1-$KK12)) -> 0.0025 | DH12: =IF(Control!$C$97=1, $DG12*$FB12, 0) -> 0.0705753797 | DI12: 0.0705753797 | DJ12: 0.09431227915 | DK12: =$EG12*Control!$C$92 -> 0.03683527182 | DL12: 0.131147551 | DM12: 0.05501607998 | DN12: =IF(Control!$C$97=1, (1-EXP(-Control!$C$79*$DJ12))*$AR12, 0) -> 0.02406953499 | DO12: 4.6785 | DP12: =Control!$C$80 -> 4 | DQ12: 0.000358992236 | DR12: =IF(AND($CQ12>=0,$CQ12<=90),Control!$C$94,Control!$C$94) -> 0.0025 | DS12: 0.0025 | DT12: =Control!$E$15/DS12 -> 200 | DU12: =IF(AND(Control!$C$97=1,$KK12<1),$IP12*$DG12, 0) -> 0 | DV12: 0.4114511191 | DW12: =IF($G12-Control!$C$90<=0, 0, 0.83*LN(MAX($G12, 3))-0.8924) -> 0.3184434697 | DX12: 0.3184434697 | DY12: =MAX(0.01*(1+$CV12/Control!$C$85),0.05*($DL12-Control!$C$80)/Control!$C$80) -> 0.01003018333 | DZ12: =IF(Control!$C$97=1, $DJ12*$FV12, 0) -> 0 | EA12: 0 | EB12: 2011-01-07 | EC12: 262.7139801 | ED12: 294.6821746 | EE12: =IF(Control!$C$97=1, $HP12*$GB12-$FG12, 0) -> 28.23015188 | EF12: =IF(Control!$C$97=1, $HP12*$GC12-$FI12, 0) -> 3.136683542 | EG12: 29.46821746 | EH12: =IF(Control!$C$97=1, $HA12*$FZ12-$FL12, 0) -> 5.535323898 | EI12: 52.00273669 | EJ12: -52.00273669 | EK12: =IF(Control!$C$97=1, $HP12*$GE12, 0) -> 0 | EL12: 0 | EM12: 292.1821976 | EN12: 62.71398013 | EO12: =IF(Control!$C$91=0,0,IF(AND($AX12=1,$EC12>$DT12),$EC12-$DT12,0)) -> 0 | EP12: =IF(Control!$C$91=0,0,IF($AX12=1,$EG12*EO12/EC12,0)) -> 0 | EQ12: =IF(Control!$C$91=0,0,IF($AX12=1,$EL12,0)) -> 0 | ER12: 0 | ES12: 0 | ET12: 0 | EU12: 0 | EV12: 0 | EW12: 0 | EX12: 0 | EY12: 262.7139801 | EZ12: 62.71398013 | FA12: 294.6821746 | FB12: 28.23015188 | FC12: 28.23015188 | FD12: 153.7102942 | FE12: 294.6821746 | FF12: 265.2139571 | FG12: 0 | FH12: 0 | FI12: 0 | FJ12: 0 | FK12: 0 | FL12: 0 | FM12: 0 | FN12: -52.00273669 | FO12: 2.499976999 | FP12: 2.499976999 | FQ12: 0.014301 | FR12: =Control!$C$84 -> 50 | FS12: 0 | FT12: =MAX(0,(Control!$C$95*(($DL12-Control!$C$80)/Control!$C$80))) -> 0 | FU12: =(1-$NX12)*Control!$C$96 -> 0 | FV12: 0 | FW12: 2011-01-07 | FX12: =IF(Control!$B$20=1,VLOOKUP($CQ12,Control!$B$69:$G$74,6),Control!$B$21) -> 0.15 | FY12: 1 | FZ12: =IF(Control!$E$26=1,$FX12*$FY12, $FX12) -> 0.15 | GA12: =IF(Control!$B$20=1,VLOOKUP($CQ12,Control!$B$69:$G$74,3),Control!$B$22) -> 0.9 | GB12: 0.9 | GC12: =IF(Control!$B$20=1,VLOOKUP($CQ12,Control!$B$69:$G$74,4),Control!$B$23) -> 0.1 | GD12: 0.1 | GE12: =IF(Control!$B$20=1,VLOOKUP($CQ12,Control!$B$69:$G$74,5),Control!$B$24) -> 0 | GF12: 0 | GG12: 1 | GH12: 1 | GI12: =IF(AND(Control!$C$87=1, Control!$C$45="F"),$GH12,1) -> 1 | GJ12: =IF(Control!$B$17=40,0,IF(AND(Control!$B$17>40,Control!$B$17<=360),(Control!$B$17-40)*((1-0)/(360-40)),IF(AND(Control!$B$17>360,Control!$B$17<=720),(1+(Control!$B$17-360)*((1.25-1)/(720-360))),IF(AND(Control!$B$17>720,Control!$B$17<=1000),(1.25+(Control!$B$17-720)*((1.35-1.25)/(1000-720))),IF(AND(Control!$B$17>1000,Control!$B$17<=2000),(1.35+(Control!$B$17-1000)*0)))))) -> 1.021978009 | GK12: 1.021978009 | GL12: 0 | GM12: 0 | GN12: 1 | GO12: 1 | GP12: =MAX(0,MIN(1,1-Control!$C$139*(1.0001-$KK12)^2)) -> 0.999999989 | GQ12: =IF(Control!$E$21=1,$KX12,$LA12) -> 1 | GR12: =IF($CQ12<=60,Control!$C$88,IF($CQ12>=90,Control!$C$89,Control!$C$88+($CQ12-60)*((Control!$C$89-Control!$C$88)/(90-60)))) -> 2.5 | GS12: 0 | GT12: 0 | GU12: 0 | GV12: 153.7102942 | GW12: 0.0705753797 | GX12: 28.23015188 | GY12: 36.90215932 | GZ12: 116.8081349 | HA12: 36.90215932 | HB12: 28.23015188 | HC12: 292.1821976 | HD12: =IF(Control!$C$97=1, $DJ12*$FV12, 0) -> 0 | HE12: =$FD12/Control!$C$47 -> 153.7102942 | HF12: -36.90215932 | HG12: =-ASIN(SIN(23.45*Control!$C$122)*COS(2*Control!$C$121*($AH12+10)/365)) -> -0.3909108193 | HH12: 0 | HI12: =IF(AND(Control!$C$44="T",$HH12>=Control!$C$86,Control!$C$97=0),$AH12,Control!$C$42) -> 1 | HJ12: =IF(AND(Control!$C$44="T",$HH12>=Control!$C$86,Control!$C$97=0),$HI12,Control!$C$42) -> 1 | HK12: =IF(AND(OR(Control!$C$43<=0, $AH12= Control!$C$42, Control!$C$43 >0, $AH12 = Control!$C$43)), Control!$C$42, IF(Control!$C$43>0, 0)) -> 1 | HL12: =IF(AND(OR(Control!$C$43<=0, $AH12= Control!$C$42, Control!$C$43 >0, $AH12 = Control!$C$43)), Control!$C$43, IF(Control!$C$43<=0, 0)) -> 0 | HM12: =IF(AND(Control!$C$45="F",$CW12>=Control!$C$85),$AH12,0) -> 0 | HN12: 346.6849113 | HO12: =IF(AND(Control!$C$44="T",$HH12>=Control!$C$86,Control!$C$97=0),$HI12,0) -> 0 | HP12: 31.36683542 | HQ12: 2011-01-07 | HR12: =IF(AND($CQ12>=0, $CQ12<=90), Control!$C$135, Control!$C$135) -> 0.035 | HS12: 0.035 | HT12: =IF(OR(Control!$E$21=1,Control!$E$21=2),$KY12,$KV12) -> 0.08885314225 | HU12: 199.4174029 | HV12: =Control!$C$137*$HS12 -> 0.0175 | HW12: =Control!$C$138*$HS12 -> 0.0175 | HX12: =Control!$C$144*$FL12 -> 0 | HY12: 0 | HZ12: =Control!$C$143*$FI12+$IS12*$EP12 -> 0 | IA12: 0 | IB12: =IF(Control!$C$97=1, $EC12*$FV12, 0) -> 0 | IC12: 1.416980427 | ID12: =Control!$C$136*$HR12 -> 0.035 | IE12: 9.194989305 | IF12: =Control!$C$136*$HW12 -> 0.0175 | IG12: 0.5156938055 | IH12: =($EC12*Control!$C$142+$EG12*Control!$C$143)/(IF($HC12<>0,$HC12,1)) -> 0.009495721887 | II12: 0.0332350266 | IJ12: =IF(OR(Control!$B$180=$AH12,Control!$B$181=$AH12, Control!$B$182=$AH12, Control!$B$183=$AH12, Control!$B$184=$AH12, Control!$B$185=$AH12, Control!$B$186=$AH12, Control!$B$187=$AH12, Control!$B$188=$AH12, Control!$B$189=$AH12), 1, 0) -> 0 | IK12: =IF($IJ12=0,0, VLOOKUP($AH12,Control!$B$180:$C$189,2)) -> 0 | IL12: 0 | IM12: =Control!$C$104 -> 0.7 | IN12: 0 | IO12: 0.5156938055 | IP12: =IF(AND(Control!$C$97=1,$KK12<1),$EC12*Control!$C$131*(1-$KK12), 0) -> 0 | IQ12: 1 | IR12: =MAX(0,$IO12-$EG12*Control!$C$143) -> 0.3683527182 | IS12: 0.0175 | IT12: 9.2824885 | IU12: =$IT12+$IO12 -> 9.798182305 | IV12: =Control!$C$142*MAX(0,$FG12-$EO12) -> 0 | IW12: 0.02499976999 | IX12: 0 | IY12: 0 | IZ12: =IF(OR($AX12=1,AND($AX12=0, Control!$E$7=1,$EO12<>0)), $IT12-$IX12, $IT12) -> 9.2824885 | JA12: 0 | JB12: =MAX(0,$IT12-$EC12*Control!$C$142) -> 6.655348698 | JC12: 0 | JD12: 0.03533305877 | JE12: 0 | JF12: =MAX(Control!$C$140*$EL12-$JW12, 0)/Control!$C$145 -> 0 | JG12: 0 | JH12: 9.798182305 | JI12: 0.9100478921 | JJ12: 0 | JK12: 0 | JL12: 0 | JM12: 74.16561665 | JN12: =IF(Control!$C$97=1,IF(Control!$E$18=0,MAX(0,$JL12)*$GQ12/Control!$C$47,(MAX(0,MIN($JL12,$JM12*$GQ12/Control!$C$47),0)))) -> 0 | JO12: =$IN12/Control!$C$47-$JN12+$HT12 -> 0.08885314225 | JP12: =IF(Control!$C$97=1,($JE12/(IF($JL12<>0,$JL12,1)))*$JN12,0) -> 0 | JQ12: =IF(Control!$C$97=1,($JJ12/(IF($JL12<>0,$JL12,1)))*$JN12, 0) -> 0 | JR12: 10.7082302 | JS12: =MIN(($JB12+$IR12)*Control!$C$134, $JI12-$EI12*Control!$C$144) -> 0.6500342087 | JT12: 7.673735625 | JU12: =IF($CQ12-Control!$C$133<0, 0, $JT12/Control!$C$145) -> 0 | JV12: 0 | JW12: 0 | JX12: 0 | JY12: 0 | JZ12: 0.0175 | KA12: 0.03353449452 | KB12: 0.9100478921 | KC12: =IF(Control!$C$97=1,($JC12/(IF($JL12<>0,$JL12,1)))*$JN12, 0) -> 0 | KD12: 1.416980427 | KE12: 10.7082302 | KF12: 0 | KG12: 0 | KH12: 0 | KI12: 0 | KJ12: 0.03353449452 | KK12: =IF(Control!$E$18=0,1,MAX(0.001,MIN(1,IF(($II12-$IH12)<>0,($KJ12-$IH12)/($II12-$IH12),1)))) -> 1 | KL12: =IF(Control!$C$97=1, $KL11+ $KK11, 0) -> 5.811474703 | KM12: 0.9685791172 | KN12: 1.416980427 | KO12: =IF(Control!$E$21=3,4000000000*EXP(-8400/($O12+273)),IF(Control!$E$21=4,4000000000*EXP(-8400/($O12+273))*($KW12),0)) -> 0.0001504781697 | KP12: =IF(Control!$E$21=3,5600000000000*EXP(-9800/($O12+273)),IF(Control!$E$21=4,5600000000000*EXP(-9800/($O12+273))*$KW12,0)) -> 0.001338680063 | KQ12: 149.8540552 | KR12: 49.56334769 | KS12: 199.4174029 | KT12: 0.02254806741 | KU12: 0.06630507484 | KV12: 0.08885314225 | KW12: 0.5714285714 | KX12: =IF($CQ12-Control!$C$132<0, IF($NX12-0.01<0,0,1),0) -> 1 | KY12: =IF(Control!$C$97=1,MAX(0,MIN(Control!$C$108*$KZ12*$GQ12,$KZ12))) -> 1.610753064 | KZ12: 64.43012258 | LA12: =IF($CQ12-Control!$C$132<0, IF($MV12-$OQ12<0,0,1),0) -> 1 | LB12: 2011-01-07 | LC12: =1370*(1+0.033*COS(2*Control!$C$121*$AH12/365)) -> 1414.882168 | LD12: 1.032760708 | LE12: -0.3905756791 | LF12: =ACOS(-TAN((2*Control!$B$8/360))*TAN(Calculations!$LE12)) -> 1.448577215 | LG12: =((24*60)/PI())*0.082*$LD12*(($LF12*SIN(Control!$B$8*2*PI()/360))*SIN($LE12)+COS(Control!$B$8*2*PI()/360)*COS($LE12)*SIN($LF12)) -> 5.194751396 | LH12: 6.769910787 | LI12: =SIN(Control!$C$122*Control!$B$8)*SIN($HG12) -> -0.2995119888 | LJ12: =COS(Control!$C$122*Control!$B$8)*COS($HG12) -> 0.5715214862 | LK12: =12*(1+2*ASIN(MAX(-1,MIN(1,$LI12/$LJ12))/Control!$C$121)) -> 7.977676125 | LL12: =12*(1+2*ASIN(MAX(-1,MIN(1,(-SIN(-4*Control!$C$122)+$LI12)/$LJ12))/Control!$C$121)) -> 8.920460174 | LM12: =3600*($LK12*$LI12+24*$LJ12*SQRT(1-$LN12*$LN12)/Control!$C$121) -> 4784.787694 | LN12: -0.5240607676 | LO12: 0.1292483797 | LP12: =Control!$C$128*$AB12 -> 0.06601635741 | LQ12: 0.54 | LR12: 0 | LS12: =Control!$C$123*((($D12+273.16)^4+($E12+273.16)^4)/2)*(0.34-0.14*SQRT($Y12))*(1.35*$AQ12/(0.75*$LG12)-0.35) -> -0.3026613762 | LT12: =Control!$C$123*($G12+273)^4*(0.56-0.079*SQRT($Y12*10))*(0.1+0.9*$LR12) -> 1.013579342 | LU12: =$AQ12*(1-Control!$C$125)-$LT12 -> -0.1823293425 | LV12: =$AQ12*(1-Control!$C$126)-$LT12 -> -0.2698293425 | LW12: =$AQ12*(1-Control!$C$127)-$LT12 -> -0.3573293425 | LX12: =(1-Control!$C$127)*AQ12-LS12 -> 0.9589113762 | LY12: 0.7509130939 | LZ12: 0.9111782611 | MA12: =($AC12*($LU12/Control!$C$124)+$LP12*$LY12)/($AC12+$LP12) -> 0.3683455694 | MB12: =($AC12*($LV12/Control!$C$124)+$LP12*$LY12)/($AC12+$LP12) -> 0.3517908915 | MC12: 0.3683455694 | MD12: 0.3517908915 | ME12: 0.3324367357 | MF12: 0.1549640549 | MG12: 0.677449035 | MH12: 0 | MI12: =($AC12*($LW12/Control!$C$124)+$LP12*$LZ12)/($AC12+$LP12) -> 0.4212135104 | MJ12: =IF(Control!$B$17>=1000,0.92,IF(AND(720<=Control!$B$17,1000>Control!$B$17),(0.95+(Control!$B$17-720)*((0.92-0.95)/(1000-720))),IF(AND(360<=Control!$B$17,720>Control!$B$17),(1+(Control!$B$17-360)*((0.95-1)/(720-360))),IF(AND(40<=Control!$B$17,360>Control!$B$17),(1.05+(Control!$B$17-40)*((1.05-1)/(360-40))))))) -> 0.9956043981 | MK12: 0.4212135104 | ML12: 0.4193620235 | MM12: 0.4193620235 | MN12: =MAX(0.0001, Control!$C$115*$MM12*$DM12) -> 0.02307165463 | MO12: =1/(0.76+1.5*($MK12/10))-(5-Control!$C$93)*0.1 -> 1.064798146 | MP12: =IF(Control!$C$93<3,$MO12+($MK12-0.6)/(Control!$C$93*(Control!$C$93+3)), MAX(0.1, MIN(0.95,$MO12))) -> 0.95 | MQ12: =IF(Control!$C$93<3,$MO12+(($MM12/10)-0.6)/(Control!$C$93*(Control!$C$93+3)), MAX(0.1, MIN(0.95,$MO12))) -> 0.95 | MR12: =(1-$MQ12)*(Control!$C$111-Control!$C$110)+Control!$C$110 -> 0.16 | MS12: =MAX(0,MIN(1,($MW12-Control!$C$110)/($MR12-Control!$C$110))) -> 1 | MT12: =1/(0.76+1.5*$MM12)-(5-Control!$C$93)*0.1 -> 0.5699200994 | MU12: 10.8 | MV12: 350 | MW12: =MAX(Control!$C$110, MIN(Control!$C$117, $MV12/MAX(0.0001,$CZ12))) -> 0.35 | MX12: =(Control!$C$111-$MW12)*Control!$C$57 -> 0 | MY12: =(Control!$C$117-$MW12)*Control!$C$57 -> 100 | MZ12: 200 | NA12: 0 | NB12: =MAX(Control!$C$110, MIN(Control!$C$117, $NA12/MAX(0.0001,Control!$C$102-$CZ12))) -> 0.15 | NC12: =IF(Control!$C$97=1, $CY12*$NB12, 0) -> 0 | ND12: 0 | NE12: =(Control!$C$111-$NB12)*(Control!$C$102-Control!$C$57) -> 0 | NF12: =(Control!$C$117-$NB12)*(Control!$C$102-Control!$C$57) -> 0 | NG12: 1 | NH12: =IF(Control!$C$41=2, IF(OR(Control!$B$200=$AH12,Control!$B$201=$AH12, Control!$B$202=$AH12, Control!$B$203=$AH12, Control!$B$204=$AH12, Control!$B$205=$AH12, Control!$B$206=$AH12, Control!$B$207=$AH12, Control!$B$208=$AH12, Control!$B$209=$AH12, Control!$B$210=$AH12), 1, 0), 0) -> 0 | NI12: =IF($NH12=0,0, VLOOKUP($AH12,Control!$B$200:$C$210,2)) -> 0 | NJ12: =$CZ12*(Control!$C$111-Control!$C$110) -> 200 | NK12: =IF(Control!$C$41=2, $NM11-$NN11, 0) -> 0 | NL12: =IF(AND(Control!$C$41=1, $MW11<= ($MR11+0.02), $I11<10), 0, IF(Control!$C$41=2, $NK11, 0)) -> 0 | NM12: =IF(Control!$C$41=2, $NI12+$NL12,0) -> 0 | NN12: =IF(AND(Control!$C$41=1, $MW12<= ($MR12+0.02), $I12<10), MAX(0, MIN(10, 0.7*($NJ12-$MZ12))), IF(Control!$C$41=2, MIN(10,$NM12),0)) -> 0 | NO12: 0 | NP12: =(1-Control!$C$56)*$I12+$NN12 -> 12.2 | NQ12: =IF($NP12<5, $ME12* MAX(0, MIN(1, (SQRT($NG12)-SQRT($NG12-1))*Control!$C$54)),0) -> 0 | NR12: =IF($NP12>=5, $ME12, MAX(0,MIN($ME12, $NQ12+$NP12,($MW12-Control!$C$112)))) -> 0.3324367357 | NS12: =IF(Control!$C$116<>1, Control!$C$117-Control!$C$114, 0) -> 0.38 | NT12: 0 | NU12: =MAX(0,MIN(1,(Control!$C$117-$MW12)/(Control!$C$117-$NS12))) -> 1 | NV12: =IF(Control!$C$116<>1, $NU12+((1-$NT12/4)*(1-$NU12)),1) -> 1 | NW12: =IF(Control!$E$26=0,$MN12,MAX(0,MIN($MZ12,$MS12*$NV12*$MN12))) -> 0.02307165463 | NX12: 1 | NY12: 7 | NZ12: 1.166666667 | OA12: 11.84449161 | OB12: =MIN(Control!$C$55+$MY12, $OA12) -> 11.84449161 | OC12: =IF($MX12<=$OB12,MIN(Control!$C$55+$NF12,$OB12-$MX12),0) -> 11.84449161 | OD12: =IF(Control!$C$97=1, $CY12*($NB12-Control!$C$110), 0) -> 0 | OE12: =$OB12-$OC12+$OD12 -> 0 | OF12: =IF($NE12 <=$OC12, MIN(Control!$C$55, $OC12-$NE12), 0) -> 11.84449161 | OG12: 0 | OH12: 0 | OI12: =Control!$C$56*$I12 -> 0 | OJ12: 0 | OK12: 0 | OL12: 0 | OM12: 0 | ON12: 0 | OO12: 0 | OP12: =Control!$C$110 -> 0.15 | OQ12: 150 | OR12: =Control!$C$111 -> 0.35 | OS12: 350 | OT12: 11.6 | OU12: 0 | OV12: 11.6 | OW12: 0 | OX12: 10.73396972 | OY12: 0.05665840166 | OZ12: 0.670403913 | PA12: -3.236994006e-14 | PB12: -3.236994006e-14 | PC12: 0 | PD12: 350 | PE12: 0 | PF12: =IF(Control!$C$44="T", IF(Control!$C$48="F", IF($AH$6-Control!$C$43<0,0,1), IF(365+$AH$6-Control!$C$43<0,0,1)),0) -> 0 | PG12: =IF(Control!$C$48="F", IF($AH$6-$HI12<0,0,1), IF(365+$AH$6-$HI12<0,0,1)) -> 1 | PH12: =Control!$C$101 -> 1500 | PI12: 0 | PJ12: 0.4212135104 | PK12: 7 | PL12: 0
